Workbook

Sheet Contents
A1: 80 | M1: ESC USE ONLY
D2: ESSENTIAL SERVICES COMMISSION
D3: Water Price Review
D4: Financial Model Template
B7: Table of Contents | F7: Water Business: | H7: =+N24 -> Southern Rural Water | I7: =+O24 -> SRW
B8: Section & Sheet Titles | F8: Regulatory Period: | H8: 2023-24 to 2027-28 (Fifth) | N8: [Decision] | O8: [Month] | P8: [Year] | Q8: [Version]
F9: Model Name: | H9: =I7&"_Price Review Template_"&O9&P9&Q9 -> SRW_Price Review Template_Jun2023 - v1 | N9: Draft | O9: Jun | P9: 2023 | Q9: - v1 | R9: << Select
B10: 1 | C10: Model Quality Check | F10: Decision type: | H10: Draft Decision | N10: Draft | O10: Jan | P10: 2016 | Q10: - v1
B11: 2 | C11: Key Assumptions Price Control | N11: Final | O11: Feb | P11: 2017 | Q11: - v1.2
B12: 3 | C12: Expenditure - Detail | F12: Model Key: | O12: Mar | P12: 2018 | Q12: - v3
B13: 4 | C13: Operating Expenditure - Forecast | O13: Apr | P13: 2019 | Q13: - v3.1
B14: 5 | C14: Operating Expenditure - Breakdown | G14: BLUE | H14: =+I7&" - DATA INPUT CELL" -> SRW - DATA INPUT CELL | O14: May | P14: 2020 | Q14: - v4
B15: 6 | C15: Capital Expenditure - Forecast Input | O15: Jun | P15: 2021 | Q15: - v4.1
B16: 7 | C16: Capital Expenditure - Asset Category Breakdown | G16: PURPLE | H16: NOTES / INSTRUCTIONS | O16: Jul | P16: 2022 | Q16: - v5
B17: 8 | C17: Expenditure Summary | O17: Aug | P17: 2023 | Q17: - v5.1
B18: 9 | C18: Renewals Annuity | G18: GREY | H18: MODEL PARAMETERS / ASSUMPTIONS | O18: Sep | P18: 2024 | Q18: - v6
B19: 10 | C19: Rolled forward regulatory asset base (RAB) | O19: Oct | P19: 2025 | Q19: - v6.1
B20: 11 | C20: Previous period adjustments | G20: WHITE | H20: FORMULA / HARDCODED VALUES | O20: Nov | P20: 2026 | Q20: - v7
B21: 12 | C21: Revenue forecast (price caps) | O21: Dec | Q21: - v7.1
B22: 13 | C22: Revenue forecast (tariff basket) | G22: ORANGE | H22: FORMULA DIFFERENT TO ADJACENT CELL
B23: 14 | C23: Non Prescribed Services | N23: [Business]
B24: 15 | C24: Cash, debt and tax assumptions | G24: GREEN | H24: DATA FROM 2018 DECISION OR PERFORMANCE REPORT | N24: Southern Rural Water | O24: =+VLOOKUP(N24,N25:O42,2,FALSE) -> SRW
B25: 16 | C25: Revenue requirement detail | N25: Barwon Water | O25: BW | P25: Urban model
B26: 17 | C26: Financial indicators | G26: RED | H26: ERROR CHECK | N26: Central Highlands Water | O26: CHW | P26: Urban model
B27: 18 | C27: Outcomes | N27: Greater Western Water | O27: GWW | P27: Urban model
B28: 19 | C28: Guaranteed Service Levels (GSL) | N28: Coliban Water | O28: CW | P28: Urban model
B29: 20 | C29: Dashboard - Pricing | N29: East Gippsland Water | O29: EGW | P29: Urban model
B30: 21 | C30: Dashboard - Opex | N30: Gippsland Water | O30: CGW | P30: Urban model
B31: 22 | C31: Dashboard - Capex | N31: Goulburn Valley Water | O31: GVW | P31: Urban model
B32: 23 | C32: Dashboard - Data | N32: GWM Water | O32: GWMW | P32: GWMW model
N33: Lower Murray Water - Urban | O33: LMW-U | P33: Urban model
N34: Lower Murray Water - Rural | O34: LMW-R | P34: LMW-R model
N35: North East Water | O35: NEW | P35: Urban model
N36: South East Water | O36: SEW | P36: Urban model
N37: South Gippsland Water | O37: SGW | P37: Urban model
M38: >>>> | N38: Southern Rural Water | O38: SRW | P38: SRW model
N39: Wannon Water | O39: WNW | P39: Urban model
N40: Westernport Water | O40: WPW | P40: Urban model
N41: Yarra Valley Water | O41: YVW | P41: Urban model
P42: Urban model

Sheet Adjustments log (hidden)
A3: 1 | B3: Operating expenditure
B4: $m 2022-23
C6: 2023-24 | D6: 2024-25 | E6: 2025-26 | F6: 2026-27 | G6: 2027-28 | H6: Total
B7: Proposed - controllable operating expenditure | H7: =SUM(C7:G7) -> 0
B8: DD adjustments
B9: xx | H9: =SUM(C9:G9) -> 0
B10: xx | H10: =SUM(C10:G10) -> 0
B11: xx | H11: =SUM(C11:G11) -> 0
B12: xx | H12: =SUM(C12:G12) -> 0
B13: xx | H13: =SUM(C13:G13) -> 0
B14: FD adjustments
B15: xx | H15: =SUM(C15:G15) -> 0
B16: xx | H16: =SUM(C16:G16) -> 0
B17: xx | H17: =SUM(C17:G17) -> 0
B18: xx | H18: =SUM(C18:G18) -> 0
B19: xx | H19: 0
B20: Total adjustments | C20: =SUM(C8:C19) -> 0 | D20: 0 | E20: 0 | F20: 0 | G20: 0 | H20: 0
B21: Final decision - controllable operating expenditure | C21: =C7+C20 -> 0 | D21: 0 | E21: 0 | F21: 0 | G21: 0 | H21: 0
B23: Proposed - non-controllable operating expenditure | H23: =SUM(C23:G23) -> 0
B24: DD adjustments
B25: xx | H25: =SUM(C25:G25) -> 0
B26: xx | H26: =SUM(C26:G26) -> 0
B27: xx | H27: =SUM(C27:G27) -> 0
B28: xx | H28: =SUM(C28:G28) -> 0
B29: FD adjustments
B30: xx | H30: =SUM(C30:G30) -> 0
B31: xx | H31: =SUM(C31:G31) -> 0
B32: Total adjustments | C32: =SUM(C24:C31) -> 0 | D32: 0 | E32: 0 | F32: 0 | G32: 0 | H32: 0
B33: Final decision - non-controllable operating expenditure | C33: =C23+C32 -> 0 | D33: 0 | E33: 0 | F33: 0 | G33: 0 | H33: 0
B35: Proposed - total operating expenditure | C35: =C7+C23 -> 0 | D35: 0 | E35: 0 | F35: 0 | G35: 0 | H35: 0
B36: Total adjustments | C36: =C20+C32 -> 0 | D36: 0 | E36: 0 | F36: 0 | G36: 0 | H36: 0
B37: Final decision - total operating expenditure | C37: =SUM(C35:C36) -> 0 | D37: 0 | E37: 0 | F37: 0 | G37: 0 | H37: 0
B39: Check
A42: 2 | B42: Capital expenditure
B43: $m 2022-23
C45: 2023-24 | D45: 2024-25 | E45: 2025-26 | F45: 2026-27 | G45: 2027-28 | H45: Total
B46: Proposed - capital expenditure | H46: =SUM(C46:G46) -> 0
B47: DD adjustments
B48: xx | H48: =SUM(C48:G48) -> 0
B49: xx | H49: =SUM(C49:G49) -> 0
B50: xx | H50: =SUM(C50:G50) -> 0
B51: xx | H51: =SUM(C51:G51) -> 0
B52: FD adjustments
B53: xx | H53: =SUM(C53:G53) -> 0
B54: xx
B55: Total adjustments | C55: =SUM(C47:C54) -> 0 | D55: 0 | E55: 0 | F55: 0 | G55: 0 | H55: 0
B56: Draft decision - capital expenditure | C56: =C46+C55 -> 0 | D56: 0 | E56: 0 | F56: 0 | G56: 0 | H56: 0
B58: Check

Sheet Model Quality Check
A1: 80 | B1: Model Quality Check
B2: =+Contents!H7 -> Southern Rural Water
B3: Go to Table of Contents
K4: FIRST REG PERIOD | O4: SECOND REG PERIOD | T4: THIRD REG PERIOD | Y4: FOURTH REG PERIOD | AD4: FIFTH REG PERIOD | AI4: SIXTH REG PERIOD
F6: Straight Line | J6: 2006 | K6: 2007 | L6: 2008 | M6: 2009 | N6: 2010 | O6: 2011 | P6: 2012 | Q6: 2013 | R6: 2014 | S6: 2015 | T6: 2016 | U6: 2017 | V6: 2018 | W6: 2019 | X6: 2020 | Y6: 2021 | Z6: 2022 | AA6: 2023 | AB6: 2024 | AC6: 2025 | AD6: 2026 | AE6: 2027 | AF6: 2028 | AG6: =AF6+1 -> 2029 | AH6: =AG6+1 -> 2030 | AI6: 2031 | AJ6: 2032 | AK6: 2033
F7: Declining Balance | J7: =+CONCATENATE(J6-1,"-",RIGHT(J6,2)) -> 2005-06 | K7: 2006-07 | L7: 2007-08 | M7: 2008-09 | N7: 2009-10 | O7: 2010-11 | P7: 2011-12 | Q7: 2012-13 | R7: 2013-14 | S7: 2014-15 | T7: 2015-16 | U7: 2016-17 | V7: 2017-18 | W7: 2018-19 | X7: 2019-20 | Y7: 2020-21 | Z7: 2021-22 | AA7: 2022-23 | AB7: 2023-24 | AC7: 2024-25 | AD7: 2025-26 | AE7: 2026-27 | AF7: 2027-28 | AG7: 2028-29 | AH7: 2029-30 | AI7: 2030-31 | AJ7: 2031-32 | AK7: 2032-33
D9: Model ready for submission: | I9: =SUM(AA15:AK49) -> 20 | V9: (If No, please ensure that the error check is corrected at the source)
D11: All financial indicators satisfied: | I11: =SUM(AB54:AK59) -> 10 | V11: (If No, please ensure that the error check is corrected at the source)
E14: 1. | F14: Opex_FO
G15: Reconciliation to 'Opex_Breakdown' tab row 39 | AB15: =Opex_FO!AC97 -> 1 | AC15: =Opex_FO!AD97 -> 1 | AD15: =Opex_FO!AE97 -> 1 | AE15: =Opex_FO!AF97 -> 1 | AF15: =Opex_FO!AG97 -> 1 | AG15: =Opex_FO!AH97 -> 1 | AH15: =Opex_FO!AI97 -> 1 | AI15: =Opex_FO!AJ97 -> 1 | AJ15: =Opex_FO!AK97 -> 1 | AK15: =Opex_FO!AL97 -> 1
E17: 2. | F17: Opex_Breakdown
G18: Reconciliation to 'Opex_FO' tab row 99 | AB18: =Opex_Breakdown!AC43 -> 1 | AC18: =Opex_Breakdown!AD43 -> 1 | AD18: =Opex_Breakdown!AE43 -> 1 | AE18: =Opex_Breakdown!AF43 -> 1 | AF18: =Opex_Breakdown!AG43 -> 1 | AG18: =Opex_Breakdown!AH43 -> 1 | AH18: =Opex_Breakdown!AI43 -> 1 | AI18: =Opex_Breakdown!AJ43 -> 1 | AJ18: =Opex_Breakdown!AK43 -> 1 | AK18: =Opex_Breakdown!AL43 -> 1
G20: Reconciliation of Opex by service and function | AB20: =Opex_Breakdown!AC28 -> 0 | AC20: =Opex_Breakdown!AD28 -> 0 | AD20: =Opex_Breakdown!AE28 -> 0 | AE20: =Opex_Breakdown!AF28 -> 0 | AF20: =Opex_Breakdown!AG28 -> 0 | AG20: =Opex_Breakdown!AH28 -> 0 | AH20: =Opex_Breakdown!AI28 -> 0 | AI20: =Opex_Breakdown!AJ28 -> 0 | AJ20: =Opex_Breakdown!AK28 -> 0 | AK20: =Opex_Breakdown!AL28 -> 0
E22: 3. | F22: Capex_FO input
G23: Reconciliation of total prescribed capex between cost driver and capital type | AB23: ='Capex_FO input'!D26 -> 0 | AC23: ='Capex_FO input'!E26 -> 0 | AD23: ='Capex_FO input'!F26 -> 0 | AE23: ='Capex_FO input'!G26 -> 0 | AF23: ='Capex_FO input'!H26 -> 0 | AG23: ='Capex_FO input'!I26 -> 0 | AH23: ='Capex_FO input'!J26 -> 0 | AI23: ='Capex_FO input'!K26 -> 0 | AJ23: ='Capex_FO input'!L26 -> 0 | AK23: ='Capex_FO input'!M26 -> 0
E25: 4. | F25: Capex_FO_AC
G26: Reconciliation to 'Capex_FO input' tab row 29 | AA26: =Capex_FO_AC!AB32 -> 0 | AB26: =Capex_FO_AC!AC32 -> 0 | AC26: =Capex_FO_AC!AD32 -> 0 | AD26: =Capex_FO_AC!AE32 -> 0 | AE26: =Capex_FO_AC!AF32 -> 0 | AF26: =Capex_FO_AC!AG32 -> 0 | AG26: =Capex_FO_AC!AH32 -> 0 | AH26: =Capex_FO_AC!AI32 -> 0 | AI26: =Capex_FO_AC!AJ32 -> 0 | AJ26: =Capex_FO_AC!AK32 -> 0 | AK26: =Capex_FO_AC!AL32 -> 0
E28: 5. | F28: RollForward_FO
G29: Reconciliation of existing assets book value to RAB | AB29: =IF(ROUND(RollForward_FO!G84,2)=ROUND(RollForward_FO!G82,2),0,1) -> 0
E31: 6. | F31: RevenuePriceCap_FO
G32: Price control - Fourth period | AB32: =IF(KeyAssumptionsPriceControl_FO!I48=1,IF(RevenuePriceCap_FO!AD34="PRICE CONTROL OK",0,1),0) -> 0 | AC32: =IF(KeyAssumptionsPriceControl_FO!N48=1,RevenuePriceCap_FO!AD34,"") -> 
G34: Price control - Fifth period | AB34: =IF(KeyAssumptionsPriceControl_FO!I48=1,IF(RevenuePriceCap_FO!AI34="PRICE CONTROL OK",0,1),0) -> 0 | AC34: =IF(KeyAssumptionsPriceControl_FO!N48=1,RevenuePriceCap_FO!AI34,"") -> 
G36: Tariff revenue reconciliation | AB36: =RevenuePriceCap_FO!AC457 -> 0 | AC36: =RevenuePriceCap_FO!AD457 -> 0 | AD36: =RevenuePriceCap_FO!AE457 -> 0 | AE36: =RevenuePriceCap_FO!AF457 -> 0 | AF36: =RevenuePriceCap_FO!AG457 -> 0 | AG36: =RevenuePriceCap_FO!AH457 -> 0 | AH36: =RevenuePriceCap_FO!AI457 -> 0 | AI36: =RevenuePriceCap_FO!AJ457 -> 0 | AJ36: =RevenuePriceCap_FO!AK457 -> 0 | AK36: =RevenuePriceCap_FO!AL457 -> 0
E38: 7. | F38: RevenueTariffBasket_FO
G39: Price control - Fourth period | AB39: =IF(KeyAssumptionsPriceControl_FO!I48=2,IF(RevenueTariffBasket_FO!AD34="PRICE CONTROL OK",0,1),0) -> 0 | AC39: =IF(KeyAssumptionsPriceControl_FO!I48=2,RevenueTariffBasket_FO!AD34,"") -> PRICE CONTROL OK
G41: Price control - Fifth period | AB41: =IF(KeyAssumptionsPriceControl_FO!I48=2,IF(RevenueTariffBasket_FO!AI34="PRICE CONTROL OK",0,1),0) -> 0 | AC41: =IF(KeyAssumptionsPriceControl_FO!I48=2,RevenueTariffBasket_FO!AI34,"") -> PRICE CONTROL OK
G43: Tariff revenue reconciliation | AB43: =RevenueTariffBasket_FO!AC467 -> 0 | AC43: =RevenueTariffBasket_FO!AD467 -> 0 | AD43: =RevenueTariffBasket_FO!AE467 -> 0 | AE43: =RevenueTariffBasket_FO!AF467 -> 0 | AF43: =RevenueTariffBasket_FO!AG467 -> 0 | AG43: =RevenueTariffBasket_FO!AH467 -> 0 | AH43: =RevenueTariffBasket_FO!AI467 -> 0 | AI43: =RevenueTariffBasket_FO!AJ467 -> 0 | AJ43: =RevenueTariffBasket_FO!AK467 -> 0 | AK43: =RevenueTariffBasket_FO!AL467 -> 0
E45: 8. | F45: Rev&RAV_FO
G46: Rolled forward RAV reconciliation | AB46: ='Rev&RAV_FO'!AC80 -> 0 | AC46: ='Rev&RAV_FO'!AD80 -> 0 | AD46: ='Rev&RAV_FO'!AE80 -> 0 | AE46: ='Rev&RAV_FO'!AF80 -> 0 | AF46: ='Rev&RAV_FO'!AG80 -> 0 | AG46: ='Rev&RAV_FO'!AH80 -> 0 | AH46: ='Rev&RAV_FO'!AI80 -> 0 | AI46: ='Rev&RAV_FO'!AJ80 -> 0 | AJ46: ='Rev&RAV_FO'!AK80 -> 0 | AK46: ='Rev&RAV_FO'!AL80 -> 0
E48: 9. | F48: GSL
G49: Reconciliation to 'Opex_Breakdown' tab row 23 | AB49: =IF(ROUND(GSL!AC40,2)=ROUND(GSL!AC39,2),0,1) -> 0 | AC49: =IF(ROUND(GSL!AD40,2)=ROUND(GSL!AD39,2),0,1) -> 0 | AD49: =IF(ROUND(GSL!AE40,2)=ROUND(GSL!AE39,2),0,1) -> 0 | AE49: =IF(ROUND(GSL!AF40,2)=ROUND(GSL!AF39,2),0,1) -> 0 | AF49: =IF(ROUND(GSL!AG40,2)=ROUND(GSL!AG39,2),0,1) -> 0 | AG49: =IF(ROUND(GSL!AH40,2)=ROUND(GSL!AH39,2),0,1) -> 0 | AH49: =IF(ROUND(GSL!AI40,2)=ROUND(GSL!AI39,2),0,1) -> 0 | AI49: =IF(ROUND(GSL!AJ40,2)=ROUND(GSL!AJ39,2),0,1) -> 0 | AJ49: =IF(ROUND(GSL!AK40,2)=ROUND(GSL!AK39,2),0,1) -> 0 | AK49: =IF(ROUND(GSL!AL40,2)=ROUND(GSL!AL39,2),0,1) -> 0
E53: 1. | F53: Primary Indicator
G54: FFO interest cover | AB54: =Indicators_FO!AC$226 -> 1 | AC54: =Indicators_FO!AD$226 -> 0 | AD54: =Indicators_FO!AE$226 -> 0 | AE54: =Indicators_FO!AF$226 -> 0 | AF54: =Indicators_FO!AG$226 -> 0 | AG54: =Indicators_FO!AH$226 -> 0 | AH54: =Indicators_FO!AI$226 -> 0 | AI54: =Indicators_FO!AJ$226 -> 0 | AJ54: =Indicators_FO!AK$226 -> 0 | AK54: =Indicators_FO!AL$226 -> 0
E56: 2. | F56: Secondary indicators
G57: Net debt / RAV | AB57: =Indicators_FO!AC$235 -> 0 | AC57: =Indicators_FO!AD$235 -> 0 | AD57: =Indicators_FO!AE$235 -> 0 | AE57: =Indicators_FO!AF$235 -> 0 | AF57: =Indicators_FO!AG$235 -> 0 | AG57: =Indicators_FO!AH$235 -> 0 | AH57: =Indicators_FO!AI$235 -> 0 | AI57: =Indicators_FO!AJ$235 -> 0 | AJ57: =Indicators_FO!AK$235 -> 0 | AK57: =Indicators_FO!AL$235 -> 0
G58: FFO / Net debt | AB58: =Indicators_FO!AC$243 -> 1 | AC58: =Indicators_FO!AD$243 -> 1 | AD58: =Indicators_FO!AE$243 -> 0 | AE58: =Indicators_FO!AF$243 -> 0 | AF58: =Indicators_FO!AG$243 -> 1 | AG58: =Indicators_FO!AH$243 -> 1 | AH58: =Indicators_FO!AI$243 -> 1 | AI58: =Indicators_FO!AJ$243 -> 1 | AJ58: =Indicators_FO!AK$243 -> 1 | AK58: =Indicators_FO!AL$243 -> 1
G59: Reconciliation to 'Opex_Breakdown' tab row 23 | AB59: =Indicators_FO!AC$252 -> 1 | AC59: =Indicators_FO!AD$252 -> 0 | AD59: =Indicators_FO!AE$252 -> 0 | AE59: =Indicators_FO!AF$252 -> 0 | AF59: =Indicators_FO!AG$252 -> 0 | AG59: =Indicators_FO!AH$252 -> 0 | AH59: =Indicators_FO!AI$252 -> 0 | AI59: =Indicators_FO!AJ$252 -> 0 | AJ59: =Indicators_FO!AK$252 -> 0 | AK59: =Indicators_FO!AL$252 -> 0

Sheet KeyAssumptionsPriceControl_FO
A1: 80 | B1: Key Assumptions Price Control
B2: =+Contents!H7 -> Southern Rural Water
B3: Go to Table of Contents
L4: FIRST REG PERIOD | P4: SECOND REG PERIOD | U4: THIRD REG PERIOD | Z4: FOURTH REG PERIOD | AC4: FIFTH REG PERIOD | AJ4: SIXTH REG PERIOD
F6: Straight Line | K6: 2006 | L6: 2007 | M6: 2008 | N6: 2009 | O6: 2010 | P6: 2011 | Q6: 2012 | R6: 2013 | S6: 2014 | T6: 2015 | U6: 2016 | V6: 2017 | W6: 2018 | X6: 2019 | Y6: 2020 | Z6: 2021 | AA6: 2022 | AB6: 2023 | AC6: 2024 | AD6: 2025 | AE6: 2026 | AF6: 2027 | AG6: 2028 | AH6: =AG6+1 -> 2029 | AI6: =AH6+1 -> 2030 | AJ6: =AI6+1 -> 2031 | AK6: =AJ6+1 -> 2032 | AL6: =AK6+1 -> 2033
F7: Declining Balance | I7: 2003-04 | J7: 2004-05 | K7: =+CONCATENATE(K6-1,"-",RIGHT(K6,2)) -> 2005-06 | L7: =+CONCATENATE(L6-1,"-",RIGHT(L6,2)) -> 2006-07 | M7: 2007-08 | N7: 2008-09 | O7: 2009-10 | P7: 2010-11 | Q7: 2011-12 | R7: 2012-13 | S7: 2013-14 | T7: 2014-15 | U7: 2015-16 | V7: 2016-17 | W7: 2017-18 | X7: 2018-19 | Y7: 2019-20 | Z7: 2020-21 | AA7: 2021-22 | AB7: 2022-23 | AC7: 2023-24 | AD7: 2024-25 | AE7: 2025-26 | AF7: 2026-27 | AG7: 2027-28 | AH7: 2028-29 | AI7: 2029-30 | AJ7: 2030-31 | AK7: 2031-32 | AL7: 2032-33
E11: Inflation assumptions
AB12: Estimate
F13: March quarter annual CPI | I13: 141.3 | J13: 144.1 | K13: 147.5 | L13: 151.9 | M13: 155.6 | N13: 162.2 | O13: 166.2 | P13: 171 | Q13: 176.7 | R13: 99.9 | S13: 102.4 | T13: 105.4 | U13: 106.8 | V13: 108.2 | W13: 110.5 | X13: 112.6 | Y13: 114.1 | Z13: 116.6 | AA13: 117.9 | AB13: 123.9
F14: Inflation | J14: =+J13/I13-1 -> 0.01981599434 | K14: 0.02359472588 | L14: 0.02983050847 | M14: 0.02435813035 | N14: 0.04241645244 | O14: 0.02466091245 | P14: 0.02888086643 | Q14: 0.03333333333 | R14: 0.01584606678 | S14: =+IF(S13=0,$X$44,S13/R13-1) -> 0.02502502503 | T14: 0.029296875 | U14: 0.01328273245 | V14: 0.01310861423 | W14: 0.02125693161 | X14: 0.01900452489 | Y14: 0.01332149201 | Z14: 0.02191060473 | AA14: 0.01114922813 | AB14: 0.05089058524 | AC14: =+IF(AC13=0,$AC$44,AC13/AB13-1) -> 0.03 | AD14: =+IF(AD13=0,$AC$44,AD13/AC13-1) -> 0.03 | AE14: 0.03 | AF14: 0.03 | AG14: 0.03 | AH14: 0.03 | AI14: 0.03 | AJ14: 0.03 | AK14: 0.03 | AL14: 0.03
F15: Inflation factor | I15: 0.7871866295 | J15: 0.8027855153 | K15: 0.8217270195 | L15: 0.8462395543 | M15: 0.8668523677 | N15: 0.9036211699 | O15: 0.9259052925 | P15: 0.9526462396 | Q15: 0.9844011142 | R15: =+R13/$AB$13 -> 0.8062953995 | S15: =+S13/$AB$13 -> 0.8264729621 | T15: 0.8506860371 | U15: 0.8619854722 | V15: 0.8732849072 | W15: 0.8918482647 | X15: 0.9087974173 | Y15: 0.9209039548 | Z15: 0.9410815174 | AA15: 0.9515738499 | AB15: 1 | AC15: =+AB15*(1+AC14) -> 1.03 | AD15: 1.0609 | AE15: 1.092727 | AF15: 1.12550881 | AG15: 1.159274074 | AH15: =+AG15*(1+AH14) -> 1.194052297 | AI15: =+AH15*(1+AI14) -> 1.229873865 | AJ15: =+AI15*(1+AJ14) -> 1.266770081 | AK15: =+AJ15*(1+AK14) -> 1.304773184 | AL15: =+AK15*(1+AL14) -> 1.343916379
I16: CPI index re-referenced in 2012-13, shaded values have been hardcoded to lock in RAB value.
E21: Cost of debt - 10 year trailing average (Nominal)
AA22: Estimate | AB22: Estimate | AC22: Estimate | AD22: Estimate | AE22: Estimate | AF22: Estimate | AG22: Estimate | AH22: Estimate | AI22: Estimate | AJ22: Estimate | AK22: Estimate | AL22: Estimate
E23: Cost of debt | L23: 0.06981666667 | M23: 0.07414 | N23: 0.0691525788 | O23: 0.07361870984 | P23: 0.07046784142 | Q23: 0.06308887941 | R23: 0.0526945046 | S23: 0.070525 | T23: 0.05360833333 | U23: 0.05270138413 | V23: 0.04908333333 | W23: 0.045283 | X23: 0.046133 | Y23: 0.03305833333 | Z23: 0.03045 | AA23: 0.037533 | AB23: 0.0375 | AC23: =+AB23 -> 0.0375 | AD23: 0.0375 | AE23: 0.0375 | AF23: 0.0375 | AG23: 0.0375 | AH23: 0.0375 | AI23: 0.0375 | AJ23: 0.0375 | AK23: 0.0375 | AL23: 0.0375
E24: Re-financing weightings - average 10 yrs | L24: =1/10 -> 0.1 | M24: =1/10 -> 0.1 | N24: =1/10 -> 0.1 | O24: =1/10 -> 0.1 | P24: =1/10 -> 0.1 | Q24: 0.1 | R24: 0.1 | S24: 0.1 | T24: 0.1 | U24: 0.1 | V24: 0.1 | W24: 0.1 | X24: 0.1 | Y24: 0.1 | Z24: 0.1 | AA24: 0.1 | AB24: 0.1 | AC24: 0.1 | AD24: 0.1 | AE24: 0.1 | AF24: 0.1 | AG24: 0.1 | AH24: 0.1 | AI24: 0.1 | AJ24: 0.1 | AK24: 0.1 | AL24: 0.1
E26: Cost of debt - 10 year trailing average | V26: =IF(U23<>"",SUMPRODUCT(L23:U23,L24:U24),"") -> 0.06498138982 | W26: =IF(V23<>"",SUMPRODUCT(M23:V23,M24:V24),"") -> 0.06290805649 | X26: =IF(W23<>"",SUMPRODUCT(N23:W23,N24:W24),"") -> 0.06002235649 | Y26: =IF(X23<>"",SUMPRODUCT(O23:X23,O24:X24),"") -> 0.05772039861 | Z26: =IF(Y23<>"",SUMPRODUCT(P23:Y23,P24:Y24),"") -> 0.05366436096 | AA26: 0.04966257681 | AB26: 0.04710698887 | AC26: =IF(AB23<>"",SUMPRODUCT(S23:AB23,S24:AB24),"") -> 0.04558753841 | AD26: =IF(AC23<>"",SUMPRODUCT(T23:AC23,T24:AC24),"") -> 0.04228503841 | AE26: 0.04067420508 | AF26: 0.03915406667 | AG26: 0.03799573333 | AH26: 0.03721743333 | AI26: 0.03635413333 | AJ26: 0.0367983 | AK26: 0.0375033 | AL26: 0.0375
E30: WACC assumptions (retained for historical purposes only) | Z30: Regulatory Rate of Return (RRR) - Nominal
K32: 1st period | M32: 2nd period | O32: 3rd period | Z32: Cost of Debt | AC32: =+AC26 -> 0.04558753841 | AD32: =+AD26 -> 0.04228503841 | AE32: 0.04067420508 | AF32: 0.03915406667 | AG32: 0.03799573333 | AH32: 0.03721743333 | AI32: 0.03635413333 | AJ32: 0.0367983 | AK32: 0.0375033 | AL32: 0.0375
E33: Parameters
F34: Risk Free Rate (Real) | K34: =Determination_Lookup!W8 -> 0.0267 | M34: =Determination_Lookup!X8 -> 0.0323 | O34: =Determination_Lookup!Y8 -> 0.00916
F35: Debt Premium | K35: =Determination_Lookup!W9 -> 0.0116 | M35: =Determination_Lookup!X9 -> 0.0175 | O35: =Determination_Lookup!Y9 -> 0.03158
F36: Equity Premium | K36: =Determination_Lookup!W10 -> 0.06 | M36: =Determination_Lookup!X10 -> 0.06 | O36: =Determination_Lookup!Y10 -> 0.06 | Z36: Regulatory Rate of Return (RRR) - Real
F37: Equity Beta | K37: =Determination_Lookup!W11 -> 0.75 | M37: =Determination_Lookup!X11 -> 0.65 | O37: =Determination_Lookup!Y11 -> 0.7
F38: Gearing (Debt/Assets) | K38: =Determination_Lookup!W12 -> 0.6 | M38: =Determination_Lookup!X12 -> 0.6 | O38: =Determination_Lookup!Y12 -> 0.6 | Z38: Cost of Debt | AC38: =(1+AC32)/(1+AC44)-1 -> 0.01513353244 | AD38: =(1+AD32)/(1+AD44)-1 -> 0.01192722176 | AE38: 0.0103633059 | AF38: 0.008887443366 | AG38: 0.007762847896 | AH38: 0.007007216828 | AI38: 0.006169061489 | AJ38: 0.006600291262 | AK38: 0.007284757282 | AL38: 0.007281553398
F39: Forecast Inflation | K39: =Determination_Lookup!W13 -> 0.0255 | M39: =Determination_Lookup!X13 -> 0.029 | O39: =Determination_Lookup!Y13 -> 0.027
F40: Franking credit value | K40: =Determination_Lookup!W14 -> 0.5 | M40: =Determination_Lookup!X14 -> 0.5 | O40: =Determination_Lookup!Y14 -> 0.5 | Z40: Return on Equity | AC40: =IF(AE65<>0,(AE65/100),IF(AE63<>0,(AE63/100),(AE61/100))) -> 0.041 | AD40: =+$AC$40 -> 0.041 | AE40: 0.041 | AF40: 0.041 | AG40: 0.041 | AH40: 0.041 | AI40: 0.041 | AJ40: 0.041 | AK40: 0.041 | AL40: 0.041
E42: 'Vanilla' After Tax WACC (Real) | K42: =ROUND(((K34+K36*K37)*(1-K38))+((K34+K35)*K38),3) -> 0.052 | M42: =ROUND(((M34+M36*M37)*(1-M38))+((M34+M35)*M38),3) -> 0.058 | O42: =ROUND(((O34+O36*O37)*(1-O38))+((O34+O35)*O38),3) -> 0.045 | Z42: RRR (real) | AC42: =ROUND((AC40*(1-AC43)+AC38*AC43),4) -> 0.0255 | AD42: 0.0236 | AE42: 0.0226 | AF42: 0.0217 | AG42: 0.0211 | AH42: 0.0206 | AI42: 0.0201 | AJ42: 0.0204 | AK42: 0.0208 | AL42: 0.0208
Z43: Gearing | AC43: 0.6 | AD43: =+AC43 -> 0.6 | AE43: 0.6 | AF43: 0.6 | AG43: 0.6 | AH43: 0.6 | AI43: 0.6 | AJ43: 0.6 | AK43: 0.6 | AL43: 0.6
Z44: Forecast Inflation | AC44: 0.03 | AD44: 0.03 | AE44: 0.03 | AF44: 0.03 | AG44: 0.03 | AH44: 0.03 | AI44: 0.03 | AJ44: 0.03 | AK44: 0.03 | AL44: 0.03
L45: Regulatory Rate of Return (RRR) [retained for historical purposes only]
E46: Form of price control selected
O47: 4th period
E48: Price caps | I48: 2 | L48: Cost of Debt | O48: =Determination_Lookup!W25 -> 0.03618998679
L49: Return on Equity | O49: =Determination_Lookup!W26 -> 0.049 | Z49: PREMO Assessment Matrix (linked to Regulatory Rate of Return calculation above)
E50: Revenue cap / Hybrid Tariff Basket | L50: Gearing | O50: =Determination_Lookup!W27 -> 0.6
L51: Forecast Inflation | O51: =Determination_Lookup!W28 -> 0.023
L52: RRR (real) | O52: =Determination_Lookup!W29 -> 0.0413 | AB52: Water business self-assessment
AB54: Leading | AC54: Advanced | AD54: Standard | AE54: Basic
Z55: ESC assessment of submission | AA55: Leading | AB55: 4.9
AA56: Advanced | AB56: 4.3 | AC56: 4.5
AA57: Standard | AB57: 3.7 | AC57: 3.9 | AD57: 4.1
AA58: Basic | AD58: 3.5 | AE58: 3.7
Z61: Water business self-assessment (Maximum allowable ROE) | AD61: Standard | AE61: =+VLOOKUP(AD61,$AD$71:$AE$75,2,FALSE) -> 4.1
Z63: ROE Override (Must be less than Maximum allowable ROE)
Z65: ESC assessment of submission | AD65: [Select] | AE65: =IFERROR(IF(AD65=AD61,AE61,VLOOKUP(AD61&AD65,AD78:AE82,2,FALSE)),0) -> 0
AD67: Difference | AE67: =IFERROR(IF(AE65=0,"",AE65-AE61),"") -> 
Z69: ESC USE ONLY
AD70: Business self assessment
AD71: [Select]
AD72: Leading | AE72: =+AB55 -> 4.9
AD73: Advanced | AE73: =+AC56 -> 4.5
AD74: Standard | AE74: =+AD57 -> 4.1
AD75: Basic | AE75: =+AE58 -> 3.7
AD77: downgrading
AD78: =AD54&AA58 -> StandardBasic | AE78: =+AD58 -> 3.5
AD79: =+AC54&AA57 -> AdvancedStandard | AE79: =+AC57 -> 3.9
AD80: =+AB54&AA56 -> LeadingAdvanced | AE80: =+AB56 -> 4.3
AD81: =+AB54&AA57 -> LeadingStandard | AE81: =+AB57 -> 3.7
AD82: =+AD61&"Basic" -> StandardBasic | AE82: CHECK

Sheet Expenditure_Detail
B1: Expenditure - Detail
B2: =+Model_Name -> Southern Rural Water
B3: Go to Table of Contents
L4: FIRST REG PERIOD | P4: SECOND REG PERIOD | U4: THIRD REG PERIOD | Z4: FOURTH REG PERIOD | AE4: FIFTH REG PERIOD | AJ4: SIXTH REG PERIOD
K5: 2006 | L5: 2007 | M5: 2008 | N5: 2009 | O5: 2010 | P5: 2011 | Q5: 2012 | R5: 2013 | S5: 2014 | T5: 2015 | U5: 2016 | V5: 2017 | W5: 2018 | X5: 2019 | Y5: 2020 | Z5: 2021 | AA5: 2022 | AB5: 2023 | AC5: 2024 | AD5: 2025 | AE5: 2026 | AF5: 2027 | AG5: 2028 | AH5: =AG5+1 -> 2029 | AI5: =AH5+1 -> 2030 | AJ5: =AI5+1 -> 2031 | AK5: =AJ5+1 -> 2032 | AL5: =AK5+1 -> 2033
B6: $m, 01/01/23 | K6: =+CONCATENATE(K5-1,"-",RIGHT(K5,2)) -> 2005-06 | L6: =+CONCATENATE(L5-1,"-",RIGHT(L5,2)) -> 2006-07 | M6: 2007-08 | N6: 2008-09 | O6: 2009-10 | P6: 2010-11 | Q6: 2011-12 | R6: 2012-13 | S6: 2013-14 | T6: 2014-15 | U6: 2015-16 | V6: 2016-17 | W6: 2017-18 | X6: 2018-19 | Y6: 2019-20 | Z6: 2020-21 | AA6: 2021-22 | AB6: 2022-23 | AC6: 2023-24 | AD6: 2024-25 | AE6: 2025-26 | AF6: 2026-27 | AG6: 2027-28 | AH6: 2028-29 | AI6: 2029-30 | AJ6: 2030-31 | AK6: 2031-32 | AL6: 2032-33
B8: This worksheet outlines the key cost drivers of operating expenditure - capitalised costs are excluded. This tab does not link to the Rev&RAV_FO worksheet
C11: Expenditure Summary
D13: Total Labour costs | W13: =W34 -> 14.286 | X13: 14.524 | Y13: 15.335 | Z13: 16.321 | AA13: 16.32446077 | AB13: 16.32446077 | AC13: 16.54370368 | AD13: 16.19240455 | AE13: 16.07156571 | AF13: 15.95072687 | AG13: 15.82988803 | AH13: 15.70904919 | AI13: 15.58821035 | AJ13: 15.46737151 | AK13: 15.34653267 | AL13: 15.22569383
D14: Total Energy costs | W14: =W92 -> 0 | X14: =X92 -> 0 | Y14: 0 | Z14: 0 | AA14: 0 | AB14: 0 | AC14: 0 | AD14: 0 | AE14: 0 | AF14: 0 | AG14: 0 | AH14: 0 | AI14: 0 | AJ14: 0 | AK14: 0 | AL14: 0
D15: Total IT costs | W15: =W103 -> 0 | X15: =X103 -> 0 | Y15: 0 | Z15: 0 | AA15: 0 | AB15: 0 | AC15: 0 | AD15: 0 | AE15: 0 | AF15: 0 | AG15: 0 | AH15: 0 | AI15: 0 | AJ15: 0 | AK15: 0 | AL15: 0
D16: Total Chemical costs | W16: =W114 -> 0 | X16: =X114 -> 0 | Y16: 0 | Z16: 0 | AA16: 0 | AB16: 0 | AC16: 0 | AD16: 0 | AE16: 0 | AF16: 0 | AG16: 0 | AH16: 0 | AI16: 0 | AJ16: 0 | AK16: 0 | AL16: 0
C21: Labour assumptions
D23: Current FTEs (at 30 June) | W23: ='[3]ESC Model Data'!G12 -> 139.317646 | X23: ='[3]ESC Model Data'!H12 -> 132.8344613 | Y23: ='[3]ESC Model Data'!I12 -> 135.252369 | Z23: ='[3]ESC Model Data'!J12 -> 133.5219824 | AA23: ='[3]ESC Model Data'!K12 -> 135.0928293
D24: Actual and forecast labour costs for current FTEs ($m) | W24: ='[3]ESC Model Data'!G13 -> 14.286 | X24: ='[3]ESC Model Data'!H13 -> 14.524 | Y24: ='[3]ESC Model Data'!I13 -> 15.335 | Z24: ='[3]ESC Model Data'!J13 -> 16.321 | AA24: ='[3]ESC Model Data'!K13 -> 16.32446077 | AB24: ='[3]ESC Model Data'!L13 -> 16.32446077 | AC24: ='[3]ESC Model Data'!M13 -> 16.43408223 | AD24: ='[3]ESC Model Data'!N13 -> 16.31324339 | AE24: ='[3]ESC Model Data'!O13 -> 16.19240455 | AF24: ='[3]ESC Model Data'!P13 -> 16.07156571 | AG24: ='[3]ESC Model Data'!Q13 -> 15.95072687 | AH24: ='[3]ESC Model Data'!R13 -> 15.82988803 | AI24: ='[3]ESC Model Data'!S13 -> 15.70904919 | AJ24: ='[3]ESC Model Data'!T13 -> 15.58821035 | AK24: ='[3]ESC Model Data'!U13 -> 15.46737151 | AL24: ='[3]ESC Model Data'!V13 -> 15.34653267
D25: Cost per FTE ($000) | W25: =+W24/W23*10^3 -> 102.5426456 | X25: 109.3390966 | Y25: 113.3806388 | Z25: 122.2345542 | AA25: 120.8388399 | AB25: =+AB24/$AA$23*10^3 -> 120.8388399 | AC25: 121.6502927 | AD25: 120.7558053 | AE25: 119.8613178 | AF25: 118.9668304 | AG25: 118.0723429 | AH25: =+AH24/$AA$23*10^3 -> 117.1778555 | AI25: 116.283368 | AJ25: 115.3888806 | AK25: 114.4943931 | AL25: 113.5999057
D26: Annual growth in labour costs for current FTEs | X26: =+X25/W25-1 -> 0.06627926294 | Y26: =+Y25/X25-1 -> 0.03696337658 | Z26: 0.07809018786 | AA26: -0.0114183285 | AB26: 0 | AC26: =+AC25/AB25-1 -> 0.006715165467 | AD26: =+AD25/AC25-1 -> -0.007352941176 | AE26: =+AE25/AD25-1 -> -0.007407407407 | AF26: =+AF25/AE25-1 -> -0.007462686567 | AG26: =+AG25/AF25-1 -> -0.007518796992 | AH26: =+AH25/AG25-1 -> -0.007575757576 | AI26: =+AI25/AH25-1 -> -0.007633587786 | AJ26: =+AJ25/AI25-1 -> -0.007692307692 | AK26: =+AK25/AJ25-1 -> -0.007751937984 | AL26: =+AL25/AK25-1 -> -0.0078125
D28: Change in FTEs in future periods (net no. annual change) | AB28: ='[3]ESC Model Data'!L14 -> 0 | AC28: ='[3]ESC Model Data'!M14 -> 1 | AD28: ='[3]ESC Model Data'!N14 -> -1 | AE28: ='[3]ESC Model Data'!O14 -> -1 | AF28: ='[3]ESC Model Data'!P14 -> -1 | AG28: ='[3]ESC Model Data'!Q14 -> -1 | AH28: ='[3]ESC Model Data'!R14 -> -1 | AI28: ='[3]ESC Model Data'!S14 -> -1 | AJ28: ='[3]ESC Model Data'!T14 -> -1 | AK28: ='[3]ESC Model Data'!U14 -> -1 | AL28: ='[3]ESC Model Data'!V14 -> -1
D29: Increase or decrease in labour costs ($m) | AB29: ='[3]ESC Model Data'!L15 -> 0 | AC29: ='[3]ESC Model Data'!M15 -> 0.1096214552 | AD29: ='[3]ESC Model Data'!N15 -> -0.1208388399 | AE29: ='[3]ESC Model Data'!O15 -> -0.1208388399 | AF29: ='[3]ESC Model Data'!P15 -> -0.1208388399 | AG29: ='[3]ESC Model Data'!Q15 -> -0.1208388399 | AH29: ='[3]ESC Model Data'!R15 -> -0.1208388399 | AI29: ='[3]ESC Model Data'!S15 -> -0.1208388399 | AJ29: ='[3]ESC Model Data'!T15 -> -0.1208388399 | AK29: ='[3]ESC Model Data'!U15 -> -0.1208388399 | AL29: ='[3]ESC Model Data'!V15 -> -0.1208388399
D33: Total FTEs | W33: =+W23 -> 139.317646 | X33: 132.8344613 | Y33: 135.252369 | Z33: 133.5219824 | AA33: 135.0928293 | AB33: =+$AA$23+SUM($AB28:AB28) -> 135.0928293 | AC33: =+$AA$23+SUM($AB28:AC28) -> 136.0928293 | AD33: =+$AA$23+SUM($AB28:AD28) -> 135.0928293 | AE33: =+$AA$23+SUM($AB28:AE28) -> 134.0928293 | AF33: =+$AA$23+SUM($AB28:AF28) -> 133.0928293 | AG33: =+$AA$23+SUM($AB28:AG28) -> 132.0928293 | AH33: =+$AA$23+SUM($AB28:AH28) -> 131.0928293 | AI33: =+$AA$23+SUM($AB28:AI28) -> 130.0928293 | AJ33: =+$AA$23+SUM($AB28:AJ28) -> 129.0928293 | AK33: =+$AA$23+SUM($AB28:AK28) -> 128.0928293 | AL33: =+$AA$23+SUM($AB28:AL28) -> 127.0928293
D34: Total labour costs ($m) | W34: 14.286 | X34: 14.524 | Y34: 15.335 | Z34: 16.321 | AA34: 16.32446077 | AB34: =+AB29+AB24 -> 16.32446077 | AC34: =+AC29+AC24 -> 16.54370368 | AD34: 16.19240455 | AE34: 16.07156571 | AF34: 15.95072687 | AG34: 15.82988803 | AH34: =+AH29+AH24 -> 15.70904919 | AI34: =+AI29+AI24 -> 15.58821035 | AJ34: =+AJ29+AJ24 -> 15.46737151 | AK34: =+AK29+AK24 -> 15.34653267 | AL34: =+AL29+AL24 -> 15.22569383
D35: Cost per FTE | W35: =+W34/W33 -> 0.1025426456 | X35: 0.1093390966 | Y35: 0.1133806388 | Z35: 0.1222345542 | AA35: 0.1208388399 | AB35: 0.1208388399 | AC35: 0.1215619057 | AD35: 0.1198613178 | AE35: 0.1198540279 | AF35: 0.1198466285 | AG35: 0.119839117 | AH35: =+AH34/AH33 -> 0.119831491 | AI35: =+AI34/AI33 -> 0.1198237476 | AJ35: =+AJ34/AJ33 -> 0.1198158844 | AK35: =+AK34/AK33 -> 0.1198078983 | AL35: =+AL34/AL33 -> 0.1197997866
D36: Annual growth in total labour costs | X36: =+X34/W34-1 -> 0.01665966681 | Y36: 0.05583861195 | Z36: 0.06429735898 | AA36: 0.0002120441052 | AB36: 0 | AC36: 0.01343033093 | AD36: -0.02123461238 | AE36: -0.007462686567 | AF36: -0.007518796992 | AG36: -0.007575757576 | AH36: -0.007633587786 | AI36: -0.007692307692 | AJ36: -0.007751937984 | AK36: -0.0078125 | AL36: -0.007874015748
D37: Annual growth in total labour costs per FTE | X37: 0.06627926294 | Y37: 0.03696337658 | Z37: 0.07809018786 | AA37: -0.0114183285 | AB37: 0 | AC37: 0.005983720146 | AD37: -0.01398948033 | AE37: -6.081937836e-05 | AF37: -6.17370724e-05 | AG37: -6.267569463e-05 | AH37: -6.36358863e-05 | AI37: -6.461831339e-05 | AJ37: -6.562366779e-05 | AK37: -6.665266851e-05 | AL37: -6.770606295e-05
C43: Energy assumptions
D45: Electricity - traditional sources
D47: BASE LOAD
D49: Large sites
D50: Total kWh
D51: Total electricity costs ($m)
D52: Average c/kWh | W52: =IFERROR(W51/W50*100*10^6,"") ->  | X52: =IFERROR(X51/X50*100*10^6,"") -> 
D53: % increase p.a. | X53: =IFERROR(X52/W52-1,"") ->  | Y53: =IFERROR(Y52/X52-1,"") -> 
D55: Medium sites
D56: Total kWh | W56: ='[3]ESC Model Data'!G21 -> 173756.662 | X56: ='[3]ESC Model Data'!H21 -> 315053.3027 | Y56: ='[3]ESC Model Data'!I21 -> 306714.3608 | Z56: ='[3]ESC Model Data'!J21 -> 245483.7325 | AA56: ='[3]ESC Model Data'!K21 -> 187541.5044 | AB56: ='[3]ESC Model Data'!L21 -> 187541.5044 | AC56: ='[3]ESC Model Data'!M21 -> 187541.5044 | AD56: ='[3]ESC Model Data'!N21 -> 187541.5044 | AE56: ='[3]ESC Model Data'!O21 -> 187541.5044 | AF56: ='[3]ESC Model Data'!P21 -> 187541.5044 | AG56: ='[3]ESC Model Data'!Q21 -> 187541.5044 | AH56: ='[3]ESC Model Data'!R21 -> 187541.5044 | AI56: ='[3]ESC Model Data'!S21 -> 187541.5044 | AJ56: ='[3]ESC Model Data'!T21 -> 187541.5044 | AK56: ='[3]ESC Model Data'!U21 -> 187541.5044 | AL56: ='[3]ESC Model Data'!V21 -> 187541.5044
D57: Total electricity costs ($m) | W57: ='[3]ESC Model Data'!G22 -> 0.050606411 | X57: ='[3]ESC Model Data'!H22 -> 0.08862550008 | Y57: ='[3]ESC Model Data'!I22 -> 0.090079342 | Z57: ='[3]ESC Model Data'!J22 -> 0.07723265315 | AA57: ='[3]ESC Model Data'!K22 -> 0.0670926131 | AB57: ='[3]ESC Model Data'!L22 -> 0.0670926131 | AC57: ='[3]ESC Model Data'!M22 -> 0.0670926131 | AD57: ='[3]ESC Model Data'!N22 -> 0.0670926131 | AE57: ='[3]ESC Model Data'!O22 -> 0.0670926131 | AF57: ='[3]ESC Model Data'!P22 -> 0.0670926131 | AG57: ='[3]ESC Model Data'!Q22 -> 0.0670926131 | AH57: ='[3]ESC Model Data'!R22 -> 0.0670926131 | AI57: ='[3]ESC Model Data'!S22 -> 0.0670926131 | AJ57: ='[3]ESC Model Data'!T22 -> 0.0670926131 | AK57: ='[3]ESC Model Data'!U22 -> 0.0670926131 | AL57: ='[3]ESC Model Data'!V22 -> 0.0670926131
D58: Average c/kWh | W58: =+W57/W56*100*10^6 -> 29.12487522 | X58: 28.13031932 | Y58: 29.36913086 | Z58: 31.46141391 | AA58: 35.77480798 | AB58: 35.77480798 | AC58: =+AC57/AC56*100*10^6 -> 35.77480798 | AD58: 35.77480798 | AE58: 35.77480798 | AF58: 35.77480798 | AG58: 35.77480798 | AH58: =+AH57/AH56*100*10^6 -> 35.77480798 | AI58: 35.77480798 | AJ58: 35.77480798 | AK58: 35.77480798 | AL58: 35.77480798
D59: % increase p.a. | X59: =+X58/W58-1 -> -0.03414798846 | Y59: 0.04403830353 | Z59: 0.0712408909 | AA59: 0.1371010878 | AB59: 0 | AC59: =+AC58/AB58-1 -> 0 | AD59: =+AD58/AC58-1 -> 0 | AE59: =+AE58/AD58-1 -> 0 | AF59: =+AF58/AE58-1 -> 0 | AG59: =+AG58/AF58-1 -> 0 | AH59: =+AH58/AG58-1 -> 0 | AI59: =+AI58/AH58-1 -> 0 | AJ59: =+AJ58/AI58-1 -> 0 | AK59: =+AK58/AJ58-1 -> 0 | AL59: =+AL58/AK58-1 -> 0
D61: Small sites
D62: Total kWh | W62: ='[3]ESC Model Data'!G24 -> 480608.6523 | X62: ='[3]ESC Model Data'!H24 -> 476146.3212 | Y62: ='[3]ESC Model Data'!I24 -> 357651.4607 | Z62: ='[3]ESC Model Data'!J24 -> 382187.6181 | AA62: ='[3]ESC Model Data'!K24 -> 350726.9146 | AB62: ='[3]ESC Model Data'!L24 -> 350726.9146 | AC62: ='[3]ESC Model Data'!M24 -> 350726.9146 | AD62: ='[3]ESC Model Data'!N24 -> 350726.9146 | AE62: ='[3]ESC Model Data'!O24 -> 350726.9146 | AF62: ='[3]ESC Model Data'!P24 -> 350726.9146 | AG62: ='[3]ESC Model Data'!Q24 -> 350726.9146 | AH62: ='[3]ESC Model Data'!R24 -> 350726.9146 | AI62: ='[3]ESC Model Data'!S24 -> 350726.9146 | AJ62: ='[3]ESC Model Data'!T24 -> 350726.9146 | AK62: ='[3]ESC Model Data'!U24 -> 350726.9146 | AL62: ='[3]ESC Model Data'!V24 -> 350726.9146
D63: Total electricity costs ($m) | W63: ='[3]ESC Model Data'!G25 -> 0.198314856 | X63: ='[3]ESC Model Data'!H25 -> 0.1897643756 | Y63: ='[3]ESC Model Data'!I25 -> 0.1488163635 | Z63: ='[3]ESC Model Data'!J25 -> 0.1703548254 | AA63: ='[3]ESC Model Data'!K25 -> 0.1777648933 | AB63: ='[3]ESC Model Data'!L25 -> 0.1777648933 | AC63: ='[3]ESC Model Data'!M25 -> 0.1777648933 | AD63: ='[3]ESC Model Data'!N25 -> 0.1777648933 | AE63: ='[3]ESC Model Data'!O25 -> 0.1777648933 | AF63: ='[3]ESC Model Data'!P25 -> 0.1777648933 | AG63: ='[3]ESC Model Data'!Q25 -> 0.1777648933 | AH63: ='[3]ESC Model Data'!R25 -> 0.1777648933 | AI63: ='[3]ESC Model Data'!S25 -> 0.1777648933 | AJ63: ='[3]ESC Model Data'!T25 -> 0.1777648933 | AK63: ='[3]ESC Model Data'!U25 -> 0.1777648933 | AL63: ='[3]ESC Model Data'!V25 -> 0.1777648933
D64: Average c/kWh | W64: =+W63/W62*100*10^6 -> 41.26327211 | X64: 39.85421437 | Y64: 41.60932636 | Z64: 44.57361184 | AA64: 50.68470251 | AB64: 50.68470251 | AC64: =+AC63/AC62*100*10^6 -> 50.68470251 | AD64: 50.68470251 | AE64: 50.68470251 | AF64: 50.68470251 | AG64: 50.68470251 | AH64: =+AH63/AH62*100*10^6 -> 50.68470251 | AI64: 50.68470251 | AJ64: 50.68470251 | AK64: 50.68470251 | AL64: 50.68470251
D65: % increase p.a. | X65: =+X64/W64-1 -> -0.03414798846 | Y65: 0.04403830353 | Z65: 0.0712408909 | AA65: 0.1371010878 | AB65: 0 | AC65: =+AC64/AB64-1 -> 0 | AD65: =+AD64/AC64-1 -> 0 | AE65: =+AE64/AD64-1 -> 0 | AF65: =+AF64/AE64-1 -> 0 | AG65: =+AG64/AF64-1 -> 0 | AH65: =+AH64/AG64-1 -> 0 | AI65: =+AI64/AH64-1 -> 0 | AJ65: =+AJ64/AI64-1 -> 0 | AK65: =+AK64/AJ64-1 -> 0 | AL65: =+AL64/AK64-1 -> 0
D68: NEW PROJECTS
D70: Large sites
D71: Total kWh
D72: Total electricity costs ($m)
D73: Average c/kWh | W73: =IFERROR(W72/W71*100*10^6,"") ->  | X73: =IFERROR(X72/X71*100*10^6,"") ->  | Y73: =IFERROR(Y72/Y71*100*10^6,"") ->  | Z73: =IFERROR(Z72/Z71*100*10^6,"") ->  | AA73: =IFERROR(AA72/AA71*100*10^6,"") ->  | AB73: =IFERROR(AB72/AB71*100*10^6,"") ->  | AC73: =IFERROR(AC72/AC71*100*10^6,"") ->  | AD73: =IFERROR(AD72/AD71*100*10^6,"") ->  | AE73: =IFERROR(AE72/AE71*100*10^6,"") ->  | AF73: =IFERROR(AF72/AF71*100*10^6,"") ->  | AG73: =IFERROR(AG72/AG71*100*10^6,"") ->  | AH73: =IFERROR(AH72/AH71*100*10^6,"") ->  | AI73: =IFERROR(AI72/AI71*100*10^6,"") ->  | AJ73: =IFERROR(AJ72/AJ71*100*10^6,"") ->  | AK73: =IFERROR(AK72/AK71*100*10^6,"") ->  | AL73: =IFERROR(AL72/AL71*100*10^6,"") -> 
D74: % increase p.a. | X74: =IFERROR(X73/W73-1,"") ->  | Y74: =IFERROR(Y73/X73-1,"") ->  | Z74: =IFERROR(Z73/Y73-1,"") ->  | AA74: =IFERROR(AA73/Z73-1,"") ->  | AB74: =IFERROR(AB73/AA73-1,"") ->  | AC74: =IFERROR(AC73/AB73-1,"") ->  | AD74: =IFERROR(AD73/AC73-1,"") ->  | AE74: =IFERROR(AE73/AD73-1,"") ->  | AF74: =IFERROR(AF73/AE73-1,"") ->  | AG74: =IFERROR(AG73/AF73-1,"") ->  | AH74: =IFERROR(AH73/AG73-1,"") ->  | AI74: =IFERROR(AI73/AH73-1,"") ->  | AJ74: =IFERROR(AJ73/AI73-1,"") ->  | AK74: =IFERROR(AK73/AJ73-1,"") ->  | AL74: =IFERROR(AL73/AK73-1,"") -> 
D76: Medium sites
D77: Total kWh
D78: Total electricity costs ($m)
D79: Average c/kWh | W79: =IFERROR(W78/W77*100*10^6,"") ->  | X79: =IFERROR(X78/X77*100*10^6,"") ->  | Y79: =IFERROR(Y78/Y77*100*10^6,"") ->  | Z79: =IFERROR(Z78/Z77*100*10^6,"") ->  | AA79: =IFERROR(AA78/AA77*100*10^6,"") ->  | AB79: =IFERROR(AB78/AB77*100*10^6,"") ->  | AC79: =IFERROR(AC78/AC77*100*10^6,"") ->  | AD79: =IFERROR(AD78/AD77*100*10^6,"") ->  | AE79: =IFERROR(AE78/AE77*100*10^6,"") ->  | AF79: =IFERROR(AF78/AF77*100*10^6,"") ->  | AG79: =IFERROR(AG78/AG77*100*10^6,"") ->  | AH79: =IFERROR(AH78/AH77*100*10^6,"") ->  | AI79: =IFERROR(AI78/AI77*100*10^6,"") ->  | AJ79: =IFERROR(AJ78/AJ77*100*10^6,"") ->  | AK79: =IFERROR(AK78/AK77*100*10^6,"") ->  | AL79: =IFERROR(AL78/AL77*100*10^6,"") -> 
D80: % increase p.a. | X80: =IFERROR(X79/W79-1,"") ->  | Y80: =IFERROR(Y79/X79-1,"") ->  | Z80: =IFERROR(Z79/Y79-1,"") ->  | AA80: =IFERROR(AA79/Z79-1,"") ->  | AB80: =IFERROR(AB79/AA79-1,"") ->  | AC80: =IFERROR(AC79/AB79-1,"") ->  | AD80: =IFERROR(AD79/AC79-1,"") ->  | AE80: =IFERROR(AE79/AD79-1,"") ->  | AF80: =IFERROR(AF79/AE79-1,"") ->  | AG80: =IFERROR(AG79/AF79-1,"") ->  | AH80: =IFERROR(AH79/AG79-1,"") ->  | AI80: =IFERROR(AI79/AH79-1,"") ->  | AJ80: =IFERROR(AJ79/AI79-1,"") ->  | AK80: =IFERROR(AK79/AJ79-1,"") ->  | AL80: =IFERROR(AL79/AK79-1,"") -> 
D82: Small sites
D83: Total kWh
D84: Total electricity costs ($m)
D85: Average c/kWh | W85: =IFERROR(W84/W83*100*10^6,"") ->  | X85: =IFERROR(X84/X83*100*10^6,"") ->  | Y85: =IFERROR(Y84/Y83*100*10^6,"") ->  | Z85: =IFERROR(Z84/Z83*100*10^6,"") ->  | AA85: =IFERROR(AA84/AA83*100*10^6,"") ->  | AB85: =IFERROR(AB84/AB83*100*10^6,"") ->  | AC85: =IFERROR(AC84/AC83*100*10^6,"") ->  | AD85: =IFERROR(AD84/AD83*100*10^6,"") ->  | AE85: =IFERROR(AE84/AE83*100*10^6,"") ->  | AF85: =IFERROR(AF84/AF83*100*10^6,"") ->  | AG85: =IFERROR(AG84/AG83*100*10^6,"") ->  | AH85: =IFERROR(AH84/AH83*100*10^6,"") ->  | AI85: =IFERROR(AI84/AI83*100*10^6,"") ->  | AJ85: =IFERROR(AJ84/AJ83*100*10^6,"") ->  | AK85: =IFERROR(AK84/AK83*100*10^6,"") ->  | AL85: =IFERROR(AL84/AL83*100*10^6,"") -> 
D86: % increase p.a. | X86: =IFERROR(X85/W85-1,"") ->  | Y86: =IFERROR(Y85/X85-1,"") ->  | Z86: =IFERROR(Z85/Y85-1,"") ->  | AA86: =IFERROR(AA85/Z85-1,"") ->  | AB86: =IFERROR(AB85/AA85-1,"") ->  | AC86: =IFERROR(AC85/AB85-1,"") ->  | AD86: =IFERROR(AD85/AC85-1,"") ->  | AE86: =IFERROR(AE85/AD85-1,"") ->  | AF86: =IFERROR(AF85/AE85-1,"") ->  | AG86: =IFERROR(AG85/AF85-1,"") ->  | AH86: =IFERROR(AH85/AG85-1,"") ->  | AI86: =IFERROR(AI85/AH85-1,"") ->  | AJ86: =IFERROR(AJ85/AI85-1,"") ->  | AK86: =IFERROR(AK85/AJ85-1,"") ->  | AL86: =IFERROR(AL85/AK85-1,"") -> 
D89: Greenhouse Gas Offsets | W89: ='[3]ESC Model Data'!G28 -> 0.01794027149 | X89: ='[3]ESC Model Data'!H28 -> 0.03631172291 | Y89: ='[3]ESC Model Data'!I28 -> 0.02497546012 | Z89: ='[3]ESC Model Data'!J28 -> 0.01593910806 | AA89: ='[3]ESC Model Data'!K28 -> 0.01576335878 | AB89: ='[3]ESC Model Data'!L28 -> 0.01576335878 | AC89: ='[3]ESC Model Data'!M28 -> 0.01576335878 | AD89: ='[3]ESC Model Data'!N28 -> 0.01576335878 | AE89: ='[3]ESC Model Data'!O28 -> 0.01576335878 | AF89: ='[3]ESC Model Data'!P28 -> 0.01576335878 | AG89: ='[3]ESC Model Data'!Q28 -> 0.01576335878 | AH89: ='[3]ESC Model Data'!R28 -> 0.01576335878 | AI89: ='[3]ESC Model Data'!S28 -> 0.01576335878 | AJ89: ='[3]ESC Model Data'!T28 -> 0.01576335878 | AK89: ='[3]ESC Model Data'!U28 -> 0.01576335878 | AL89: ='[3]ESC Model Data'!V28 -> 0.01576335878
D90: % increase p.a. | X90: =X89/W89-1 -> 1.024034192 | Y90: -0.3121929196 | Z90: -0.3618092326 | AA90: -0.01102629347 | AB90: 0 | AC90: 0 | AD90: 0 | AE90: 0 | AF90: 0 | AG90: 0 | AH90: =AH89/AG89-1 -> 0 | AI90: =AI89/AH89-1 -> 0 | AJ90: =AJ89/AI89-1 -> 0 | AK90: =AK89/AJ89-1 -> 0 | AL90: =AL89/AK89-1 -> 0
D93: TOTAL ENERGY COSTS | W93: =+SUM(W51,W57,W63,W72,W78,W84,W89) -> 0.2668615385 | X93: =+SUM(X51,X57,X63,X72,X78,X84,X89) -> 0.3147015986 | Y93: 0.2638711656 | Z93: 0.2635265866 | AA93: 0.2606208651 | AB93: 0.2606208651 | AC93: 0.2606208651 | AD93: 0.2606208651 | AE93: 0.2606208651 | AF93: 0.2606208651 | AG93: 0.2606208651 | AH93: =+SUM(AH51,AH57,AH63,AH72,AH78,AH84,AH89) -> 0.2606208651 | AI93: 0.2606208651 | AJ93: 0.2606208651 | AK93: 0.2606208651 | AL93: 0.2606208651
D94: % increase p.a. | X94: =X93/W93-1 -> 0.179269221 | Y94: -0.1615194621 | Z94: -0.001305860845 | AA94: -0.01102629347 | AB94: 0 | AC94: 0 | AD94: 0 | AE94: 0 | AF94: 0 | AG94: 0 | AH94: =AH93/AG93-1 -> 0 | AI94: =AI93/AH93-1 -> 0 | AJ94: =AJ93/AI93-1 -> 0 | AK94: =AK93/AJ93-1 -> 0 | AL94: =AL93/AK93-1 -> 0
C99: IT cost assumptions
D101: Water related IT costs | W101: ='[3]ESC Model Data'!G30 -> 2.79 | X101: ='[3]ESC Model Data'!H30 -> 3.54 | Y101: ='[3]ESC Model Data'!I30 -> 2.86 | Z101: ='[3]ESC Model Data'!J30 -> 3.02 | AA101: ='[3]ESC Model Data'!K30 -> 3.28 | AB101: ='[3]ESC Model Data'!L30 -> 2.77 | AC101: ='[3]ESC Model Data'!M30 -> 2.77 | AD101: ='[3]ESC Model Data'!N30 -> 2.69 | AE101: ='[3]ESC Model Data'!O30 -> 2.72 | AF101: ='[3]ESC Model Data'!P30 -> 2.73 | AG101: ='[3]ESC Model Data'!Q30 -> 2.73 | AH101: ='[3]ESC Model Data'!R30 -> 2.73 | AI101: ='[3]ESC Model Data'!S30 -> 2.72 | AJ101: ='[3]ESC Model Data'!T30 -> 2.72 | AK101: ='[3]ESC Model Data'!U30 -> 2.73 | AL101: ='[3]ESC Model Data'!V30 -> 2.73
D102: Sewerage and trade waste related IT costs
D103: Other IT costs
D104: Total IT costs | W104: =SUM(W101:W103) -> 2.79 | X104: 3.54 | Y104: 2.86 | Z104: 3.02 | AA104: 3.28 | AB104: 2.77 | AC104: =SUM(AC101:AC103) -> 2.77 | AD104: 2.69 | AE104: 2.72 | AF104: 2.73 | AG104: 2.73 | AH104: =SUM(AH101:AH103) -> 2.73 | AI104: 2.72 | AJ104: 2.72 | AK104: 2.73 | AL104: 2.73
D105: % increase p.a. | X105: =X104/W104-1 -> 0.2688172043 | Y105: -0.1920903955 | Z105: 0.05594405594 | AA105: 0.08609271523 | AB105: -0.1554878049 | AC105: 0 | AD105: -0.02888086643 | AE105: 0.01115241636 | AF105: 0.003676470588 | AG105: 0 | AH105: =AH104/AG104-1 -> 0 | AI105: =AI104/AH104-1 -> -0.003663003663 | AJ105: =AJ104/AI104-1 -> 0 | AK105: =AK104/AJ104-1 -> 0.003676470588 | AL105: =AL104/AK104-1 -> 0
C110: Chemical cost assumptions
D112: Water related chemical costs | W112: 0.12937177 | X112: 0.11693835 | Y112: 0.2224195 | Z112: 0.24901119 | AA112: 0.32312884 | AB112: =+AA112 -> 0.32312884 | AC112: =+AB112 -> 0.32312884 | AD112: =+AC112 -> 0.32312884 | AE112: 0.32312884 | AF112: 0.32312884 | AG112: 0.32312884 | AH112: 0.32312884 | AI112: 0.32312884 | AJ112: 0.32312884 | AK112: 0.32312884 | AL112: 0.32312884
D113: Sewerage and trade waste related chemical costs
D114: Other chemical costs
D115: Total chemical costs | W115: =SUM(W112:W114) -> 0.12937177 | X115: 0.11693835 | Y115: 0.2224195 | Z115: 0.24901119 | AA115: 0.32312884 | AB115: 0.32312884 | AC115: =SUM(AC112:AC114) -> 0.32312884 | AD115: 0.32312884 | AE115: 0.32312884 | AF115: 0.32312884 | AG115: 0.32312884 | AH115: =SUM(AH112:AH114) -> 0.32312884 | AI115: 0.32312884 | AJ115: 0.32312884 | AK115: 0.32312884 | AL115: 0.32312884
D116: % increase p.a. | X116: =X115/W115-1 -> -0.09610612887 | Y116: 0.9020235876 | Z116: 0.1195564687 | AA116: 0.2976478688 | AB116: 0 | AC116: 0 | AD116: 0 | AE116: 0 | AF116: 0 | AG116: 0 | AH116: =AH115/AG115-1 -> 0 | AI116: =AI115/AH115-1 -> 0 | AJ116: =AJ115/AI115-1 -> 0 | AK116: =AK115/AJ115-1 -> 0 | AL116: =AL115/AK115-1 -> 0

Sheet Opex_FO
B1: Operating Expenditure - Forecast
B2: =+Model_Name -> Southern Rural Water
B3: Go to Table of Contents
L4: FIRST REG PERIOD | P4: SECOND REG PERIOD | U4: THIRD REG PERIOD | Z4: FOURTH REG PERIOD | AE4: FIFTH REG PERIOD | AJ4: SIXTH REG PERIOD
K5: 2006 | L5: 2007 | M5: 2008 | N5: 2009 | O5: 2010 | P5: 2011 | Q5: 2012 | R5: 2013 | S5: 2014 | T5: 2015 | U5: 2016 | V5: 2017 | W5: 2018 | X5: 2019 | Y5: 2020 | Z5: 2021 | AA5: 2022 | AB5: 2023 | AC5: 2024 | AD5: 2025 | AE5: 2026 | AF5: 2027 | AG5: 2028 | AH5: =AG5+1 -> 2029 | AI5: =AH5+1 -> 2030 | AJ5: 2031 | AK5: 2032 | AL5: 2033
B6: $m, 01/01/23 | K6: =+CONCATENATE(K5-1,"-",RIGHT(K5,2)) -> 2005-06 | L6: =+CONCATENATE(L5-1,"-",RIGHT(L5,2)) -> 2006-07 | M6: 2007-08 | N6: 2008-09 | O6: 2009-10 | P6: 2010-11 | Q6: 2011-12 | R6: 2012-13 | S6: 2013-14 | T6: 2014-15 | U6: 2015-16 | V6: 2016-17 | W6: 2017-18 | X6: 2018-19 | Y6: 2019-20 | Z6: 2020-21 | AA6: 2021-22 | AB6: 2022-23 | AC6: 2023-24 | AD6: 2024-25 | AE6: 2025-26 | AF6: 2026-27 | AG6: 2027-28 | AH6: =+CONCATENATE(AH5-1,"-",RIGHT(AH5,2)) -> 2028-29 | AI6: 2029-30 | AJ6: 2030-31 | AK6: 2031-32 | AL6: 2032-33
C9: Parameters
D11: Cost efficiency improvement rate (% per annum)
D13: Customer growth forecast (% per annum) | T13: =IF(T15="","",T15/S15-1) ->  | U13: =IF(U15="","",U15/T15-1) -> 
D15: Water customers (No.) - Residential & Non-Residential | AB15: =+AA$15*(1+AB$13) -> 0 | AC15: 0 | AD15: 0 | AE15: 0 | AF15: 0 | AG15: 0 | AH15: =+AG$15*(1+AH$13) -> 0 | AI15: =+AH$15*(1+AI$13) -> 0 | AJ15: =+AI$15*(1+AJ$13) -> 0 | AK15: =+AJ$15*(1+AK$13) -> 0 | AL15: =+AK$15*(1+AL$13) -> 0
D17: Sewer customers (No.) - Residential & Non-Residential | AB17: =+AA$17*(1+AB$13) -> 0 | AC17: 0 | AD17: 0 | AE17: 0 | AF17: 0 | AG17: 0 | AH17: =+AG$17*(1+AH$13) -> 0 | AI17: =+AH$17*(1+AI$13) -> 0 | AJ17: =+AI$17*(1+AJ$13) -> 0 | AK17: =+AJ$17*(1+AK$13) -> 0 | AL17: =+AK$17*(1+AL$13) -> 0
C21: Baseline Forecast
D23: Baseline year - total prescribed operating expenditure in 2021-22: | AA23: =+Opex_Breakdown!AA38 -> 26.6710626
D25: Less non-controllable expenditure items incurred in 2021-22:
E26: External bulk water charges (excl. temporary purchases) | AA26: =+Opex_Breakdown!AA30 -> 1.003600509
E27: External temporary water purchases | AC27: Comparison with approved 2021-22 total controllable opex
E28: Licence fees | AA28: =+Opex_Breakdown!AA32 -> 0.04518829517 | AC28: per 2018 determination model
E29: Environment Contribution | AA29: =+Opex_Breakdown!AA33 -> 0.5517175573
E30: Other non-controllable | AA30: =+Opex_Breakdown!AA34 -> 0.3404885496
AA31: =SUM(AA26:AA30) -> 1.940994911 | AD31: 2021-22 | AE31: Difference | AF31: %
D33: Baseline year - total controllable operating expenditure in 2021-22: | AA33: =+AA23-AA31 -> 24.73006769 | AD33: =+Determination_Lookup!$Q$20 -> 22.05761912 | AE33: =+AA49-AD33 -> 2.079635678 | AF33: =+AE33/AD33 -> 0.09428196519
D35: Adjustments for non-recurring expenditure items incurred in 2021-22 and any efficiency savings to be realised from 2021-22: | AC35: ($, 2022-23)
D37: 1 | E37: Annual productivity saving (averaged over 5 years) | F37: 0.01 | AA37: =((+AA33-AA33*(1-F37))+(+AA33-AA33*(1-F37)^2)+(+AA33-AA33*(1-F37)^3)+(+AA33-AA33*(1-F37)^4)+(+AA33-AA33*(1-F37)^5)+(+AA33-AA33*(1-F37)^6))/6 -> 0.8512698925
D38: 2 | E38: Additional recurrent opex expenditure | AA38: -0.211
D39: 3 | E39: Additional G&R staff | AA39: -0.18
D40: 4 | E40: RECFACS East further opex efficiency | AA40: 0.028543
D41: 5 | E41: 2021-22 G&R legal and consultancy excess costs (see Torquay dam) | AA41: 0.104
D42: 6
D43: 7
D44: 8
D45: 9
D46: 10
AA47: =SUM(AA37:AA46) -> 0.5928128925
D49: Baseline controllable operating expenditure (2021-22) | AA49: =+AA33-AA47 -> 24.1372548
D51: Baseline controllable operating expenditure (Forecast) | AB51: =+AA49 -> 24.1372548 | AC51: =+AB51 -> 24.1372548 | AD51: =+AC51 -> 24.1372548 | AE51: 24.1372548 | AF51: 24.1372548 | AG51: 24.1372548 | AH51: =+AG51*(1-F37)^3 -> 23.4203542 | AI51: 23.4203542 | AJ51: 23.4203542 | AK51: 23.4203542 | AL51: =+AK51 -> 23.4203542
C55: Operating expenditure - reconciliation
D58: Baseline controllable operating expenditure (Forecast) | AC58: =+AC51 -> 24.1372548 | AD58: =+AD51 -> 24.1372548 | AE58: 24.1372548 | AF58: 24.1372548 | AG58: 24.1372548 | AH58: 23.4203542 | AI58: 23.4203542 | AJ58: 23.4203542 | AK58: 23.4203542 | AL58: 23.4203542
H59: Controllable
D60: Forecast variations to baseline operating expenditure (above or below baseline) | H60: only
D62: 1 | H62: [Service]
D63: 2 | H63: [Service]
D64: 3 | H64: [Service]
D65: 4 | H65: [Service]
D66: 5 | H66: [Service]
D67: 6 | H67: [Service]
D68: 7 | H68: [Service]
D69: 8 | H69: [Service]
D70: 9 | H70: [Service]
D71: 10 | H71: [Service]
D72: 11 | H72: [Service]
D73: 12 | H73: [Service]
D74: 13 | H74: [Service]
D75: 14 | H75: [Service]
D76: 15 | H76: [Service]
D78: Total changes required to baseline operating expenditure | AC78: =SUM(AC62:AC77) -> 0 | AD78: 0 | AE78: 0 | AF78: 0 | AG78: 0 | AH78: =SUM(AH62:AH77) -> 0 | AI78: 0 | AJ78: 0 | AK78: 0 | AL78: 0
D81: Total controllable operating expenditure | AC81: =+AC78+AC58 -> 24.1372548 | AD81: 24.1372548 | AE81: 24.1372548 | AF81: 24.1372548 | AG81: 24.1372548 | AH81: =+AH78+AH58 -> 23.4203542 | AI81: 23.4203542 | AJ81: 23.4203542 | AK81: 23.4203542 | AL81: 23.4203542
D83: Non-controllable operating expenditure
D84: External bulk water charges (excl. temporary purchases) | AC84: =+Opex_Breakdown!AC30 -> 1.21041898 | AD84: =+Opex_Breakdown!AD30 -> 1.209452 | AE84: =+Opex_Breakdown!AE30 -> 1.208458246 | AF84: =+Opex_Breakdown!AF30 -> 1.207350007 | AG84: =+Opex_Breakdown!AG30 -> 1.206485852 | AH84: =+Opex_Breakdown!AH30 -> 1.205467051 | AI84: =+Opex_Breakdown!AI30 -> 1.204731873 | AJ84: =+Opex_Breakdown!AJ30 -> 1.2035646 | AK84: =+Opex_Breakdown!AK30 -> 1.20263094 | AL84: =+Opex_Breakdown!AL30 -> 1.201783753
D85: External temporary water purchases | AC85: =+Opex_Breakdown!AC31 -> 0 | AD85: =+Opex_Breakdown!AD31 -> 0 | AE85: =+Opex_Breakdown!AE31 -> 0 | AF85: =+Opex_Breakdown!AF31 -> 0 | AG85: =+Opex_Breakdown!AG31 -> 0 | AH85: =+Opex_Breakdown!AH31 -> 0 | AI85: =+Opex_Breakdown!AI31 -> 0 | AJ85: =+Opex_Breakdown!AJ31 -> 0 | AK85: =+Opex_Breakdown!AK31 -> 0 | AL85: =+Opex_Breakdown!AL31 -> 0
D86: Licence fees | AC86: =+Opex_Breakdown!AC32 -> 0.03153236169 | AD86: =+Opex_Breakdown!AD32 -> 0.03477771786 | AE86: =+Opex_Breakdown!AE32 -> 0.03130752542 | AF86: =+Opex_Breakdown!AF32 -> 0.03253920166 | AG86: =+Opex_Breakdown!AG32 -> 0.03287481498 | AH86: =+Opex_Breakdown!AH32 -> 0.03224051402 | AI86: =+Opex_Breakdown!AI32 -> 0.03255151022 | AJ86: =+Opex_Breakdown!AJ32 -> 0.03255561307 | AK86: =+Opex_Breakdown!AK32 -> 0.03244921244 | AL86: =+Opex_Breakdown!AL32 -> 0.03251877858
D87: Environment Contribution | AC87: =+Opex_Breakdown!AC33 -> 0.5633943396 | AD87: =+Opex_Breakdown!AD33 -> 0.5633943396 | AE87: =+Opex_Breakdown!AE33 -> 0.5633943396 | AF87: =+Opex_Breakdown!AF33 -> 0.5633943396 | AG87: =+Opex_Breakdown!AG33 -> 0.5633943396 | AH87: =+Opex_Breakdown!AH33 -> 0.5633943396 | AI87: =+Opex_Breakdown!AI33 -> 0.5633943396 | AJ87: =+Opex_Breakdown!AJ33 -> 0.5633943396 | AK87: =+Opex_Breakdown!AK33 -> 0.5633943396 | AL87: =+Opex_Breakdown!AL33 -> 0.5633943396
D88: Other non-controllable | AC88: =+Opex_Breakdown!AC34 -> 2.703 | AD88: =+Opex_Breakdown!AD34 -> 2.407 | AE88: =+Opex_Breakdown!AE34 -> 0.7275 | AF88: =+Opex_Breakdown!AF34 -> 1.6275 | AG88: =+Opex_Breakdown!AG34 -> 0.8115 | AH88: =+Opex_Breakdown!AH34 -> 3.00625 | AI88: =+Opex_Breakdown!AI34 -> 0.3645 | AJ88: =+Opex_Breakdown!AJ34 -> 0.10125 | AK88: =+Opex_Breakdown!AK34 -> 0.658125 | AL88: =+Opex_Breakdown!AL34 -> 1.495125
D89: Total non-controllable operating expenditure | AC89: =SUM(AC84:AC88) -> 4.508345681 | AD89: 4.214624058 | AE89: 2.530660111 | AF89: 3.430783548 | AG89: 2.614255007 | AH89: =SUM(AH84:AH88) -> 4.807351904 | AI89: 2.165177723 | AJ89: 1.900764552 | AK89: 2.456599492 | AL89: 3.292821872
D92: Total prescribed operating expenditure | AC92: =+AC89+AC81 -> 28.64560048 | AD92: 28.35187886 | AE92: 26.66791491 | AF92: 27.56803835 | AG92: =+AG89+AG81 -> 26.75150981 | AH92: =+AH89+AH81 -> 28.2277061 | AI92: 25.58553192 | AJ92: 25.32111875 | AK92: 25.87695369 | AL92: =+AL89+AL81 -> 26.71317607
AB95: To reconcile to 'Opex_Breakdown' tab row 37 >> | AC95: =+Opex_Breakdown!AC38 -> 29.15707724 | AD95: =+Opex_Breakdown!AD38 -> 28.60378091 | AE95: =+Opex_Breakdown!AE38 -> 26.66286743 | AF95: =+Opex_Breakdown!AF38 -> 27.30870205 | AG95: =+Opex_Breakdown!AG38 -> 26.24025663 | AH95: =+Opex_Breakdown!AH38 -> 28.18407561 | AI95: =+Opex_Breakdown!AI38 -> 25.2949157 | AJ95: =+Opex_Breakdown!AJ38 -> 24.78630903 | AK95: =+Opex_Breakdown!AK38 -> 25.10022958 | AL95: =+Opex_Breakdown!AL38 -> 25.69690014
AB96: Difference | AC96: =+AC95-AC92 -> 0.5114767624 | AD96: 0.2519020468 | AE96: -0.005047479793 | AF96: -0.2593362962 | AG96: -0.5112531751 | AH96: =+AH95-AH92 -> -0.04363048535 | AI96: -0.290616215 | AJ96: -0.5348097205 | AK96: -0.7767241058 | AL96: -1.016275928
AB97: Test | AC97: =IF(ROUND(AC95,2)=ROUND(AC92,2),0,1) -> 1 | AD97: 1 | AE97: 1 | AF97: 1 | AG97: 1 | AH97: 1 | AI97: 1 | AJ97: 1 | AK97: 1 | AL97: 1
AC136: =+AC$157 -> 2023-24 | AD136: 2024-25 | AE136: 2025-26 | AF136: 2026-27 | AG136: 2027-28 | AH136: 2028-29 | AI136: 2029-30 | AJ136: 2030-31 | AK136: 2031-32 | AL136: 2032-33
AB137: Total controllable opex | AC137: =+AC81 -> 24.1372548 | AD137: 24.1372548 | AE137: 24.1372548 | AF137: 24.1372548 | AG137: 24.1372548 | AH137: =+AH81 -> 23.4203542 | AI137: 23.4203542 | AJ137: 23.4203542 | AK137: 23.4203542 | AL137: 23.4203542
AB138: Change - $ | AD138: =+AD137-AC137 -> 0 | AE138: 0 | AF138: 0 | AG138: 0 | AH138: =+AH137-AG137 -> -0.7169006048 | AI138: =+AI137-AH137 -> 0 | AJ138: =+AJ137-AI137 -> 0 | AK138: =+AK137-AJ137 -> 0 | AL138: =+AL137-AK137 -> 0
AB139: Change - % | AD139: =IFERROR(AD138/AC137,"") -> 0 | AE139: 0 | AF139: 0 | AG139: 0 | AH139: =IFERROR(AH138/AG137,"") -> -0.029701 | AI139: =IFERROR(AI138/AH137,"") -> 0 | AJ139: =IFERROR(AJ138/AI137,"") -> 0 | AK139: =IFERROR(AK138/AJ137,"") -> 0 | AL139: =IFERROR(AL138/AK137,"") -> 0
AC141: =+AC$157 -> 2023-24 | AD141: 2024-25 | AE141: 2025-26 | AF141: 2026-27 | AG141: 2027-28 | AH141: 2028-29 | AI141: 2029-30 | AJ141: 2030-31 | AK141: 2031-32 | AL141: 2032-33
AB142: Total non-controllable opex | AC142: =+AC89 -> 4.508345681 | AD142: 4.214624058 | AE142: 2.530660111 | AF142: 3.430783548 | AG142: 2.614255007 | AH142: =+AH89 -> 4.807351904 | AI142: 2.165177723 | AJ142: 1.900764552 | AK142: 2.456599492 | AL142: 3.292821872
AB143: Change - $ | AD143: =+AD142-AC142 -> -0.2937216233 | AE143: -1.683963947 | AF143: 0.9001234371 | AG143: -0.8165285412 | AH143: =+AH142-AG142 -> 2.193096898 | AI143: =+AI142-AH142 -> -2.642174182 | AJ143: =+AJ142-AI142 -> -0.2644131701 | AK143: =+AK142-AJ142 -> 0.5558349399 | AL143: =+AL142-AK142 -> 0.8362223793
AB144: Change - % | AD144: =IFERROR(AD143/AC142,"") -> -0.06515064373 | AE144: -0.3995525873 | AF144: 0.3556872111 | AG144: -0.2380005995 | AH144: =IFERROR(AH143/AG142,"") -> 0.8388993774 | AI144: =IFERROR(AI143/AH142,"") -> -0.5496111444 | AJ144: =IFERROR(AJ143/AI142,"") -> -0.1221207698 | AK144: =IFERROR(AK143/AJ142,"") -> 0.2924270337 | AL144: =IFERROR(AL143/AK142,"") -> 0.340398336
AC146: =+AC$157 -> 2023-24 | AD146: 2024-25 | AE146: 2025-26 | AF146: 2026-27 | AG146: 2027-28 | AH146: 2028-29 | AI146: 2029-30 | AJ146: 2030-31 | AK146: 2031-32 | AL146: 2032-33
AB147: Total prescribed opex | AC147: =+AC137+AC142 -> 28.64560048 | AD147: 28.35187886 | AE147: 26.66791491 | AF147: 27.56803835 | AG147: 26.75150981 | AH147: =+AH137+AH142 -> 28.2277061 | AI147: 25.58553192 | AJ147: 25.32111875 | AK147: 25.87695369 | AL147: 26.71317607
AB148: Change - $ | AD148: =+AD147-AC147 -> -0.2937216233 | AE148: -1.683963947 | AF148: 0.9001234371 | AG148: -0.8165285412 | AH148: =+AH147-AG147 -> 1.476196293 | AI148: =+AI147-AH147 -> -2.642174182 | AJ148: =+AJ147-AI147 -> -0.2644131701 | AK148: =+AK147-AJ147 -> 0.5558349399 | AL148: =+AL147-AK147 -> 0.8362223793
AB149: Change - % | AD149: =IFERROR(AD148/AC147,"") -> -0.0102536382 | AE149: -0.05939514469 | AF149: 0.03375304894 | AG149: -0.02961866676 | AH149: =IFERROR(AH148/AG147,"") -> 0.0551817936 | AI149: =IFERROR(AI148/AH147,"") -> -0.09360215713 | AJ149: =IFERROR(AJ148/AI147,"") -> -0.01033448009 | AK149: =IFERROR(AK148/AJ147,"") -> 0.02195143688 | AL149: =IFERROR(AL148/AK147,"") -> 0.03231533315
AB152: Controllable vs. Non-controllable opex - % | AC152: =+AC$157 -> 2023-24 | AD152: 2024-25 | AE152: 2025-26 | AF152: 2026-27 | AG152: 2027-28 | AH152: 2028-29 | AI152: 2029-30 | AJ152: 2030-31 | AK152: 2031-32 | AL152: 2032-33
AB153: Controllable opex - % | AC153: =+AC81/AC92 -> 0.8426164715 | AD153: 0.8513458639 | AE153: 0.9051046878 | AF153: 0.8755521338 | AG153: 0.9022763565 | AH153: =+AH81/AH92 -> 0.8296938516 | AI153: 0.9153749185 | AJ153: 0.9249336267 | AK153: 0.9050661248 | AL153: 0.8767341681
AB154: Non-controllable opex - % | AC154: =+AC89/AC92 -> 0.1573835285 | AD154: 0.1486541361 | AE154: 0.09489531219 | AF154: 0.1244478662 | AG154: 0.09772364348 | AH154: =+AH89/AH92 -> 0.1703061484 | AI154: 0.08462508145 | AJ154: 0.07506637331 | AK154: 0.09493387521 | AL154: 0.1232658319
AC155: =SUM(AC153:AC154) -> 1 | AD155: 1 | AE155: 1 | AF155: 1 | AG155: 1 | AH155: =SUM(AH153:AH154) -> 1 | AI155: 1 | AJ155: 1 | AK155: 1 | AL155: 1
AA157: =+AA6 -> 2021-22 | AB157: 2022-23 | AC157: =+AC6 -> 2023-24 | AD157: 2024-25 | AE157: 2025-26 | AF157: 2026-27 | AG157: 2027-28 | AH157: =+AH6 -> 2028-29 | AI157: 2029-30 | AJ157: 2030-31 | AK157: 2031-32 | AL157: 2032-33
Z158: Fourth Reg period Opex | AA158: =+AA166-SUM(AA159:AA165) -> 24.73006769 | AB158: =+AB166-SUM(AB159:AB165) -> 24.5446881
Z159: Baseline opex | AC159: =+AC58 -> 24.1372548 | AD159: 24.1372548 | AE159: 24.1372548 | AF159: 24.1372548 | AG159: 24.1372548 | AH159: =+AH58 -> 23.4203542 | AI159: 23.4203542 | AJ159: 23.4203542 | AK159: 23.4203542 | AL159: 23.4203542
Z160: Forecast variations to baseline operating expenditure | AC160: =+AC78 -> 0 | AD160: 0 | AE160: 0 | AF160: 0 | AG160: 0 | AH160: =+AH78 -> 0 | AI160: 0 | AJ160: 0 | AK160: 0 | AL160: 0
Z161: Licence fees | AA161: =+AA192 -> 0.04518829517 | AB161: =+AB192 -> 0.02761249672 | AC161: =+AC86 -> 0.03153236169 | AD161: 0.03477771786 | AE161: 0.03130752542 | AF161: 0.03253920166 | AG161: 0.03287481498 | AH161: =+AH86 -> 0.03224051402 | AI161: 0.03255151022 | AJ161: 0.03255561307 | AK161: 0.03244921244 | AL161: 0.03251877858
Z162: Environment Contribution | AA162: =+AA193 -> 0.5517175573 | AB162: =+AB193 -> 0.5633943396 | AC162: =+AC87 -> 0.5633943396 | AD162: 0.5633943396 | AE162: 0.5633943396 | AF162: 0.5633943396 | AG162: 0.5633943396 | AH162: =+AH87 -> 0.5633943396 | AI162: 0.5633943396 | AJ162: 0.5633943396 | AK162: 0.5633943396 | AL162: 0.5633943396
Z163: External bulk water charges | AA163: =+AA190 -> 1.003600509 | AB163: =+AB190 -> 1.2072724 | AC163: =+AC84 -> 1.21041898 | AD163: 1.209452 | AE163: 1.208458246 | AF163: 1.207350007 | AG163: 1.206485852 | AH163: =+AH84 -> 1.205467051 | AI163: 1.204731873 | AJ163: 1.2035646 | AK163: 1.20263094 | AL163: 1.201783753
Z164: External temporary water purchases | AA164: =+AA191 -> 0 | AB164: =+AB191 -> 0 | AC164: =+AC85 -> 0 | AD164: 0 | AE164: 0 | AF164: 0 | AG164: 0 | AH164: =+AH85 -> 0 | AI164: 0 | AJ164: 0 | AK164: 0 | AL164: 0
Z165: Other non-controllable | AA165: =+AA194 -> 0.3404885496 | AB165: =+AB194 -> 1.637399764 | AC165: =+AC88 -> 2.703 | AD165: 2.407 | AE165: 0.7275 | AF165: 1.6275 | AG165: 0.8115 | AH165: =+AH88 -> 3.00625 | AI165: 0.3645 | AJ165: 0.10125 | AK165: 0.658125 | AL165: 1.495125
Z166: Total prescribed opex | AA166: =+Opex_Breakdown!AA38 -> 26.6710626 | AB166: =+Opex_Breakdown!AB38 -> 27.9803671 | AC166: =SUM(AC159:AC165) -> 28.64560048 | AD166: 28.35187886 | AE166: 26.66791491 | AF166: 27.56803835 | AG166: 26.75150981 | AH166: =SUM(AH159:AH165) -> 28.2277061 | AI166: 25.58553192 | AJ166: 25.32111875 | AK166: 25.87695369 | AL166: 26.71317607
AC168: =+AC$157 -> 2023-24 | AD168: 2024-25 | AE168: 2025-26 | AF168: 2026-27 | AG168: 2027-28 | AH168: 2028-29 | AI168: 2029-30 | AJ168: 2030-31 | AK168: 2031-32 | AL168: 2032-33
AB169: Baseline opex | AC169: =+AC159/AC$166 -> 0.8426164715 | AD169: 0.8513458639 | AE169: 0.9051046878 | AF169: 0.8755521338 | AG169: 0.9022763565 | AH169: =+AH159/AH$166 -> 0.8296938516 | AI169: 0.9153749185 | AJ169: 0.9249336267 | AK169: 0.9050661248 | AL169: 0.8767341681
AB170: Forecast variations to baseline operating expenditure | AC170: =+AC160/AC$166 -> 0 | AD170: 0 | AE170: 0 | AF170: 0 | AG170: 0 | AH170: =+AH160/AH$166 -> 0 | AI170: 0 | AJ170: 0 | AK170: 0 | AL170: 0
AB171: Licence fees | AC171: =+AC161/AC$166 -> 0.001100775028 | AD171: 0.001226645967 | AE171: 0.00117397725 | AF171: 0.001180323433 | AG171: 0.001228895685 | AH171: =+AH161/AH$166 -> 0.001142158484 | AI171: 0.001272262399 | AJ171: 0.001285709901 | AK171: 0.001253981161 | AL171: 0.001217331046
AB172: Environment Contribution | AC172: =+AC162/AC$166 -> 0.01966774409 | AD172: 0.01987149926 | AE172: 0.02112629883 | AF172: 0.02043650449 | AG172: 0.02106028197 | AH172: =+AH162/AH$166 -> 0.01995891333 | AI172: 0.02202003622 | AJ172: 0.02224997818 | AK172: 0.02177205039 | AL172: 0.02109050374
AB173: External bulk water charges (excl. temporary purchases) | AC173: =+AC163/AC$166 -> 0.04225496968 | AD173: 0.04265861908 | AE173: 0.04531506306 | AF173: 0.04379528175 | AG173: 0.04509972936 | AH173: =+AH163/AH$166 -> 0.04270510138 | AI173: 0.04708645013 | AJ173: 0.04753204674 | AK173: 0.04647498136 | AL173: 0.04498842633
AB174: External temporary water purchases | AC174: =+AC164/AC$166 -> 0 | AD174: 0 | AE174: 0 | AF174: 0 | AG174: 0 | AH174: =+AH164/AH$166 -> 0 | AI174: 0 | AJ174: 0 | AK174: 0 | AL174: 0
AB175: Other non-controllable | AC175: =+AC165/AC$166 -> 0.09436003975 | AD175: 0.08489737178 | AE175: 0.02727997305 | AF175: 0.05903575653 | AG175: 0.03033473646 | AH175: =+AH165/AH$166 -> 0.1064999752 | AI175: 0.0142463327 | AJ175: 0.003998638489 | AK175: 0.0254328623 | AL175: 0.05596957083
AB176: Total prescribed opex | AC176: =+AC166/AC$166 -> 1 | AD176: 1 | AE176: 1 | AF176: 1 | AG176: 1 | AH176: =+AH166/AH$166 -> 1 | AI176: 1 | AJ176: 1 | AK176: 1 | AL176: 1
AC178: =+AC$157 -> 2023-24 | AD178: 2024-25 | AE178: 2025-26 | AF178: 2026-27 | AG178: 2027-28 | AH178: 2028-29 | AI178: 2029-30 | AJ178: 2030-31 | AK178: 2031-32 | AL178: 2032-33
AB179: Irrigation | AC179: =+SUMIF($H$62:$H$77,$W179,AC$62:AC$77) -> 0 | AD179: 0 | AE179: 0 | AF179: 0 | AG179: 0 | AH179: 0 | AI179: 0 | AJ179: 0 | AK179: 0 | AL179: 0
AB180: Drainage | AC180: 0 | AD180: 0 | AE180: 0 | AF180: 0 | AG180: 0 | AH180: 0 | AI180: 0 | AJ180: 0 | AK180: 0 | AL180: 0
AB181: Domestic and stock | AC181: 0 | AD181: 0 | AE181: 0 | AF181: 0 | AG181: 0 | AH181: 0 | AI181: 0 | AJ181: 0 | AK181: 0 | AL181: 0
AB182: Surface water diversions | AC182: 0 | AD182: 0 | AE182: 0 | AF182: 0 | AG182: 0 | AH182: 0 | AI182: 0 | AJ182: 0 | AK182: 0 | AL182: 0
AB183: Groundwater diversions | AC183: 0 | AD183: 0 | AE183: 0 | AF183: 0 | AG183: 0 | AH183: 0 | AI183: 0 | AJ183: 0 | AK183: 0 | AL183: 0
AB184: Bulk water services | AC184: 0 | AD184: 0 | AE184: 0 | AF184: 0 | AG184: 0 | AH184: 0 | AI184: 0 | AJ184: 0 | AK184: 0 | AL184: 0
AB185: Licence applications | AC185: 0 | AD185: 0 | AE185: 0 | AF185: 0 | AG185: 0 | AH185: 0 | AI185: 0 | AJ185: 0 | AK185: 0 | AL185: 0
AB186: Forecast variations to baseline operating expenditure | AC186: =SUM(AC179:AC185) -> 0 | AD186: 0 | AE186: 0 | AF186: 0 | AG186: 0 | AH186: =SUM(AH179:AH185) -> 0 | AI186: 0 | AJ186: 0 | AK186: 0 | AL186: 0
AA189: =+AA6 -> 2021-22 | AB189: 2022-23 | AC189: =+AC6 -> 2023-24 | AD189: 2024-25 | AE189: 2025-26 | AF189: 2026-27 | AG189: 2027-28 | AH189: =+AH6 -> 2028-29 | AI189: 2029-30 | AJ189: 2030-31 | AK189: 2031-32 | AL189: 2032-33
Z190: External bulk water charges (excl. temporary purchases) | AA190: =+Opex_Breakdown!AA30 -> 1.003600509 | AB190: =+Opex_Breakdown!AB30 -> 1.2072724 | AC190: =+AC84 -> 1.21041898 | AD190: 1.209452 | AE190: 1.208458246 | AF190: 1.207350007 | AG190: 1.206485852 | AH190: =+AH84 -> 1.205467051 | AI190: 1.204731873 | AJ190: 1.2035646 | AK190: 1.20263094 | AL190: 1.201783753
Z191: External temporary water purchases | AA191: =+Opex_Breakdown!AA31 -> 0 | AB191: =+Opex_Breakdown!AB31 -> 0 | AC191: =+AC85 -> 0 | AD191: 0 | AE191: 0 | AF191: 0 | AG191: 0 | AH191: =+AH85 -> 0 | AI191: 0 | AJ191: 0 | AK191: 0 | AL191: 0
Z192: Licence fees | AA192: =+Opex_Breakdown!AA32 -> 0.04518829517 | AB192: =+Opex_Breakdown!AB32 -> 0.02761249672 | AC192: =+AC86 -> 0.03153236169 | AD192: 0.03477771786 | AE192: 0.03130752542 | AF192: 0.03253920166 | AG192: 0.03287481498 | AH192: =+AH86 -> 0.03224051402 | AI192: 0.03255151022 | AJ192: 0.03255561307 | AK192: 0.03244921244 | AL192: 0.03251877858
Z193: Environment Contribution | AA193: =+Opex_Breakdown!AA33 -> 0.5517175573 | AB193: =+Opex_Breakdown!AB33 -> 0.5633943396 | AC193: =+AC87 -> 0.5633943396 | AD193: 0.5633943396 | AE193: 0.5633943396 | AF193: 0.5633943396 | AG193: 0.5633943396 | AH193: =+AH87 -> 0.5633943396 | AI193: 0.5633943396 | AJ193: 0.5633943396 | AK193: 0.5633943396 | AL193: 0.5633943396
Z194: Other non-controllable | AA194: =+Opex_Breakdown!AA34 -> 0.3404885496 | AB194: =+Opex_Breakdown!AB34 -> 1.637399764 | AC194: =+AC88 -> 2.703 | AD194: 2.407 | AE194: 0.7275 | AF194: 1.6275 | AG194: 0.8115 | AH194: =+AH88 -> 3.00625 | AI194: 0.3645 | AJ194: 0.10125 | AK194: 0.658125 | AL194: 1.495125
Z195: Total Non-controllable operating expenditure | AA195: =+Opex_Breakdown!AA35 -> 1.940994911 | AB195: =+Opex_Breakdown!AB35 -> 3.435679 | AC195: =SUM(AC190:AC194) -> 4.508345681 | AD195: 4.214624058 | AE195: 2.530660111 | AF195: 3.430783548 | AG195: 2.614255007 | AH195: =SUM(AH190:AH194) -> 4.807351904 | AI195: 2.165177723 | AJ195: 1.900764552 | AK195: 2.456599492 | AL195: 3.292821872
AB197: Check | AC197: =IF(ROUND(AC166,2)=ROUND(AC92,2),0,1) -> 0 | AD197: 0 | AE197: 0 | AF197: 0 | AG197: 0 | AH197: 0 | AI197: 0 | AJ197: 0 | AK197: 0 | AL197: 0
AC198: =IF(ROUND(AC186,2)=ROUND(AC160,2),0,1) -> 0 | AD198: 0 | AE198: 0 | AF198: 0 | AG198: 0 | AH198: 0 | AI198: 0 | AJ198: 0 | AK198: 0 | AL198: 0
AC199: =IF(ROUND(AC147,2)=ROUND(AC166,2),0,1) -> 0 | AD199: =IF(ROUND(AD147,2)=ROUND(AD166,2),0,1) -> 0 | AE199: 0 | AF199: 0 | AG199: 0 | AH199: 0 | AI199: 0 | AJ199: 0 | AK199: 0 | AL199: 0
AC200: =IF(ROUND(AC195,2)=ROUND(AC142,2),0,1) -> 0 | AD200: =IF(ROUND(AD195,2)=ROUND(AD142,2),0,1) -> 0 | AE200: 0 | AF200: 0 | AG200: 0 | AH200: 0 | AI200: 0 | AJ200: 0 | AK200: 0 | AL200: 0

Sheet Opex_Breakdown
A1: 80 | B1: Operating Expenditure - Breakdown
B2: =+Contents!H7 -> Southern Rural Water
B3: Go to Table of Contents
L4: FIRST REG PERIOD | P4: SECOND REG PERIOD | U4: THIRD REG PERIOD | Z4: FOURTH REG PERIOD | AE4: FIFTH REG PERIOD | AJ4: SIXTH REG PERIOD
K6: 2006 | L6: 2007 | M6: 2008 | N6: 2009 | O6: 2010 | P6: 2011 | Q6: 2012 | R6: 2013 | S6: 2014 | T6: 2015 | U6: 2016 | V6: 2017 | W6: 2018 | X6: 2019 | Y6: 2020 | Z6: 2021 | AA6: 2022 | AB6: 2023 | AC6: 2024 | AD6: 2025 | AE6: 2026 | AF6: 2027 | AG6: 2028 | AH6: =AG6+1 -> 2029 | AI6: =AH6+1 -> 2030 | AJ6: 2031 | AK6: 2032 | AL6: 2033
B7: $m, 01/01/23 | K7: =+CONCATENATE(K6-1,"-",RIGHT(K6,2)) -> 2005-06 | L7: =+CONCATENATE(L6-1,"-",RIGHT(L6,2)) -> 2006-07 | M7: 2007-08 | N7: 2008-09 | O7: 2009-10 | P7: 2010-11 | Q7: 2011-12 | R7: 2012-13 | S7: =+CONCATENATE(S6-1,"-",RIGHT(S6,2)) -> 2013-14 | T7: 2014-15 | U7: 2015-16 | V7: 2016-17 | W7: 2017-18 | X7: 2018-19 | Y7: =+CONCATENATE(Y6-1,"-",RIGHT(Y6,2)) -> 2019-20 | Z7: =+CONCATENATE(Z6-1,"-",RIGHT(Z6,2)) -> 2020-21 | AA7: =+CONCATENATE(AA6-1,"-",RIGHT(AA6,2)) -> 2021-22 | AB7: =+CONCATENATE(AB6-1,"-",RIGHT(AB6,2)) -> 2022-23 | AC7: =+CONCATENATE(AC6-1,"-",RIGHT(AC6,2)) -> 2023-24 | AD7: =+CONCATENATE(AD6-1,"-",RIGHT(AD6,2)) -> 2024-25 | AE7: 2025-26 | AF7: 2026-27 | AG7: 2027-28 | AH7: 2028-29 | AI7: 2029-30 | AJ7: 2030-31 | AK7: 2031-32 | AL7: 2032-33
D10: Operating Expenditure Summary
E12: Irrigation | W12: =+W57-W51-W54 -> 12.17676161 | X12: 11.15513752 | Y12: 11.41158409 | Z12: 11.43690557 | AA12: 11.62600254 | AB12: 11.46654637 | AC12: 11.45352989 | AD12: 11.31701926 | AE12: 11.16534141 | AF12: 10.99838714 | AG12: 10.86513297 | AH12: =+AH57-AH51-AH54 -> 10.71080395 | AI12: 10.59549178 | AJ12: 10.42117789 | AK12: 10.27901295 | AL12: 10.14880527
E13: Drainage | W13: =W67-W61-W64 -> 0 | X13: 0 | Y13: 0 | Z13: 0 | AA13: 0 | AB13: 0 | AC13: 0 | AD13: 0 | AE13: 0 | AF13: 0 | AG13: 0 | AH13: =AH67-AH61-AH64 -> 0 | AI13: 0 | AJ13: 0 | AK13: 0 | AL13: 0
E14: Domestic and stock | W14: =W77-W71-W74 -> 0 | X14: 0 | Y14: 0 | Z14: 0 | AA14: 0 | AB14: 0 | AC14: 0 | AD14: 0 | AE14: 0 | AF14: 0 | AG14: 0 | AH14: =AH77-AH71-AH74 -> 0 | AI14: 0 | AJ14: 0 | AK14: 0 | AL14: 0
E15: Surface water diversions | W15: =W87-W81-W84 -> 3.268716179 | X15: 3.039444579 | Y15: 3.219338245 | Z15: 2.999579971 | AA15: 2.850015267 | AB15: 2.766736113 | AC15: 2.866491029 | AD15: 2.835835215 | AE15: 2.80433056 | AF15: 2.769196441 | AG15: 2.741800451 | AH15: =AH87-AH81-AH84 -> 2.709501743 | AI15: 2.686194649 | AJ15: 2.649188998 | AK15: 2.619589516 | AL15: 2.592731446
E16: Groundwater diversions | W16: =W97-W91-W94 -> 2.9746262 | X16: 2.976091359 | Y16: 3.004412748 | Z16: 2.515319586 | AA16: 2.455931298 | AB16: 2.375645928 | AC16: 2.45879092 | AD16: 2.433373827 | AE16: 2.407174493 | AF16: 2.37788787 | AG16: 2.355167084 | AH16: =AH97-AH91-AH94 -> 2.328275681 | AI16: 2.309019443 | AJ16: 2.278114585 | AK16: 2.253498179 | AL16: 2.2312073
E17: Bulk water services | W17: =W107-W101-W104 -> 5.541817578 | X17: 5.679151407 | Y17: 6.149597937 | Z17: 6.76457581 | AA17: 6.58854352 | AB17: 6.823002767 | AC17: 6.756555827 | AD17: 6.69980717 | AE17: 6.663845065 | AF17: 6.653914672 | AG17: 6.595378895 | AH17: =AH107-AH101-AH104 -> 6.571524961 | AI17: 6.49085827 | AJ17: 6.502622336 | AK17: 6.467971398 | AL17: 6.417605813
E18: Licence applications | W18: =W117-W111-W114 -> 1.361431045 | X18: 1.372703441 | Y18: 1.446106031 | Z18: 1.337720568 | AA18: 1.209575064 | AB18: 1.112756921 | AC18: 1.1133639 | AD18: 1.103121371 | AE18: 1.091515794 | AF18: 1.078532379 | AG18: 1.068522226 | AH18: =AH117-AH111-AH114 -> 1.056617379 | AI18: 1.048173835 | AJ18: 1.034440667 | AK18: 1.023558051 | AL18: 1.013728441
E19: Total controllable operating expenditure | W19: =SUM(W12:W18) -> 25.32335261 | X19: 24.2225283 | Y19: 25.23103905 | Z19: 25.05410151 | AA19: 24.73006769 | AB19: 24.5446881 | AC19: 24.64873156 | AD19: 24.38915685 | AE19: 24.13220732 | AF19: 23.8779185 | AG19: 23.62600163 | AH19: 23.37672371 | AI19: 23.12973798 | AJ19: 22.88554448 | AK19: 22.64363009 | AL19: 22.40407827
E22: Operations & Maintenance | W22: =W50+W60+W70+W80+W90+W100+W110 -> 16.94767751 | X22: 16.84000098 | Y22: 17.28380471 | Z22: 16.47375291 | AA22: 15.95092774 | AB22: 16.08085686 | AC22: 16.12958378 | AD22: 15.96027715 | AE22: 15.79456265 | AF22: 15.63327705 | AG22: 15.46835988 | AH22: =AH50+AH60+AH70+AH80+AH90+AH100+AH110 -> 15.30876416 | AI22: 15.1446188 | AJ22: 14.99198619 | AK22: 14.8358925 | AL22: 14.67962886
E23: Customer Service and billing | W23: =W52+W62+W72+W82+W92+W102+W112 -> 0.8162709721 | X23: 0.7851515931 | Y23: 0.8900562602 | Z23: 0.8994746229 | AA23: 0.9657684478 | AB23: 0.8905246828 | AC23: 0.8962306826 | AD23: 0.8867505917 | AE23: 0.8771542888 | AF23: 0.8673588047 | AG23: 0.8582201593 | AH23: =AH52+AH62+AH72+AH82+AH92+AH102+AH112 -> 0.8487815882 | AI23: 0.8400922303 | AJ23: 0.830438013 | AK23: 0.8214117486 | AL23: 0.8126601474
E24: GSL Payments | W24: =W53+W63+W73+W83+W93+W103+W113 -> 0 | X24: 0 | Y24: 0 | Z24: 0 | AA24: 0 | AB24: 0 | AC24: 0 | AD24: 0 | AE24: 0 | AF24: 0 | AG24: 0 | AH24: =AH53+AH63+AH73+AH83+AH93+AH103+AH113 -> 0 | AI24: 0 | AJ24: 0 | AK24: 0 | AL24: 0
E25: Corporate | W25: =W55+W65+W75+W85+W95+W105+W115 -> 6.317040331 | X25: 6.597375733 | Y25: 7.057178085 | Z25: 7.680873976 | AA25: 7.813371501 | AB25: 7.573306553 | AC25: 7.622917097 | AD25: 7.542129101 | AE25: 7.460490379 | AF25: 7.377282649 | AG25: 7.299421582 | AH25: =AH55+AH65+AH75+AH85+AH95+AH105+AH115 -> 7.219177961 | AI25: 7.145026955 | AJ25: 7.063120277 | AK25: 6.986325846 | AL25: 6.911789259
E26: Other operating expenditure | W26: =W56+W66+W76+W86+W96+W106+W116 -> 1.242363801 | X26: 0 | Y26: 0 | Z26: 0 | AA26: 0 | AB26: 0 | AC26: 0 | AD26: 0 | AE26: 0 | AF26: 0 | AG26: 0 | AH26: =AH56+AH66+AH76+AH86+AH96+AH106+AH116 -> 0 | AI26: 0 | AJ26: 0 | AK26: 0 | AL26: 0
E27: Total controllable operating expenditure | W27: =SUM(W22:W26) -> 25.32335261 | X27: 24.2225283 | Y27: 25.23103905 | Z27: 25.05410151 | AA27: 24.73006769 | AB27: 24.5446881 | AC27: 24.64873156 | AD27: 24.38915685 | AE27: 24.13220732 | AF27: 23.8779185 | AG27: 23.62600163 | AH27: =SUM(AH22:AH26) -> 23.37672371 | AI27: 23.12973798 | AJ27: 22.88554448 | AK27: 22.64363009 | AL27: 22.40407827
AC28: =IF(ROUND(AC19,2)=ROUND(AC27,2),0,1) -> 0 | AD28: =IF(ROUND(AD19,2)=ROUND(AD27,2),0,1) -> 0 | AE28: 0 | AF28: 0 | AG28: 0 | AH28: 0 | AI28: 0 | AJ28: 0 | AK28: 0 | AL28: 0
E30: External bulk water charges (excl. temporary purchases) | W30: =W51+W61+W71+W81+W91+W101+W111 -> 1.521260784 | X30: 1.426474796 | Y30: 1.216533781 | Z30: 1.212232925 | AA30: 1.003600509 | AB30: 1.2072724 | AC30: 1.21041898 | AD30: 1.209452 | AE30: 1.208458246 | AF30: 1.207350007 | AG30: 1.206485852 | AH30: =AH51+AH61+AH71+AH81+AH91+AH101+AH111 -> 1.205467051 | AI30: 1.204731873 | AJ30: 1.2035646 | AK30: 1.20263094 | AL30: 1.201783753
E31: External temporary water purchases | W31: =+W120 -> 0 | X31: 0 | Y31: 0 | Z31: 0 | AA31: 0 | AB31: 0 | AC31: 0 | AD31: 0 | AE31: 0 | AF31: 0 | AG31: 0 | AH31: =+AH120 -> 0 | AI31: 0 | AJ31: 0 | AK31: 0 | AL31: 0
E32: Licence fees | W32: =+W127 -> 0.0203229638 | X32: 0.02683040195 | Y32: 0.01585290184 | Z32: 0.02179629317 | AA32: 0.04518829517 | AB32: 0.02761249672 | AC32: 0.03153236169 | AD32: 0.03477771786 | AE32: 0.03130752542 | AF32: 0.03253920166 | AG32: 0.03287481498 | AH32: =+AH127 -> 0.03224051402 | AI32: 0.03255151022 | AJ32: 0.03255561307 | AK32: 0.03244921244 | AL32: 0.03251877858
E33: Environment Contribution | W33: =W129 -> 0.4750056447 | X33: 0.5952921847 | Y33: 0.5874662577 | Z33: 0.5582697712 | AA33: 0.5517175573 | AB33: 0.5633943396 | AC33: 0.5633943396 | AD33: 0.5633943396 | AE33: 0.5633943396 | AF33: 0.5633943396 | AG33: 0.5633943396 | AH33: =AH129 -> 0.5633943396 | AI33: 0.5633943396 | AJ33: 0.5633943396 | AK33: 0.5633943396 | AL33: 0.5633943396
E34: Other non-controllable | W34: =+W142 -> 0.4538462606 | X34: 0.2037329734 | Y34: 0.2657074049 | Z34: 0.4200751717 | AA34: 0.3404885496 | AB34: 1.637399764 | AC34: 2.703 | AD34: 2.407 | AE34: 0.7275 | AF34: 1.6275 | AG34: 0.8115 | AH34: =+AH142 -> 3.00625 | AI34: 0.3645 | AJ34: 0.10125 | AK34: 0.658125 | AL34: 1.495125
E35: Total non-controllable operating expenditure | W35: =SUM(W30:W34) -> 2.470435653 | X35: 2.252330356 | Y35: 2.085560345 | Z35: 2.212374161 | AA35: 1.940994911 | AB35: 3.435679 | AC35: 4.508345681 | AD35: 4.214624058 | AE35: 2.530660111 | AF35: 3.430783548 | AG35: 2.614255007 | AH35: =SUM(AH30:AH34) -> 4.807351904 | AI35: 2.165177723 | AJ35: 1.900764552 | AK35: 2.456599492 | AL35: 3.292821872
E38: Total prescribed operating expenditure | W38: =+W35+W19 -> 27.79378827 | X38: 26.47485866 | Y38: 27.3165994 | Z38: 27.26647567 | AA38: 26.6710626 | AB38: 27.9803671 | AC38: 29.15707724 | AD38: 28.60378091 | AE38: 26.66286743 | AF38: 27.30870205 | AG38: 26.24025663 | AH38: =+AH35+AH19 -> 28.18407561 | AI38: 25.2949157 | AJ38: 24.78630903 | AK38: 25.10022958 | AL38: 25.69690014
AB41: To reconcile to 'Opex_FO' tab row 92>> | AC41: =+Opex_FO!AC92 -> 28.64560048 | AD41: =+Opex_FO!AD92 -> 28.35187886 | AE41: =+Opex_FO!AE92 -> 26.66791491 | AF41: =+Opex_FO!AF92 -> 27.56803835 | AG41: =+Opex_FO!AG92 -> 26.75150981 | AH41: =+Opex_FO!AH92 -> 28.2277061 | AI41: =+Opex_FO!AI92 -> 25.58553192 | AJ41: =+Opex_FO!AJ92 -> 25.32111875 | AK41: =+Opex_FO!AK92 -> 25.87695369 | AL41: =+Opex_FO!AL92 -> 26.71317607
AB42: Difference | AC42: =+AC41-AC38 -> -0.5114767624 | AD42: -0.2519020468 | AE42: 0.005047479793 | AF42: 0.2593362962 | AG42: 0.5112531751 | AH42: =+AH41-AH38 -> 0.04363048535 | AI42: 0.290616215 | AJ42: 0.5348097205 | AK42: 0.7767241058 | AL42: 1.016275928
AB43: Test | AC43: =IF(ROUND(AC41,2)=ROUND(AC38,2),0,1) -> 1 | AD43: 1 | AE43: 1 | AF43: 1 | AG43: 1 | AH43: 1 | AI43: 1 | AJ43: 1 | AK43: 1 | AL43: 1
B47: Total operating expenditure
C49: =E12 -> Irrigation
D50: Operations & Maintenance | W50: ='[3]ESC Model Data'!G38 -> 7.661692065 | X50: ='[3]ESC Model Data'!H38 -> 7.83201854 | Y50: ='[3]ESC Model Data'!I38 -> 7.759768904 | Z50: ='[3]ESC Model Data'!J38 -> 7.402254927 | AA50: ='[3]ESC Model Data'!AB38+'[3]ESC Model Data'!AB40 -> 7.339419847 | AB50: ='[3]ESC Model Data'!AC38+'[3]ESC Model Data'!AC40 -> 6.410275086 | AC50: ='[3]ESC Model Data'!AD38+'[3]ESC Model Data'!AD40 -> 6.40185049 | AD50: ='[3]ESC Model Data'!AE38+'[3]ESC Model Data'!AE40 -> 6.313497358 | AE50: ='[3]ESC Model Data'!AF38+'[3]ESC Model Data'!AF40 -> 6.215327608 | AF50: ='[3]ESC Model Data'!AG38+'[3]ESC Model Data'!AG40 -> 6.107270579 | AG50: ='[3]ESC Model Data'!AH38+'[3]ESC Model Data'!AH40 -> 6.021025104 | AH50: ='[3]ESC Model Data'!AI38+'[3]ESC Model Data'!AI40 -> 5.921139451 | AI50: ='[3]ESC Model Data'!AJ38+'[3]ESC Model Data'!AJ40 -> 5.8465065 | AJ50: ='[3]ESC Model Data'!AK38+'[3]ESC Model Data'!AK40 -> 5.733686132 | AK50: ='[3]ESC Model Data'!AL38+'[3]ESC Model Data'!AL40 -> 5.641673381 | AL50: ='[3]ESC Model Data'!AM38+'[3]ESC Model Data'!AM40 -> 5.557399674
D51: External bulk charges (excl. temporary purchases) | W51: ='[3]ESC Model Data'!G39 -> 1.427697289 | X51: ='[3]ESC Model Data'!H39 -> 1.327802112 | Y51: ='[3]ESC Model Data'!I39 -> 1.118410454 | Z51: ='[3]ESC Model Data'!J39 -> 1.11905665 | AA51: ='[3]ESC Model Data'!AB39 -> 0.9079694656 | AB51: ='[3]ESC Model Data'!AC39 -> 1.11905665 | AC51: ='[3]ESC Model Data'!AD39 -> 1.11905665 | AD51: ='[3]ESC Model Data'!AE39 -> 1.11905665 | AE51: ='[3]ESC Model Data'!AF39 -> 1.11905665 | AF51: ='[3]ESC Model Data'!AG39 -> 1.11905665 | AG51: ='[3]ESC Model Data'!AH39 -> 1.11905665 | AH51: ='[3]ESC Model Data'!AI39 -> 1.11905665 | AI51: ='[3]ESC Model Data'!AJ39 -> 1.11905665 | AJ51: ='[3]ESC Model Data'!AK39 -> 1.11905665 | AK51: ='[3]ESC Model Data'!AL39 -> 1.11905665 | AL51: ='[3]ESC Model Data'!AM39 -> 1.11905665
D52: Customer Service and billing | W52: ='[3]ESC Model Data'!G41 -> 0.3872844153 | X52: ='[3]ESC Model Data'!H41 -> 0.3626308199 | Y52: ='[3]ESC Model Data'!I41 -> 0.4176955187 | Z52: ='[3]ESC Model Data'!J41 -> 0.4294333991 | AA52: ='[3]ESC Model Data'!AB41 -> 0.4792061069 | AB52: ='[3]ESC Model Data'!AC41 -> 0.538170948 | AC52: ='[3]ESC Model Data'!AD41 -> 0.5376822046 | AD52: ='[3]ESC Model Data'!AE41 -> 0.5325564981 | AE52: ='[3]ESC Model Data'!AF41 -> 0.5268612918 | AF52: ='[3]ESC Model Data'!AG41 -> 0.5205924862 | AG52: ='[3]ESC Model Data'!AH41 -> 0.515589053 | AH52: ='[3]ESC Model Data'!AI41 -> 0.5097943005 | AI52: ='[3]ESC Model Data'!AJ41 -> 0.5054645548 | AJ52: ='[3]ESC Model Data'!AK41 -> 0.4989194095 | AK52: ='[3]ESC Model Data'!AL41 -> 0.4935813944 | AL52: ='[3]ESC Model Data'!AM41 -> 0.4886923511
D53: GSL Payments | W53: ='[3]ESC Model Data'!G42 -> 0 | X53: ='[3]ESC Model Data'!H42 -> 0 | Y53: ='[3]ESC Model Data'!I42 -> 0 | Z53: ='[3]ESC Model Data'!J42 -> 0 | AA53: ='[3]ESC Model Data'!AB42 -> 0 | AB53: ='[3]ESC Model Data'!AC42 -> 0 | AC53: ='[3]ESC Model Data'!AD42 -> 0 | AD53: ='[3]ESC Model Data'!AE42 -> 0 | AE53: ='[3]ESC Model Data'!AF42 -> 0 | AF53: ='[3]ESC Model Data'!AG42 -> 0 | AG53: ='[3]ESC Model Data'!AH42 -> 0 | AH53: ='[3]ESC Model Data'!AI42 -> 0 | AI53: ='[3]ESC Model Data'!AJ42 -> 0 | AJ53: ='[3]ESC Model Data'!AK42 -> 0 | AK53: ='[3]ESC Model Data'!AL42 -> 0 | AL53: ='[3]ESC Model Data'!AM42 -> 0
D54: Licence Fees | W54: ='[3]ESC Model Data'!G43 -> 0.00928287777 | X54: ='[3]ESC Model Data'!H43 -> 0.01203980045 | Y54: ='[3]ESC Model Data'!I43 -> 0.00726496923 | Z54: ='[3]ESC Model Data'!J43 -> 0.01023065504 | AA54: ='[3]ESC Model Data'!AB43 -> 0.02206870229 | AB54: ='[3]ESC Model Data'!AC43 -> 0.01282117631 | AC54: ='[3]ESC Model Data'!AD43 -> 0.01280953267 | AD54: ='[3]ESC Model Data'!AE43 -> 0.01268741983 | AE54: ='[3]ESC Model Data'!AF43 -> 0.01255173944 | AF54: ='[3]ESC Model Data'!AG43 -> 0.01240239384 | AG54: ='[3]ESC Model Data'!AH43 -> 0.01228319398 | AH54: ='[3]ESC Model Data'!AI43 -> 0.01214514204 | AI54: ='[3]ESC Model Data'!AJ43 -> 0.01204199186 | AJ54: ='[3]ESC Model Data'!AK43 -> 0.01188606285 | AK54: ='[3]ESC Model Data'!AL43 -> 0.01175889204 | AL54: ='[3]ESC Model Data'!AM43 -> 0.01164241737
D55: Corporate | W55: ='[3]ESC Model Data'!G44 -> 2.885421331 | X55: ='[3]ESC Model Data'!H44 -> 2.960488159 | Y55: ='[3]ESC Model Data'!I44 -> 3.234119668 | Z55: ='[3]ESC Model Data'!J44 -> 3.605217247 | AA55: ='[3]ESC Model Data'!AB44 -> 3.80737659 | AB55: ='[3]ESC Model Data'!AC44 -> 4.518100334 | AC55: ='[3]ESC Model Data'!AD44 -> 4.513997192 | AD55: ='[3]ESC Model Data'!AE44 -> 4.470965408 | AE55: ='[3]ESC Model Data'!AF44 -> 4.423152508 | AF55: ='[3]ESC Model Data'!AG44 -> 4.370524077 | AG55: ='[3]ESC Model Data'!AH44 -> 4.328518813 | AH55: ='[3]ESC Model Data'!AI44 -> 4.279870194 | AI55: ='[3]ESC Model Data'!AJ44 -> 4.243520729 | AJ55: ='[3]ESC Model Data'!AK44 -> 4.188572347 | AK55: ='[3]ESC Model Data'!AL44 -> 4.14375817 | AL55: ='[3]ESC Model Data'!AM44 -> 4.102713242
D56: Other operating expenditure | W56: ='[3]ESC Model Data'!G45 -> 1.242363801
C57: =+CONCATENATE("Total ",C49) -> Total Irrigation | W57: =+SUM(W50:W56) -> 13.61374178 | X57: 12.49497943 | Y57: 12.53725951 | Z57: 12.56619288 | AA57: 12.55604071 | AB57: =+SUM(AB50:AB56) -> 12.59842419 | AC57: 12.58539607 | AD57: 12.44876333 | AE57: 12.2969498 | AF57: 12.12984619 | AG57: 11.99647281 | AH57: 11.84200574 | AI57: 11.72659043 | AJ57: 11.5521206 | AK57: 11.40982849 | AL57: 11.27950433
C59: =E13 -> Drainage
D60: =+D50 -> Operations & Maintenance
D61: External bulk charges (excl. temporary purchases)
D62: Customer Service and billing
D63: GSL Payments
D64: Licence Fees
D65: Corporate
D66: Other operating expenditure
C67: =+CONCATENATE("Total ",C59) -> Total Drainage | W67: =+SUM(W60:W66) -> 0 | X67: 0 | Y67: 0 | Z67: 0 | AA67: 0 | AB67: =+SUM(AB60:AB66) -> 0 | AC67: 0 | AD67: 0 | AE67: 0 | AF67: 0 | AG67: 0 | AH67: 0 | AI67: 0 | AJ67: 0 | AK67: 0 | AL67: 0
C69: =E14 -> Domestic and stock
D70: =+D60 -> Operations & Maintenance
D71: External bulk charges (excl. temporary purchases)
D72: Customer Service and billing
D73: GSL Payments
D74: Licence Fees
D75: Corporate
D76: Other operating expenditure
C77: =+CONCATENATE("Total ",C69) -> Total Domestic and stock | W77: =+SUM(W70:W76) -> 0 | X77: 0 | Y77: 0 | Z77: 0 | AA77: 0 | AB77: =+SUM(AB70:AB76) -> 0 | AC77: 0 | AD77: 0 | AE77: 0 | AF77: 0 | AG77: 0 | AH77: 0 | AI77: 0 | AJ77: 0 | AK77: 0 | AL77: 0
C79: =E15 -> Surface water diversions
D80: =+D70 -> Operations & Maintenance | W80: ='[3]ESC Model Data'!G47 -> 2.302191116 | X80: ='[3]ESC Model Data'!H47 -> 2.027902739 | Y80: ='[3]ESC Model Data'!I47 -> 2.164635287 | Z80: ='[3]ESC Model Data'!J47 -> 1.813303966 | AA80: ='[3]ESC Model Data'!AB47+'[3]ESC Model Data'!AB49 -> 1.679323155 | AB80: ='[3]ESC Model Data'!AC47+'[3]ESC Model Data'!AC49 -> 1.643615142 | AC80: ='[3]ESC Model Data'!AD47+'[3]ESC Model Data'!AD49 -> 1.703309305 | AD80: ='[3]ESC Model Data'!AE47+'[3]ESC Model Data'!AE49 -> 1.684964614 | AE80: ='[3]ESC Model Data'!AF47+'[3]ESC Model Data'!AF49 -> 1.666111969 | AF80: ='[3]ESC Model Data'!AG47+'[3]ESC Model Data'!AG49 -> 1.645087423 | AG80: ='[3]ESC Model Data'!AH47+'[3]ESC Model Data'!AH49 -> 1.628693437 | AH80: ='[3]ESC Model Data'!AI47+'[3]ESC Model Data'!AI49 -> 1.609365624 | AI80: ='[3]ESC Model Data'!AJ47+'[3]ESC Model Data'!AJ49 -> 1.595418467 | AJ80: ='[3]ESC Model Data'!AK47+'[3]ESC Model Data'!AK49 -> 1.573273981 | AK80: ='[3]ESC Model Data'!AL47+'[3]ESC Model Data'!AL49 -> 1.555561407 | AL80: ='[3]ESC Model Data'!AM47+'[3]ESC Model Data'!AM49 -> 1.539489317
D81: External bulk charges (excl. temporary purchases) | W81: ='[3]ESC Model Data'!G48 -> 0.09356349426 | X81: ='[3]ESC Model Data'!H48 -> 0.09867268359 | Y81: ='[3]ESC Model Data'!I48 -> 0.09812332712 | Z81: ='[3]ESC Model Data'!J48 -> 0.09317627473 | AA81: ='[3]ESC Model Data'!AB48 -> 0.09563104326 | AB81: ='[3]ESC Model Data'!AC48 -> 0.08821575057 | AC81: ='[3]ESC Model Data'!AD48 -> 0.09136233004 | AD81: ='[3]ESC Model Data'!AE48 -> 0.09039535058 | AE81: ='[3]ESC Model Data'!AF48 -> 0.08940159605 | AF81: ='[3]ESC Model Data'!AG48 -> 0.08829335693 | AG81: ='[3]ESC Model Data'!AH48 -> 0.08742920245 | AH81: ='[3]ESC Model Data'!AI48 -> 0.08641040102 | AI81: ='[3]ESC Model Data'!AJ48 -> 0.08567522296 | AJ81: ='[3]ESC Model Data'!AK48 -> 0.08450794996 | AK81: ='[3]ESC Model Data'!AL48 -> 0.08357429047 | AL81: ='[3]ESC Model Data'!AM48 -> 0.08272710364
D82: Customer Service and billing | W82: ='[3]ESC Model Data'!G50 -> 0.1073992804 | X82: ='[3]ESC Model Data'!H50 -> 0.1052856485 | Y82: ='[3]ESC Model Data'!I50 -> 0.1159840874 | Z82: ='[3]ESC Model Data'!J50 -> 0.1226651288 | AA82: ='[3]ESC Model Data'!AB50 -> 0.1240050891 | AB82: ='[3]ESC Model Data'!AC50 -> 0.1161346753 | AC82: ='[3]ESC Model Data'!AD50 -> 0.1202770986 | AD82: ='[3]ESC Model Data'!AE50 -> 0.1190040851 | AE82: ='[3]ESC Model Data'!AF50 -> 0.1176958226 | AF82: ='[3]ESC Model Data'!AG50 -> 0.1162368429 | AG82: ='[3]ESC Model Data'!AH50 -> 0.1150991968 | AH82: ='[3]ESC Model Data'!AI50 -> 0.1137579604 | AI82: ='[3]ESC Model Data'!AJ50 -> 0.1127901099 | AJ82: ='[3]ESC Model Data'!AK50 -> 0.111253413 | AK82: ='[3]ESC Model Data'!AL50 -> 0.1100242646 | AL82: ='[3]ESC Model Data'!AM50 -> 0.1089089562
D83: GSL Payments | W83: ='[3]ESC Model Data'!G51 -> 0 | X83: ='[3]ESC Model Data'!H51 -> 0 | Y83: ='[3]ESC Model Data'!I51 -> 0 | Z83: ='[3]ESC Model Data'!J51 -> 0 | AA83: ='[3]ESC Model Data'!AB51 -> 0 | AB83: ='[3]ESC Model Data'!AC51 -> 0 | AC83: ='[3]ESC Model Data'!AD51 -> 0 | AD83: ='[3]ESC Model Data'!AE51 -> 0 | AE83: ='[3]ESC Model Data'!AF51 -> 0 | AF83: ='[3]ESC Model Data'!AG51 -> 0 | AG83: ='[3]ESC Model Data'!AH51 -> 0 | AH83: ='[3]ESC Model Data'!AI51 -> 0 | AI83: ='[3]ESC Model Data'!AJ51 -> 0 | AJ83: ='[3]ESC Model Data'!AK51 -> 0 | AK83: ='[3]ESC Model Data'!AL51 -> 0 | AL83: ='[3]ESC Model Data'!AM51 -> 0
D84: Licence Fees | W84: ='[3]ESC Model Data'!G52 -> 0.002763949772 | X84: ='[3]ESC Model Data'!H52 -> 0.003685589373 | Y84: ='[3]ESC Model Data'!I52 -> 0.002108692444 | Z84: ='[3]ESC Model Data'!J52 -> 0.003018246951 | AA84: ='[3]ESC Model Data'!AB52 -> 0.006305343511 | AB84: ='[3]ESC Model Data'!AC52 -> 0.002857561337 | AC84: ='[3]ESC Model Data'!AD52 -> 0.002959488077 | AD84: ='[3]ESC Model Data'!AE52 -> 0.002928164837 | AE84: ='[3]ESC Model Data'!AF52 -> 0.002895974276 | AF84: ='[3]ESC Model Data'!AG52 -> 0.00286007523 | AG84: ='[3]ESC Model Data'!AH52 -> 0.002832082786 | AH84: ='[3]ESC Model Data'!AI52 -> 0.002799080884 | AI84: ='[3]ESC Model Data'!AJ52 -> 0.002775266357 | AJ84: ='[3]ESC Model Data'!AK52 -> 0.002737455035 | AK84: ='[3]ESC Model Data'!AL52 -> 0.002707211124 | AL84: ='[3]ESC Model Data'!AM52 -> 0.002679768311
D85: Corporate | W85: ='[3]ESC Model Data'!G53 -> 0.8591257825 | X85: ='[3]ESC Model Data'!H53 -> 0.9062561914 | Y85: ='[3]ESC Model Data'!I53 -> 0.9387188703 | Z85: ='[3]ESC Model Data'!J53 -> 1.063610876 | AA85: ='[3]ESC Model Data'!AB53 -> 1.046687023 | AB85: ='[3]ESC Model Data'!AC53 -> 1.006986295 | AC85: ='[3]ESC Model Data'!AD53 -> 1.042904625 | AD85: ='[3]ESC Model Data'!AE53 -> 1.031866516 | AE85: ='[3]ESC Model Data'!AF53 -> 1.020522769 | AF85: ='[3]ESC Model Data'!AG53 -> 1.007872175 | AG85: ='[3]ESC Model Data'!AH53 -> 0.9980078175 | AH85: ='[3]ESC Model Data'!AI53 -> 0.9863781587 | AI85: ='[3]ESC Model Data'!AJ53 -> 0.977986072 | AJ85: ='[3]ESC Model Data'!AK53 -> 0.9646616044 | AK85: ='[3]ESC Model Data'!AL53 -> 0.9540038442 | AL85: ='[3]ESC Model Data'!AM53 -> 0.9443331729
D86: Other operating expenditure
C87: =+CONCATENATE("Total ",C79) -> Total Surface water diversions | W87: =+SUM(W80:W86) -> 3.365043623 | X87: 3.141802852 | Y87: 3.319570265 | Z87: 3.095774492 | AA87: 2.951951654 | AB87: =+SUM(AB80:AB86) -> 2.857809425 | AC87: 2.960812847 | AD87: 2.92915873 | AE87: 2.896628131 | AF87: 2.860349873 | AG87: 2.832061737 | AH87: 2.798711225 | AI87: 2.774645138 | AJ87: 2.736434403 | AK87: 2.705871018 | AL87: 2.678138318
C89: =E16 -> Groundwater diversions
D90: =+D80 -> Operations & Maintenance | W90: ='[3]ESC Model Data'!G56 -> 1.983854112 | X90: ='[3]ESC Model Data'!H56 -> 1.950042729 | Y90: ='[3]ESC Model Data'!I56 -> 1.944418252 | Z90: ='[3]ESC Model Data'!J56 -> 1.387152384 | AA90: ='[3]ESC Model Data'!AB56 -> 1.348292621 | AB90: ='[3]ESC Model Data'!AC56 -> 1.310124937 | AC90: ='[3]ESC Model Data'!AD56 -> 1.355977867 | AD90: ='[3]ESC Model Data'!AE56 -> 1.341960809 | AE90: ='[3]ESC Model Data'!AF56 -> 1.327512359 | AF90: ='[3]ESC Model Data'!AG56 -> 1.311361326 | AG90: ='[3]ESC Model Data'!AH56 -> 1.298831232 | AH90: ='[3]ESC Model Data'!AI56 -> 1.284001119 | AI90: ='[3]ESC Model Data'!AJ56 -> 1.273381658 | AJ90: ='[3]ESC Model Data'!AK56 -> 1.256338199 | AK90: ='[3]ESC Model Data'!AL56 -> 1.242762705 | AL90: ='[3]ESC Model Data'!AM56 -> 1.230469696
D91: External bulk charges (excl. temporary purchases) | W91: ='[3]ESC Model Data'!G57 -> 0 | X91: ='[3]ESC Model Data'!H57 -> 0 | Y91: ='[3]ESC Model Data'!I57 -> 0 | Z91: ='[3]ESC Model Data'!J57 -> 0 | AA91: ='[3]ESC Model Data'!AB57 -> 0 | AB91: ='[3]ESC Model Data'!AC57 -> 0 | AC91: ='[3]ESC Model Data'!AD57 -> 0 | AD91: ='[3]ESC Model Data'!AE57 -> 0 | AE91: ='[3]ESC Model Data'!AF57 -> 0 | AF91: ='[3]ESC Model Data'!AG57 -> 0 | AG91: ='[3]ESC Model Data'!AH57 -> 0 | AH91: ='[3]ESC Model Data'!AI57 -> 0 | AI91: ='[3]ESC Model Data'!AJ57 -> 0 | AJ91: ='[3]ESC Model Data'!AK57 -> 0 | AK91: ='[3]ESC Model Data'!AL57 -> 0 | AL91: ='[3]ESC Model Data'!AM57 -> 0
D92: Customer Service and billing | W92: ='[3]ESC Model Data'!G58 -> 0.1100935852 | X92: ='[3]ESC Model Data'!H58 -> 0.1067955779 | Y92: ='[3]ESC Model Data'!I58 -> 0.1165659898 | Z92: ='[3]ESC Model Data'!J58 -> 0.1166564733 | AA92: ='[3]ESC Model Data'!AB58 -> 0.1208524173 | AB92: ='[3]ESC Model Data'!AC58 -> 0.1101786339 | AC92: ='[3]ESC Model Data'!AD58 -> 0.1140347648 | AD92: ='[3]ESC Model Data'!AE58 -> 0.112855961 | AE92: ='[3]ESC Model Data'!AF58 -> 0.111640878 | AF92: ='[3]ESC Model Data'!AG58 -> 0.1102826116 | AG92: ='[3]ESC Model Data'!AH58 -> 0.1092288581 | AH92: ='[3]ESC Model Data'!AI58 -> 0.1079816782 | AI92: ='[3]ESC Model Data'!AJ58 -> 0.1070886048 | AJ92: ='[3]ESC Model Data'!AK58 -> 0.1056552873 | AK92: ='[3]ESC Model Data'!AL58 -> 0.104513618 | AL92: ='[3]ESC Model Data'!AM58 -> 0.1034798029
D93: GSL Payments | W93: ='[3]ESC Model Data'!G59 -> 0 | X93: ='[3]ESC Model Data'!H59 -> 0 | Y93: ='[3]ESC Model Data'!I59 -> 0 | Z93: ='[3]ESC Model Data'!J59 -> 0 | AA93: ='[3]ESC Model Data'!AB59 -> 0 | AB93: ='[3]ESC Model Data'!AC59 -> 0 | AC93: ='[3]ESC Model Data'!AD59 -> 0 | AD93: ='[3]ESC Model Data'!AE59 -> 0 | AE93: ='[3]ESC Model Data'!AF59 -> 0 | AF93: ='[3]ESC Model Data'!AG59 -> 0 | AG93: ='[3]ESC Model Data'!AH59 -> 0 | AH93: ='[3]ESC Model Data'!AI59 -> 0 | AI93: ='[3]ESC Model Data'!AJ59 -> 0 | AJ93: ='[3]ESC Model Data'!AK59 -> 0 | AK93: ='[3]ESC Model Data'!AL59 -> 0 | AL93: ='[3]ESC Model Data'!AM59 -> 0
D94: Licence Fees | W94: ='[3]ESC Model Data'!G60 -> 0.002833288439 | X94: ='[3]ESC Model Data'!H60 -> 0.003738445386 | Y94: ='[3]ESC Model Data'!I60 -> 0.00211927194 | Z94: ='[3]ESC Model Data'!J60 -> 0.002870400483 | AA94: ='[3]ESC Model Data'!AB60 -> 0.005254452926 | AB94: ='[3]ESC Model Data'!AC60 -> 0.00271100947 | AC94: ='[3]ESC Model Data'!AD60 -> 0.002805891817 | AD94: ='[3]ESC Model Data'!AE60 -> 0.002776886662 | AE94: ='[3]ESC Model Data'!AF60 -> 0.002746988839 | AF94: ='[3]ESC Model Data'!AG60 -> 0.002713567901 | AG94: ='[3]ESC Model Data'!AH60 -> 0.002687639683 | AH94: ='[3]ESC Model Data'!AI60 -> 0.002656952094 | AI94: ='[3]ESC Model Data'!AJ60 -> 0.002634977503 | AJ94: ='[3]ESC Model Data'!AK60 -> 0.00259970989 | AK94: ='[3]ESC Model Data'!AL60 -> 0.002571618453 | AL94: ='[3]ESC Model Data'!AM60 -> 0.002546180831
D95: Corporate | W95: ='[3]ESC Model Data'!G61 -> 0.8806785031 | X95: ='[3]ESC Model Data'!H61 -> 0.9192530515 | Y95: ='[3]ESC Model Data'!I61 -> 0.9434285056 | Z95: ='[3]ESC Model Data'!J61 -> 1.011510728 | AA95: ='[3]ESC Model Data'!AB61 -> 0.9867862595 | AB95: ='[3]ESC Model Data'!AC61 -> 0.9553423571 | AC95: ='[3]ESC Model Data'!AD61 -> 0.9887782878 | AD95: ='[3]ESC Model Data'!AE61 -> 0.978557057 | AE95: ='[3]ESC Model Data'!AF61 -> 0.9680212558 | AF95: ='[3]ESC Model Data'!AG61 -> 0.9562439316 | AG95: ='[3]ESC Model Data'!AH61 -> 0.9471069939 | AH95: ='[3]ESC Model Data'!AI61 -> 0.9362928842 | AI95: ='[3]ESC Model Data'!AJ61 -> 0.9285491794 | AJ95: ='[3]ESC Model Data'!AK61 -> 0.9161210987 | AK95: ='[3]ESC Model Data'!AL61 -> 0.906221856 | AL95: ='[3]ESC Model Data'!AM61 -> 0.8972578011
D96: Other operating expenditure
C97: =+CONCATENATE("Total ",C89) -> Total Groundwater diversions | W97: =+SUM(W90:W96) -> 2.977459489 | X97: 2.979829804 | Y97: 3.006532019 | Z97: 2.518189986 | AA97: 2.461185751 | AB97: =+SUM(AB90:AB96) -> 2.378356937 | AC97: 2.461596812 | AD97: 2.436150714 | AE97: 2.409921482 | AF97: 2.380601437 | AG97: 2.357854723 | AH97: 2.330932634 | AI97: 2.31165442 | AJ97: 2.280714295 | AK97: 2.256069797 | AL97: 2.233753481
C99: =E17 -> Bulk water services
D100: =+D90 -> Operations & Maintenance | W100: ='[3]ESC Model Data'!G64 -> 4.008282503 | X100: ='[3]ESC Model Data'!H64 -> 4.053901681 | Y100: ='[3]ESC Model Data'!I64 -> 4.389742029 | Z100: ='[3]ESC Model Data'!J64+'[3]ESC Model Data'!J$66 -> 4.968559688 | AA100: ='[3]ESC Model Data'!AB64+'[3]ESC Model Data'!AB$66+'[3]ESC Model Data'!AB$68 -> 4.766299245 | AB100: ='[3]ESC Model Data'!AC64+'[3]ESC Model Data'!AC$66+'[3]ESC Model Data'!AC$68 -> 5.966129588 | AC100: ='[3]ESC Model Data'!AD64+'[3]ESC Model Data'!AD$66+'[3]ESC Model Data'!AD$68 -> 5.917324519 | AD100: ='[3]ESC Model Data'!AE64+'[3]ESC Model Data'!AE$66+'[3]ESC Model Data'!AE$68 -> 5.875642809 | AE100: ='[3]ESC Model Data'!AF64+'[3]ESC Model Data'!AF$66+'[3]ESC Model Data'!AF$68 -> 5.849228756 | AF100: ='[3]ESC Model Data'!AG64+'[3]ESC Model Data'!AG$66+'[3]ESC Model Data'!AG$68 -> 5.841934913 | AG100: ='[3]ESC Model Data'!AH64+'[3]ESC Model Data'!AH$66+'[3]ESC Model Data'!AH$68 -> 5.798940568 | AH100: ='[3]ESC Model Data'!AI64+'[3]ESC Model Data'!AI$66+'[3]ESC Model Data'!AI$68 -> 5.781419929 | AI100: ='[3]ESC Model Data'!AJ64+'[3]ESC Model Data'!AJ$66+'[3]ESC Model Data'!AJ$68 -> 5.722170498 | AJ100: ='[3]ESC Model Data'!AK64+'[3]ESC Model Data'!AK$66+'[3]ESC Model Data'!AK$68 -> 5.730811168 | AK100: ='[3]ESC Model Data'!AL64+'[3]ESC Model Data'!AL$66+'[3]ESC Model Data'!AL$68 -> 5.705360162 | AL100: ='[3]ESC Model Data'!AM64+'[3]ESC Model Data'!AM$66+'[3]ESC Model Data'!AM$68 -> 5.668366798
D101: External bulk charges (excl. temporary purchases) | W101: ='[3]ESC Model Data'!G67 -> 0 | X101: ='[3]ESC Model Data'!H67 -> 0 | Y101: ='[3]ESC Model Data'!I67 -> 0 | Z101: ='[3]ESC Model Data'!J67 -> 0 | AA101: ='[3]ESC Model Data'!AB67 -> 0 | AB101: ='[3]ESC Model Data'!AC67 -> 0 | AC101: ='[3]ESC Model Data'!AD67 -> 0 | AD101: ='[3]ESC Model Data'!AE67 -> 0 | AE101: ='[3]ESC Model Data'!AF67 -> 0 | AF101: ='[3]ESC Model Data'!AG67 -> 0 | AG101: ='[3]ESC Model Data'!AH67 -> 0 | AH101: ='[3]ESC Model Data'!AI67 -> 0 | AI101: ='[3]ESC Model Data'!AJ67 -> 0 | AJ101: ='[3]ESC Model Data'!AK67 -> 0 | AK101: ='[3]ESC Model Data'!AL67 -> 0 | AL101: ='[3]ESC Model Data'!AM67 -> 0
D102: Customer Service and billing | W102: ='[3]ESC Model Data'!G69 -> 0.1704048554 | X102: ='[3]ESC Model Data'!H69 -> 0.1691630189 | Y102: ='[3]ESC Model Data'!I69 -> 0.1935286896 | Z102: ='[3]ESC Model Data'!J69 -> 0.1857144106 | AA102: ='[3]ESC Model Data'!AB69 -> 0.1986183206 | AB102: ='[3]ESC Model Data'!AC69 -> 0.08860371325 | AC102: ='[3]ESC Model Data'!AD69 -> 0.08677948145 | AD102: ='[3]ESC Model Data'!AE69 -> 0.08522150594 | AE102: ='[3]ESC Model Data'!AF69 -> 0.08423420367 | AF102: ='[3]ESC Model Data'!AG69 -> 0.08396157503 | AG102: ='[3]ESC Model Data'!AH69 -> 0.08235453599 | AH102: ='[3]ESC Model Data'!AI69 -> 0.08169965099 | AI102: ='[3]ESC Model Data'!AJ69 -> 0.07948503069 | AJ102: ='[3]ESC Model Data'!AK69 -> 0.07980800091 | AK102: ='[3]ESC Model Data'!AL69 -> 0.07885669536 | AL102: ='[3]ESC Model Data'!AM69 -> 0.07747396047
D103: GSL Payments | W103: ='[3]ESC Model Data'!G70 -> 0 | X103: ='[3]ESC Model Data'!H70 -> 0 | Y103: ='[3]ESC Model Data'!I70 -> 0 | Z103: ='[3]ESC Model Data'!J70 -> 0 | AA103: ='[3]ESC Model Data'!AB70 -> 0 | AB103: ='[3]ESC Model Data'!AC70 -> 0 | AC103: ='[3]ESC Model Data'!AD70 -> 0 | AD103: ='[3]ESC Model Data'!AE70 -> 0 | AE103: ='[3]ESC Model Data'!AF70 -> 0 | AF103: ='[3]ESC Model Data'!AG70 -> 0 | AG103: ='[3]ESC Model Data'!AH70 -> 0 | AH103: ='[3]ESC Model Data'!AI70 -> 0 | AI103: ='[3]ESC Model Data'!AJ70 -> 0 | AJ103: ='[3]ESC Model Data'!AK70 -> 0 | AK103: ='[3]ESC Model Data'!AL70 -> 0 | AL103: ='[3]ESC Model Data'!AM70 -> 0
D104: Licence Fees | W104: ='[3]ESC Model Data'!G71 -> 0.004385415427 | X104: ='[3]ESC Model Data'!H71 -> 0.005921656309 | Y104: ='[3]ESC Model Data'!I71 -> 0.003518521331 | Z104: ='[3]ESC Model Data'!J71 -> 0.004569611257 | AA104: ='[3]ESC Model Data'!AB71 -> 0.009458015267 | AB104: ='[3]ESC Model Data'!AC71 -> 0 | AC104: ='[3]ESC Model Data'!AD71 -> 0 | AD104: ='[3]ESC Model Data'!AE71 -> 0 | AE104: ='[3]ESC Model Data'!AF71 -> 0 | AF104: ='[3]ESC Model Data'!AG71 -> 0 | AG104: ='[3]ESC Model Data'!AH71 -> 0 | AH104: ='[3]ESC Model Data'!AI71 -> 0 | AI104: ='[3]ESC Model Data'!AJ71 -> 0 | AJ104: ='[3]ESC Model Data'!AK71 -> 0 | AK104: ='[3]ESC Model Data'!AL71 -> 0 | AL104: ='[3]ESC Model Data'!AM71 -> 0
D105: Corporate | W105: ='[3]ESC Model Data'!G72 -> 1.36313022 | X105: ='[3]ESC Model Data'!H72 -> 1.456086707 | Y105: ='[3]ESC Model Data'!I72 -> 1.566327218 | Z105: ='[3]ESC Model Data'!J72 -> 1.610301711 | AA105: ='[3]ESC Model Data'!AB72 -> 1.623625954 | AB105: ='[3]ESC Model Data'!AC72 -> 0.7682694661 | AC105: ='[3]ESC Model Data'!AD72 -> 0.7524518267 | AD105: ='[3]ESC Model Data'!AE72 -> 0.7389428555 | AE105: ='[3]ESC Model Data'!AF72 -> 0.730382106 | AF105: ='[3]ESC Model Data'!AG72 -> 0.7280181841 | AG105: ='[3]ESC Model Data'!AH72 -> 0.7140837904 | AH105: ='[3]ESC Model Data'!AI72 -> 0.708405381 | AI105: ='[3]ESC Model Data'!AJ72 -> 0.6892027417 | AJ105: ='[3]ESC Model Data'!AK72 -> 0.6920031679 | AK105: ='[3]ESC Model Data'!AL72 -> 0.6837545406 | AL105: ='[3]ESC Model Data'!AM72 -> 0.6717650544
D106: Other operating expenditure | X106: =-'[3]ESC Model Data'!H93 -> 0 | Y106: =-'[3]ESC Model Data'!I93 -> 0
C107: =+CONCATENATE("Total ",C99) -> Total Bulk water services | W107: =+SUM(W100:W106) -> 5.546202993 | X107: 5.685073063 | Y107: 6.153116458 | Z107: 6.769145421 | AA107: 6.598001535 | AB107: =+SUM(AB100:AB106) -> 6.823002767 | AC107: 6.756555827 | AD107: 6.69980717 | AE107: 6.663845065 | AF107: 6.653914672 | AG107: 6.595378895 | AH107: 6.571524961 | AI107: 6.49085827 | AJ107: 6.502622336 | AK107: 6.467971398 | AL107: 6.417605813
C109: =E18 -> Licence applications
D110: =+D100 -> Operations & Maintenance | W110: ='[3]ESC Model Data'!G75 -> 0.9916577155 | X110: ='[3]ESC Model Data'!H75 -> 0.9761352894 | Y110: ='[3]ESC Model Data'!I75 -> 1.025240233 | Z110: ='[3]ESC Model Data'!J75 -> 0.9024819427 | AA110: ='[3]ESC Model Data'!AB75 -> 0.8175928753 | AB110: ='[3]ESC Model Data'!AC75 -> 0.7507121084 | AC110: ='[3]ESC Model Data'!AD75 -> 0.7511216013 | AD110: ='[3]ESC Model Data'!AE75 -> 0.7442115652 | AE110: ='[3]ESC Model Data'!AF75 -> 0.7363819606 | AF110: ='[3]ESC Model Data'!AG75 -> 0.7276228087 | AG110: ='[3]ESC Model Data'!AH75 -> 0.7208695428 | AH110: ='[3]ESC Model Data'!AI75 -> 0.7128380379 | AI110: ='[3]ESC Model Data'!AJ75 -> 0.7071416716 | AJ110: ='[3]ESC Model Data'!AK75 -> 0.6978767056 | AK110: ='[3]ESC Model Data'!AL75 -> 0.6905348403 | AL110: ='[3]ESC Model Data'!AM75 -> 0.6839033763
D111: External bulk charges (excl. temporary purchases) | W111: ='[3]ESC Model Data'!G76 -> 0 | X111: ='[3]ESC Model Data'!H76 -> 0 | Y111: ='[3]ESC Model Data'!I76 -> 0 | Z111: ='[3]ESC Model Data'!J76 -> 0 | AA111: ='[3]ESC Model Data'!AB76 -> 0 | AB111: ='[3]ESC Model Data'!AC76 -> 0 | AC111: ='[3]ESC Model Data'!AD76 -> 0 | AD111: ='[3]ESC Model Data'!AE76 -> 0 | AE111: ='[3]ESC Model Data'!AF76 -> 0 | AF111: ='[3]ESC Model Data'!AG76 -> 0 | AG111: ='[3]ESC Model Data'!AH76 -> 0 | AH111: ='[3]ESC Model Data'!AI76 -> 0 | AI111: ='[3]ESC Model Data'!AJ76 -> 0 | AJ111: ='[3]ESC Model Data'!AK76 -> 0 | AK111: ='[3]ESC Model Data'!AL76 -> 0 | AL111: ='[3]ESC Model Data'!AM76 -> 0
D112: Customer Service and billing | W112: ='[3]ESC Model Data'!G77 -> 0.04108883575 | X112: ='[3]ESC Model Data'!H77 -> 0.04127652795 | Y112: ='[3]ESC Model Data'!I77 -> 0.04628197465 | Z112: ='[3]ESC Model Data'!J77 -> 0.04500521113 | AA112: ='[3]ESC Model Data'!AB77 -> 0.04308651399 | AB112: ='[3]ESC Model Data'!AC77 -> 0.0374367124 | AC112: ='[3]ESC Model Data'!AD77 -> 0.0374571331 | AD112: ='[3]ESC Model Data'!AE77 -> 0.03711254158 | AE112: ='[3]ESC Model Data'!AF77 -> 0.03672209275 | AF112: ='[3]ESC Model Data'!AG77 -> 0.03628528902 | AG112: ='[3]ESC Model Data'!AH77 -> 0.03594851535 | AH112: ='[3]ESC Model Data'!AI77 -> 0.03554799812 | AI112: ='[3]ESC Model Data'!AJ77 -> 0.0352639302 | AJ112: ='[3]ESC Model Data'!AK77 -> 0.03480190239 | AK112: ='[3]ESC Model Data'!AL77 -> 0.03443577629 | AL112: ='[3]ESC Model Data'!AM77 -> 0.03410507666
D113: GSL Payments | W113: ='[3]ESC Model Data'!G78 -> 0 | X113: ='[3]ESC Model Data'!H78 -> 0 | Y113: ='[3]ESC Model Data'!I78 -> 0 | Z113: ='[3]ESC Model Data'!J78 -> 0 | AA113: ='[3]ESC Model Data'!AB78 -> 0 | AB113: ='[3]ESC Model Data'!AC78 -> 0 | AC113: ='[3]ESC Model Data'!AD78 -> 0 | AD113: ='[3]ESC Model Data'!AE78 -> 0 | AE113: ='[3]ESC Model Data'!AF78 -> 0 | AF113: ='[3]ESC Model Data'!AG78 -> 0 | AG113: ='[3]ESC Model Data'!AH78 -> 0 | AH113: ='[3]ESC Model Data'!AI78 -> 0 | AI113: ='[3]ESC Model Data'!AJ78 -> 0 | AJ113: ='[3]ESC Model Data'!AK78 -> 0 | AK113: ='[3]ESC Model Data'!AL78 -> 0 | AL113: ='[3]ESC Model Data'!AM78 -> 0
D114: Licence Fees | W114: ='[3]ESC Model Data'!G79 -> 0.001057432393 | X114: ='[3]ESC Model Data'!H79 -> 0.001444910441 | Y114: ='[3]ESC Model Data'!I79 -> 0.0008414468953 | Z114: ='[3]ESC Model Data'!J79 -> 0.001107379437 | AA114: ='[3]ESC Model Data'!AB79 -> 0.00210178117 | AB114: ='[3]ESC Model Data'!AC79 -> 0.0009211521167 | AC114: ='[3]ESC Model Data'!AD79 -> 0.00092165458 | AD114: ='[3]ESC Model Data'!AE79 -> 0.0009131757047 | AE114: ='[3]ESC Model Data'!AF79 -> 0.000903568484 | AF114: ='[3]ESC Model Data'!AG79 -> 0.0008928206738 | AG114: ='[3]ESC Model Data'!AH79 -> 0.0008845341614 | AH114: ='[3]ESC Model Data'!AI79 -> 0.0008746792015 | AI114: ='[3]ESC Model Data'!AJ79 -> 0.0008676895449 | AJ114: ='[3]ESC Model Data'!AK79 -> 0.0008563210815 | AK114: ='[3]ESC Model Data'!AL79 -> 0.0008473123355 | AL114: ='[3]ESC Model Data'!AM79 -> 0.0008391752786
D115: Corporate | W115: ='[3]ESC Model Data'!G80 -> 0.3286844942 | X115: ='[3]ESC Model Data'!H80 -> 0.3552916238 | Y115: ='[3]ESC Model Data'!I80 -> 0.3745838238 | Z115: ='[3]ESC Model Data'!J80 -> 0.3902334142 | AA115: ='[3]ESC Model Data'!AB80 -> 0.3488956743 | AB115: ='[3]ESC Model Data'!AC80 -> 0.3246081004 | AC115: ='[3]ESC Model Data'!AD80 -> 0.3247851653 | AD115: ='[3]ESC Model Data'!AE80 -> 0.321797264 | AE115: ='[3]ESC Model Data'!AF80 -> 0.318411741 | AF115: ='[3]ESC Model Data'!AG80 -> 0.3146242816 | AG115: ='[3]ESC Model Data'!AH80 -> 0.3117041677 | AH115: ='[3]ESC Model Data'!AI80 -> 0.308231343 | AI115: ='[3]ESC Model Data'!AJ80 -> 0.3057682329 | AJ115: ='[3]ESC Model Data'!AK80 -> 0.3017620593 | AK115: ='[3]ESC Model Data'!AL80 -> 0.2985874349 | AL115: ='[3]ESC Model Data'!AM80 -> 0.2957199882
D116: Other operating expenditure
C117: =+CONCATENATE("Total ",C109) -> Total Licence applications | W117: =+SUM(W110:W116) -> 1.362488478 | X117: 1.374148352 | Y117: 1.446947478 | Z117: 1.338827947 | AA117: 1.211676845 | AB117: =+SUM(AB110:AB116) -> 1.113678073 | AC117: 1.114285554 | AD117: 1.104034547 | AE117: 1.092419363 | AF117: 1.0794252 | AG117: 1.06940676 | AH117: 1.057492058 | AI117: 1.049041524 | AJ117: 1.035296988 | AK117: 1.024405364 | AL117: 1.014567616
C120: External temporary water purchases
C123: Licence fees
D124: Essential Services Commission | W124: =+'[3]ESC Model Data'!G$105 -> 0.0203229638 | X124: =+'[3]ESC Model Data'!H$105 -> 0.02683040195 | Y124: =+'[3]ESC Model Data'!I$105 -> 0.01585290184 | Z124: =+'[3]ESC Model Data'!J$105 -> 0.02179629317 | AA124: =+'[3]ESC Model Data'!K$105 -> 0.04518829517 | AB124: =AVERAGE(Y124:AA124) -> 0.02761249672 | AC124: =AVERAGE(Z124:AB124) -> 0.03153236169 | AD124: =AVERAGE(AA124:AC124) -> 0.03477771786 | AE124: =AVERAGE(AB124:AD124) -> 0.03130752542 | AF124: =AVERAGE(AC124:AE124) -> 0.03253920166 | AG124: =AVERAGE(AD124:AF124) -> 0.03287481498 | AH124: =AVERAGE(AE124:AG124) -> 0.03224051402 | AI124: =AVERAGE(AF124:AH124) -> 0.03255151022 | AJ124: =AVERAGE(AG124:AI124) -> 0.03255561307 | AK124: =AVERAGE(AH124:AJ124) -> 0.03244921244 | AL124: =AVERAGE(AI124:AK124) -> 0.03251877858
D125: Department of Human Services
D126: Environment Protection Authority
C127: =+CONCATENATE("Total ",C123) -> Total Licence fees | W127: =+SUM(W124:W126) -> 0.0203229638 | X127: =+SUM(X124:X126) -> 0.02683040195 | Y127: =+SUM(Y124:Y126) -> 0.01585290184 | Z127: =+SUM(Z124:Z126) -> 0.02179629317 | AA127: =+SUM(AA124:AA126) -> 0.04518829517 | AB127: =+SUM(AB124:AB126) -> 0.02761249672 | AC127: 0.03153236169 | AD127: 0.03477771786 | AE127: 0.03130752542 | AF127: 0.03253920166 | AG127: 0.03287481498 | AH127: 0.03224051402 | AI127: 0.03255151022 | AJ127: 0.03255561307 | AK127: 0.03244921244 | AL127: 0.03251877858
C129: Environment Contribution | W129: ='[3]ESC Model Data'!G83 -> 0.4750056447 | X129: ='[3]ESC Model Data'!H83 -> 0.5952921847 | Y129: ='[3]ESC Model Data'!I83 -> 0.5874662577 | Z129: ='[3]ESC Model Data'!J83 -> 0.5582697712 | AA129: ='[3]ESC Model Data'!AB83 -> 0.5517175573 | AB129: ='[3]ESC Model Data'!AC83 -> 0.5633943396 | AC129: ='[3]ESC Model Data'!AD83 -> 0.5633943396 | AD129: ='[3]ESC Model Data'!AE83 -> 0.5633943396 | AE129: ='[3]ESC Model Data'!AF83 -> 0.5633943396 | AF129: ='[3]ESC Model Data'!AG83 -> 0.5633943396 | AG129: ='[3]ESC Model Data'!AH83 -> 0.5633943396 | AH129: ='[3]ESC Model Data'!AI83 -> 0.5633943396 | AI129: ='[3]ESC Model Data'!AJ83 -> 0.5633943396 | AJ129: ='[3]ESC Model Data'!AK83 -> 0.5633943396 | AK129: ='[3]ESC Model Data'!AL83 -> 0.5633943396 | AL129: ='[3]ESC Model Data'!AM83 -> 0.5633943396
C131: Other non-controllable
D132: Immediately recoverable capital works for Latrobe power companies | W132: ='[3]ESC Model Data'!G65 -> 0.4538462606 | X132: ='[3]ESC Model Data'!H65 -> 0.2037329734 | Y132: ='[3]ESC Model Data'!I65 -> 0.2657074049 | Z132: ='[3]ESC Model Data'!J65 -> 0.4200751717 | AA132: ='[3]ESC Model Data'!AB65 -> 0.3404885496 | AB132: ='[3]ESC Model Data'!AC65 -> 1.637399764 | AC132: ='[3]ESC Model Data'!AD65 -> 2.703 | AD132: ='[3]ESC Model Data'!AE65 -> 2.407 | AE132: ='[3]ESC Model Data'!AF65 -> 0.7275 | AF132: ='[3]ESC Model Data'!AG65 -> 1.6275 | AG132: ='[3]ESC Model Data'!AH65 -> 0.8115 | AH132: ='[3]ESC Model Data'!AI65 -> 3.00625 | AI132: ='[3]ESC Model Data'!AJ65 -> 0.3645 | AJ132: ='[3]ESC Model Data'!AK65 -> 0.10125 | AK132: ='[3]ESC Model Data'!AL65 -> 0.658125 | AL132: ='[3]ESC Model Data'!AM65 -> 1.495125
D133: [Non-controllable 2]
D134: [Non-controllable 3]
D135: [Non-controllable 4]
D136: [Non-controllable 5]
D137: [Non-controllable 6]
D138: [Non-controllable 7]
D139: [Non-controllable 8]
D140: [Non-controllable 9]
D141: [Non-controllable 10]
W142: =SUM(W132:W141) -> 0.4538462606 | X142: 0.2037329734 | Y142: 0.2657074049 | Z142: 0.4200751717 | AA142: 0.3404885496 | AB142: 1.637399764 | AC142: 2.703 | AD142: 2.407 | AE142: 0.7275 | AF142: 1.6275 | AG142: =SUM(AG132:AG141) -> 0.8115 | AH142: =SUM(AH132:AH141) -> 3.00625 | AI142: 0.3645 | AJ142: 0.10125 | AK142: 0.658125 | AL142: =SUM(AL132:AL141) -> 1.495125

Sheet Capex_FO_AC
A1: 80 | B1: Capital Expenditure - Asset Category Breakdown
B2: =+Contents!H7 -> Southern Rural Water
B3: Go to Table of Contents
L4: FIRST REG PERIOD | P4: SECOND REG PERIOD | U4: THIRD REG PERIOD | Z4: FOURTH REG PERIOD | AE4: FIFTH REG PERIOD | AJ4: SIXTH REG PERIOD
J6: 2005 | K6: 2006 | L6: 2007 | M6: 2008 | N6: 2009 | O6: 2010 | P6: 2011 | Q6: 2012 | R6: 2013 | S6: 2014 | T6: 2015 | U6: 2016 | V6: 2017 | W6: 2018 | X6: 2019 | Y6: 2020 | Z6: 2021 | AA6: 2022 | AB6: 2023 | AC6: 2024 | AD6: 2025 | AE6: 2026 | AF6: 2027 | AG6: 2028 | AH6: =AG6+1 -> 2029 | AI6: =AH6+1 -> 2030 | AJ6: 2031 | AK6: 2032 | AL6: 2033
B7: $m, 01/01/23 | J7: =+CONCATENATE(J6-1,"-",RIGHT(J6,2)) -> 2004-05 | K7: =+CONCATENATE(K6-1,"-",RIGHT(K6,2)) -> 2005-06 | L7: 2006-07 | M7: 2007-08 | N7: 2008-09 | O7: 2009-10 | P7: 2010-11 | Q7: 2011-12 | R7: =+CONCATENATE(R6-1,"-",RIGHT(R6,2)) -> 2012-13 | S7: 2013-14 | T7: 2014-15 | U7: 2015-16 | V7: 2016-17 | W7: 2017-18 | X7: =+CONCATENATE(X6-1,"-",RIGHT(X6,2)) -> 2018-19 | Y7: =+CONCATENATE(Y6-1,"-",RIGHT(Y6,2)) -> 2019-20 | Z7: =+CONCATENATE(Z6-1,"-",RIGHT(Z6,2)) -> 2020-21 | AA7: =+CONCATENATE(AA6-1,"-",RIGHT(AA6,2)) -> 2021-22 | AB7: =+CONCATENATE(AB6-1,"-",RIGHT(AB6,2)) -> 2022-23 | AC7: =+CONCATENATE(AC6-1,"-",RIGHT(AC6,2)) -> 2023-24 | AD7: 2024-25 | AE7: 2025-26 | AF7: 2026-27 | AG7: 2027-28 | AH7: 2028-29 | AI7: =+CONCATENATE(AI6-1,"-",RIGHT(AI6,2)) -> 2029-30 | AJ7: 2030-31 | AK7: 2031-32 | AL7: 2032-33
D10: Capital Expenditure Summary
E12: Irrigation | W12: =+W39 -> 30.29597982 | X12: =+X39 -> 46.81717856 | Y12: 25.30297139 | Z12: 10.88427858 | AA12: 6.597491094 | AB12: =+AB39 -> 45.61014694 | AC12: =+AC39 -> 39.8696809 | AD12: 15.62277193 | AE12: 8.280180149 | AF12: 10.42877259 | AG12: 6.654403649 | AH12: =+AH39 -> 5.440818337 | AI12: 3.884746068 | AJ12: 2.479193568 | AK12: 1.083375 | AL12: 0.8656875
E13: Drainage | W13: =+W46 -> 0 | X13: =+X46 -> 0 | Y13: 0 | Z13: 0 | AA13: 0 | AB13: =+AB46 -> 0 | AC13: =+AC46 -> 0 | AD13: 0 | AE13: 0 | AF13: 0 | AG13: 0 | AH13: =+AH46 -> 0 | AI13: 0 | AJ13: 0 | AK13: 0 | AL13: 0
E14: Domestic and stock | W14: =+W53 -> 0 | X14: =+X53 -> 0 | Y14: 0 | Z14: 0 | AA14: 0 | AB14: =+AB53 -> 0 | AC14: =+AC53 -> 0 | AD14: 0 | AE14: 0 | AF14: 0 | AG14: 0 | AH14: =+AH53 -> 0 | AI14: 0 | AJ14: 0 | AK14: 0 | AL14: 0
E15: Surface water diversions | W15: =+W60 -> 0.4334593768 | X15: =+X60 -> 0.7344292685 | Y15: 0.4701703531 | Z15: 0.3437310849 | AA15: 0.4098473282 | AB15: =+AB60 -> 0.7773411703 | AC15: =+AC60 -> 0.5185642563 | AD15: 0.6339524835 | AE15: 0.4408158552 | AF15: 0.4582733432 | AG15: 0.410737599 | AH15: =+AH60 -> 0.3248638919 | AI15: 0.3175214583 | AJ15: 0.3175214583 | AK15: 0 | AL15: 0
E16: Groundwater diversions | W16: =+W67 -> 0.5287258115 | X16: =+X67 -> 0.728366282 | Y16: 0.4823257435 | Z16: 0.3934919138 | AA16: 0.4644936387 | AB16: =+AB67 -> 1.228970269 | AC16: =+AC67 -> 2.804491709 | AD16: 2.858620753 | AE16: 2.406067711 | AF16: 0.6044464227 | AG16: 0.5656686869 | AH16: =+AH67 -> 2.695010812 | AI16: 5.220271152 | AJ16: 5.220271152 | AK16: 4.35375 | AL16: 2.025
E17: Bulk water services | W17: =+W74 -> 4.193627553 | X17: =+X74 -> 5.031061655 | Y17: 3.249678066 | Z17: 3.914195056 | AA17: 2.786961832 | AB17: =+AB74 -> 6.113485358 | AC17: 4.974589895 | AD17: 5.914196428 | AE17: 5.48556156 | AF17: 7.931474012 | AG17: 7.247059192 | AH17: =+AH74 -> 5.911381887 | AI17: 5.027526171 | AJ17: 7.072776171 | AK17: 13.230675 | AL17: 10.164825
E18: Licence applications | W18: =+W81 -> 0.2213272572 | X18: =+X81 -> 0.4815328185 | Y18: 0.2482167763 | Z18: 0.1348086401 | AA18: 0.2112290076 | AB18: =+AB81 -> 0.08994328789 | AC18: 0.2039079742 | AD18: 0.2376129266 | AE18: 0.1811976317 | AF18: 0.1862969717 | AG18: 0.1724117597 | AH18: =+AH81 -> 0.09489288713 | AI18: 0.092748159 | AJ18: 0.092748159 | AK18: 0 | AL18: 0
E19: Total prescribed capex | W19: =+SUM(W12:W18) -> 35.67311982 | X19: 53.79256858 | Y19: 29.75336233 | Z19: 15.67050528 | AA19: 10.4700229 | AB19: 53.81988702 | AC19: 48.37123473 | AD19: 25.26715452 | AE19: 16.79382291 | AF19: 19.60926334 | AG19: 15.05028089 | AH19: =+SUM(AH12:AH18) -> 14.46696781 | AI19: 14.54281301 | AJ19: 15.18251051 | AK19: 18.6678 | AL19: 13.0555125
E22: Government contributions | W22: =+W95 -> 18.07370226 | X22: 28.89922303 | Y22: 4.291955283 | Z22: 21.94956493 | AA22: 5.074582003 | AB22: 12.14628482 | AC22: =+AC95 -> 13.81519477 | AD22: 4.370488766 | AE22: 0.4462960365 | AF22: 0 | AG22: 0 | AH22: =+AH95 -> 0 | AI22: 0 | AJ22: 0 | AK22: 0 | AL22: 0
E23: Customer contributions | W23: =+W105 -> 0.6361900588 | X23: 9.473129532 | Y23: 1.712403261 | Z23: 0.371265252 | AA23: 0.5545142765 | AB23: 2.70561927 | AC23: =+AC105 -> 2.514758763 | AD23: 2.514758763 | AE23: 2.514758763 | AF23: 2.514758763 | AG23: 2.514758763 | AH23: =+AH105 -> 2.514758763 | AI23: 2.514758763 | AJ23: 2.514758763 | AK23: 2.514758763 | AL23: 2.514758763
E25: Gifted Assets | W25: =+W109 -> 0 | X25: =+X109 -> 0 | Y25: =+Y109 -> 0 | Z25: =+Z109 -> 0 | AA25: =+AA109 -> 0 | AB25: =+AB109 -> 0 | AC25: =+AC109 -> 0 | AD25: 0 | AE25: 0 | AF25: 0 | AG25: 0 | AH25: =+AH109 -> 0 | AI25: 0 | AJ25: 0 | AK25: 0 | AL25: 0
E26: Proceeds from disposals | W26: =+W112 -> 0.6372771384 | X26: =+X112 -> 0.762465206 | Y26: =+Y112 -> 0.4975241203 | Z26: =+Z112 -> 3.056420148 | AA26: =+AA112 -> 0.3940839695 | AB26: =+AB112 -> 0.7881679389 | AC26: =+AC112 -> 0.7881679389 | AD26: 0.7881679389 | AE26: 0.7881679389 | AF26: 0.7881679389 | AG26: 0.7881679389 | AH26: =+AH112 -> 0.7881679389 | AI26: 0.7881679389 | AJ26: 0.7881679389 | AK26: 0.7881679389 | AL26: 0.7881679389
E27: Written down value of assets disposed | W27: =W113 -> 0 | X27: =X113 -> 0 | Y27: =Y113 -> 0 | Z27: =Z113 -> 0 | AA27: =AA113 -> 0 | AB27: =AB113 -> 0 | AC27: =AC113 -> 0 | AD27: 0 | AE27: 0 | AF27: 0 | AG27: 0 | AH27: =AH113 -> 0 | AI27: 0 | AJ27: 0 | AK27: 0 | AL27: 0
AA30: Check | AB30: =SUM(AB39,AB46,AB53,AB60,AB67,AB74,AB81) -> 53.81988702 | AC30: =+'Capex_FO input'!D29 -> 48.37123473 | AD30: =+'Capex_FO input'!E29 -> 25.26715452 | AE30: =+'Capex_FO input'!F29 -> 16.79382291 | AF30: =+'Capex_FO input'!G29 -> 19.60926334 | AG30: =+'Capex_FO input'!H29 -> 15.05028089 | AH30: =+'Capex_FO input'!I29 -> 14.46696781 | AI30: =+'Capex_FO input'!J29 -> 14.54281301 | AJ30: =+'Capex_FO input'!K29 -> 15.18251051 | AK30: =+'Capex_FO input'!L29 -> 18.6678 | AL30: =+'Capex_FO input'!M29 -> 13.0555125
AA31: Difference | AB31: =+AB30-AB19 -> 0 | AC31: 0 | AD31: 0 | AE31: 0 | AF31: 0 | AG31: 0 | AH31: =+AH30-AH19 -> 0 | AI31: =+AI30-AI19 -> 0 | AJ31: =+AJ30-AJ19 -> 0 | AK31: =+AK30-AK19 -> 0 | AL31: =+AL30-AL19 -> 0
B32: Total capital expenditure | AA32: Test | AB32: =IF(ROUND(AB30,2)=ROUND(AB19,2),0,1) -> 0 | AC32: 0 | AD32: 0 | AE32: 0 | AF32: 0 | AG32: 0 | AH32: 0 | AI32: 0 | AJ32: 0 | AK32: 0 | AL32: 0
C34: =E12 -> Irrigation
D35: Headworks | AC35: =+SUMIFS('Capex_FO input'!O$42:O$1020,'Capex_FO input'!$E$42:$E$1020,Capex_FO_AC!$C$34,'Capex_FO input'!$G$42:$G$1020,Capex_FO_AC!$D$35) -> 0 | AD35: =+SUMIFS('Capex_FO input'!P$42:P$1020,'Capex_FO input'!$E$42:$E$1020,Capex_FO_AC!$C$34,'Capex_FO input'!$G$42:$G$1020,Capex_FO_AC!$D$35) -> 0 | AE35: =+SUMIFS('Capex_FO input'!Q$42:Q$1020,'Capex_FO input'!$E$42:$E$1020,Capex_FO_AC!$C$34,'Capex_FO input'!$G$42:$G$1020,Capex_FO_AC!$D$35) -> 0 | AF35: =+SUMIFS('Capex_FO input'!R$42:R$1020,'Capex_FO input'!$E$42:$E$1020,Capex_FO_AC!$C$34,'Capex_FO input'!$G$42:$G$1020,Capex_FO_AC!$D$35) -> 0 | AG35: =+SUMIFS('Capex_FO input'!S$42:S$1020,'Capex_FO input'!$E$42:$E$1020,Capex_FO_AC!$C$34,'Capex_FO input'!$G$42:$G$1020,Capex_FO_AC!$D$35) -> 0 | AH35: =+SUMIFS('Capex_FO input'!T$42:T$1020,'Capex_FO input'!$E$42:$E$1020,Capex_FO_AC!$C$34,'Capex_FO input'!$G$42:$G$1020,Capex_FO_AC!$D$35) -> 0 | AI35: =+SUMIFS('Capex_FO input'!U$42:U$1020,'Capex_FO input'!$E$42:$E$1020,Capex_FO_AC!$C$34,'Capex_FO input'!$G$42:$G$1020,Capex_FO_AC!$D$35) -> 0 | AJ35: =+SUMIFS('Capex_FO input'!V$42:V$1020,'Capex_FO input'!$E$42:$E$1020,Capex_FO_AC!$C$34,'Capex_FO input'!$G$42:$G$1020,Capex_FO_AC!$D$35) -> 0 | AK35: =+SUMIFS('Capex_FO input'!W$42:W$1020,'Capex_FO input'!$E$42:$E$1020,Capex_FO_AC!$C$34,'Capex_FO input'!$G$42:$G$1020,Capex_FO_AC!$D$35) -> 0 | AL35: =+SUMIFS('Capex_FO input'!X$42:X$1020,'Capex_FO input'!$E$42:$E$1020,Capex_FO_AC!$C$34,'Capex_FO input'!$G$42:$G$1020,Capex_FO_AC!$D$35) -> 0
D36: Pipelines/network | W36: ='[3]ESC Model Data'!G207 -> 21.08840451 | X36: ='[3]ESC Model Data'!H207 -> 37.26456606 | Y36: ='[3]ESC Model Data'!I207 -> 13.92024058 | Z36: ='[3]ESC Model Data'!J207 -> 2.468766708 | AA36: ='[3]ESC Model Data'!K207 -> 3.238844784 | AB36: ='[3]ESC Model Data'!L207 -> 41.64068733 | AC36: =+SUMIFS('Capex_FO input'!O$42:O$1020,'Capex_FO input'!$E$42:$E$1020,Capex_FO_AC!$C$34,'Capex_FO input'!$G$42:$G$1020,Capex_FO_AC!$D$36) -> 32.51464461 | AD36: =+SUMIFS('Capex_FO input'!P$42:P$1020,'Capex_FO input'!$E$42:$E$1020,Capex_FO_AC!$C$34,'Capex_FO input'!$G$42:$G$1020,Capex_FO_AC!$D$36) -> 7.543498 | AE36: =+SUMIFS('Capex_FO input'!Q$42:Q$1020,'Capex_FO input'!$E$42:$E$1020,Capex_FO_AC!$C$34,'Capex_FO input'!$G$42:$G$1020,Capex_FO_AC!$D$36) -> 0.75 | AF36: =+SUMIFS('Capex_FO input'!R$42:R$1020,'Capex_FO input'!$E$42:$E$1020,Capex_FO_AC!$C$34,'Capex_FO input'!$G$42:$G$1020,Capex_FO_AC!$D$36) -> 1.73 | AG36: =+SUMIFS('Capex_FO input'!S$42:S$1020,'Capex_FO input'!$E$42:$E$1020,Capex_FO_AC!$C$34,'Capex_FO input'!$G$42:$G$1020,Capex_FO_AC!$D$36) -> 0 | AH36: =+SUMIFS('Capex_FO input'!T$42:T$1020,'Capex_FO input'!$E$42:$E$1020,Capex_FO_AC!$C$34,'Capex_FO input'!$G$42:$G$1020,Capex_FO_AC!$D$36) -> 0 | AI36: =+SUMIFS('Capex_FO input'!U$42:U$1020,'Capex_FO input'!$E$42:$E$1020,Capex_FO_AC!$C$34,'Capex_FO input'!$G$42:$G$1020,Capex_FO_AC!$D$36) -> 0 | AJ36: =+SUMIFS('Capex_FO input'!V$42:V$1020,'Capex_FO input'!$E$42:$E$1020,Capex_FO_AC!$C$34,'Capex_FO input'!$G$42:$G$1020,Capex_FO_AC!$D$36) -> 0 | AK36: =+SUMIFS('Capex_FO input'!W$42:W$1020,'Capex_FO input'!$E$42:$E$1020,Capex_FO_AC!$C$34,'Capex_FO input'!$G$42:$G$1020,Capex_FO_AC!$D$36) -> 0 | AL36: =+SUMIFS('Capex_FO input'!X$42:X$1020,'Capex_FO input'!$E$42:$E$1020,Capex_FO_AC!$C$34,'Capex_FO input'!$G$42:$G$1020,Capex_FO_AC!$D$36) -> 0
D37: Channels | W37: ='[3]ESC Model Data'!G208 -> 8.495510043 | X37: ='[3]ESC Model Data'!H208 -> 7.644918117 | Y37: ='[3]ESC Model Data'!I208 -> 10.59772193 | Z37: ='[3]ESC Model Data'!J208 -> 8.055879592 | AA37: ='[3]ESC Model Data'!K208 -> 2.859473282 | AB37: ='[3]ESC Model Data'!L208 -> 1.915881448 | AC37: =+SUMIFS('Capex_FO input'!O$42:O$1020,'Capex_FO input'!$E$42:$E$1020,Capex_FO_AC!$C$34,'Capex_FO input'!$G$42:$G$1020,Capex_FO_AC!$D$37) -> 5.5017701 | AD37: =+SUMIFS('Capex_FO input'!P$42:P$1020,'Capex_FO input'!$E$42:$E$1020,Capex_FO_AC!$C$34,'Capex_FO input'!$G$42:$G$1020,Capex_FO_AC!$D$37) -> 5.703125506 | AE37: =+SUMIFS('Capex_FO input'!Q$42:Q$1020,'Capex_FO input'!$E$42:$E$1020,Capex_FO_AC!$C$34,'Capex_FO input'!$G$42:$G$1020,Capex_FO_AC!$D$37) -> 6.029231166 | AF37: =+SUMIFS('Capex_FO input'!R$42:R$1020,'Capex_FO input'!$E$42:$E$1020,Capex_FO_AC!$C$34,'Capex_FO input'!$G$42:$G$1020,Capex_FO_AC!$D$37) -> 7.11871493 | AG37: =+SUMIFS('Capex_FO input'!S$42:S$1020,'Capex_FO input'!$E$42:$E$1020,Capex_FO_AC!$C$34,'Capex_FO input'!$G$42:$G$1020,Capex_FO_AC!$D$37) -> 5.28975441 | AH37: =+SUMIFS('Capex_FO input'!T$42:T$1020,'Capex_FO input'!$E$42:$E$1020,Capex_FO_AC!$C$34,'Capex_FO input'!$G$42:$G$1020,Capex_FO_AC!$D$37) -> 3.96869625 | AI37: =+SUMIFS('Capex_FO input'!U$42:U$1020,'Capex_FO input'!$E$42:$E$1020,Capex_FO_AC!$C$34,'Capex_FO input'!$G$42:$G$1020,Capex_FO_AC!$D$37) -> 2.44589625 | AJ37: =+SUMIFS('Capex_FO input'!V$42:V$1020,'Capex_FO input'!$E$42:$E$1020,Capex_FO_AC!$C$34,'Capex_FO input'!$G$42:$G$1020,Capex_FO_AC!$D$37) -> 1.04034375 | AK37: =+SUMIFS('Capex_FO input'!W$42:W$1020,'Capex_FO input'!$E$42:$E$1020,Capex_FO_AC!$C$34,'Capex_FO input'!$G$42:$G$1020,Capex_FO_AC!$D$37) -> 1.083375 | AL37: =+SUMIFS('Capex_FO input'!X$42:X$1020,'Capex_FO input'!$E$42:$E$1020,Capex_FO_AC!$C$34,'Capex_FO input'!$G$42:$G$1020,Capex_FO_AC!$D$37) -> 0.8656875
D38: Corporate | W38: ='[3]ESC Model Data'!G209+'[3]ESC Model Data'!G210 -> 0.7120652665 | X38: ='[3]ESC Model Data'!H209+'[3]ESC Model Data'!H210 -> 1.907694381 | Y38: ='[3]ESC Model Data'!I209+'[3]ESC Model Data'!I210 -> 0.7850088838 | Z38: ='[3]ESC Model Data'!J209+'[3]ESC Model Data'!J210 -> 0.3596322822 | AA38: ='[3]ESC Model Data'!K209+'[3]ESC Model Data'!K210 -> 0.499173028 | AB38: ='[3]ESC Model Data'!L209+'[3]ESC Model Data'!L210 -> 2.053578155 | AC38: ='[3]ESC Model Data'!M209+'[3]ESC Model Data'!M210 -> 1.853266188 | AD38: ='[3]ESC Model Data'!N209+'[3]ESC Model Data'!N210 -> 2.376148423 | AE38: ='[3]ESC Model Data'!O209+'[3]ESC Model Data'!O210 -> 1.500948983 | AF38: ='[3]ESC Model Data'!P209+'[3]ESC Model Data'!P210 -> 1.580057663 | AG38: ='[3]ESC Model Data'!Q209+'[3]ESC Model Data'!Q210 -> 1.364649239 | AH38: =+SUMIFS('Capex_FO input'!T$42:T$1020,'Capex_FO input'!$E$42:$E$1020,Capex_FO_AC!$C$34,'Capex_FO input'!$G$42:$G$1020,Capex_FO_AC!$D$38) -> 1.472122087 | AI38: =+SUMIFS('Capex_FO input'!U$42:U$1020,'Capex_FO input'!$E$42:$E$1020,Capex_FO_AC!$C$34,'Capex_FO input'!$G$42:$G$1020,Capex_FO_AC!$D$38) -> 1.438849818 | AJ38: =+SUMIFS('Capex_FO input'!V$42:V$1020,'Capex_FO input'!$E$42:$E$1020,Capex_FO_AC!$C$34,'Capex_FO input'!$G$42:$G$1020,Capex_FO_AC!$D$38) -> 1.438849818 | AK38: =+SUMIFS('Capex_FO input'!W$42:W$1020,'Capex_FO input'!$E$42:$E$1020,Capex_FO_AC!$C$34,'Capex_FO input'!$G$42:$G$1020,Capex_FO_AC!$D$38) -> 0 | AL38: =+SUMIFS('Capex_FO input'!X$42:X$1020,'Capex_FO input'!$E$42:$E$1020,Capex_FO_AC!$C$34,'Capex_FO input'!$G$42:$G$1020,Capex_FO_AC!$D$38) -> 0
C39: =+CONCATENATE("Total ",C34) -> Total Irrigation | W39: =+SUM(W35:W38) -> 30.29597982 | X39: =+SUM(X35:X38) -> 46.81717856 | Y39: =+SUM(Y35:Y38) -> 25.30297139 | Z39: =+SUM(Z35:Z38) -> 10.88427858 | AA39: =+SUM(AA35:AA38) -> 6.597491094 | AB39: =+SUM(AB35:AB38) -> 45.61014694 | AC39: =+SUM(AC35:AC38) -> 39.8696809 | AD39: 15.62277193 | AE39: 8.280180149 | AF39: 10.42877259 | AG39: 6.654403649 | AH39: =+SUM(AH35:AH38) -> 5.440818337 | AI39: 3.884746068 | AJ39: 2.479193568 | AK39: 1.083375 | AL39: 0.8656875
C41: =E13 -> Drainage
D42: =+D35 -> Headworks | AC42: =+SUMIFS('Capex_FO input'!O$42:O$1020,'Capex_FO input'!$E$42:$E$1020,Capex_FO_AC!$C$41,'Capex_FO input'!$G$42:$G$1020,Capex_FO_AC!$D$42) -> 0 | AD42: =+SUMIFS('Capex_FO input'!P$42:P$1020,'Capex_FO input'!$E$42:$E$1020,Capex_FO_AC!$C$41,'Capex_FO input'!$G$42:$G$1020,Capex_FO_AC!$D$42) -> 0 | AE42: =+SUMIFS('Capex_FO input'!Q$42:Q$1020,'Capex_FO input'!$E$42:$E$1020,Capex_FO_AC!$C$41,'Capex_FO input'!$G$42:$G$1020,Capex_FO_AC!$D$42) -> 0 | AF42: =+SUMIFS('Capex_FO input'!R$42:R$1020,'Capex_FO input'!$E$42:$E$1020,Capex_FO_AC!$C$41,'Capex_FO input'!$G$42:$G$1020,Capex_FO_AC!$D$42) -> 0 | AG42: =+SUMIFS('Capex_FO input'!S$42:S$1020,'Capex_FO input'!$E$42:$E$1020,Capex_FO_AC!$C$41,'Capex_FO input'!$G$42:$G$1020,Capex_FO_AC!$D$42) -> 0 | AH42: =+SUMIFS('Capex_FO input'!T$42:T$1020,'Capex_FO input'!$E$42:$E$1020,Capex_FO_AC!$C$41,'Capex_FO input'!$G$42:$G$1020,Capex_FO_AC!$D$42) -> 0 | AI42: =+SUMIFS('Capex_FO input'!U$42:U$1020,'Capex_FO input'!$E$42:$E$1020,Capex_FO_AC!$C$41,'Capex_FO input'!$G$42:$G$1020,Capex_FO_AC!$D$42) -> 0 | AJ42: =+SUMIFS('Capex_FO input'!V$42:V$1020,'Capex_FO input'!$E$42:$E$1020,Capex_FO_AC!$C$41,'Capex_FO input'!$G$42:$G$1020,Capex_FO_AC!$D$42) -> 0 | AK42: =+SUMIFS('Capex_FO input'!W$42:W$1020,'Capex_FO input'!$E$42:$E$1020,Capex_FO_AC!$C$41,'Capex_FO input'!$G$42:$G$1020,Capex_FO_AC!$D$42) -> 0 | AL42: =+SUMIFS('Capex_FO input'!X$42:X$1020,'Capex_FO input'!$E$42:$E$1020,Capex_FO_AC!$C$41,'Capex_FO input'!$G$42:$G$1020,Capex_FO_AC!$D$42) -> 0
D43: =+D36 -> Pipelines/network | AC43: =+SUMIFS('Capex_FO input'!O$42:O$1020,'Capex_FO input'!$E$42:$E$1020,Capex_FO_AC!$C$41,'Capex_FO input'!$G$42:$G$1020,Capex_FO_AC!$D$43) -> 0 | AD43: =+SUMIFS('Capex_FO input'!P$42:P$1020,'Capex_FO input'!$E$42:$E$1020,Capex_FO_AC!$C$41,'Capex_FO input'!$G$42:$G$1020,Capex_FO_AC!$D$43) -> 0 | AE43: =+SUMIFS('Capex_FO input'!Q$42:Q$1020,'Capex_FO input'!$E$42:$E$1020,Capex_FO_AC!$C$41,'Capex_FO input'!$G$42:$G$1020,Capex_FO_AC!$D$43) -> 0 | AF43: =+SUMIFS('Capex_FO input'!R$42:R$1020,'Capex_FO input'!$E$42:$E$1020,Capex_FO_AC!$C$41,'Capex_FO input'!$G$42:$G$1020,Capex_FO_AC!$D$43) -> 0 | AG43: =+SUMIFS('Capex_FO input'!S$42:S$1020,'Capex_FO input'!$E$42:$E$1020,Capex_FO_AC!$C$41,'Capex_FO input'!$G$42:$G$1020,Capex_FO_AC!$D$43) -> 0 | AH43: =+SUMIFS('Capex_FO input'!T$42:T$1020,'Capex_FO input'!$E$42:$E$1020,Capex_FO_AC!$C$41,'Capex_FO input'!$G$42:$G$1020,Capex_FO_AC!$D$43) -> 0 | AI43: =+SUMIFS('Capex_FO input'!U$42:U$1020,'Capex_FO input'!$E$42:$E$1020,Capex_FO_AC!$C$41,'Capex_FO input'!$G$42:$G$1020,Capex_FO_AC!$D$43) -> 0 | AJ43: =+SUMIFS('Capex_FO input'!V$42:V$1020,'Capex_FO input'!$E$42:$E$1020,Capex_FO_AC!$C$41,'Capex_FO input'!$G$42:$G$1020,Capex_FO_AC!$D$43) -> 0 | AK43: =+SUMIFS('Capex_FO input'!W$42:W$1020,'Capex_FO input'!$E$42:$E$1020,Capex_FO_AC!$C$41,'Capex_FO input'!$G$42:$G$1020,Capex_FO_AC!$D$43) -> 0 | AL43: =+SUMIFS('Capex_FO input'!X$42:X$1020,'Capex_FO input'!$E$42:$E$1020,Capex_FO_AC!$C$41,'Capex_FO input'!$G$42:$G$1020,Capex_FO_AC!$D$43) -> 0
D44: Channels | AC44: =+SUMIFS('Capex_FO input'!O$42:O$1020,'Capex_FO input'!$E$42:$E$1020,Capex_FO_AC!$C$41,'Capex_FO input'!$G$42:$G$1020,Capex_FO_AC!$D$44) -> 0 | AD44: =+SUMIFS('Capex_FO input'!P$42:P$1020,'Capex_FO input'!$E$42:$E$1020,Capex_FO_AC!$C$41,'Capex_FO input'!$G$42:$G$1020,Capex_FO_AC!$D$44) -> 0 | AE44: =+SUMIFS('Capex_FO input'!Q$42:Q$1020,'Capex_FO input'!$E$42:$E$1020,Capex_FO_AC!$C$41,'Capex_FO input'!$G$42:$G$1020,Capex_FO_AC!$D$44) -> 0 | AF44: =+SUMIFS('Capex_FO input'!R$42:R$1020,'Capex_FO input'!$E$42:$E$1020,Capex_FO_AC!$C$41,'Capex_FO input'!$G$42:$G$1020,Capex_FO_AC!$D$44) -> 0 | AG44: =+SUMIFS('Capex_FO input'!S$42:S$1020,'Capex_FO input'!$E$42:$E$1020,Capex_FO_AC!$C$41,'Capex_FO input'!$G$42:$G$1020,Capex_FO_AC!$D$44) -> 0 | AH44: =+SUMIFS('Capex_FO input'!T$42:T$1020,'Capex_FO input'!$E$42:$E$1020,Capex_FO_AC!$C$41,'Capex_FO input'!$G$42:$G$1020,Capex_FO_AC!$D$44) -> 0 | AI44: =+SUMIFS('Capex_FO input'!U$42:U$1020,'Capex_FO input'!$E$42:$E$1020,Capex_FO_AC!$C$41,'Capex_FO input'!$G$42:$G$1020,Capex_FO_AC!$D$44) -> 0 | AJ44: =+SUMIFS('Capex_FO input'!V$42:V$1020,'Capex_FO input'!$E$42:$E$1020,Capex_FO_AC!$C$41,'Capex_FO input'!$G$42:$G$1020,Capex_FO_AC!$D$44) -> 0 | AK44: =+SUMIFS('Capex_FO input'!W$42:W$1020,'Capex_FO input'!$E$42:$E$1020,Capex_FO_AC!$C$41,'Capex_FO input'!$G$42:$G$1020,Capex_FO_AC!$D$44) -> 0 | AL44: =+SUMIFS('Capex_FO input'!X$42:X$1020,'Capex_FO input'!$E$42:$E$1020,Capex_FO_AC!$C$41,'Capex_FO input'!$G$42:$G$1020,Capex_FO_AC!$D$44) -> 0
D45: Corporate | AC45: =+SUMIFS('Capex_FO input'!O$42:O$1020,'Capex_FO input'!$E$42:$E$1020,Capex_FO_AC!$C$41,'Capex_FO input'!$G$42:$G$1020,Capex_FO_AC!$D$45) -> 0 | AD45: =+SUMIFS('Capex_FO input'!P$42:P$1020,'Capex_FO input'!$E$42:$E$1020,Capex_FO_AC!$C$41,'Capex_FO input'!$G$42:$G$1020,Capex_FO_AC!$D$45) -> 0 | AE45: =+SUMIFS('Capex_FO input'!Q$42:Q$1020,'Capex_FO input'!$E$42:$E$1020,Capex_FO_AC!$C$41,'Capex_FO input'!$G$42:$G$1020,Capex_FO_AC!$D$45) -> 0 | AF45: =+SUMIFS('Capex_FO input'!R$42:R$1020,'Capex_FO input'!$E$42:$E$1020,Capex_FO_AC!$C$41,'Capex_FO input'!$G$42:$G$1020,Capex_FO_AC!$D$45) -> 0 | AG45: =+SUMIFS('Capex_FO input'!S$42:S$1020,'Capex_FO input'!$E$42:$E$1020,Capex_FO_AC!$C$41,'Capex_FO input'!$G$42:$G$1020,Capex_FO_AC!$D$45) -> 0 | AH45: =+SUMIFS('Capex_FO input'!T$42:T$1020,'Capex_FO input'!$E$42:$E$1020,Capex_FO_AC!$C$41,'Capex_FO input'!$G$42:$G$1020,Capex_FO_AC!$D$45) -> 0 | AI45: =+SUMIFS('Capex_FO input'!U$42:U$1020,'Capex_FO input'!$E$42:$E$1020,Capex_FO_AC!$C$41,'Capex_FO input'!$G$42:$G$1020,Capex_FO_AC!$D$45) -> 0 | AJ45: =+SUMIFS('Capex_FO input'!V$42:V$1020,'Capex_FO input'!$E$42:$E$1020,Capex_FO_AC!$C$41,'Capex_FO input'!$G$42:$G$1020,Capex_FO_AC!$D$45) -> 0 | AK45: =+SUMIFS('Capex_FO input'!W$42:W$1020,'Capex_FO input'!$E$42:$E$1020,Capex_FO_AC!$C$41,'Capex_FO input'!$G$42:$G$1020,Capex_FO_AC!$D$45) -> 0 | AL45: =+SUMIFS('Capex_FO input'!X$42:X$1020,'Capex_FO input'!$E$42:$E$1020,Capex_FO_AC!$C$41,'Capex_FO input'!$G$42:$G$1020,Capex_FO_AC!$D$45) -> 0
C46: =+CONCATENATE("Total ",C41) -> Total Drainage | W46: =+SUM(W42:W45) -> 0 | X46: =+SUM(X42:X45) -> 0 | Y46: =+SUM(Y42:Y45) -> 0 | Z46: =+SUM(Z42:Z45) -> 0 | AA46: =+SUM(AA42:AA45) -> 0 | AB46: =+SUM(AB42:AB45) -> 0 | AC46: =+SUM(AC42:AC45) -> 0 | AD46: =+SUM(AD42:AD45) -> 0 | AE46: 0 | AF46: 0 | AG46: 0 | AH46: 0 | AI46: 0 | AJ46: 0 | AK46: 0 | AL46: 0
C48: =E14 -> Domestic and stock
D49: =+D42 -> Headworks | AC49: =+SUMIFS('Capex_FO input'!O$42:O$1020,'Capex_FO input'!$E$42:$E$1020,Capex_FO_AC!$C$48,'Capex_FO input'!$G$42:$G$1020,Capex_FO_AC!$D$49) -> 0 | AD49: =+SUMIFS('Capex_FO input'!P$42:P$1020,'Capex_FO input'!$E$42:$E$1020,Capex_FO_AC!$C$48,'Capex_FO input'!$G$42:$G$1020,Capex_FO_AC!$D$49) -> 0 | AE49: =+SUMIFS('Capex_FO input'!Q$42:Q$1020,'Capex_FO input'!$E$42:$E$1020,Capex_FO_AC!$C$48,'Capex_FO input'!$G$42:$G$1020,Capex_FO_AC!$D$49) -> 0 | AF49: =+SUMIFS('Capex_FO input'!R$42:R$1020,'Capex_FO input'!$E$42:$E$1020,Capex_FO_AC!$C$48,'Capex_FO input'!$G$42:$G$1020,Capex_FO_AC!$D$49) -> 0 | AG49: =+SUMIFS('Capex_FO input'!S$42:S$1020,'Capex_FO input'!$E$42:$E$1020,Capex_FO_AC!$C$48,'Capex_FO input'!$G$42:$G$1020,Capex_FO_AC!$D$49) -> 0 | AH49: =+SUMIFS('Capex_FO input'!T$42:T$1020,'Capex_FO input'!$E$42:$E$1020,Capex_FO_AC!$C$48,'Capex_FO input'!$G$42:$G$1020,Capex_FO_AC!$D$49) -> 0 | AI49: =+SUMIFS('Capex_FO input'!U$42:U$1020,'Capex_FO input'!$E$42:$E$1020,Capex_FO_AC!$C$48,'Capex_FO input'!$G$42:$G$1020,Capex_FO_AC!$D$49) -> 0 | AJ49: =+SUMIFS('Capex_FO input'!V$42:V$1020,'Capex_FO input'!$E$42:$E$1020,Capex_FO_AC!$C$48,'Capex_FO input'!$G$42:$G$1020,Capex_FO_AC!$D$49) -> 0 | AK49: =+SUMIFS('Capex_FO input'!W$42:W$1020,'Capex_FO input'!$E$42:$E$1020,Capex_FO_AC!$C$48,'Capex_FO input'!$G$42:$G$1020,Capex_FO_AC!$D$49) -> 0 | AL49: =+SUMIFS('Capex_FO input'!X$42:X$1020,'Capex_FO input'!$E$42:$E$1020,Capex_FO_AC!$C$48,'Capex_FO input'!$G$42:$G$1020,Capex_FO_AC!$D$49) -> 0
D50: =+D43 -> Pipelines/network | AC50: =+SUMIFS('Capex_FO input'!O$42:O$1020,'Capex_FO input'!$E$42:$E$1020,Capex_FO_AC!$C$48,'Capex_FO input'!$G$42:$G$1020,Capex_FO_AC!$D$50) -> 0 | AD50: =+SUMIFS('Capex_FO input'!P$42:P$1020,'Capex_FO input'!$E$42:$E$1020,Capex_FO_AC!$C$48,'Capex_FO input'!$G$42:$G$1020,Capex_FO_AC!$D$50) -> 0 | AE50: =+SUMIFS('Capex_FO input'!Q$42:Q$1020,'Capex_FO input'!$E$42:$E$1020,Capex_FO_AC!$C$48,'Capex_FO input'!$G$42:$G$1020,Capex_FO_AC!$D$50) -> 0 | AF50: =+SUMIFS('Capex_FO input'!R$42:R$1020,'Capex_FO input'!$E$42:$E$1020,Capex_FO_AC!$C$48,'Capex_FO input'!$G$42:$G$1020,Capex_FO_AC!$D$50) -> 0 | AG50: =+SUMIFS('Capex_FO input'!S$42:S$1020,'Capex_FO input'!$E$42:$E$1020,Capex_FO_AC!$C$48,'Capex_FO input'!$G$42:$G$1020,Capex_FO_AC!$D$50) -> 0 | AH50: =+SUMIFS('Capex_FO input'!T$42:T$1020,'Capex_FO input'!$E$42:$E$1020,Capex_FO_AC!$C$48,'Capex_FO input'!$G$42:$G$1020,Capex_FO_AC!$D$50) -> 0 | AI50: =+SUMIFS('Capex_FO input'!U$42:U$1020,'Capex_FO input'!$E$42:$E$1020,Capex_FO_AC!$C$48,'Capex_FO input'!$G$42:$G$1020,Capex_FO_AC!$D$50) -> 0 | AJ50: =+SUMIFS('Capex_FO input'!V$42:V$1020,'Capex_FO input'!$E$42:$E$1020,Capex_FO_AC!$C$48,'Capex_FO input'!$G$42:$G$1020,Capex_FO_AC!$D$50) -> 0 | AK50: =+SUMIFS('Capex_FO input'!W$42:W$1020,'Capex_FO input'!$E$42:$E$1020,Capex_FO_AC!$C$48,'Capex_FO input'!$G$42:$G$1020,Capex_FO_AC!$D$50) -> 0 | AL50: =+SUMIFS('Capex_FO input'!X$42:X$1020,'Capex_FO input'!$E$42:$E$1020,Capex_FO_AC!$C$48,'Capex_FO input'!$G$42:$G$1020,Capex_FO_AC!$D$50) -> 0
D51: Channels | AC51: =+SUMIFS('Capex_FO input'!O$42:O$1020,'Capex_FO input'!$E$42:$E$1020,Capex_FO_AC!$C$48,'Capex_FO input'!$G$42:$G$1020,Capex_FO_AC!$D$51) -> 0 | AD51: =+SUMIFS('Capex_FO input'!P$42:P$1020,'Capex_FO input'!$E$42:$E$1020,Capex_FO_AC!$C$48,'Capex_FO input'!$G$42:$G$1020,Capex_FO_AC!$D$51) -> 0 | AE51: =+SUMIFS('Capex_FO input'!Q$42:Q$1020,'Capex_FO input'!$E$42:$E$1020,Capex_FO_AC!$C$48,'Capex_FO input'!$G$42:$G$1020,Capex_FO_AC!$D$51) -> 0 | AF51: =+SUMIFS('Capex_FO input'!R$42:R$1020,'Capex_FO input'!$E$42:$E$1020,Capex_FO_AC!$C$48,'Capex_FO input'!$G$42:$G$1020,Capex_FO_AC!$D$51) -> 0 | AG51: =+SUMIFS('Capex_FO input'!S$42:S$1020,'Capex_FO input'!$E$42:$E$1020,Capex_FO_AC!$C$48,'Capex_FO input'!$G$42:$G$1020,Capex_FO_AC!$D$51) -> 0 | AH51: =+SUMIFS('Capex_FO input'!T$42:T$1020,'Capex_FO input'!$E$42:$E$1020,Capex_FO_AC!$C$48,'Capex_FO input'!$G$42:$G$1020,Capex_FO_AC!$D$51) -> 0 | AI51: =+SUMIFS('Capex_FO input'!U$42:U$1020,'Capex_FO input'!$E$42:$E$1020,Capex_FO_AC!$C$48,'Capex_FO input'!$G$42:$G$1020,Capex_FO_AC!$D$51) -> 0 | AJ51: =+SUMIFS('Capex_FO input'!V$42:V$1020,'Capex_FO input'!$E$42:$E$1020,Capex_FO_AC!$C$48,'Capex_FO input'!$G$42:$G$1020,Capex_FO_AC!$D$51) -> 0 | AK51: =+SUMIFS('Capex_FO input'!W$42:W$1020,'Capex_FO input'!$E$42:$E$1020,Capex_FO_AC!$C$48,'Capex_FO input'!$G$42:$G$1020,Capex_FO_AC!$D$51) -> 0 | AL51: =+SUMIFS('Capex_FO input'!X$42:X$1020,'Capex_FO input'!$E$42:$E$1020,Capex_FO_AC!$C$48,'Capex_FO input'!$G$42:$G$1020,Capex_FO_AC!$D$51) -> 0
D52: Corporate | AC52: =+SUMIFS('Capex_FO input'!O$42:O$1020,'Capex_FO input'!$E$42:$E$1020,Capex_FO_AC!$C$48,'Capex_FO input'!$G$42:$G$1020,Capex_FO_AC!$D$52) -> 0 | AD52: =+SUMIFS('Capex_FO input'!P$42:P$1020,'Capex_FO input'!$E$42:$E$1020,Capex_FO_AC!$C$48,'Capex_FO input'!$G$42:$G$1020,Capex_FO_AC!$D$52) -> 0 | AE52: =+SUMIFS('Capex_FO input'!Q$42:Q$1020,'Capex_FO input'!$E$42:$E$1020,Capex_FO_AC!$C$48,'Capex_FO input'!$G$42:$G$1020,Capex_FO_AC!$D$52) -> 0 | AF52: =+SUMIFS('Capex_FO input'!R$42:R$1020,'Capex_FO input'!$E$42:$E$1020,Capex_FO_AC!$C$48,'Capex_FO input'!$G$42:$G$1020,Capex_FO_AC!$D$52) -> 0 | AG52: =+SUMIFS('Capex_FO input'!S$42:S$1020,'Capex_FO input'!$E$42:$E$1020,Capex_FO_AC!$C$48,'Capex_FO input'!$G$42:$G$1020,Capex_FO_AC!$D$52) -> 0 | AH52: =+SUMIFS('Capex_FO input'!T$42:T$1020,'Capex_FO input'!$E$42:$E$1020,Capex_FO_AC!$C$48,'Capex_FO input'!$G$42:$G$1020,Capex_FO_AC!$D$52) -> 0 | AI52: =+SUMIFS('Capex_FO input'!U$42:U$1020,'Capex_FO input'!$E$42:$E$1020,Capex_FO_AC!$C$48,'Capex_FO input'!$G$42:$G$1020,Capex_FO_AC!$D$52) -> 0 | AJ52: =+SUMIFS('Capex_FO input'!V$42:V$1020,'Capex_FO input'!$E$42:$E$1020,Capex_FO_AC!$C$48,'Capex_FO input'!$G$42:$G$1020,Capex_FO_AC!$D$52) -> 0 | AK52: =+SUMIFS('Capex_FO input'!W$42:W$1020,'Capex_FO input'!$E$42:$E$1020,Capex_FO_AC!$C$48,'Capex_FO input'!$G$42:$G$1020,Capex_FO_AC!$D$52) -> 0 | AL52: =+SUMIFS('Capex_FO input'!X$42:X$1020,'Capex_FO input'!$E$42:$E$1020,Capex_FO_AC!$C$48,'Capex_FO input'!$G$42:$G$1020,Capex_FO_AC!$D$52) -> 0
C53: =+CONCATENATE("Total ",C48) -> Total Domestic and stock | W53: =+SUM(W49:W52) -> 0 | X53: =+SUM(X49:X52) -> 0 | Y53: =+SUM(Y49:Y52) -> 0 | Z53: =+SUM(Z49:Z52) -> 0 | AA53: =+SUM(AA49:AA52) -> 0 | AB53: =+SUM(AB49:AB52) -> 0 | AC53: =+SUM(AC49:AC52) -> 0 | AD53: =+SUM(AD49:AD52) -> 0 | AE53: 0 | AF53: 0 | AG53: 0 | AH53: 0 | AI53: 0 | AJ53: 0 | AK53: 0 | AL53: 0
C55: =E15 -> Surface water diversions
D56: =+D49 -> Headworks | AC56: =+SUMIFS('Capex_FO input'!O$42:O$1020,'Capex_FO input'!$E$42:$E$1020,Capex_FO_AC!$C$55,'Capex_FO input'!$G$42:$G$1020,Capex_FO_AC!$D$56) -> 0 | AD56: =+SUMIFS('Capex_FO input'!P$42:P$1020,'Capex_FO input'!$E$42:$E$1020,Capex_FO_AC!$C$55,'Capex_FO input'!$G$42:$G$1020,Capex_FO_AC!$D$56) -> 0 | AE56: =+SUMIFS('Capex_FO input'!Q$42:Q$1020,'Capex_FO input'!$E$42:$E$1020,Capex_FO_AC!$C$55,'Capex_FO input'!$G$42:$G$1020,Capex_FO_AC!$D$56) -> 0 | AF56: =+SUMIFS('Capex_FO input'!R$42:R$1020,'Capex_FO input'!$E$42:$E$1020,Capex_FO_AC!$C$55,'Capex_FO input'!$G$42:$G$1020,Capex_FO_AC!$D$56) -> 0 | AG56: =+SUMIFS('Capex_FO input'!S$42:S$1020,'Capex_FO input'!$E$42:$E$1020,Capex_FO_AC!$C$55,'Capex_FO input'!$G$42:$G$1020,Capex_FO_AC!$D$56) -> 0 | AH56: =+SUMIFS('Capex_FO input'!T$42:T$1020,'Capex_FO input'!$E$42:$E$1020,Capex_FO_AC!$C$55,'Capex_FO input'!$G$42:$G$1020,Capex_FO_AC!$D$56) -> 0 | AI56: =+SUMIFS('Capex_FO input'!U$42:U$1020,'Capex_FO input'!$E$42:$E$1020,Capex_FO_AC!$C$55,'Capex_FO input'!$G$42:$G$1020,Capex_FO_AC!$D$56) -> 0 | AJ56: =+SUMIFS('Capex_FO input'!V$42:V$1020,'Capex_FO input'!$E$42:$E$1020,Capex_FO_AC!$C$55,'Capex_FO input'!$G$42:$G$1020,Capex_FO_AC!$D$56) -> 0 | AK56: =+SUMIFS('Capex_FO input'!W$42:W$1020,'Capex_FO input'!$E$42:$E$1020,Capex_FO_AC!$C$55,'Capex_FO input'!$G$42:$G$1020,Capex_FO_AC!$D$56) -> 0 | AL56: =+SUMIFS('Capex_FO input'!X$42:X$1020,'Capex_FO input'!$E$42:$E$1020,Capex_FO_AC!$C$55,'Capex_FO input'!$G$42:$G$1020,Capex_FO_AC!$D$56) -> 0
D57: =+D50 -> Pipelines/network | AC57: =+SUMIFS('Capex_FO input'!O$42:O$1020,'Capex_FO input'!$E$42:$E$1020,Capex_FO_AC!$C$55,'Capex_FO input'!$G$42:$G$1020,Capex_FO_AC!$D$57) -> 0 | AD57: =+SUMIFS('Capex_FO input'!P$42:P$1020,'Capex_FO input'!$E$42:$E$1020,Capex_FO_AC!$C$55,'Capex_FO input'!$G$42:$G$1020,Capex_FO_AC!$D$57) -> 0 | AE57: =+SUMIFS('Capex_FO input'!Q$42:Q$1020,'Capex_FO input'!$E$42:$E$1020,Capex_FO_AC!$C$55,'Capex_FO input'!$G$42:$G$1020,Capex_FO_AC!$D$57) -> 0 | AF57: =+SUMIFS('Capex_FO input'!R$42:R$1020,'Capex_FO input'!$E$42:$E$1020,Capex_FO_AC!$C$55,'Capex_FO input'!$G$42:$G$1020,Capex_FO_AC!$D$57) -> 0 | AG57: =+SUMIFS('Capex_FO input'!S$42:S$1020,'Capex_FO input'!$E$42:$E$1020,Capex_FO_AC!$C$55,'Capex_FO input'!$G$42:$G$1020,Capex_FO_AC!$D$57) -> 0 | AH57: =+SUMIFS('Capex_FO input'!T$42:T$1020,'Capex_FO input'!$E$42:$E$1020,Capex_FO_AC!$C$55,'Capex_FO input'!$G$42:$G$1020,Capex_FO_AC!$D$57) -> 0 | AI57: =+SUMIFS('Capex_FO input'!U$42:U$1020,'Capex_FO input'!$E$42:$E$1020,Capex_FO_AC!$C$55,'Capex_FO input'!$G$42:$G$1020,Capex_FO_AC!$D$57) -> 0 | AJ57: =+SUMIFS('Capex_FO input'!V$42:V$1020,'Capex_FO input'!$E$42:$E$1020,Capex_FO_AC!$C$55,'Capex_FO input'!$G$42:$G$1020,Capex_FO_AC!$D$57) -> 0 | AK57: =+SUMIFS('Capex_FO input'!W$42:W$1020,'Capex_FO input'!$E$42:$E$1020,Capex_FO_AC!$C$55,'Capex_FO input'!$G$42:$G$1020,Capex_FO_AC!$D$57) -> 0 | AL57: =+SUMIFS('Capex_FO input'!X$42:X$1020,'Capex_FO input'!$E$42:$E$1020,Capex_FO_AC!$C$55,'Capex_FO input'!$G$42:$G$1020,Capex_FO_AC!$D$57) -> 0
D58: Channels | W58: ='[3]ESC Model Data'!G214 -> 0.03154197986 | X58: ='[3]ESC Model Data'!H214 -> 0.04427533489 | Y58: ='[3]ESC Model Data'!I214 -> 0.03240836337 | Z58: ='[3]ESC Model Data'!J214 -> 0.08232729957 | AA58: ='[3]ESC Model Data'!K214 -> 0.05149363868 | AB58: ='[3]ESC Model Data'!L214 -> 0.2688657989 | AC58: =+SUMIFS('Capex_FO input'!O$42:O$1020,'Capex_FO input'!$E$42:$E$1020,Capex_FO_AC!$C$55,'Capex_FO input'!$G$42:$G$1020,Capex_FO_AC!$D$58) -> 0 | AD58: =+SUMIFS('Capex_FO input'!P$42:P$1020,'Capex_FO input'!$E$42:$E$1020,Capex_FO_AC!$C$55,'Capex_FO input'!$G$42:$G$1020,Capex_FO_AC!$D$58) -> 0 | AE58: =+SUMIFS('Capex_FO input'!Q$42:Q$1020,'Capex_FO input'!$E$42:$E$1020,Capex_FO_AC!$C$55,'Capex_FO input'!$G$42:$G$1020,Capex_FO_AC!$D$58) -> 0 | AF58: =+SUMIFS('Capex_FO input'!R$42:R$1020,'Capex_FO input'!$E$42:$E$1020,Capex_FO_AC!$C$55,'Capex_FO input'!$G$42:$G$1020,Capex_FO_AC!$D$58) -> 0 | AG58: =+SUMIFS('Capex_FO input'!S$42:S$1020,'Capex_FO input'!$E$42:$E$1020,Capex_FO_AC!$C$55,'Capex_FO input'!$G$42:$G$1020,Capex_FO_AC!$D$58) -> 0 | AH58: =+SUMIFS('Capex_FO input'!T$42:T$1020,'Capex_FO input'!$E$42:$E$1020,Capex_FO_AC!$C$55,'Capex_FO input'!$G$42:$G$1020,Capex_FO_AC!$D$58) -> 0 | AI58: =+SUMIFS('Capex_FO input'!U$42:U$1020,'Capex_FO input'!$E$42:$E$1020,Capex_FO_AC!$C$55,'Capex_FO input'!$G$42:$G$1020,Capex_FO_AC!$D$58) -> 0 | AJ58: =+SUMIFS('Capex_FO input'!V$42:V$1020,'Capex_FO input'!$E$42:$E$1020,Capex_FO_AC!$C$55,'Capex_FO input'!$G$42:$G$1020,Capex_FO_AC!$D$58) -> 0 | AK58: =+SUMIFS('Capex_FO input'!W$42:W$1020,'Capex_FO input'!$E$42:$E$1020,Capex_FO_AC!$C$55,'Capex_FO input'!$G$42:$G$1020,Capex_FO_AC!$D$58) -> 0 | AL58: =+SUMIFS('Capex_FO input'!X$42:X$1020,'Capex_FO input'!$E$42:$E$1020,Capex_FO_AC!$C$55,'Capex_FO input'!$G$42:$G$1020,Capex_FO_AC!$D$58) -> 0
D59: =+D52 -> Corporate | W59: ='[3]ESC Model Data'!G215+'[3]ESC Model Data'!G216 -> 0.401917397 | X59: ='[3]ESC Model Data'!H215+'[3]ESC Model Data'!H216 -> 0.6901539336 | Y59: ='[3]ESC Model Data'!I215+'[3]ESC Model Data'!I216 -> 0.4377619897 | Z59: ='[3]ESC Model Data'!J215+'[3]ESC Model Data'!J216 -> 0.2614037853 | AA59: ='[3]ESC Model Data'!K215+'[3]ESC Model Data'!K216 -> 0.3583536896 | AB59: ='[3]ESC Model Data'!L215+'[3]ESC Model Data'!L216 -> 0.5084753714 | AC59: ='[3]ESC Model Data'!M215+'[3]ESC Model Data'!M216 -> 0.5185642563 | AD59: ='[3]ESC Model Data'!N215+'[3]ESC Model Data'!N216 -> 0.6339524835 | AE59: ='[3]ESC Model Data'!O215+'[3]ESC Model Data'!O216 -> 0.4408158552 | AF59: ='[3]ESC Model Data'!P215+'[3]ESC Model Data'!P216 -> 0.4582733432 | AG59: ='[3]ESC Model Data'!Q215+'[3]ESC Model Data'!Q216 -> 0.410737599 | AH59: =+SUMIFS('Capex_FO input'!T$42:T$1020,'Capex_FO input'!$E$42:$E$1020,Capex_FO_AC!$C$55,'Capex_FO input'!$G$42:$G$1020,Capex_FO_AC!$D$59) -> 0.3248638919 | AI59: =+SUMIFS('Capex_FO input'!U$42:U$1020,'Capex_FO input'!$E$42:$E$1020,Capex_FO_AC!$C$55,'Capex_FO input'!$G$42:$G$1020,Capex_FO_AC!$D$59) -> 0.3175214583 | AJ59: =+SUMIFS('Capex_FO input'!V$42:V$1020,'Capex_FO input'!$E$42:$E$1020,Capex_FO_AC!$C$55,'Capex_FO input'!$G$42:$G$1020,Capex_FO_AC!$D$59) -> 0.3175214583 | AK59: =+SUMIFS('Capex_FO input'!W$42:W$1020,'Capex_FO input'!$E$42:$E$1020,Capex_FO_AC!$C$55,'Capex_FO input'!$G$42:$G$1020,Capex_FO_AC!$D$59) -> 0 | AL59: =+SUMIFS('Capex_FO input'!X$42:X$1020,'Capex_FO input'!$E$42:$E$1020,Capex_FO_AC!$C$55,'Capex_FO input'!$G$42:$G$1020,Capex_FO_AC!$D$59) -> 0
C60: =+CONCATENATE("Total ",C55) -> Total Surface water diversions | W60: =+SUM(W56:W59) -> 0.4334593768 | X60: =+SUM(X56:X59) -> 0.7344292685 | Y60: =+SUM(Y56:Y59) -> 0.4701703531 | Z60: =+SUM(Z56:Z59) -> 0.3437310849 | AA60: =+SUM(AA56:AA59) -> 0.4098473282 | AB60: =+SUM(AB56:AB59) -> 0.7773411703 | AC60: =+SUM(AC56:AC59) -> 0.5185642563 | AD60: =+SUM(AD56:AD59) -> 0.6339524835 | AE60: 0.4408158552 | AF60: 0.4582733432 | AG60: 0.410737599 | AH60: 0.3248638919 | AI60: 0.3175214583 | AJ60: 0.3175214583 | AK60: 0 | AL60: 0
C62: =E16 -> Groundwater diversions
D63: =+D56 -> Headworks | AC63: =+SUMIFS('Capex_FO input'!O$42:O$1020,'Capex_FO input'!$E$42:$E$1020,Capex_FO_AC!$C$62,'Capex_FO input'!$G$42:$G$1020,Capex_FO_AC!$D$63) -> 0 | AD63: =+SUMIFS('Capex_FO input'!P$42:P$1020,'Capex_FO input'!$E$42:$E$1020,Capex_FO_AC!$C$62,'Capex_FO input'!$G$42:$G$1020,Capex_FO_AC!$D$63) -> 0 | AE63: =+SUMIFS('Capex_FO input'!Q$42:Q$1020,'Capex_FO input'!$E$42:$E$1020,Capex_FO_AC!$C$62,'Capex_FO input'!$G$42:$G$1020,Capex_FO_AC!$D$63) -> 0 | AF63: =+SUMIFS('Capex_FO input'!R$42:R$1020,'Capex_FO input'!$E$42:$E$1020,Capex_FO_AC!$C$62,'Capex_FO input'!$G$42:$G$1020,Capex_FO_AC!$D$63) -> 0 | AG63: =+SUMIFS('Capex_FO input'!S$42:S$1020,'Capex_FO input'!$E$42:$E$1020,Capex_FO_AC!$C$62,'Capex_FO input'!$G$42:$G$1020,Capex_FO_AC!$D$63) -> 0 | AH63: =+SUMIFS('Capex_FO input'!T$42:T$1020,'Capex_FO input'!$E$42:$E$1020,Capex_FO_AC!$C$62,'Capex_FO input'!$G$42:$G$1020,Capex_FO_AC!$D$63) -> 0 | AI63: =+SUMIFS('Capex_FO input'!U$42:U$1020,'Capex_FO input'!$E$42:$E$1020,Capex_FO_AC!$C$62,'Capex_FO input'!$G$42:$G$1020,Capex_FO_AC!$D$63) -> 0 | AJ63: =+SUMIFS('Capex_FO input'!V$42:V$1020,'Capex_FO input'!$E$42:$E$1020,Capex_FO_AC!$C$62,'Capex_FO input'!$G$42:$G$1020,Capex_FO_AC!$D$63) -> 0 | AK63: =+SUMIFS('Capex_FO input'!W$42:W$1020,'Capex_FO input'!$E$42:$E$1020,Capex_FO_AC!$C$62,'Capex_FO input'!$G$42:$G$1020,Capex_FO_AC!$D$63) -> 0 | AL63: =+SUMIFS('Capex_FO input'!X$42:X$1020,'Capex_FO input'!$E$42:$E$1020,Capex_FO_AC!$C$62,'Capex_FO input'!$G$42:$G$1020,Capex_FO_AC!$D$63) -> 0
D64: =+D57 -> Pipelines/network | AC64: =+SUMIFS('Capex_FO input'!O$42:O$1020,'Capex_FO input'!$E$42:$E$1020,Capex_FO_AC!$C$62,'Capex_FO input'!$G$42:$G$1020,Capex_FO_AC!$D$64) -> 2.1 | AD64: =+SUMIFS('Capex_FO input'!P$42:P$1020,'Capex_FO input'!$E$42:$E$1020,Capex_FO_AC!$C$62,'Capex_FO input'!$G$42:$G$1020,Capex_FO_AC!$D$64) -> 2.1 | AE64: =+SUMIFS('Capex_FO input'!Q$42:Q$1020,'Capex_FO input'!$E$42:$E$1020,Capex_FO_AC!$C$62,'Capex_FO input'!$G$42:$G$1020,Capex_FO_AC!$D$64) -> 2 | AF64: =+SUMIFS('Capex_FO input'!R$42:R$1020,'Capex_FO input'!$E$42:$E$1020,Capex_FO_AC!$C$62,'Capex_FO input'!$G$42:$G$1020,Capex_FO_AC!$D$64) -> 0 | AG64: =+SUMIFS('Capex_FO input'!S$42:S$1020,'Capex_FO input'!$E$42:$E$1020,Capex_FO_AC!$C$62,'Capex_FO input'!$G$42:$G$1020,Capex_FO_AC!$D$64) -> 0 | AH64: =+SUMIFS('Capex_FO input'!T$42:T$1020,'Capex_FO input'!$E$42:$E$1020,Capex_FO_AC!$C$62,'Capex_FO input'!$G$42:$G$1020,Capex_FO_AC!$D$64) -> 0 | AI64: =+SUMIFS('Capex_FO input'!U$42:U$1020,'Capex_FO input'!$E$42:$E$1020,Capex_FO_AC!$C$62,'Capex_FO input'!$G$42:$G$1020,Capex_FO_AC!$D$64) -> 0 | AJ64: =+SUMIFS('Capex_FO input'!V$42:V$1020,'Capex_FO input'!$E$42:$E$1020,Capex_FO_AC!$C$62,'Capex_FO input'!$G$42:$G$1020,Capex_FO_AC!$D$64) -> 0 | AK64: =+SUMIFS('Capex_FO input'!W$42:W$1020,'Capex_FO input'!$E$42:$E$1020,Capex_FO_AC!$C$62,'Capex_FO input'!$G$42:$G$1020,Capex_FO_AC!$D$64) -> 0 | AL64: =+SUMIFS('Capex_FO input'!X$42:X$1020,'Capex_FO input'!$E$42:$E$1020,Capex_FO_AC!$C$62,'Capex_FO input'!$G$42:$G$1020,Capex_FO_AC!$D$64) -> 0
D65: Channels | W65: ='[3]ESC Model Data'!G220 -> 0.1267867803 | X65: ='[3]ESC Model Data'!H220 -> 0.06452488628 | Y65: ='[3]ESC Model Data'!I220 -> 0.05423135577 | Z65: ='[3]ESC Model Data'!J220 -> 0.142421743 | AA65: ='[3]ESC Model Data'!K220 -> 0.1198015267 | AB65: ='[3]ESC Model Data'!L220 -> 0.7968363526 | AC65: =+SUMIFS('Capex_FO input'!O$42:O$1020,'Capex_FO input'!$E$42:$E$1020,Capex_FO_AC!$C$62,'Capex_FO input'!$G$42:$G$1020,Capex_FO_AC!$D$65) -> 0.235 | AD65: =+SUMIFS('Capex_FO input'!P$42:P$1020,'Capex_FO input'!$E$42:$E$1020,Capex_FO_AC!$C$62,'Capex_FO input'!$G$42:$G$1020,Capex_FO_AC!$D$65) -> 0.195 | AE65: =+SUMIFS('Capex_FO input'!Q$42:Q$1020,'Capex_FO input'!$E$42:$E$1020,Capex_FO_AC!$C$62,'Capex_FO input'!$G$42:$G$1020,Capex_FO_AC!$D$65) -> 0 | AF65: =+SUMIFS('Capex_FO input'!R$42:R$1020,'Capex_FO input'!$E$42:$E$1020,Capex_FO_AC!$C$62,'Capex_FO input'!$G$42:$G$1020,Capex_FO_AC!$D$65) -> 0.1841376 | AG65: =+SUMIFS('Capex_FO input'!S$42:S$1020,'Capex_FO input'!$E$42:$E$1020,Capex_FO_AC!$C$62,'Capex_FO input'!$G$42:$G$1020,Capex_FO_AC!$D$65) -> 0.1841376 | AH65: =+SUMIFS('Capex_FO input'!T$42:T$1020,'Capex_FO input'!$E$42:$E$1020,Capex_FO_AC!$C$62,'Capex_FO input'!$G$42:$G$1020,Capex_FO_AC!$D$65) -> 2.43 | AI65: =+SUMIFS('Capex_FO input'!U$42:U$1020,'Capex_FO input'!$E$42:$E$1020,Capex_FO_AC!$C$62,'Capex_FO input'!$G$42:$G$1020,Capex_FO_AC!$D$65) -> 4.96125 | AJ65: =+SUMIFS('Capex_FO input'!V$42:V$1020,'Capex_FO input'!$E$42:$E$1020,Capex_FO_AC!$C$62,'Capex_FO input'!$G$42:$G$1020,Capex_FO_AC!$D$65) -> 4.96125 | AK65: =+SUMIFS('Capex_FO input'!W$42:W$1020,'Capex_FO input'!$E$42:$E$1020,Capex_FO_AC!$C$62,'Capex_FO input'!$G$42:$G$1020,Capex_FO_AC!$D$65) -> 4.35375 | AL65: =+SUMIFS('Capex_FO input'!X$42:X$1020,'Capex_FO input'!$E$42:$E$1020,Capex_FO_AC!$C$62,'Capex_FO input'!$G$42:$G$1020,Capex_FO_AC!$D$65) -> 2.025
D66: Corporate | W66: ='[3]ESC Model Data'!G221+'[3]ESC Model Data'!G222 -> 0.4019390312 | X66: ='[3]ESC Model Data'!H221+'[3]ESC Model Data'!H222 -> 0.6638413957 | Y66: ='[3]ESC Model Data'!I221+'[3]ESC Model Data'!I222 -> 0.4280943878 | Z66: ='[3]ESC Model Data'!J221+'[3]ESC Model Data'!J222 -> 0.2510701708 | AA66: ='[3]ESC Model Data'!K221+'[3]ESC Model Data'!K222 -> 0.344692112 | AB66: ='[3]ESC Model Data'!L221+'[3]ESC Model Data'!L222 -> 0.4321339166 | AC66: ='[3]ESC Model Data'!M221+'[3]ESC Model Data'!M222 -> 0.4694917088 | AD66: ='[3]ESC Model Data'!N221+'[3]ESC Model Data'!N222 -> 0.5636207534 | AE66: ='[3]ESC Model Data'!O221+'[3]ESC Model Data'!O222 -> 0.4060677107 | AF66: ='[3]ESC Model Data'!P221+'[3]ESC Model Data'!P222 -> 0.4203088227 | AG66: ='[3]ESC Model Data'!Q221+'[3]ESC Model Data'!Q222 -> 0.3815310869 | AH66: =+SUMIFS('Capex_FO input'!T$42:T$1020,'Capex_FO input'!$E$42:$E$1020,Capex_FO_AC!$C$62,'Capex_FO input'!$G$42:$G$1020,Capex_FO_AC!$D$66) -> 0.2650108119 | AI66: =+SUMIFS('Capex_FO input'!U$42:U$1020,'Capex_FO input'!$E$42:$E$1020,Capex_FO_AC!$C$62,'Capex_FO input'!$G$42:$G$1020,Capex_FO_AC!$D$66) -> 0.2590211517 | AJ66: =+SUMIFS('Capex_FO input'!V$42:V$1020,'Capex_FO input'!$E$42:$E$1020,Capex_FO_AC!$C$62,'Capex_FO input'!$G$42:$G$1020,Capex_FO_AC!$D$66) -> 0.2590211517 | AK66: =+SUMIFS('Capex_FO input'!W$42:W$1020,'Capex_FO input'!$E$42:$E$1020,Capex_FO_AC!$C$62,'Capex_FO input'!$G$42:$G$1020,Capex_FO_AC!$D$66) -> 0 | AL66: =+SUMIFS('Capex_FO input'!X$42:X$1020,'Capex_FO input'!$E$42:$E$1020,Capex_FO_AC!$C$62,'Capex_FO input'!$G$42:$G$1020,Capex_FO_AC!$D$66) -> 0
C67: =+CONCATENATE("Total ",C62) -> Total Groundwater diversions | W67: =+SUM(W63:W66) -> 0.5287258115 | X67: =+SUM(X63:X66) -> 0.728366282 | Y67: =+SUM(Y63:Y66) -> 0.4823257435 | Z67: =+SUM(Z63:Z66) -> 0.3934919138 | AA67: =+SUM(AA63:AA66) -> 0.4644936387 | AB67: =+SUM(AB63:AB66) -> 1.228970269 | AC67: =+SUM(AC63:AC66) -> 2.804491709 | AD67: =+SUM(AD63:AD66) -> 2.858620753 | AE67: 2.406067711 | AF67: 0.6044464227 | AG67: 0.5656686869 | AH67: 2.695010812 | AI67: 5.220271152 | AJ67: 5.220271152 | AK67: 4.35375 | AL67: 2.025
C69: =E17 -> Bulk water services
D70: =+D63 -> Headworks | W70: ='[3]ESC Model Data'!G224 -> 3.802745606 | X70: ='[3]ESC Model Data'!H224 -> 3.957542464 | Y70: ='[3]ESC Model Data'!I224 -> 2.796817797 | Z70: ='[3]ESC Model Data'!J224 -> 3.688345649 | AA70: ='[3]ESC Model Data'!K224 -> 2.409692112 | AB70: ='[3]ESC Model Data'!L224 -> 5.614642849 | AC70: =+SUMIFS('Capex_FO input'!O$42:O$1020,'Capex_FO input'!$E$42:$E$1020,Capex_FO_AC!$C$69,'Capex_FO input'!$G$42:$G$1020,Capex_FO_AC!$D$70) -> 4.353368 | AD70: =+SUMIFS('Capex_FO input'!P$42:P$1020,'Capex_FO input'!$E$42:$E$1020,Capex_FO_AC!$C$69,'Capex_FO input'!$G$42:$G$1020,Capex_FO_AC!$D$70) -> 5.1536 | AE70: =+SUMIFS('Capex_FO input'!Q$42:Q$1020,'Capex_FO input'!$E$42:$E$1020,Capex_FO_AC!$C$69,'Capex_FO input'!$G$42:$G$1020,Capex_FO_AC!$D$70) -> 4.95825 | AF70: =+SUMIFS('Capex_FO input'!R$42:R$1020,'Capex_FO input'!$E$42:$E$1020,Capex_FO_AC!$C$69,'Capex_FO input'!$G$42:$G$1020,Capex_FO_AC!$D$70) -> 7.383075992 | AG70: =+SUMIFS('Capex_FO input'!S$42:S$1020,'Capex_FO input'!$E$42:$E$1020,Capex_FO_AC!$C$69,'Capex_FO input'!$G$42:$G$1020,Capex_FO_AC!$D$70) -> 6.7560784 | AH70: =+SUMIFS('Capex_FO input'!T$42:T$1020,'Capex_FO input'!$E$42:$E$1020,Capex_FO_AC!$C$69,'Capex_FO input'!$G$42:$G$1020,Capex_FO_AC!$D$70) -> 5.518986975 | AI70: =+SUMIFS('Capex_FO input'!U$42:U$1020,'Capex_FO input'!$E$42:$E$1020,Capex_FO_AC!$C$69,'Capex_FO input'!$G$42:$G$1020,Capex_FO_AC!$D$70) -> 4.644 | AJ70: =+SUMIFS('Capex_FO input'!V$42:V$1020,'Capex_FO input'!$E$42:$E$1020,Capex_FO_AC!$C$69,'Capex_FO input'!$G$42:$G$1020,Capex_FO_AC!$D$70) -> 6.68925 | AK70: =+SUMIFS('Capex_FO input'!W$42:W$1020,'Capex_FO input'!$E$42:$E$1020,Capex_FO_AC!$C$69,'Capex_FO input'!$G$42:$G$1020,Capex_FO_AC!$D$70) -> 13.230675 | AL70: =+SUMIFS('Capex_FO input'!X$42:X$1020,'Capex_FO input'!$E$42:$E$1020,Capex_FO_AC!$C$69,'Capex_FO input'!$G$42:$G$1020,Capex_FO_AC!$D$70) -> 10.164825
D71: =+D64 -> Pipelines/network | AC71: =+SUMIFS('Capex_FO input'!O$42:O$1020,'Capex_FO input'!$E$42:$E$1020,Capex_FO_AC!$C$69,'Capex_FO input'!$G$42:$G$1020,Capex_FO_AC!$D$71) -> 0 | AD71: =+SUMIFS('Capex_FO input'!P$42:P$1020,'Capex_FO input'!$E$42:$E$1020,Capex_FO_AC!$C$69,'Capex_FO input'!$G$42:$G$1020,Capex_FO_AC!$D$71) -> 0 | AE71: =+SUMIFS('Capex_FO input'!Q$42:Q$1020,'Capex_FO input'!$E$42:$E$1020,Capex_FO_AC!$C$69,'Capex_FO input'!$G$42:$G$1020,Capex_FO_AC!$D$71) -> 0 | AF71: =+SUMIFS('Capex_FO input'!R$42:R$1020,'Capex_FO input'!$E$42:$E$1020,Capex_FO_AC!$C$69,'Capex_FO input'!$G$42:$G$1020,Capex_FO_AC!$D$71) -> 0 | AG71: =+SUMIFS('Capex_FO input'!S$42:S$1020,'Capex_FO input'!$E$42:$E$1020,Capex_FO_AC!$C$69,'Capex_FO input'!$G$42:$G$1020,Capex_FO_AC!$D$71) -> 0 | AH71: =+SUMIFS('Capex_FO input'!T$42:T$1020,'Capex_FO input'!$E$42:$E$1020,Capex_FO_AC!$C$69,'Capex_FO input'!$G$42:$G$1020,Capex_FO_AC!$D$71) -> 0 | AI71: =+SUMIFS('Capex_FO input'!U$42:U$1020,'Capex_FO input'!$E$42:$E$1020,Capex_FO_AC!$C$69,'Capex_FO input'!$G$42:$G$1020,Capex_FO_AC!$D$71) -> 0 | AJ71: =+SUMIFS('Capex_FO input'!V$42:V$1020,'Capex_FO input'!$E$42:$E$1020,Capex_FO_AC!$C$69,'Capex_FO input'!$G$42:$G$1020,Capex_FO_AC!$D$71) -> 0 | AK71: =+SUMIFS('Capex_FO input'!W$42:W$1020,'Capex_FO input'!$E$42:$E$1020,Capex_FO_AC!$C$69,'Capex_FO input'!$G$42:$G$1020,Capex_FO_AC!$D$71) -> 0 | AL71: =+SUMIFS('Capex_FO input'!X$42:X$1020,'Capex_FO input'!$E$42:$E$1020,Capex_FO_AC!$C$69,'Capex_FO input'!$G$42:$G$1020,Capex_FO_AC!$D$71) -> 0
D72: Channels | AC72: =+SUMIFS('Capex_FO input'!O$42:O$1020,'Capex_FO input'!$E$42:$E$1020,Capex_FO_AC!$C$69,'Capex_FO input'!$G$42:$G$1020,Capex_FO_AC!$D$72) -> 0 | AD72: =+SUMIFS('Capex_FO input'!P$42:P$1020,'Capex_FO input'!$E$42:$E$1020,Capex_FO_AC!$C$69,'Capex_FO input'!$G$42:$G$1020,Capex_FO_AC!$D$72) -> 0 | AE72: =+SUMIFS('Capex_FO input'!Q$42:Q$1020,'Capex_FO input'!$E$42:$E$1020,Capex_FO_AC!$C$69,'Capex_FO input'!$G$42:$G$1020,Capex_FO_AC!$D$72) -> 0 | AF72: =+SUMIFS('Capex_FO input'!R$42:R$1020,'Capex_FO input'!$E$42:$E$1020,Capex_FO_AC!$C$69,'Capex_FO input'!$G$42:$G$1020,Capex_FO_AC!$D$72) -> 0 | AG72: =+SUMIFS('Capex_FO input'!S$42:S$1020,'Capex_FO input'!$E$42:$E$1020,Capex_FO_AC!$C$69,'Capex_FO input'!$G$42:$G$1020,Capex_FO_AC!$D$72) -> 0 | AH72: =+SUMIFS('Capex_FO input'!T$42:T$1020,'Capex_FO input'!$E$42:$E$1020,Capex_FO_AC!$C$69,'Capex_FO input'!$G$42:$G$1020,Capex_FO_AC!$D$72) -> 0 | AI72: =+SUMIFS('Capex_FO input'!U$42:U$1020,'Capex_FO input'!$E$42:$E$1020,Capex_FO_AC!$C$69,'Capex_FO input'!$G$42:$G$1020,Capex_FO_AC!$D$72) -> 0 | AJ72: =+SUMIFS('Capex_FO input'!V$42:V$1020,'Capex_FO input'!$E$42:$E$1020,Capex_FO_AC!$C$69,'Capex_FO input'!$G$42:$G$1020,Capex_FO_AC!$D$72) -> 0 | AK72: =+SUMIFS('Capex_FO input'!W$42:W$1020,'Capex_FO input'!$E$42:$E$1020,Capex_FO_AC!$C$69,'Capex_FO input'!$G$42:$G$1020,Capex_FO_AC!$D$72) -> 0 | AL72: =+SUMIFS('Capex_FO input'!X$42:X$1020,'Capex_FO input'!$E$42:$E$1020,Capex_FO_AC!$C$69,'Capex_FO input'!$G$42:$G$1020,Capex_FO_AC!$D$72) -> 0
D73: Corporate | W73: ='[3]ESC Model Data'!G227+'[3]ESC Model Data'!G228 -> 0.3908819471 | X73: ='[3]ESC Model Data'!H227+'[3]ESC Model Data'!H228 -> 1.073519191 | Y73: ='[3]ESC Model Data'!I227+'[3]ESC Model Data'!I228 -> 0.4528602693 | Z73: ='[3]ESC Model Data'!J227+'[3]ESC Model Data'!J228 -> 0.2258494068 | AA73: ='[3]ESC Model Data'!K227+'[3]ESC Model Data'!K228 -> 0.3772697201 | AB73: ='[3]ESC Model Data'!L227+'[3]ESC Model Data'!L228 -> 0.4988425082 | AC73: ='[3]ESC Model Data'!M227+'[3]ESC Model Data'!M228 -> 0.6212218954 | AD73: ='[3]ESC Model Data'!N227+'[3]ESC Model Data'!N228 -> 0.7605964284 | AE73: ='[3]ESC Model Data'!O227+'[3]ESC Model Data'!O228 -> 0.5273115603 | AF73: ='[3]ESC Model Data'!P227+'[3]ESC Model Data'!P228 -> 0.5483980203 | AG73: ='[3]ESC Model Data'!Q227+'[3]ESC Model Data'!Q228 -> 0.4909807923 | AH73: =+SUMIFS('Capex_FO input'!T$42:T$1020,'Capex_FO input'!$E$42:$E$1020,Capex_FO_AC!$C$69,'Capex_FO input'!$G$42:$G$1020,Capex_FO_AC!$D$73) -> 0.3923949116 | AI73: =+SUMIFS('Capex_FO input'!U$42:U$1020,'Capex_FO input'!$E$42:$E$1020,Capex_FO_AC!$C$69,'Capex_FO input'!$G$42:$G$1020,Capex_FO_AC!$D$73) -> 0.383526171 | AJ73: =+SUMIFS('Capex_FO input'!V$42:V$1020,'Capex_FO input'!$E$42:$E$1020,Capex_FO_AC!$C$69,'Capex_FO input'!$G$42:$G$1020,Capex_FO_AC!$D$73) -> 0.383526171 | AK73: =+SUMIFS('Capex_FO input'!W$42:W$1020,'Capex_FO input'!$E$42:$E$1020,Capex_FO_AC!$C$69,'Capex_FO input'!$G$42:$G$1020,Capex_FO_AC!$D$73) -> 0 | AL73: =+SUMIFS('Capex_FO input'!X$42:X$1020,'Capex_FO input'!$E$42:$E$1020,Capex_FO_AC!$C$69,'Capex_FO input'!$G$42:$G$1020,Capex_FO_AC!$D$73) -> 0
C74: =+CONCATENATE("Total ",C69) -> Total Bulk water services | W74: =+SUM(W70:W73) -> 4.193627553 | X74: =+SUM(X70:X73) -> 5.031061655 | Y74: =+SUM(Y70:Y73) -> 3.249678066 | Z74: 3.914195056 | AA74: 2.786961832 | AB74: 6.113485358 | AC74: =+SUM(AC70:AC73) -> 4.974589895 | AD74: =+SUM(AD70:AD73) -> 5.914196428 | AE74: 5.48556156 | AF74: 7.931474012 | AG74: 7.247059192 | AH74: 5.911381887 | AI74: 5.027526171 | AJ74: 7.072776171 | AK74: 13.230675 | AL74: 10.164825
C76: =E18 -> Licence applications
D77: =+D70 -> Headworks | AC77: =+SUMIFS('Capex_FO input'!O$42:O$1020,'Capex_FO input'!$E$42:$E$1020,Capex_FO_AC!$C$76,'Capex_FO input'!$G$42:$G$1020,Capex_FO_AC!$D$77) -> 0 | AD77: =+SUMIFS('Capex_FO input'!P$42:P$1020,'Capex_FO input'!$E$42:$E$1020,Capex_FO_AC!$C$76,'Capex_FO input'!$G$42:$G$1020,Capex_FO_AC!$D$77) -> 0 | AE77: =+SUMIFS('Capex_FO input'!Q$42:Q$1020,'Capex_FO input'!$E$42:$E$1020,Capex_FO_AC!$C$76,'Capex_FO input'!$G$42:$G$1020,Capex_FO_AC!$D$77) -> 0 | AF77: =+SUMIFS('Capex_FO input'!R$42:R$1020,'Capex_FO input'!$E$42:$E$1020,Capex_FO_AC!$C$76,'Capex_FO input'!$G$42:$G$1020,Capex_FO_AC!$D$77) -> 0 | AG77: =+SUMIFS('Capex_FO input'!S$42:S$1020,'Capex_FO input'!$E$42:$E$1020,Capex_FO_AC!$C$76,'Capex_FO input'!$G$42:$G$1020,Capex_FO_AC!$D$77) -> 0 | AH77: =+SUMIFS('Capex_FO input'!T$42:T$1020,'Capex_FO input'!$E$42:$E$1020,Capex_FO_AC!$C$76,'Capex_FO input'!$G$42:$G$1020,Capex_FO_AC!$D$77) -> 0 | AI77: =+SUMIFS('Capex_FO input'!U$42:U$1020,'Capex_FO input'!$E$42:$E$1020,Capex_FO_AC!$C$76,'Capex_FO input'!$G$42:$G$1020,Capex_FO_AC!$D$77) -> 0 | AJ77: =+SUMIFS('Capex_FO input'!V$42:V$1020,'Capex_FO input'!$E$42:$E$1020,Capex_FO_AC!$C$76,'Capex_FO input'!$G$42:$G$1020,Capex_FO_AC!$D$77) -> 0 | AK77: =+SUMIFS('Capex_FO input'!W$42:W$1020,'Capex_FO input'!$E$42:$E$1020,Capex_FO_AC!$C$76,'Capex_FO input'!$G$42:$G$1020,Capex_FO_AC!$D$77) -> 0 | AL77: =+SUMIFS('Capex_FO input'!X$42:X$1020,'Capex_FO input'!$E$42:$E$1020,Capex_FO_AC!$C$76,'Capex_FO input'!$G$42:$G$1020,Capex_FO_AC!$D$77) -> 0
D78: Pipelines/network | AC78: =+SUMIFS('Capex_FO input'!O$42:O$1020,'Capex_FO input'!$E$42:$E$1020,Capex_FO_AC!$C$76,'Capex_FO input'!$G$42:$G$1020,Capex_FO_AC!$D$78) -> 0 | AD78: =+SUMIFS('Capex_FO input'!P$42:P$1020,'Capex_FO input'!$E$42:$E$1020,Capex_FO_AC!$C$76,'Capex_FO input'!$G$42:$G$1020,Capex_FO_AC!$D$78) -> 0 | AE78: =+SUMIFS('Capex_FO input'!Q$42:Q$1020,'Capex_FO input'!$E$42:$E$1020,Capex_FO_AC!$C$76,'Capex_FO input'!$G$42:$G$1020,Capex_FO_AC!$D$78) -> 0 | AF78: =+SUMIFS('Capex_FO input'!R$42:R$1020,'Capex_FO input'!$E$42:$E$1020,Capex_FO_AC!$C$76,'Capex_FO input'!$G$42:$G$1020,Capex_FO_AC!$D$78) -> 0 | AG78: =+SUMIFS('Capex_FO input'!S$42:S$1020,'Capex_FO input'!$E$42:$E$1020,Capex_FO_AC!$C$76,'Capex_FO input'!$G$42:$G$1020,Capex_FO_AC!$D$78) -> 0 | AH78: =+SUMIFS('Capex_FO input'!T$42:T$1020,'Capex_FO input'!$E$42:$E$1020,Capex_FO_AC!$C$76,'Capex_FO input'!$G$42:$G$1020,Capex_FO_AC!$D$78) -> 0 | AI78: =+SUMIFS('Capex_FO input'!U$42:U$1020,'Capex_FO input'!$E$42:$E$1020,Capex_FO_AC!$C$76,'Capex_FO input'!$G$42:$G$1020,Capex_FO_AC!$D$78) -> 0 | AJ78: =+SUMIFS('Capex_FO input'!V$42:V$1020,'Capex_FO input'!$E$42:$E$1020,Capex_FO_AC!$C$76,'Capex_FO input'!$G$42:$G$1020,Capex_FO_AC!$D$78) -> 0 | AK78: =+SUMIFS('Capex_FO input'!W$42:W$1020,'Capex_FO input'!$E$42:$E$1020,Capex_FO_AC!$C$76,'Capex_FO input'!$G$42:$G$1020,Capex_FO_AC!$D$78) -> 0 | AL78: =+SUMIFS('Capex_FO input'!X$42:X$1020,'Capex_FO input'!$E$42:$E$1020,Capex_FO_AC!$C$76,'Capex_FO input'!$G$42:$G$1020,Capex_FO_AC!$D$78) -> 0
D79: Channels | AC79: =+SUMIFS('Capex_FO input'!O$42:O$1020,'Capex_FO input'!$E$42:$E$1020,Capex_FO_AC!$C$76,'Capex_FO input'!$G$42:$G$1020,Capex_FO_AC!$D$79) -> 0 | AD79: =+SUMIFS('Capex_FO input'!P$42:P$1020,'Capex_FO input'!$E$42:$E$1020,Capex_FO_AC!$C$76,'Capex_FO input'!$G$42:$G$1020,Capex_FO_AC!$D$79) -> 0 | AE79: =+SUMIFS('Capex_FO input'!Q$42:Q$1020,'Capex_FO input'!$E$42:$E$1020,Capex_FO_AC!$C$76,'Capex_FO input'!$G$42:$G$1020,Capex_FO_AC!$D$79) -> 0 | AF79: =+SUMIFS('Capex_FO input'!R$42:R$1020,'Capex_FO input'!$E$42:$E$1020,Capex_FO_AC!$C$76,'Capex_FO input'!$G$42:$G$1020,Capex_FO_AC!$D$79) -> 0 | AG79: =+SUMIFS('Capex_FO input'!S$42:S$1020,'Capex_FO input'!$E$42:$E$1020,Capex_FO_AC!$C$76,'Capex_FO input'!$G$42:$G$1020,Capex_FO_AC!$D$79) -> 0 | AH79: =+SUMIFS('Capex_FO input'!T$42:T$1020,'Capex_FO input'!$E$42:$E$1020,Capex_FO_AC!$C$76,'Capex_FO input'!$G$42:$G$1020,Capex_FO_AC!$D$79) -> 0 | AI79: =+SUMIFS('Capex_FO input'!U$42:U$1020,'Capex_FO input'!$E$42:$E$1020,Capex_FO_AC!$C$76,'Capex_FO input'!$G$42:$G$1020,Capex_FO_AC!$D$79) -> 0 | AJ79: =+SUMIFS('Capex_FO input'!V$42:V$1020,'Capex_FO input'!$E$42:$E$1020,Capex_FO_AC!$C$76,'Capex_FO input'!$G$42:$G$1020,Capex_FO_AC!$D$79) -> 0 | AK79: =+SUMIFS('Capex_FO input'!W$42:W$1020,'Capex_FO input'!$E$42:$E$1020,Capex_FO_AC!$C$76,'Capex_FO input'!$G$42:$G$1020,Capex_FO_AC!$D$79) -> 0 | AL79: =+SUMIFS('Capex_FO input'!X$42:X$1020,'Capex_FO input'!$E$42:$E$1020,Capex_FO_AC!$C$76,'Capex_FO input'!$G$42:$G$1020,Capex_FO_AC!$D$79) -> 0
D80: Corporate | W80: ='[3]ESC Model Data'!G234+'[3]ESC Model Data'!G235 -> 0.2213272572 | X80: ='[3]ESC Model Data'!H234+'[3]ESC Model Data'!H235 -> 0.4815328185 | Y80: ='[3]ESC Model Data'!I234+'[3]ESC Model Data'!I235 -> 0.2482167763 | Z80: ='[3]ESC Model Data'!J234+'[3]ESC Model Data'!J235 -> 0.1348086401 | AA80: ='[3]ESC Model Data'!K234+'[3]ESC Model Data'!K235 -> 0.2112290076 | AB80: ='[3]ESC Model Data'!L234+'[3]ESC Model Data'!L235 -> 0.08994328789 | AC80: ='[3]ESC Model Data'!M234+'[3]ESC Model Data'!M235 -> 0.2039079742 | AD80: ='[3]ESC Model Data'!N234+'[3]ESC Model Data'!N235 -> 0.2376129266 | AE80: ='[3]ESC Model Data'!O234+'[3]ESC Model Data'!O235 -> 0.1811976317 | AF80: ='[3]ESC Model Data'!P234+'[3]ESC Model Data'!P235 -> 0.1862969717 | AG80: ='[3]ESC Model Data'!Q234+'[3]ESC Model Data'!Q235 -> 0.1724117597 | AH80: =+SUMIFS('Capex_FO input'!T$42:T$1020,'Capex_FO input'!$E$42:$E$1020,Capex_FO_AC!$C$76,'Capex_FO input'!$G$42:$G$1020,Capex_FO_AC!$D$80) -> 0.09489288713 | AI80: =+SUMIFS('Capex_FO input'!U$42:U$1020,'Capex_FO input'!$E$42:$E$1020,Capex_FO_AC!$C$76,'Capex_FO input'!$G$42:$G$1020,Capex_FO_AC!$D$80) -> 0.092748159 | AJ80: =+SUMIFS('Capex_FO input'!V$42:V$1020,'Capex_FO input'!$E$42:$E$1020,Capex_FO_AC!$C$76,'Capex_FO input'!$G$42:$G$1020,Capex_FO_AC!$D$80) -> 0.092748159 | AK80: =+SUMIFS('Capex_FO input'!W$42:W$1020,'Capex_FO input'!$E$42:$E$1020,Capex_FO_AC!$C$76,'Capex_FO input'!$G$42:$G$1020,Capex_FO_AC!$D$80) -> 0 | AL80: =+SUMIFS('Capex_FO input'!X$42:X$1020,'Capex_FO input'!$E$42:$E$1020,Capex_FO_AC!$C$76,'Capex_FO input'!$G$42:$G$1020,Capex_FO_AC!$D$80) -> 0
C81: =+CONCATENATE("Total ",C76) -> Total Licence applications | W81: =+SUM(W77:W80) -> 0.2213272572 | X81: =+SUM(X77:X80) -> 0.4815328185 | Y81: =+SUM(Y77:Y80) -> 0.2482167763 | Z81: =+SUM(Z77:Z80) -> 0.1348086401 | AA81: =+SUM(AA77:AA80) -> 0.2112290076 | AB81: =+SUM(AB77:AB80) -> 0.08994328789 | AC81: =+SUM(AC77:AC80) -> 0.2039079742 | AD81: =+SUM(AD77:AD80) -> 0.2376129266 | AE81: 0.1811976317 | AF81: 0.1862969717 | AG81: 0.1724117597 | AH81: 0.09489288713 | AI81: 0.092748159 | AJ81: 0.092748159 | AK81: 0 | AL81: 0
D85: Above figures include contributions from:
E87: Government contributions
F88: Irrigation | W88: ='[3]ESC Model Data'!G267 -> 18.07370226 | X88: ='[3]ESC Model Data'!H267 -> 28.89922303 | Y88: ='[3]ESC Model Data'!I267 -> 4.291955283 | Z88: ='[3]ESC Model Data'!J267 -> 21.94956493 | AA88: ='[3]ESC Model Data'!K267 -> 5.074582003 | AB88: ='[3]ESC Model Data'!L267 -> 12.14628482 | AC88: =+SUMIF('Capex_FO input'!$E$42:$E$1020,Capex_FO_AC!$F88,'Capex_FO input'!Z$42:Z$1020) -> 13.81519477 | AD88: =+SUMIF('Capex_FO input'!$E$42:$E$1020,Capex_FO_AC!$F88,'Capex_FO input'!AA$42:AA$1020) -> 4.370488766 | AE88: =+SUMIF('Capex_FO input'!$E$42:$E$1020,Capex_FO_AC!$F88,'Capex_FO input'!AB$42:AB$1020) -> 0.4462960365 | AF88: =+SUMIF('Capex_FO input'!$E$42:$E$1020,Capex_FO_AC!$F88,'Capex_FO input'!AC$42:AC$1020) -> 0 | AG88: =+SUMIF('Capex_FO input'!$E$42:$E$1020,Capex_FO_AC!$F88,'Capex_FO input'!AD$42:AD$1020) -> 0 | AH88: =+SUMIF('Capex_FO input'!$E$42:$E$1020,Capex_FO_AC!$F88,'Capex_FO input'!AE$42:AE$1020) -> 0 | AI88: =+SUMIF('Capex_FO input'!$E$42:$E$1020,Capex_FO_AC!$F88,'Capex_FO input'!AF$42:AF$1020) -> 0 | AJ88: =+SUMIF('Capex_FO input'!$E$42:$E$1020,Capex_FO_AC!$F88,'Capex_FO input'!AG$42:AG$1020) -> 0 | AK88: =+SUMIF('Capex_FO input'!$E$42:$E$1020,Capex_FO_AC!$F88,'Capex_FO input'!AH$42:AH$1020) -> 0 | AL88: =+SUMIF('Capex_FO input'!$E$42:$E$1020,Capex_FO_AC!$F88,'Capex_FO input'!AI$42:AI$1020) -> 0
F89: Drainage | AC89: =+SUMIF('Capex_FO input'!$E$42:$E$1020,Capex_FO_AC!$F89,'Capex_FO input'!Z$42:Z$1020) -> 0 | AD89: =+SUMIF('Capex_FO input'!$E$42:$E$1020,Capex_FO_AC!$F89,'Capex_FO input'!AA$42:AA$1020) -> 0 | AE89: =+SUMIF('Capex_FO input'!$E$42:$E$1020,Capex_FO_AC!$F89,'Capex_FO input'!AB$42:AB$1020) -> 0 | AF89: =+SUMIF('Capex_FO input'!$E$42:$E$1020,Capex_FO_AC!$F89,'Capex_FO input'!AC$42:AC$1020) -> 0 | AG89: =+SUMIF('Capex_FO input'!$E$42:$E$1020,Capex_FO_AC!$F89,'Capex_FO input'!AD$42:AD$1020) -> 0 | AH89: =+SUMIF('Capex_FO input'!$E$42:$E$1020,Capex_FO_AC!$F89,'Capex_FO input'!AE$42:AE$1020) -> 0 | AI89: =+SUMIF('Capex_FO input'!$E$42:$E$1020,Capex_FO_AC!$F89,'Capex_FO input'!AF$42:AF$1020) -> 0 | AJ89: =+SUMIF('Capex_FO input'!$E$42:$E$1020,Capex_FO_AC!$F89,'Capex_FO input'!AG$42:AG$1020) -> 0 | AK89: =+SUMIF('Capex_FO input'!$E$42:$E$1020,Capex_FO_AC!$F89,'Capex_FO input'!AH$42:AH$1020) -> 0 | AL89: =+SUMIF('Capex_FO input'!$E$42:$E$1020,Capex_FO_AC!$F89,'Capex_FO input'!AI$42:AI$1020) -> 0
F90: Domestic and stock | AC90: =+SUMIF('Capex_FO input'!$E$42:$E$1020,Capex_FO_AC!$F90,'Capex_FO input'!Z$42:Z$1020) -> 0 | AD90: =+SUMIF('Capex_FO input'!$E$42:$E$1020,Capex_FO_AC!$F90,'Capex_FO input'!AA$42:AA$1020) -> 0 | AE90: =+SUMIF('Capex_FO input'!$E$42:$E$1020,Capex_FO_AC!$F90,'Capex_FO input'!AB$42:AB$1020) -> 0 | AF90: =+SUMIF('Capex_FO input'!$E$42:$E$1020,Capex_FO_AC!$F90,'Capex_FO input'!AC$42:AC$1020) -> 0 | AG90: =+SUMIF('Capex_FO input'!$E$42:$E$1020,Capex_FO_AC!$F90,'Capex_FO input'!AD$42:AD$1020) -> 0 | AH90: =+SUMIF('Capex_FO input'!$E$42:$E$1020,Capex_FO_AC!$F90,'Capex_FO input'!AE$42:AE$1020) -> 0 | AI90: =+SUMIF('Capex_FO input'!$E$42:$E$1020,Capex_FO_AC!$F90,'Capex_FO input'!AF$42:AF$1020) -> 0 | AJ90: =+SUMIF('Capex_FO input'!$E$42:$E$1020,Capex_FO_AC!$F90,'Capex_FO input'!AG$42:AG$1020) -> 0 | AK90: =+SUMIF('Capex_FO input'!$E$42:$E$1020,Capex_FO_AC!$F90,'Capex_FO input'!AH$42:AH$1020) -> 0 | AL90: =+SUMIF('Capex_FO input'!$E$42:$E$1020,Capex_FO_AC!$F90,'Capex_FO input'!AI$42:AI$1020) -> 0
F91: Surface water diversions | AC91: =+SUMIF('Capex_FO input'!$E$42:$E$1020,Capex_FO_AC!$F91,'Capex_FO input'!Z$42:Z$1020) -> 0 | AD91: =+SUMIF('Capex_FO input'!$E$42:$E$1020,Capex_FO_AC!$F91,'Capex_FO input'!AA$42:AA$1020) -> 0 | AE91: =+SUMIF('Capex_FO input'!$E$42:$E$1020,Capex_FO_AC!$F91,'Capex_FO input'!AB$42:AB$1020) -> 0 | AF91: =+SUMIF('Capex_FO input'!$E$42:$E$1020,Capex_FO_AC!$F91,'Capex_FO input'!AC$42:AC$1020) -> 0 | AG91: =+SUMIF('Capex_FO input'!$E$42:$E$1020,Capex_FO_AC!$F91,'Capex_FO input'!AD$42:AD$1020) -> 0 | AH91: =+SUMIF('Capex_FO input'!$E$42:$E$1020,Capex_FO_AC!$F91,'Capex_FO input'!AE$42:AE$1020) -> 0 | AI91: =+SUMIF('Capex_FO input'!$E$42:$E$1020,Capex_FO_AC!$F91,'Capex_FO input'!AF$42:AF$1020) -> 0 | AJ91: =+SUMIF('Capex_FO input'!$E$42:$E$1020,Capex_FO_AC!$F91,'Capex_FO input'!AG$42:AG$1020) -> 0 | AK91: =+SUMIF('Capex_FO input'!$E$42:$E$1020,Capex_FO_AC!$F91,'Capex_FO input'!AH$42:AH$1020) -> 0 | AL91: =+SUMIF('Capex_FO input'!$E$42:$E$1020,Capex_FO_AC!$F91,'Capex_FO input'!AI$42:AI$1020) -> 0
F92: Groundwater diversions | AC92: =+SUMIF('Capex_FO input'!$E$42:$E$1020,Capex_FO_AC!$F92,'Capex_FO input'!Z$42:Z$1020) -> 0 | AD92: =+SUMIF('Capex_FO input'!$E$42:$E$1020,Capex_FO_AC!$F92,'Capex_FO input'!AA$42:AA$1020) -> 0 | AE92: =+SUMIF('Capex_FO input'!$E$42:$E$1020,Capex_FO_AC!$F92,'Capex_FO input'!AB$42:AB$1020) -> 0 | AF92: =+SUMIF('Capex_FO input'!$E$42:$E$1020,Capex_FO_AC!$F92,'Capex_FO input'!AC$42:AC$1020) -> 0 | AG92: =+SUMIF('Capex_FO input'!$E$42:$E$1020,Capex_FO_AC!$F92,'Capex_FO input'!AD$42:AD$1020) -> 0 | AH92: =+SUMIF('Capex_FO input'!$E$42:$E$1020,Capex_FO_AC!$F92,'Capex_FO input'!AE$42:AE$1020) -> 0 | AI92: =+SUMIF('Capex_FO input'!$E$42:$E$1020,Capex_FO_AC!$F92,'Capex_FO input'!AF$42:AF$1020) -> 0 | AJ92: =+SUMIF('Capex_FO input'!$E$42:$E$1020,Capex_FO_AC!$F92,'Capex_FO input'!AG$42:AG$1020) -> 0 | AK92: =+SUMIF('Capex_FO input'!$E$42:$E$1020,Capex_FO_AC!$F92,'Capex_FO input'!AH$42:AH$1020) -> 0 | AL92: =+SUMIF('Capex_FO input'!$E$42:$E$1020,Capex_FO_AC!$F92,'Capex_FO input'!AI$42:AI$1020) -> 0
F93: Bulk water services | AC93: =+SUMIF('Capex_FO input'!$E$42:$E$1020,Capex_FO_AC!$F93,'Capex_FO input'!Z$42:Z$1020) -> 0 | AD93: =+SUMIF('Capex_FO input'!$E$42:$E$1020,Capex_FO_AC!$F93,'Capex_FO input'!AA$42:AA$1020) -> 0 | AE93: =+SUMIF('Capex_FO input'!$E$42:$E$1020,Capex_FO_AC!$F93,'Capex_FO input'!AB$42:AB$1020) -> 0 | AF93: =+SUMIF('Capex_FO input'!$E$42:$E$1020,Capex_FO_AC!$F93,'Capex_FO input'!AC$42:AC$1020) -> 0 | AG93: =+SUMIF('Capex_FO input'!$E$42:$E$1020,Capex_FO_AC!$F93,'Capex_FO input'!AD$42:AD$1020) -> 0 | AH93: =+SUMIF('Capex_FO input'!$E$42:$E$1020,Capex_FO_AC!$F93,'Capex_FO input'!AE$42:AE$1020) -> 0 | AI93: =+SUMIF('Capex_FO input'!$E$42:$E$1020,Capex_FO_AC!$F93,'Capex_FO input'!AF$42:AF$1020) -> 0 | AJ93: =+SUMIF('Capex_FO input'!$E$42:$E$1020,Capex_FO_AC!$F93,'Capex_FO input'!AG$42:AG$1020) -> 0 | AK93: =+SUMIF('Capex_FO input'!$E$42:$E$1020,Capex_FO_AC!$F93,'Capex_FO input'!AH$42:AH$1020) -> 0 | AL93: =+SUMIF('Capex_FO input'!$E$42:$E$1020,Capex_FO_AC!$F93,'Capex_FO input'!AI$42:AI$1020) -> 0
F94: Licence applications | AC94: =+SUMIF('Capex_FO input'!$E$42:$E$1020,Capex_FO_AC!$F94,'Capex_FO input'!Z$42:Z$1020) -> 0 | AD94: =+SUMIF('Capex_FO input'!$E$42:$E$1020,Capex_FO_AC!$F94,'Capex_FO input'!AA$42:AA$1020) -> 0 | AE94: =+SUMIF('Capex_FO input'!$E$42:$E$1020,Capex_FO_AC!$F94,'Capex_FO input'!AB$42:AB$1020) -> 0 | AF94: =+SUMIF('Capex_FO input'!$E$42:$E$1020,Capex_FO_AC!$F94,'Capex_FO input'!AC$42:AC$1020) -> 0 | AG94: =+SUMIF('Capex_FO input'!$E$42:$E$1020,Capex_FO_AC!$F94,'Capex_FO input'!AD$42:AD$1020) -> 0 | AH94: =+SUMIF('Capex_FO input'!$E$42:$E$1020,Capex_FO_AC!$F94,'Capex_FO input'!AE$42:AE$1020) -> 0 | AI94: =+SUMIF('Capex_FO input'!$E$42:$E$1020,Capex_FO_AC!$F94,'Capex_FO input'!AF$42:AF$1020) -> 0 | AJ94: =+SUMIF('Capex_FO input'!$E$42:$E$1020,Capex_FO_AC!$F94,'Capex_FO input'!AG$42:AG$1020) -> 0 | AK94: =+SUMIF('Capex_FO input'!$E$42:$E$1020,Capex_FO_AC!$F94,'Capex_FO input'!AH$42:AH$1020) -> 0 | AL94: =+SUMIF('Capex_FO input'!$E$42:$E$1020,Capex_FO_AC!$F94,'Capex_FO input'!AI$42:AI$1020) -> 0
E95: =+CONCATENATE("Total ",E87) -> Total Government contributions | W95: =+SUM(W88:W94) -> 18.07370226 | X95: =+SUM(X88:X94) -> 28.89922303 | Y95: 4.291955283 | Z95: 21.94956493 | AA95: 5.074582003 | AB95: 12.14628482 | AC95: 13.81519477 | AD95: 4.370488766 | AE95: 0.4462960365 | AF95: 0 | AG95: 0 | AH95: =+SUM(AH88:AH94) -> 0 | AI95: 0 | AJ95: 0 | AK95: 0 | AL95: 0
E97: Customer contributions
F98: =F88 -> Irrigation | W98: ='[3]ESC Model Data'!G294 -> 0.6361900588 | X98: ='[3]ESC Model Data'!H294 -> 9.473129532 | Y98: ='[3]ESC Model Data'!I294 -> 1.712403261 | Z98: ='[3]ESC Model Data'!J294 -> 0.371265252 | AA98: ='[3]ESC Model Data'!K294 -> 0.5545142765 | AB98: ='[3]ESC Model Data'!L294 -> 2.70561927 | AC98: =+SUMIF('Capex_FO input'!$E$42:$E$1020,Capex_FO_AC!$F98,'Capex_FO input'!AK$42:AK$1020) -> 2.514758763 | AD98: =+SUMIF('Capex_FO input'!$E$42:$E$1020,Capex_FO_AC!$F98,'Capex_FO input'!AL$42:AL$1020) -> 2.514758763 | AE98: =+SUMIF('Capex_FO input'!$E$42:$E$1020,Capex_FO_AC!$F98,'Capex_FO input'!AM$42:AM$1020) -> 2.514758763 | AF98: =+SUMIF('Capex_FO input'!$E$42:$E$1020,Capex_FO_AC!$F98,'Capex_FO input'!AN$42:AN$1020) -> 2.514758763 | AG98: =+SUMIF('Capex_FO input'!$E$42:$E$1020,Capex_FO_AC!$F98,'Capex_FO input'!AO$42:AO$1020) -> 2.514758763 | AH98: =+SUMIF('Capex_FO input'!$E$42:$E$1020,Capex_FO_AC!$F98,'Capex_FO input'!AP$42:AP$1020) -> 2.514758763 | AI98: =+SUMIF('Capex_FO input'!$E$42:$E$1020,Capex_FO_AC!$F98,'Capex_FO input'!AQ$42:AQ$1020) -> 2.514758763 | AJ98: =+SUMIF('Capex_FO input'!$E$42:$E$1020,Capex_FO_AC!$F98,'Capex_FO input'!AR$42:AR$1020) -> 2.514758763 | AK98: =+SUMIF('Capex_FO input'!$E$42:$E$1020,Capex_FO_AC!$F98,'Capex_FO input'!AS$42:AS$1020) -> 2.514758763 | AL98: =+SUMIF('Capex_FO input'!$E$42:$E$1020,Capex_FO_AC!$F98,'Capex_FO input'!AT$42:AT$1020) -> 2.514758763
F99: Drainage | AC99: =+SUMIF('Capex_FO input'!$E$42:$E$1020,Capex_FO_AC!$F99,'Capex_FO input'!AK$42:AK$1020) -> 0 | AD99: =+SUMIF('Capex_FO input'!$E$42:$E$1020,Capex_FO_AC!$F99,'Capex_FO input'!AL$42:AL$1020) -> 0 | AE99: =+SUMIF('Capex_FO input'!$E$42:$E$1020,Capex_FO_AC!$F99,'Capex_FO input'!AM$42:AM$1020) -> 0 | AF99: =+SUMIF('Capex_FO input'!$E$42:$E$1020,Capex_FO_AC!$F99,'Capex_FO input'!AN$42:AN$1020) -> 0 | AG99: =+SUMIF('Capex_FO input'!$E$42:$E$1020,Capex_FO_AC!$F99,'Capex_FO input'!AO$42:AO$1020) -> 0 | AH99: =+SUMIF('Capex_FO input'!$E$42:$E$1020,Capex_FO_AC!$F99,'Capex_FO input'!AP$42:AP$1020) -> 0 | AI99: =+SUMIF('Capex_FO input'!$E$42:$E$1020,Capex_FO_AC!$F99,'Capex_FO input'!AQ$42:AQ$1020) -> 0 | AJ99: =+SUMIF('Capex_FO input'!$E$42:$E$1020,Capex_FO_AC!$F99,'Capex_FO input'!AR$42:AR$1020) -> 0 | AK99: =+SUMIF('Capex_FO input'!$E$42:$E$1020,Capex_FO_AC!$F99,'Capex_FO input'!AS$42:AS$1020) -> 0 | AL99: =+SUMIF('Capex_FO input'!$E$42:$E$1020,Capex_FO_AC!$F99,'Capex_FO input'!AT$42:AT$1020) -> 0
F100: Domestic and stock | AC100: =+SUMIF('Capex_FO input'!$E$42:$E$1020,Capex_FO_AC!$F100,'Capex_FO input'!AK$42:AK$1020) -> 0 | AD100: =+SUMIF('Capex_FO input'!$E$42:$E$1020,Capex_FO_AC!$F100,'Capex_FO input'!AL$42:AL$1020) -> 0 | AE100: =+SUMIF('Capex_FO input'!$E$42:$E$1020,Capex_FO_AC!$F100,'Capex_FO input'!AM$42:AM$1020) -> 0 | AF100: =+SUMIF('Capex_FO input'!$E$42:$E$1020,Capex_FO_AC!$F100,'Capex_FO input'!AN$42:AN$1020) -> 0 | AG100: =+SUMIF('Capex_FO input'!$E$42:$E$1020,Capex_FO_AC!$F100,'Capex_FO input'!AO$42:AO$1020) -> 0 | AH100: =+SUMIF('Capex_FO input'!$E$42:$E$1020,Capex_FO_AC!$F100,'Capex_FO input'!AP$42:AP$1020) -> 0 | AI100: =+SUMIF('Capex_FO input'!$E$42:$E$1020,Capex_FO_AC!$F100,'Capex_FO input'!AQ$42:AQ$1020) -> 0 | AJ100: =+SUMIF('Capex_FO input'!$E$42:$E$1020,Capex_FO_AC!$F100,'Capex_FO input'!AR$42:AR$1020) -> 0 | AK100: =+SUMIF('Capex_FO input'!$E$42:$E$1020,Capex_FO_AC!$F100,'Capex_FO input'!AS$42:AS$1020) -> 0 | AL100: =+SUMIF('Capex_FO input'!$E$42:$E$1020,Capex_FO_AC!$F100,'Capex_FO input'!AT$42:AT$1020) -> 0
F101: Surface water diversions | AC101: =+SUMIF('Capex_FO input'!$E$42:$E$1020,Capex_FO_AC!$F101,'Capex_FO input'!AK$42:AK$1020) -> 0 | AD101: =+SUMIF('Capex_FO input'!$E$42:$E$1020,Capex_FO_AC!$F101,'Capex_FO input'!AL$42:AL$1020) -> 0 | AE101: =+SUMIF('Capex_FO input'!$E$42:$E$1020,Capex_FO_AC!$F101,'Capex_FO input'!AM$42:AM$1020) -> 0 | AF101: =+SUMIF('Capex_FO input'!$E$42:$E$1020,Capex_FO_AC!$F101,'Capex_FO input'!AN$42:AN$1020) -> 0 | AG101: =+SUMIF('Capex_FO input'!$E$42:$E$1020,Capex_FO_AC!$F101,'Capex_FO input'!AO$42:AO$1020) -> 0 | AH101: =+SUMIF('Capex_FO input'!$E$42:$E$1020,Capex_FO_AC!$F101,'Capex_FO input'!AP$42:AP$1020) -> 0 | AI101: =+SUMIF('Capex_FO input'!$E$42:$E$1020,Capex_FO_AC!$F101,'Capex_FO input'!AQ$42:AQ$1020) -> 0 | AJ101: =+SUMIF('Capex_FO input'!$E$42:$E$1020,Capex_FO_AC!$F101,'Capex_FO input'!AR$42:AR$1020) -> 0 | AK101: =+SUMIF('Capex_FO input'!$E$42:$E$1020,Capex_FO_AC!$F101,'Capex_FO input'!AS$42:AS$1020) -> 0 | AL101: =+SUMIF('Capex_FO input'!$E$42:$E$1020,Capex_FO_AC!$F101,'Capex_FO input'!AT$42:AT$1020) -> 0
F102: Groundwater diversions | AC102: =+SUMIF('Capex_FO input'!$E$42:$E$1020,Capex_FO_AC!$F102,'Capex_FO input'!AK$42:AK$1020) -> 0 | AD102: =+SUMIF('Capex_FO input'!$E$42:$E$1020,Capex_FO_AC!$F102,'Capex_FO input'!AL$42:AL$1020) -> 0 | AE102: =+SUMIF('Capex_FO input'!$E$42:$E$1020,Capex_FO_AC!$F102,'Capex_FO input'!AM$42:AM$1020) -> 0 | AF102: =+SUMIF('Capex_FO input'!$E$42:$E$1020,Capex_FO_AC!$F102,'Capex_FO input'!AN$42:AN$1020) -> 0 | AG102: =+SUMIF('Capex_FO input'!$E$42:$E$1020,Capex_FO_AC!$F102,'Capex_FO input'!AO$42:AO$1020) -> 0 | AH102: =+SUMIF('Capex_FO input'!$E$42:$E$1020,Capex_FO_AC!$F102,'Capex_FO input'!AP$42:AP$1020) -> 0 | AI102: =+SUMIF('Capex_FO input'!$E$42:$E$1020,Capex_FO_AC!$F102,'Capex_FO input'!AQ$42:AQ$1020) -> 0 | AJ102: =+SUMIF('Capex_FO input'!$E$42:$E$1020,Capex_FO_AC!$F102,'Capex_FO input'!AR$42:AR$1020) -> 0 | AK102: =+SUMIF('Capex_FO input'!$E$42:$E$1020,Capex_FO_AC!$F102,'Capex_FO input'!AS$42:AS$1020) -> 0 | AL102: =+SUMIF('Capex_FO input'!$E$42:$E$1020,Capex_FO_AC!$F102,'Capex_FO input'!AT$42:AT$1020) -> 0
F103: Bulk water services | AC103: =+SUMIF('Capex_FO input'!$E$42:$E$1020,Capex_FO_AC!$F103,'Capex_FO input'!AK$42:AK$1020) -> 0 | AD103: =+SUMIF('Capex_FO input'!$E$42:$E$1020,Capex_FO_AC!$F103,'Capex_FO input'!AL$42:AL$1020) -> 0 | AE103: =+SUMIF('Capex_FO input'!$E$42:$E$1020,Capex_FO_AC!$F103,'Capex_FO input'!AM$42:AM$1020) -> 0 | AF103: =+SUMIF('Capex_FO input'!$E$42:$E$1020,Capex_FO_AC!$F103,'Capex_FO input'!AN$42:AN$1020) -> 0 | AG103: =+SUMIF('Capex_FO input'!$E$42:$E$1020,Capex_FO_AC!$F103,'Capex_FO input'!AO$42:AO$1020) -> 0 | AH103: =+SUMIF('Capex_FO input'!$E$42:$E$1020,Capex_FO_AC!$F103,'Capex_FO input'!AP$42:AP$1020) -> 0 | AI103: =+SUMIF('Capex_FO input'!$E$42:$E$1020,Capex_FO_AC!$F103,'Capex_FO input'!AQ$42:AQ$1020) -> 0 | AJ103: =+SUMIF('Capex_FO input'!$E$42:$E$1020,Capex_FO_AC!$F103,'Capex_FO input'!AR$42:AR$1020) -> 0 | AK103: =+SUMIF('Capex_FO input'!$E$42:$E$1020,Capex_FO_AC!$F103,'Capex_FO input'!AS$42:AS$1020) -> 0 | AL103: =+SUMIF('Capex_FO input'!$E$42:$E$1020,Capex_FO_AC!$F103,'Capex_FO input'!AT$42:AT$1020) -> 0
F104: Licence applications | AC104: =+SUMIF('Capex_FO input'!$E$42:$E$1020,Capex_FO_AC!$F104,'Capex_FO input'!AK$42:AK$1020) -> 0 | AD104: =+SUMIF('Capex_FO input'!$E$42:$E$1020,Capex_FO_AC!$F104,'Capex_FO input'!AL$42:AL$1020) -> 0 | AE104: =+SUMIF('Capex_FO input'!$E$42:$E$1020,Capex_FO_AC!$F104,'Capex_FO input'!AM$42:AM$1020) -> 0 | AF104: =+SUMIF('Capex_FO input'!$E$42:$E$1020,Capex_FO_AC!$F104,'Capex_FO input'!AN$42:AN$1020) -> 0 | AG104: =+SUMIF('Capex_FO input'!$E$42:$E$1020,Capex_FO_AC!$F104,'Capex_FO input'!AO$42:AO$1020) -> 0 | AH104: =+SUMIF('Capex_FO input'!$E$42:$E$1020,Capex_FO_AC!$F104,'Capex_FO input'!AP$42:AP$1020) -> 0 | AI104: =+SUMIF('Capex_FO input'!$E$42:$E$1020,Capex_FO_AC!$F104,'Capex_FO input'!AQ$42:AQ$1020) -> 0 | AJ104: =+SUMIF('Capex_FO input'!$E$42:$E$1020,Capex_FO_AC!$F104,'Capex_FO input'!AR$42:AR$1020) -> 0 | AK104: =+SUMIF('Capex_FO input'!$E$42:$E$1020,Capex_FO_AC!$F104,'Capex_FO input'!AS$42:AS$1020) -> 0 | AL104: =+SUMIF('Capex_FO input'!$E$42:$E$1020,Capex_FO_AC!$F104,'Capex_FO input'!AT$42:AT$1020) -> 0
E105: =+CONCATENATE("Total ",E97) -> Total Customer contributions | W105: =+SUM(W98:W104) -> 0.6361900588 | X105: 9.473129532 | Y105: 1.712403261 | Z105: 0.371265252 | AA105: 0.5545142765 | AB105: 2.70561927 | AC105: 2.514758763 | AD105: 2.514758763 | AE105: 2.514758763 | AF105: 2.514758763 | AG105: 2.514758763 | AH105: =+SUM(AH98:AH104) -> 2.514758763 | AI105: 2.514758763 | AJ105: 2.514758763 | AK105: 2.514758763 | AL105: 2.514758763
C109: Gifted Assets
C111: Asset disposals
D112: Proceeds from disposals | W112: =+'[3]ESC Model Data'!G$260 -> 0.6372771384 | X112: =+'[3]ESC Model Data'!H$260 -> 0.762465206 | Y112: =+'[3]ESC Model Data'!I$260 -> 0.4975241203 | Z112: =+'[3]ESC Model Data'!J$260 -> 3.056420148 | AA112: =+'[3]ESC Model Data'!K$260 -> 0.3940839695 | AB112: =+'[3]ESC Model Data'!L$260 -> 0.7881679389 | AC112: =+'[3]ESC Model Data'!M$260 -> 0.7881679389 | AD112: =+'[3]ESC Model Data'!N$260 -> 0.7881679389 | AE112: =+'[3]ESC Model Data'!O$260 -> 0.7881679389 | AF112: =+'[3]ESC Model Data'!P$260 -> 0.7881679389 | AG112: =+'[3]ESC Model Data'!Q$260 -> 0.7881679389 | AH112: =+'[3]ESC Model Data'!R$260 -> 0.7881679389 | AI112: =+'[3]ESC Model Data'!S$260 -> 0.7881679389 | AJ112: =+'[3]ESC Model Data'!T$260 -> 0.7881679389 | AK112: =+'[3]ESC Model Data'!U$260 -> 0.7881679389 | AL112: =+'[3]ESC Model Data'!V$260 -> 0.7881679389
D113: Written down value of assets disposed

Sheet Capex_FO input
B1: Capital Expenditure - Forecast Input
B2: =+Contents!H7 -> Southern Rural Water
B3: Go to Table of Contents
C7: Input Summary | F7: FIFTH REG PERIOD | K7: SIXTH REG PERIOD
D9: =+O39 -> 2023-24 | E9: =+P39 -> 2024-25 | F9: 2025-26 | G9: 2026-27 | H9: 2027-28 | I9: 2028-29 | J9: 2029-30 | K9: 2030-31 | L9: 2031-32 | M9: 2032-33
C10: By Cost Driver
C11: Net capital expenditure - Renewals | D11: =+SUMIF($F$42:$F$1022,"Renewals",O$42:O$1022) -> 13.394023 | E11: =+SUMIF($F$42:$F$1022,"Renewals",P$42:P$1022) -> 14.23395882 | F11: 14.17289836 | G11: 15.8149088 | H11: 13.41992409 | I11: 10.3045161 | J11: 12.28747913 | K11: 12.68417663 | L11: 17.341425 | M11: 12.8125125
C12: Net capital expenditure - Growth | D12: =+SUMIF($F$42:$F$1022,"Growth",O$42:O$1022) -> 0 | E12: =+SUMIF($F$42:$F$1022,"Growth",P$42:P$1022) -> 0 | F12: 0 | G12: 0.045 | H12: 0 | I12: 0 | J12: 0 | K12: 0 | L12: 0.06075 | M12: 0
C13: Net capital expenditure - Improvements / Compliance | D13: =+SUMIF($F$42:$F$1022,"Improvements / Compliance",O$42:O$1022) -> 34.97721173 | E13: =+SUMIF($F$42:$F$1022,"Improvements / Compliance",P$42:P$1022) -> 11.0331957 | F13: 2.620924543 | G13: 3.749354543 | H13: 1.630356795 | I13: 4.162451709 | J13: 2.255333878 | K13: 2.498333878 | L13: 1.265625 | M13: 0.243
C14: Government Contributions | D14: =+Z41 -> 13.81519477 | E14: =+AA41 -> 4.370488766 | F14: 0.4462960365 | G14: 0 | H14: 0 | I14: 0 | J14: 0 | K14: 0 | L14: 0 | M14: 0
C15: Customer Contributions | D15: =+AK41 -> 2.514758763 | E15: =+AL41 -> 2.514758763 | F15: 2.514758763 | G15: 2.514758763 | H15: 2.514758763 | I15: 2.514758763 | J15: 2.514758763 | K15: 2.514758763 | L15: 2.514758763 | M15: 2.514758763
C16: Total prescribed capex | D16: =SUM(D11:D13) -> 48.37123473 | E16: =SUM(E11:E13) -> 25.26715452 | F16: 16.79382291 | G16: 19.60926334 | H16: 15.05028089 | I16: 14.46696781 | J16: 14.54281301 | K16: 15.18251051 | L16: 18.6678 | M16: 13.0555125
C18: By Capital Type
C19: Top 10 Major Projects | D19: =+SUMIF($H$42:$H$1022,$C$19,O$42:O$1022) -> 35.72764461 | E19: 10.653998 | F19: 4.4825 | G19: 3.6745 | H19: 1.2125 | I19: 0 | J19: 0 | K19: 0 | L19: 0 | M19: 0
C20: Significant projects | D20: =+SUMIF($H$42:$H$1022,$C$20,O$42:O$1022) -> 0 | E20: 0 | F20: 0 | G20: 0 | H20: 0 | I20: 0 | J20: 0 | K20: 0 | L20: 0 | M20: 0
C21: Capital Programs / Allocation | D21: =+SUMIF($H$42:$H$1022,$C$21,O$42:O$1022) -> 12.64359012 | E21: 14.61315652 | F21: 12.31132291 | G21: 15.93476334 | H21: 13.83778089 | I21: 14.46696781 | J21: 14.54281301 | K21: 15.18251051 | L21: 18.6678 | M21: 13.0555125
C22: Other Capital expenditure | D22: =+SUMIF($H$42:$H$1022,$C$22,O$42:O$1022) -> 0 | E22: 0 | F22: 0 | G22: 0 | H22: 0 | I22: 0 | J22: 0 | K22: 0 | L22: 0 | M22: 0
C23: Total prescribed capex | D23: =SUM(D19:D22) -> 48.37123473 | E23: =SUM(E19:E22) -> 25.26715452 | F23: 16.79382291 | G23: 19.60926334 | H23: 15.05028089 | I23: 14.46696781 | J23: 14.54281301 | K23: 15.18251051 | L23: 18.6678 | M23: 13.0555125
C25: Difference | D25: =+D23-D16 -> 0 | E25: =+E23-E16 -> 0 | F25: 0 | G25: 0 | H25: 0 | I25: 0 | J25: 0 | K25: 0 | L25: 0 | M25: 0
C26: Test | D26: =IF(ROUND(D23,2)=ROUND(D16,2),0,1) -> 0 | E26: =IF(ROUND(E23,2)=ROUND(E16,2),0,1) -> 0 | F26: 0 | G26: 0 | H26: 0 | I26: 0 | J26: 0 | K26: 0 | L26: 0 | M26: 0
C29: Total prescribed capex | D29: =+D23 -> 48.37123473 | E29: =+E23 -> 25.26715452 | F29: 16.79382291 | G29: 19.60926334 | H29: 15.05028089 | I29: 14.46696781 | J29: 14.54281301 | K29: 15.18251051 | L29: 18.6678 | M29: 13.0555125
C32: Regulatory Depreciation | D32: =+BG41 -> 0.5361074856 | E32: =+BH41 -> 1.487706884 | F32: 2.173733939 | G32: 2.761093895 | H32: 3.338044718 | I32: 3.926130272 | J32: 4.649169511 | K32: 5.446792038 | L32: 6.164165002 | M32: 6.657618889
B35: $m, 01/01/23
O36: Gross capital expenditure | Z36: Government contributions | AK36: Customer contributions | AV36: Net capital expenditure | BG36: Regulatory Depreciation | BR36: Accumulated capex | CC36: Gross capital expenditure | CN36: Tax Depreciation
O37: $m, 01/01/23 | Z37: $m, 01/01/23 | AK37: $m, 01/01/23 | AV37: $m, 01/01/23 | BG37: $m, 01/01/23 | BR37: $m, 01/01/23 | CC37: Nominal,$ | CN37: Nominal,$
O39: 2023-24 | P39: 2024-25 | Q39: 2025-26 | R39: 2026-27 | S39: 2027-28 | T39: 2028-29 | U39: 2029-30 | V39: 2030-31 | W39: 2031-32 | X39: 2032-33 | Z39: =O39 -> 2023-24 | AA39: =P39 -> 2024-25 | AB39: 2025-26 | AC39: 2026-27 | AD39: 2027-28 | AE39: 2028-29 | AF39: 2029-30 | AG39: 2030-31 | AH39: 2031-32 | AI39: 2032-33 | AK39: =Z39 -> 2023-24 | AL39: =AA39 -> 2024-25 | AM39: 2025-26 | AN39: 2026-27 | AO39: 2027-28 | AP39: 2028-29 | AQ39: 2029-30 | AR39: 2030-31 | AS39: 2031-32 | AT39: 2032-33 | AV39: =AK39 -> 2023-24 | AW39: =AL39 -> 2024-25 | AX39: 2025-26 | AY39: 2026-27 | AZ39: 2027-28 | BA39: 2028-29 | BB39: 2029-30 | BC39: 2030-31 | BD39: 2031-32 | BE39: 2032-33 | BG39: =AV39 -> 2023-24 | BH39: =AW39 -> 2024-25 | BI39: 2025-26 | BJ39: 2026-27 | BK39: 2027-28 | BL39: 2028-29 | BM39: 2029-30 | BN39: 2030-31 | BO39: 2031-32 | BP39: 2032-33 | BR39: =BG39 -> 2023-24 | BS39: =BH39 -> 2024-25 | BT39: 2025-26 | BU39: 2026-27 | BV39: 2027-28 | BW39: 2028-29 | BX39: 2029-30 | BY39: 2030-31 | BZ39: 2031-32 | CA39: 2032-33 | CC39: =BR39 -> 2023-24 | CD39: =BS39 -> 2024-25 | CE39: 2025-26 | CF39: 2026-27 | CG39: 2027-28 | CH39: 2028-29 | CI39: 2029-30 | CJ39: 2030-31 | CK39: 2031-32 | CL39: 2032-33 | CN39: =CC39 -> 2023-24 | CO39: =CD39 -> 2024-25 | CP39: 2025-26 | CQ39: 2026-27 | CR39: 2027-28 | CS39: 2028-29 | CT39: 2029-30 | CU39: 2030-31 | CV39: 2031-32 | CW39: 2032-33
BG40: 1 | BH40: 2 | BI40: 3 | BJ40: 4 | BK40: 5 | BL40: 6 | BM40: 7 | BN40: 8 | BO40: 9 | BP40: 10 | CN40: 1 | CO40: 2 | CP40: 3 | CQ40: 4 | CR40: 5 | CS40: 6 | CT40: 7 | CU40: 8 | CV40: 9 | CW40: 10
C41: Project/program Name | E41: Service | F41: Major cost driver | G41: Asset category | H41: Capital type | J41: Depreciation Method | K41: Year asset operational | L41: Asset life (Regulatory) | M41: Asset life (Tax) | O41: =SUM(O42:O1022) -> 48.37123473 | P41: 25.26715452 | Q41: 16.79382291 | R41: 19.60926334 | S41: 15.05028089 | T41: 14.46696781 | U41: 14.54281301 | V41: 15.18251051 | W41: 18.6678 | X41: 13.0555125 | Z41: =SUM(Z42:Z1022) -> 13.81519477 | AA41: 4.370488766 | AB41: 0.4462960365 | AC41: 0 | AD41: 0 | AE41: 0 | AF41: 0 | AG41: 0 | AH41: 0 | AI41: 0 | AK41: =SUM(AK42:AK1022) -> 2.514758763 | AL41: 2.514758763 | AM41: 2.514758763 | AN41: 2.514758763 | AO41: 2.514758763 | AP41: 2.514758763 | AQ41: 2.514758763 | AR41: 2.514758763 | AS41: 2.514758763 | AT41: 2.514758763 | AV41: =SUM(AV42:AV1022) -> 32.0412812 | AW41: 18.38190699 | AX41: 13.83276811 | AY41: 17.09450458 | AZ41: 12.53552212 | BA41: 11.95220905 | BB41: 12.02805425 | BC41: 12.66775175 | BD41: 16.15304124 | BE41: 10.54075374 | BG41: =SUM(BG42:BG1022) -> 0.5361074856 | BH41: 1.487706884 | BI41: 2.173733939 | BJ41: 2.761093895 | BK41: 3.338044718 | BL41: 3.926130272 | BM41: 4.649169511 | BN41: 5.446792038 | BO41: 6.164165002 | BP41: 6.657618889 | BR41: =SUM(BR42:BR1022) -> 13.59837041 | BS41: 31.59681778 | BT41: 11.86776811 | BU41: 18.08750458 | BV41: 18.73552212 | BW41: 11.95220905 | BX41: 12.02805425 | BY41: 12.66775175 | BZ41: 16.15304124 | CA41: 10.54075374 | CC41: =SUM(CC42:CC1022) -> 49.82237177 | CD41: 26.80592423 | CE41: 18.35106372 | CF41: 22.07039865 | CG41: 17.44740044 | CH41: 17.27431614 | CI41: 17.88582565 | CJ41: 19.23275007 | CK41: 24.35724484 | CL41: 17.54551709 | CN41: =SUM(CN42:CN1022) -> 0.7508932695 | CO41: 2.107698336 | CP41: 3.094324906 | CQ41: 4.061777958 | CR41: 5.090173666 | CS41: 6.153456261 | CT41: 7.401053364 | CU41: 8.740486814 | CV41: 8.263185336 | CW41: 9.065805734
B42: 2023 | C42: ='[4]ESC Model Top 10'!$B$3 -> MID - MNC Siphon No. 2 | E42: ='[4]ESC Model Top 10'!$D$3 -> Irrigation | F42: ='[4]ESC Model Top 10'!$E$3 -> Renewals | G42: ='[4]ESC Model Top 10'!$F$3 -> Pipelines/network | H42: ='[4]ESC Model Top 10'!$G$3 -> Top 10 Major Projects | J42: Straight line | K42: ='[4]ESC Model Top 10'!$J$3 -> 2023-24 | L42: ='[4]ESC Model Top 10'!$K$3 -> 50 | M42: ='[4]ESC Model Top 10'!$L$3 -> 50 | O42: ='[4]ESC Model Top 10'!$N$3 -> 1.615 | P42: ='[4]ESC Model Top 10'!$O$3 -> 0 | Q42: ='[4]ESC Model Top 10'!$P$3 -> 0 | R42: ='[4]ESC Model Top 10'!$Q$3 -> 0 | S42: ='[4]ESC Model Top 10'!$R$3 -> 0 | Z42: ='[4]ESC Model Top 10'!Y3 -> 2.45821971 | AA42: ='[4]ESC Model Top 10'!Z3 -> 0 | AB42: ='[4]ESC Model Top 10'!AA3 -> 0 | AC42: ='[4]ESC Model Top 10'!AB3 -> 0 | AD42: ='[4]ESC Model Top 10'!AC3 -> 0 | AV42: =+O42-Z42-AK42 -> -0.8432197096 | AW42: =+P42-AA42-AL42 -> 0 | AX42: 0 | AY42: 0 | AZ42: 0 | BA42: 0 | BB42: 0 | BC42: 0 | BD42: 0 | BE42: 0 | BG42: =IF($L42=0,0, IF($L42<=0.5,BR42, IF($J42="straight line", IF((LEFT(BG$39,4)*1)-INT($L42)<LEFT($BG$39,4)*1,0,((OFFSET(BR42,0,-INT($L42+0.5),1,1))/$L42)*(IF($L42-INT($L42)>0.5,$L42-0.5-INT($L42),IF($L42-INT($L42)<=0.5,$L42-0.5-INT($L42)+1,0)))) +BR42/$L42*0.5, IF($J42="Declining Balance",-$BG$38,0)))) -> 0.008234532535 | BH42: =IF($L42=0,0, IF($L42<=0.5,BS42, IF(AND($J42="straight line",$L42<1.51),(BR42-((BR42/$L42)*0.5))+BS42/$L42*0.5, IF($J42="straight line", IF((LEFT(BH$39,4)*1)-INT($L42)<LEFT($BG$39,4)*1,0,((OFFSET(BS42,0,-INT($L42+0.5),1,1))/$L42)*(IF($L42-INT($L42)>0.5,$L42-0.5-INT($L42),IF($L42-INT($L42)<=0.5,$L42-0.5-INT($L42)+1,0)))) +BS42/$L42*0.5 +SUM(OFFSET(BS42,0,MAX(-INT($L42+(0.5-(10^-12))),-BH$40)+1,1,MIN(INT($L42+(0.5-(10^-12))),BH$40)-1))*1/$L42, IF($J42="Declining Balance",-$BG$38,0))))) -> 0.01646906507 | BI42: =IF($L42=0,0, IF($L42<=0.5,BT42, IF(AND($J42="straight line",$L42<1.51),(BS42-((BS42/$L42)*0.5))+BT42/$L42*0.5, IF($J42="straight line", IF((LEFT(BI$39,4)*1)-INT($L42)<LEFT($BG$39,4)*1,0,((OFFSET(BT42,0,-INT($L42+0.5),1,1))/$L42)*(IF($L42-INT($L42)>0.5,$L42-0.5-INT($L42),IF($L42-INT($L42)<=0.5,$L42-0.5-INT($L42)+1,0)))) +BT42/$L42*0.5 +SUM(OFFSET(BT42,0,MAX(-INT($L42+(0.5-(10^-12))),-BI$40)+1,1,MIN(INT($L42+(0.5-(10^-12))),BI$40)-1))*1/$L42, IF($J42="Declining Balance",-$BG$38,0))))) -> 0.01646906507 | BJ42: 0.01646906507 | BK42: 0.01646906507 | BL42: 0.01646906507 | BM42: 0.01646906507 | BN42: 0.01646906507 | BO42: 0.01646906507 | BP42: 0.01646906507 | BR42: =+IF($K42="Ongoing",AV42,IF(RIGHT($K42,2)=RIGHT(BR$39,2),SUM($AV42:AV42),0)+IF(RIGHT(BR$39,2)>RIGHT($K42,2),AV42,0)) -> -0.8432197096 | BS42: =+IF($K42="Ongoing",AW42,IF(RIGHT($K42,2)=RIGHT(BS$39,2),SUM($AV42:AW42),0)+IF(RIGHT(BS$39,2)>RIGHT($K42,2),AW42,0)) -> 0 | BT42: =+IF($K42="Ongoing",AX42,IF(RIGHT($K42,2)=RIGHT(BT$39,2),SUM($AV42:AX42),0)+IF(RIGHT(BT$39,2)>RIGHT($K42,2),AX42,0)) -> 0 | BU42: =+IF($K42="Ongoing",AY42,IF(RIGHT($K42,2)=RIGHT(BU$39,2),SUM($AV42:AY42),0)+IF(RIGHT(BU$39,2)>RIGHT($K42,2),AY42,0)) -> 0 | BV42: =+IF($K42="Ongoing",AZ42,IF(RIGHT($K42,2)=RIGHT(BV$39,2),SUM($AV42:AZ42),0)+IF(RIGHT(BV$39,2)>RIGHT($K42,2),AZ42,0)) -> 0 | BW42: =+IF($K42="Ongoing",BA42,IF(RIGHT($K42,2)=RIGHT(BW$39,2),SUM($AV42:BA42),0)+IF(RIGHT(BW$39,2)>RIGHT($K42,2),BA42,0)) -> 0 | BX42: =+IF($K42="Ongoing",BB42,IF(RIGHT($K42,2)=RIGHT(BX$39,2),SUM($AV42:BB42),0)+IF(RIGHT(BX$39,2)>RIGHT($K42,2),BB42,0)) -> 0 | BY42: =+IF($K42="Ongoing",BC42,IF(RIGHT($K42,2)=RIGHT(BY$39,2),SUM($AV42:BC42),0)+IF(RIGHT(BY$39,2)>RIGHT($K42,2),BC42,0)) -> 0 | BZ42: =+IF($K42="Ongoing",BD42,IF(RIGHT($K42,2)=RIGHT(BZ$39,2),SUM($AV42:BD42),0)+IF(RIGHT(BZ$39,2)>RIGHT($K42,2),BD42,0)) -> 0 | CA42: =+IF($K42="Ongoing",BE42,IF(RIGHT($K42,2)=RIGHT(CA$39,2),SUM($AV42:BE42),0)+IF(RIGHT(CA$39,2)>RIGHT($K42,2),BE42,0)) -> 0 | CC42: =+O42*KeyAssumptionsPriceControl_FO!AC$15 -> 1.66345 | CD42: =+P42*KeyAssumptionsPriceControl_FO!AD$15 -> 0 | CE42: =+Q42*KeyAssumptionsPriceControl_FO!AE$15 -> 0 | CF42: =+R42*KeyAssumptionsPriceControl_FO!AF$15 -> 0 | CG42: =+S42*KeyAssumptionsPriceControl_FO!AG$15 -> 0 | CH42: =+T42*KeyAssumptionsPriceControl_FO!AH$15 -> 0 | CI42: =+U42*KeyAssumptionsPriceControl_FO!AI$15 -> 0 | CJ42: =+V42*KeyAssumptionsPriceControl_FO!AJ$15 -> 0 | CK42: =+W42*KeyAssumptionsPriceControl_FO!AK$15 -> 0 | CL42: =+X42*KeyAssumptionsPriceControl_FO!AL$15 -> 0 | CN42: =IF($M42=0,0, IF($M42<=0.5,CC42, IF($J42="straight line", IF((LEFT(CN$39,4)*1)-INT($M42)<LEFT($CN$39,4)*1,0,((OFFSET(CC42,0,-INT($M42+0.5),1,1))/$M42)*(IF($M42-INT($M42)>0.5,$M42-0.5-INT($M42),IF($M42-INT($M42)<=0.5,$M42-0.5-INT($M42)+1,0)))) +CC42/$M42*0.5, IF($J42="Declining Balance",-$CN$38,0)))) -> 0.0166345 | CO42: =IF($M42=0,0, IF($M42<=0.5,CD42, IF(AND($J42="straight line",$M42<1.51),(CC42-((CC42/$M42)*0.5))+CD42/$M42*0.5, IF($J42="straight line", IF((LEFT(CO$39,4)*1)-INT($M42)<LEFT($CN$39,4)*1,0,((OFFSET(CD42,0,-INT($M42+0.5),1,1))/$M42)*(IF($M42-INT($M42)>0.5,$M42-0.5-INT($M42),IF($M42-INT($M42)<=0.5,$M42-0.5-INT($M42)+1,0)))) +CD42/$M42*0.5 +SUM(OFFSET(CD42,0,MAX(-INT($M42+(0.5-(10^-12))),-CO$40)+1,1,MIN(INT($M42+(0.5-(10^-12))),CO$40)-1))*1/$M42, IF($J42="Declining Balance",-$CN$38,0))))) -> 0.033269 | CP42: =IF($M42=0,0, IF($M42<=0.5,CE42, IF(AND($J42="straight line",$M42<1.51),(CD42-((CD42/$M42)*0.5))+CE42/$M42*0.5, IF($J42="straight line", IF((LEFT(CP$39,4)*1)-INT($M42)<LEFT($CN$39,4)*1,0,((OFFSET(CE42,0,-INT($M42+0.5),1,1))/$M42)*(IF($M42-INT($M42)>0.5,$M42-0.5-INT($M42),IF($M42-INT($M42)<=0.5,$M42-0.5-INT($M42)+1,0)))) +CE42/$M42*0.5 +SUM(OFFSET(CE42,0,MAX(-INT($M42+(0.5-(10^-12))),-CP$40)+1,1,MIN(INT($M42+(0.5-(10^-12))),CP$40)-1))*1/$M42, IF($J42="Declining Balance",-$CN$38,0))))) -> 0.033269 | CQ42: 0.033269 | CR42: 0.033269 | CS42: 0.033269 | CT42: 0.033269 | CU42: 0.033269 | CV42: 0.033269 | CW42: 0.033269
B43: 2023 | C43: ='[4]ESC Model Top 10'!$B$4 -> MID - Main Southern Channel Siphon No.2 Replacement | E43: ='[4]ESC Model Top 10'!$D$4 -> Irrigation | F43: ='[4]ESC Model Top 10'!$E$4 -> Renewals | G43: ='[4]ESC Model Top 10'!$F$4 -> Pipelines/network | H43: ='[4]ESC Model Top 10'!$G$4 -> Top 10 Major Projects | J43: Straight line | K43: ='[4]ESC Model Top 10'!$J$4 -> 2023-24 | L43: ='[4]ESC Model Top 10'!$K$4 -> 50 | M43: ='[4]ESC Model Top 10'!$L$4 -> 50 | O43: ='[4]ESC Model Top 10'!$N$4 -> 0.685 | P43: ='[4]ESC Model Top 10'!$O$4 -> 0 | Q43: ='[4]ESC Model Top 10'!$P$4 -> 0 | R43: ='[4]ESC Model Top 10'!$Q$4 -> 0 | S43: ='[4]ESC Model Top 10'!$R$4 -> 0 | Z43: ='[4]ESC Model Top 10'!Y4 -> 0 | AA43: ='[4]ESC Model Top 10'!Z4 -> 0 | AB43: ='[4]ESC Model Top 10'!AA4 -> 0 | AC43: ='[4]ESC Model Top 10'!AB4 -> 0 | AD43: ='[4]ESC Model Top 10'!AC4 -> 0 | AV43: =+O43-Z43-AK43 -> 0.685 | AW43: 0 | AX43: 0 | AY43: 0 | AZ43: 0 | BA43: 0 | BB43: 0 | BC43: 0 | BD43: 0 | BE43: 0 | BG43: =IF($L43=0,0, IF($L43<=0.5,BR43, IF($J43="straight line", IF((LEFT(BG$39,4)*1)-INT($L43)<LEFT($BG$39,4)*1,0,((OFFSET(BR43,0,-INT($L43+0.5),1,1))/$L43)*(IF($L43-INT($L43)>0.5,$L43-0.5-INT($L43),IF($L43-INT($L43)<=0.5,$L43-0.5-INT($L43)+1,0)))) +BR43/$L43*0.5, IF($J43="Declining Balance",-$BG$38,0)))) -> 0.00685 | BH43: =IF($L43=0,0, IF($L43<=0.5,BS43, IF(AND($J43="straight line",$L43<1.51),(BR43-((BR43/$L43)*0.5))+BS43/$L43*0.5, IF($J43="straight line", IF((LEFT(BH$39,4)*1)-INT($L43)<LEFT($BG$39,4)*1,0,((OFFSET(BS43,0,-INT($L43+0.5),1,1))/$L43)*(IF($L43-INT($L43)>0.5,$L43-0.5-INT($L43),IF($L43-INT($L43)<=0.5,$L43-0.5-INT($L43)+1,0)))) +BS43/$L43*0.5 +SUM(OFFSET(BS43,0,MAX(-INT($L43+(0.5-(10^-12))),-BH$40)+1,1,MIN(INT($L43+(0.5-(10^-12))),BH$40)-1))*1/$L43, IF($J43="Declining Balance",-$BG$38,0))))) -> 0.0137 | BI43: 0.0137 | BJ43: 0.0137 | BK43: 0.0137 | BL43: 0.0137 | BM43: 0.0137 | BN43: 0.0137 | BO43: 0.0137 | BP43: 0.0137 | BR43: =+IF($K43="Ongoing",AV43,IF(RIGHT($K43,2)=RIGHT(BR$39,2),SUM($AV43:AV43),0)+IF(RIGHT(BR$39,2)>RIGHT($K43,2),AV43,0)) -> 0.685 | BS43: =+IF($K43="Ongoing",AW43,IF(RIGHT($K43,2)=RIGHT(BS$39,2),SUM($AV43:AW43),0)+IF(RIGHT(BS$39,2)>RIGHT($K43,2),AW43,0)) -> 0 | BT43: =+IF($K43="Ongoing",AX43,IF(RIGHT($K43,2)=RIGHT(BT$39,2),SUM($AV43:AX43),0)+IF(RIGHT(BT$39,2)>RIGHT($K43,2),AX43,0)) -> 0 | BU43: =+IF($K43="Ongoing",AY43,IF(RIGHT($K43,2)=RIGHT(BU$39,2),SUM($AV43:AY43),0)+IF(RIGHT(BU$39,2)>RIGHT($K43,2),AY43,0)) -> 0 | BV43: =+IF($K43="Ongoing",AZ43,IF(RIGHT($K43,2)=RIGHT(BV$39,2),SUM($AV43:AZ43),0)+IF(RIGHT(BV$39,2)>RIGHT($K43,2),AZ43,0)) -> 0 | BW43: =+IF($K43="Ongoing",BA43,IF(RIGHT($K43,2)=RIGHT(BW$39,2),SUM($AV43:BA43),0)+IF(RIGHT(BW$39,2)>RIGHT($K43,2),BA43,0)) -> 0 | BX43: =+IF($K43="Ongoing",BB43,IF(RIGHT($K43,2)=RIGHT(BX$39,2),SUM($AV43:BB43),0)+IF(RIGHT(BX$39,2)>RIGHT($K43,2),BB43,0)) -> 0 | BY43: =+IF($K43="Ongoing",BC43,IF(RIGHT($K43,2)=RIGHT(BY$39,2),SUM($AV43:BC43),0)+IF(RIGHT(BY$39,2)>RIGHT($K43,2),BC43,0)) -> 0 | BZ43: =+IF($K43="Ongoing",BD43,IF(RIGHT($K43,2)=RIGHT(BZ$39,2),SUM($AV43:BD43),0)+IF(RIGHT(BZ$39,2)>RIGHT($K43,2),BD43,0)) -> 0 | CA43: =+IF($K43="Ongoing",BE43,IF(RIGHT($K43,2)=RIGHT(CA$39,2),SUM($AV43:BE43),0)+IF(RIGHT(CA$39,2)>RIGHT($K43,2),BE43,0)) -> 0 | CC43: =+O43*KeyAssumptionsPriceControl_FO!AC$15 -> 0.70555 | CD43: =+P43*KeyAssumptionsPriceControl_FO!AD$15 -> 0 | CE43: =+Q43*KeyAssumptionsPriceControl_FO!AE$15 -> 0 | CF43: =+R43*KeyAssumptionsPriceControl_FO!AF$15 -> 0 | CG43: =+S43*KeyAssumptionsPriceControl_FO!AG$15 -> 0 | CH43: =+T43*KeyAssumptionsPriceControl_FO!AH$15 -> 0 | CI43: =+U43*KeyAssumptionsPriceControl_FO!AI$15 -> 0 | CJ43: =+V43*KeyAssumptionsPriceControl_FO!AJ$15 -> 0 | CK43: =+W43*KeyAssumptionsPriceControl_FO!AK$15 -> 0 | CL43: =+X43*KeyAssumptionsPriceControl_FO!AL$15 -> 0 | CN43: =IF($M43=0,0, IF($M43<=0.5,CC43, IF($J43="straight line", IF((LEFT(CN$39,4)*1)-INT($M43)<LEFT($CN$39,4)*1,0,((OFFSET(CC43,0,-INT($M43+0.5),1,1))/$M43)*(IF($M43-INT($M43)>0.5,$M43-0.5-INT($M43),IF($M43-INT($M43)<=0.5,$M43-0.5-INT($M43)+1,0)))) +CC43/$M43*0.5, IF($J43="Declining Balance",-$CN$38,0)))) -> 0.0070555 | CO43: =IF($M43=0,0, IF($M43<=0.5,CD43, IF(AND($J43="straight line",$M43<1.51),(CC43-((CC43/$M43)*0.5))+CD43/$M43*0.5, IF($J43="straight line", IF((LEFT(CO$39,4)*1)-INT($M43)<LEFT($CN$39,4)*1,0,((OFFSET(CD43,0,-INT($M43+0.5),1,1))/$M43)*(IF($M43-INT($M43)>0.5,$M43-0.5-INT($M43),IF($M43-INT($M43)<=0.5,$M43-0.5-INT($M43)+1,0)))) +CD43/$M43*0.5 +SUM(OFFSET(CD43,0,MAX(-INT($M43+(0.5-(10^-12))),-CO$40)+1,1,MIN(INT($M43+(0.5-(10^-12))),CO$40)-1))*1/$M43, IF($J43="Declining Balance",-$CN$38,0))))) -> 0.014111 | CP43: 0.014111 | CQ43: 0.014111 | CR43: 0.014111 | CS43: 0.014111 | CT43: 0.014111 | CU43: 0.014111 | CV43: 0.014111 | CW43: 0.014111
B44: o | C44: ='[4]ESC Model Top 10'!$B$5 -> G&R meter replacement | E44: ='[4]ESC Model Top 10'!$D$5 -> Groundwater diversions | F44: ='[4]ESC Model Top 10'!$E$5 -> Renewals | G44: ='[4]ESC Model Top 10'!$F$5 -> Pipelines/network | H44: ='[4]ESC Model Top 10'!$G$5 -> Top 10 Major Projects | J44: Straight line | K44: ='[4]ESC Model Top 10'!$J$5 -> 2027-28 | L44: ='[4]ESC Model Top 10'!$K$5 -> 15 | M44: ='[4]ESC Model Top 10'!$L$5 -> 15 | O44: ='[4]ESC Model Top 10'!$N$5 -> 2.1 | P44: ='[4]ESC Model Top 10'!$O$5 -> 2.1 | Q44: ='[4]ESC Model Top 10'!$P$5 -> 2 | R44: ='[4]ESC Model Top 10'!$Q$5 -> 0 | S44: ='[4]ESC Model Top 10'!$R$5 -> 0 | Z44: ='[4]ESC Model Top 10'!Y5 -> 0 | AA44: ='[4]ESC Model Top 10'!Z5 -> 0 | AB44: ='[4]ESC Model Top 10'!AA5 -> 0 | AC44: ='[4]ESC Model Top 10'!AB5 -> 0 | AD44: ='[4]ESC Model Top 10'!AC5 -> 0 | AV44: 2.1 | AW44: 2.1 | AX44: 2 | AY44: 0 | AZ44: 0 | BA44: 0 | BB44: 0 | BC44: 0 | BD44: 0 | BE44: 0 | BG44: =IF($L44=0,0, IF($L44<=0.5,BR44, IF($J44="straight line", IF((LEFT(BG$39,4)*1)-INT($L44)<LEFT($BG$39,4)*1,0,((OFFSET(BR44,0,-INT($L44+0.5),1,1))/$L44)*(IF($L44-INT($L44)>0.5,$L44-0.5-INT($L44),IF($L44-INT($L44)<=0.5,$L44-0.5-INT($L44)+1,0)))) +BR44/$L44*0.5, IF($J44="Declining Balance",-$BG$38,0)))) -> 0.04 | BH44: 0.12 | BI44: 0.2 | BJ44: 0.28 | BK44: 0.36 | BL44: 0.4 | BM44: 0.4 | BN44: 0.4 | BO44: 0.4 | BP44: 0.4 | BR44: =+IF($K44="Ongoing",AV44,IF(RIGHT($K44,2)=RIGHT(BR$39,2),SUM($AV44:AV44),0)+IF(RIGHT(BR$39,2)>RIGHT($K44,2),AV44,0)) -> 0 | BS44: =+IF($K44="Ongoing",AW44,IF(RIGHT($K44,2)=RIGHT(BS$39,2),SUM($AV44:AW44),0)+IF(RIGHT(BS$39,2)>RIGHT($K44,2),AW44,0)) -> 0 | BT44: =+IF($K44="Ongoing",AX44,IF(RIGHT($K44,2)=RIGHT(BT$39,2),SUM($AV44:AX44),0)+IF(RIGHT(BT$39,2)>RIGHT($K44,2),AX44,0)) -> 0 | BU44: =+IF($K44="Ongoing",AY44,IF(RIGHT($K44,2)=RIGHT(BU$39,2),SUM($AV44:AY44),0)+IF(RIGHT(BU$39,2)>RIGHT($K44,2),AY44,0)) -> 0 | BV44: =+IF($K44="Ongoing",AZ44,IF(RIGHT($K44,2)=RIGHT(BV$39,2),SUM($AV44:AZ44),0)+IF(RIGHT(BV$39,2)>RIGHT($K44,2),AZ44,0)) -> 6.2 | BW44: =+IF($K44="Ongoing",BA44,IF(RIGHT($K44,2)=RIGHT(BW$39,2),SUM($AV44:BA44),0)+IF(RIGHT(BW$39,2)>RIGHT($K44,2),BA44,0)) -> 0 | BX44: =+IF($K44="Ongoing",BB44,IF(RIGHT($K44,2)=RIGHT(BX$39,2),SUM($AV44:BB44),0)+IF(RIGHT(BX$39,2)>RIGHT($K44,2),BB44,0)) -> 0 | BY44: =+IF($K44="Ongoing",BC44,IF(RIGHT($K44,2)=RIGHT(BY$39,2),SUM($AV44:BC44),0)+IF(RIGHT(BY$39,2)>RIGHT($K44,2),BC44,0)) -> 0 | BZ44: =+IF($K44="Ongoing",BD44,IF(RIGHT($K44,2)=RIGHT(BZ$39,2),SUM($AV44:BD44),0)+IF(RIGHT(BZ$39,2)>RIGHT($K44,2),BD44,0)) -> 0 | CA44: =+IF($K44="Ongoing",BE44,IF(RIGHT($K44,2)=RIGHT(CA$39,2),SUM($AV44:BE44),0)+IF(RIGHT(CA$39,2)>RIGHT($K44,2),BE44,0)) -> 0 | CC44: =+O44*KeyAssumptionsPriceControl_FO!AC$15 -> 2.163 | CD44: =+P44*KeyAssumptionsPriceControl_FO!AD$15 -> 2.22789 | CE44: =+Q44*KeyAssumptionsPriceControl_FO!AE$15 -> 2.185454 | CF44: =+R44*KeyAssumptionsPriceControl_FO!AF$15 -> 0 | CG44: =+S44*KeyAssumptionsPriceControl_FO!AG$15 -> 0 | CH44: =+T44*KeyAssumptionsPriceControl_FO!AH$15 -> 0 | CI44: =+U44*KeyAssumptionsPriceControl_FO!AI$15 -> 0 | CJ44: =+V44*KeyAssumptionsPriceControl_FO!AJ$15 -> 0 | CK44: =+W44*KeyAssumptionsPriceControl_FO!AK$15 -> 0 | CL44: =+X44*KeyAssumptionsPriceControl_FO!AL$15 -> 0 | CN44: 0.0412 | CO44: 0.124836 | CP44: 0.21098108 | CQ44: 0.2997105124 | CR44: 0.3911018278 | CS44: 0.4374727907 | CT44: 0.4374727907 | CU44: 0.4374727907 | CV44: 0.4374727907 | CW44: 0.4374727907
B45: 2023 | C45: ='[4]ESC Model Top 10'!$B$6 -> Blue Rock isolating butterfly valve replacement | E45: ='[4]ESC Model Top 10'!$D$6 -> Bulk water services | F45: ='[4]ESC Model Top 10'!$E$6 -> Improvements / Compliance | G45: ='[4]ESC Model Top 10'!$F$6 -> Headworks | H45: ='[4]ESC Model Top 10'!$G$6 -> Top 10 Major Projects | J45: Straight line | K45: ='[4]ESC Model Top 10'!$J$6 -> 2023-24 | L45: ='[4]ESC Model Top 10'!$K$6 -> 50 | M45: ='[4]ESC Model Top 10'!$L$6 -> 50 | O45: ='[4]ESC Model Top 10'!$N$6 -> 0.988 | P45: ='[4]ESC Model Top 10'!$O$6 -> 0 | Q45: ='[4]ESC Model Top 10'!$P$6 -> 0 | R45: ='[4]ESC Model Top 10'!$Q$6 -> 0 | S45: ='[4]ESC Model Top 10'!$R$6 -> 0 | Z45: ='[4]ESC Model Top 10'!Y6 -> 0 | AA45: ='[4]ESC Model Top 10'!Z6 -> 0 | AB45: ='[4]ESC Model Top 10'!AA6 -> 0 | AC45: ='[4]ESC Model Top 10'!AB6 -> 0 | AD45: ='[4]ESC Model Top 10'!AC6 -> 0 | AV45: 0.988 | AW45: 0 | AX45: 0 | AY45: 0 | AZ45: 0 | BA45: 0 | BB45: 0 | BC45: 0 | BD45: 0 | BE45: 0 | BG45: 0.00988 | BH45: 0.01976 | BI45: 0.01976 | BJ45: 0.01976 | BK45: 0.01976 | BL45: 0.01976 | BM45: 0.01976 | BN45: 0.01976 | BO45: 0.01976 | BP45: 0.01976 | BR45: =+IF($K45="Ongoing",AV45,IF(RIGHT($K45,2)=RIGHT(BR$39,2),SUM($AV45:AV45),0)+IF(RIGHT(BR$39,2)>RIGHT($K45,2),AV45,0)) -> 0.988 | BS45: =+IF($K45="Ongoing",AW45,IF(RIGHT($K45,2)=RIGHT(BS$39,2),SUM($AV45:AW45),0)+IF(RIGHT(BS$39,2)>RIGHT($K45,2),AW45,0)) -> 0 | BT45: =+IF($K45="Ongoing",AX45,IF(RIGHT($K45,2)=RIGHT(BT$39,2),SUM($AV45:AX45),0)+IF(RIGHT(BT$39,2)>RIGHT($K45,2),AX45,0)) -> 0 | BU45: =+IF($K45="Ongoing",AY45,IF(RIGHT($K45,2)=RIGHT(BU$39,2),SUM($AV45:AY45),0)+IF(RIGHT(BU$39,2)>RIGHT($K45,2),AY45,0)) -> 0 | BV45: =+IF($K45="Ongoing",AZ45,IF(RIGHT($K45,2)=RIGHT(BV$39,2),SUM($AV45:AZ45),0)+IF(RIGHT(BV$39,2)>RIGHT($K45,2),AZ45,0)) -> 0 | BW45: =+IF($K45="Ongoing",BA45,IF(RIGHT($K45,2)=RIGHT(BW$39,2),SUM($AV45:BA45),0)+IF(RIGHT(BW$39,2)>RIGHT($K45,2),BA45,0)) -> 0 | BX45: =+IF($K45="Ongoing",BB45,IF(RIGHT($K45,2)=RIGHT(BX$39,2),SUM($AV45:BB45),0)+IF(RIGHT(BX$39,2)>RIGHT($K45,2),BB45,0)) -> 0 | BY45: =+IF($K45="Ongoing",BC45,IF(RIGHT($K45,2)=RIGHT(BY$39,2),SUM($AV45:BC45),0)+IF(RIGHT(BY$39,2)>RIGHT($K45,2),BC45,0)) -> 0 | BZ45: =+IF($K45="Ongoing",BD45,IF(RIGHT($K45,2)=RIGHT(BZ$39,2),SUM($AV45:BD45),0)+IF(RIGHT(BZ$39,2)>RIGHT($K45,2),BD45,0)) -> 0 | CA45: =+IF($K45="Ongoing",BE45,IF(RIGHT($K45,2)=RIGHT(CA$39,2),SUM($AV45:BE45),0)+IF(RIGHT(CA$39,2)>RIGHT($K45,2),BE45,0)) -> 0 | CC45: =+O45*KeyAssumptionsPriceControl_FO!AC$15 -> 1.01764 | CD45: =+P45*KeyAssumptionsPriceControl_FO!AD$15 -> 0 | CE45: =+Q45*KeyAssumptionsPriceControl_FO!AE$15 -> 0 | CF45: =+R45*KeyAssumptionsPriceControl_FO!AF$15 -> 0 | CG45: =+S45*KeyAssumptionsPriceControl_FO!AG$15 -> 0 | CH45: =+T45*KeyAssumptionsPriceControl_FO!AH$15 -> 0 | CI45: =+U45*KeyAssumptionsPriceControl_FO!AI$15 -> 0 | CJ45: =+V45*KeyAssumptionsPriceControl_FO!AJ$15 -> 0 | CK45: =+W45*KeyAssumptionsPriceControl_FO!AK$15 -> 0 | CL45: =+X45*KeyAssumptionsPriceControl_FO!AL$15 -> 0 | CN45: 0.0101764 | CO45: 0.0203528 | CP45: 0.0203528 | CQ45: 0.0203528 | CR45: 0.0203528 | CS45: 0.0203528 | CT45: 0.0203528 | CU45: 0.0203528 | CV45: 0.0203528 | CW45: 0.0203528
B46: c | C46: ='[4]ESC Model Top 10'!$B$7 -> Glenmaggie re-paint spillway gates | E46: ='[4]ESC Model Top 10'!$D$7 -> Bulk water services | F46: ='[4]ESC Model Top 10'!$E$7 -> Renewals | G46: ='[4]ESC Model Top 10'!$F$7 -> Headworks | H46: ='[4]ESC Model Top 10'!$G$7 -> Top 10 Major Projects | J46: Straight line | K46: ='[4]ESC Model Top 10'!$J$7 -> Ongoing | L46: ='[4]ESC Model Top 10'!$K$7 -> 50 | M46: ='[4]ESC Model Top 10'!$L$7 -> 50 | O46: ='[4]ESC Model Top 10'!$N$7 -> 0 | P46: ='[4]ESC Model Top 10'!$O$7 -> 0.45 | Q46: ='[4]ESC Model Top 10'!$P$7 -> 0.675 | R46: ='[4]ESC Model Top 10'!$Q$7 -> 0.225 | S46: ='[4]ESC Model Top 10'!$R$7 -> 0.9 | Z46: ='[4]ESC Model Top 10'!Y7 -> 0 | AA46: ='[4]ESC Model Top 10'!Z7 -> 0 | AB46: ='[4]ESC Model Top 10'!AA7 -> 0 | AC46: ='[4]ESC Model Top 10'!AB7 -> 0 | AD46: ='[4]ESC Model Top 10'!AC7 -> 0 | AV46: 0 | AW46: 0.45 | AX46: 0.675 | AY46: 0.225 | AZ46: 0.9 | BA46: 0 | BB46: 0 | BC46: 0 | BD46: 0 | BE46: 0 | BG46: 0 | BH46: 0.0045 | BI46: 0.01575 | BJ46: 0.02475 | BK46: 0.036 | BL46: 0.045 | BM46: 0.045 | BN46: 0.045 | BO46: 0.045 | BP46: 0.045 | BR46: =+IF($K46="Ongoing",AV46,IF(RIGHT($K46,2)=RIGHT(BR$39,2),SUM($AV46:AV46),0)+IF(RIGHT(BR$39,2)>RIGHT($K46,2),AV46,0)) -> 0 | BS46: =+IF($K46="Ongoing",AW46,IF(RIGHT($K46,2)=RIGHT(BS$39,2),SUM($AV46:AW46),0)+IF(RIGHT(BS$39,2)>RIGHT($K46,2),AW46,0)) -> 0.45 | BT46: =+IF($K46="Ongoing",AX46,IF(RIGHT($K46,2)=RIGHT(BT$39,2),SUM($AV46:AX46),0)+IF(RIGHT(BT$39,2)>RIGHT($K46,2),AX46,0)) -> 0.675 | BU46: =+IF($K46="Ongoing",AY46,IF(RIGHT($K46,2)=RIGHT(BU$39,2),SUM($AV46:AY46),0)+IF(RIGHT(BU$39,2)>RIGHT($K46,2),AY46,0)) -> 0.225 | BV46: =+IF($K46="Ongoing",AZ46,IF(RIGHT($K46,2)=RIGHT(BV$39,2),SUM($AV46:AZ46),0)+IF(RIGHT(BV$39,2)>RIGHT($K46,2),AZ46,0)) -> 0.9 | BW46: =+IF($K46="Ongoing",BA46,IF(RIGHT($K46,2)=RIGHT(BW$39,2),SUM($AV46:BA46),0)+IF(RIGHT(BW$39,2)>RIGHT($K46,2),BA46,0)) -> 0 | BX46: =+IF($K46="Ongoing",BB46,IF(RIGHT($K46,2)=RIGHT(BX$39,2),SUM($AV46:BB46),0)+IF(RIGHT(BX$39,2)>RIGHT($K46,2),BB46,0)) -> 0 | BY46: =+IF($K46="Ongoing",BC46,IF(RIGHT($K46,2)=RIGHT(BY$39,2),SUM($AV46:BC46),0)+IF(RIGHT(BY$39,2)>RIGHT($K46,2),BC46,0)) -> 0 | BZ46: =+IF($K46="Ongoing",BD46,IF(RIGHT($K46,2)=RIGHT(BZ$39,2),SUM($AV46:BD46),0)+IF(RIGHT(BZ$39,2)>RIGHT($K46,2),BD46,0)) -> 0 | CA46: =+IF($K46="Ongoing",BE46,IF(RIGHT($K46,2)=RIGHT(CA$39,2),SUM($AV46:BE46),0)+IF(RIGHT(CA$39,2)>RIGHT($K46,2),BE46,0)) -> 0 | CC46: =+O46*KeyAssumptionsPriceControl_FO!AC$15 -> 0 | CD46: =+P46*KeyAssumptionsPriceControl_FO!AD$15 -> 0.477405 | CE46: =+Q46*KeyAssumptionsPriceControl_FO!AE$15 -> 0.737590725 | CF46: =+R46*KeyAssumptionsPriceControl_FO!AF$15 -> 0.2532394823 | CG46: =+S46*KeyAssumptionsPriceControl_FO!AG$15 -> 1.043346667 | CH46: =+T46*KeyAssumptionsPriceControl_FO!AH$15 -> 0 | CI46: =+U46*KeyAssumptionsPriceControl_FO!AI$15 -> 0 | CJ46: =+V46*KeyAssumptionsPriceControl_FO!AJ$15 -> 0 | CK46: =+W46*KeyAssumptionsPriceControl_FO!AK$15 -> 0 | CL46: =+X46*KeyAssumptionsPriceControl_FO!AL$15 -> 0 | CN46: 0 | CO46: 0.00477405 | CP46: 0.01692400725 | CQ46: 0.02683230932 | CR46: 0.03979817081 | CS46: 0.05023163748 | CT46: 0.05023163748 | CU46: 0.05023163748 | CV46: 0.05023163748 | CW46: 0.05023163748
B47: 2027 | C47: ='[4]ESC Model Top 10'!$B$8 -> Melton spillway left training wall upgrade (includes overhanging rock) | E47: ='[4]ESC Model Top 10'!$D$8 -> Bulk water services | F47: ='[4]ESC Model Top 10'!$E$8 -> Improvements / Compliance | G47: ='[4]ESC Model Top 10'!$F$8 -> Headworks | H47: ='[4]ESC Model Top 10'!$G$8 -> Top 10 Major Projects | J47: Straight line | K47: ='[4]ESC Model Top 10'!$J$8 -> 2026-27 | L47: ='[4]ESC Model Top 10'!$K$8 -> 50 | M47: ='[4]ESC Model Top 10'!$L$8 -> 50 | O47: ='[4]ESC Model Top 10'!$N$8 -> 0 | P47: ='[4]ESC Model Top 10'!$O$8 -> 0.248 | Q47: ='[4]ESC Model Top 10'!$P$8 -> 0.745 | R47: ='[4]ESC Model Top 10'!$Q$8 -> 1.407 | S47: ='[4]ESC Model Top 10'!$R$8 -> 0 | Z47: ='[4]ESC Model Top 10'!Y8 -> 0 | AA47: ='[4]ESC Model Top 10'!Z8 -> 0 | AB47: ='[4]ESC Model Top 10'!AA8 -> 0 | AC47: ='[4]ESC Model Top 10'!AB8 -> 0 | AD47: ='[4]ESC Model Top 10'!AC8 -> 0 | AV47: 0 | AW47: 0.248 | AX47: 0.745 | AY47: 1.407 | AZ47: 0 | BA47: 0 | BB47: 0 | BC47: 0 | BD47: 0 | BE47: 0 | BG47: 0 | BH47: 0.002943 | BI47: 0.014715 | BJ47: 0.041202 | BK47: 0.05886 | BL47: 0.05886 | BM47: 0.05886 | BN47: 0.05886 | BO47: 0.05886 | BP47: 0.05886 | BR47: =+IF($K47="Ongoing",AV47,IF(RIGHT($K47,2)=RIGHT(BR$39,2),SUM($AV47:AV47),0)+IF(RIGHT(BR$39,2)>RIGHT($K47,2),AV47,0)) -> 0 | BS47: =+IF($K47="Ongoing",AW47,IF(RIGHT($K47,2)=RIGHT(BS$39,2),SUM($AV47:AW47),0)+IF(RIGHT(BS$39,2)>RIGHT($K47,2),AW47,0)) -> 0 | BT47: =+IF($K47="Ongoing",AX47,IF(RIGHT($K47,2)=RIGHT(BT$39,2),SUM($AV47:AX47),0)+IF(RIGHT(BT$39,2)>RIGHT($K47,2),AX47,0)) -> 0 | BU47: =+IF($K47="Ongoing",AY47,IF(RIGHT($K47,2)=RIGHT(BU$39,2),SUM($AV47:AY47),0)+IF(RIGHT(BU$39,2)>RIGHT($K47,2),AY47,0)) -> 2.4 | BV47: =+IF($K47="Ongoing",AZ47,IF(RIGHT($K47,2)=RIGHT(BV$39,2),SUM($AV47:AZ47),0)+IF(RIGHT(BV$39,2)>RIGHT($K47,2),AZ47,0)) -> 0 | BW47: =+IF($K47="Ongoing",BA47,IF(RIGHT($K47,2)=RIGHT(BW$39,2),SUM($AV47:BA47),0)+IF(RIGHT(BW$39,2)>RIGHT($K47,2),BA47,0)) -> 0 | BX47: =+IF($K47="Ongoing",BB47,IF(RIGHT($K47,2)=RIGHT(BX$39,2),SUM($AV47:BB47),0)+IF(RIGHT(BX$39,2)>RIGHT($K47,2),BB47,0)) -> 0 | BY47: =+IF($K47="Ongoing",BC47,IF(RIGHT($K47,2)=RIGHT(BY$39,2),SUM($AV47:BC47),0)+IF(RIGHT(BY$39,2)>RIGHT($K47,2),BC47,0)) -> 0 | BZ47: =+IF($K47="Ongoing",BD47,IF(RIGHT($K47,2)=RIGHT(BZ$39,2),SUM($AV47:BD47),0)+IF(RIGHT(BZ$39,2)>RIGHT($K47,2),BD47,0)) -> 0 | CA47: =+IF($K47="Ongoing",BE47,IF(RIGHT($K47,2)=RIGHT(CA$39,2),SUM($AV47:BE47),0)+IF(RIGHT(CA$39,2)>RIGHT($K47,2),BE47,0)) -> 0 | CC47: =+O47*KeyAssumptionsPriceControl_FO!AC$15 -> 0 | CD47: =+P47*KeyAssumptionsPriceControl_FO!AD$15 -> 0.2631032 | CE47: =+Q47*KeyAssumptionsPriceControl_FO!AE$15 -> 0.814081615 | CF47: =+R47*KeyAssumptionsPriceControl_FO!AF$15 -> 1.583590896 | CG47: =+S47*KeyAssumptionsPriceControl_FO!AG$15 -> 0 | CH47: =+T47*KeyAssumptionsPriceControl_FO!AH$15 -> 0 | CI47: =+U47*KeyAssumptionsPriceControl_FO!AI$15 -> 0 | CJ47: =+V47*KeyAssumptionsPriceControl_FO!AJ$15 -> 0 | CK47: =+W47*KeyAssumptionsPriceControl_FO!AK$15 -> 0 | CL47: =+X47*KeyAssumptionsPriceControl_FO!AL$15 -> 0 | CN47: 0 | CO47: 0.0031222287 | CP47: 0.01589214408 | CQ47: 0.04541406533 | CR47: 0.0652882999 | CS47: 0.0652882999 | CT47: 0.0652882999 | CU47: 0.0652882999 | CV47: 0.0652882999 | CW47: 0.0652882999
B48: c | C48: ='[4]ESC Model Top 10'!$B$9 -> Southern main concrete flume joint repair | E48: ='[4]ESC Model Top 10'!$D$9 -> Irrigation | F48: ='[4]ESC Model Top 10'!$E$9 -> Renewals | G48: ='[4]ESC Model Top 10'!$F$9 -> Channels | H48: ='[4]ESC Model Top 10'!$G$9 -> Top 10 Major Projects | J48: Straight line | K48: ='[4]ESC Model Top 10'!$J$9 -> Ongoing | L48: ='[4]ESC Model Top 10'!$K$9 -> 50 | M48: ='[4]ESC Model Top 10'!$L$9 -> 50 | O48: ='[4]ESC Model Top 10'!$N$9 -> 0.125 | P48: ='[4]ESC Model Top 10'!$O$9 -> 0.3125 | Q48: ='[4]ESC Model Top 10'!$P$9 -> 0.3125 | R48: ='[4]ESC Model Top 10'!$Q$9 -> 0.3125 | S48: ='[4]ESC Model Top 10'!$R$9 -> 0.3125 | Z48: ='[4]ESC Model Top 10'!Y9 -> 0 | AA48: ='[4]ESC Model Top 10'!Z9 -> 0 | AB48: ='[4]ESC Model Top 10'!AA9 -> 0 | AC48: ='[4]ESC Model Top 10'!AB9 -> 0 | AD48: ='[4]ESC Model Top 10'!AC9 -> 0 | AV48: 0.125 | AW48: 0.3125 | AX48: 0.3125 | AY48: 0.3125 | AZ48: 0.3125 | BA48: 0 | BB48: 0 | BC48: 0 | BD48: 0 | BE48: 0 | BG48: 0.00125 | BH48: 0.005625 | BI48: 0.011875 | BJ48: 0.018125 | BK48: 0.024375 | BL48: 0.0275 | BM48: 0.0275 | BN48: 0.0275 | BO48: 0.0275 | BP48: 0.0275 | BR48: =+IF($K48="Ongoing",AV48,IF(RIGHT($K48,2)=RIGHT(BR$39,2),SUM($AV48:AV48),0)+IF(RIGHT(BR$39,2)>RIGHT($K48,2),AV48,0)) -> 0.125 | BS48: =+IF($K48="Ongoing",AW48,IF(RIGHT($K48,2)=RIGHT(BS$39,2),SUM($AV48:AW48),0)+IF(RIGHT(BS$39,2)>RIGHT($K48,2),AW48,0)) -> 0.3125 | BT48: =+IF($K48="Ongoing",AX48,IF(RIGHT($K48,2)=RIGHT(BT$39,2),SUM($AV48:AX48),0)+IF(RIGHT(BT$39,2)>RIGHT($K48,2),AX48,0)) -> 0.3125 | BU48: =+IF($K48="Ongoing",AY48,IF(RIGHT($K48,2)=RIGHT(BU$39,2),SUM($AV48:AY48),0)+IF(RIGHT(BU$39,2)>RIGHT($K48,2),AY48,0)) -> 0.3125 | BV48: =+IF($K48="Ongoing",AZ48,IF(RIGHT($K48,2)=RIGHT(BV$39,2),SUM($AV48:AZ48),0)+IF(RIGHT(BV$39,2)>RIGHT($K48,2),AZ48,0)) -> 0.3125 | BW48: =+IF($K48="Ongoing",BA48,IF(RIGHT($K48,2)=RIGHT(BW$39,2),SUM($AV48:BA48),0)+IF(RIGHT(BW$39,2)>RIGHT($K48,2),BA48,0)) -> 0 | BX48: =+IF($K48="Ongoing",BB48,IF(RIGHT($K48,2)=RIGHT(BX$39,2),SUM($AV48:BB48),0)+IF(RIGHT(BX$39,2)>RIGHT($K48,2),BB48,0)) -> 0 | BY48: =+IF($K48="Ongoing",BC48,IF(RIGHT($K48,2)=RIGHT(BY$39,2),SUM($AV48:BC48),0)+IF(RIGHT(BY$39,2)>RIGHT($K48,2),BC48,0)) -> 0 | BZ48: =+IF($K48="Ongoing",BD48,IF(RIGHT($K48,2)=RIGHT(BZ$39,2),SUM($AV48:BD48),0)+IF(RIGHT(BZ$39,2)>RIGHT($K48,2),BD48,0)) -> 0 | CA48: =+IF($K48="Ongoing",BE48,IF(RIGHT($K48,2)=RIGHT(CA$39,2),SUM($AV48:BE48),0)+IF(RIGHT(CA$39,2)>RIGHT($K48,2),BE48,0)) -> 0 | CC48: =+O48*KeyAssumptionsPriceControl_FO!AC$15 -> 0.12875 | CD48: =+P48*KeyAssumptionsPriceControl_FO!AD$15 -> 0.33153125 | CE48: =+Q48*KeyAssumptionsPriceControl_FO!AE$15 -> 0.3414771875 | CF48: =+R48*KeyAssumptionsPriceControl_FO!AF$15 -> 0.3517215031 | CG48: =+S48*KeyAssumptionsPriceControl_FO!AG$15 -> 0.3622731482 | CH48: =+T48*KeyAssumptionsPriceControl_FO!AH$15 -> 0 | CI48: =+U48*KeyAssumptionsPriceControl_FO!AI$15 -> 0 | CJ48: =+V48*KeyAssumptionsPriceControl_FO!AJ$15 -> 0 | CK48: =+W48*KeyAssumptionsPriceControl_FO!AK$15 -> 0 | CL48: =+X48*KeyAssumptionsPriceControl_FO!AL$15 -> 0 | CN48: 0.0012875 | CO48: 0.0058903125 | CP48: 0.01262039688 | CQ48: 0.01955238378 | CR48: 0.02669233029 | CS48: 0.03031506178 | CT48: 0.03031506178 | CU48: 0.03031506178 | CV48: 0.03031506178 | CW48: 0.03031506178
B49: c | C49: ='[4]ESC Model Top 10'!$B$10 -> MSC Tunnel No 5 Relining / Repairs | E49: ='[4]ESC Model Top 10'!$D$10 -> Irrigation | F49: ='[4]ESC Model Top 10'!$E$10 -> Renewals | G49: ='[4]ESC Model Top 10'!$F$10 -> Pipelines/network | H49: ='[4]ESC Model Top 10'!$G$10 -> Top 10 Major Projects | J49: Straight line | K49: ='[4]ESC Model Top 10'!$J$10 -> 2025-26 | L49: ='[4]ESC Model Top 10'!$K$10 -> 50 | M49: ='[4]ESC Model Top 10'!$L$10 -> 50 | O49: ='[4]ESC Model Top 10'!$N$10 -> 0.18 | P49: ='[4]ESC Model Top 10'!$O$10 -> 0.6 | Q49: ='[4]ESC Model Top 10'!$P$10 -> 0.75 | R49: ='[4]ESC Model Top 10'!$Q$10 -> 1.73 | S49: ='[4]ESC Model Top 10'!$R$10 -> 0 | Z49: ='[4]ESC Model Top 10'!Y10 -> 0 | AA49: ='[4]ESC Model Top 10'!Z10 -> 0 | AB49: ='[4]ESC Model Top 10'!AA10 -> 0 | AC49: ='[4]ESC Model Top 10'!AB10 -> 0 | AD49: ='[4]ESC Model Top 10'!AC10 -> 0 | AV49: 0.18 | AW49: 0.6 | AX49: 0.75 | AY49: 1.73 | AZ49: 0 | BA49: 0 | BB49: 0 | BC49: 0 | BD49: 0 | BE49: 0 | BG49: 0.0015 | BH49: 0.01155 | BI49: 0.03855 | BJ49: 0.057 | BK49: 0.057 | BL49: 0.057 | BM49: 0.057 | BN49: 0.057 | BO49: 0.057 | BP49: 0.057 | BR49: =+IF($K49="Ongoing",AV49,IF(RIGHT($K49,2)=RIGHT(BR$39,2),SUM($AV49:AV49),0)+IF(RIGHT(BR$39,2)>RIGHT($K49,2),AV49,0)) -> 0 | BS49: =+IF($K49="Ongoing",AW49,IF(RIGHT($K49,2)=RIGHT(BS$39,2),SUM($AV49:AW49),0)+IF(RIGHT(BS$39,2)>RIGHT($K49,2),AW49,0)) -> 0 | BT49: =+IF($K49="Ongoing",AX49,IF(RIGHT($K49,2)=RIGHT(BT$39,2),SUM($AV49:AX49),0)+IF(RIGHT(BT$39,2)>RIGHT($K49,2),AX49,0)) -> 1.53 | BU49: =+IF($K49="Ongoing",AY49,IF(RIGHT($K49,2)=RIGHT(BU$39,2),SUM($AV49:AY49),0)+IF(RIGHT(BU$39,2)>RIGHT($K49,2),AY49,0)) -> 1.73 | BV49: =+IF($K49="Ongoing",AZ49,IF(RIGHT($K49,2)=RIGHT(BV$39,2),SUM($AV49:AZ49),0)+IF(RIGHT(BV$39,2)>RIGHT($K49,2),AZ49,0)) -> 0 | BW49: =+IF($K49="Ongoing",BA49,IF(RIGHT($K49,2)=RIGHT(BW$39,2),SUM($AV49:BA49),0)+IF(RIGHT(BW$39,2)>RIGHT($K49,2),BA49,0)) -> 0 | BX49: =+IF($K49="Ongoing",BB49,IF(RIGHT($K49,2)=RIGHT(BX$39,2),SUM($AV49:BB49),0)+IF(RIGHT(BX$39,2)>RIGHT($K49,2),BB49,0)) -> 0 | BY49: =+IF($K49="Ongoing",BC49,IF(RIGHT($K49,2)=RIGHT(BY$39,2),SUM($AV49:BC49),0)+IF(RIGHT(BY$39,2)>RIGHT($K49,2),BC49,0)) -> 0 | BZ49: =+IF($K49="Ongoing",BD49,IF(RIGHT($K49,2)=RIGHT(BZ$39,2),SUM($AV49:BD49),0)+IF(RIGHT(BZ$39,2)>RIGHT($K49,2),BD49,0)) -> 0 | CA49: =+IF($K49="Ongoing",BE49,IF(RIGHT($K49,2)=RIGHT(CA$39,2),SUM($AV49:BE49),0)+IF(RIGHT(CA$39,2)>RIGHT($K49,2),BE49,0)) -> 0 | CC49: =+O49*KeyAssumptionsPriceControl_FO!AC$15 -> 0.1854 | CD49: =+P49*KeyAssumptionsPriceControl_FO!AD$15 -> 0.63654 | CE49: =+Q49*KeyAssumptionsPriceControl_FO!AE$15 -> 0.81954525 | CF49: =+R49*KeyAssumptionsPriceControl_FO!AF$15 -> 1.947130241 | CG49: =+S49*KeyAssumptionsPriceControl_FO!AG$15 -> 0 | CH49: =+T49*KeyAssumptionsPriceControl_FO!AH$15 -> 0 | CI49: =+U49*KeyAssumptionsPriceControl_FO!AI$15 -> 0 | CJ49: =+V49*KeyAssumptionsPriceControl_FO!AJ$15 -> 0 | CK49: =+W49*KeyAssumptionsPriceControl_FO!AK$15 -> 0 | CL49: =+X49*KeyAssumptionsPriceControl_FO!AL$15 -> 0 | CN49: 0.001545 | CO49: 0.012160695 | CP49: 0.04139220315 | CQ49: 0.0615530163 | CR49: 0.0615530163 | CS49: 0.0615530163 | CT49: 0.0615530163 | CU49: 0.0615530163 | CV49: 0.0615530163 | CW49: 0.0615530163
B50: 2025 | C50: ='[4]ESC Model Top 10'!$B$11 -> MID2030 2 | E50: ='[4]ESC Model Top 10'!$D$11 -> Irrigation | F50: ='[4]ESC Model Top 10'!$E$11 -> Improvements / Compliance | G50: ='[4]ESC Model Top 10'!$F$11 -> Pipelines/network | H50: ='[4]ESC Model Top 10'!$G$11 -> Top 10 Major Projects | J50: Straight line | K50: ='[4]ESC Model Top 10'!$J$11 -> 2024-25 | L50: ='[4]ESC Model Top 10'!$K$11 -> 50 | M50: ='[4]ESC Model Top 10'!$L$11 -> 50 | O50: ='[4]ESC Model Top 10'!$N$11 -> 20.28159882 | P50: ='[4]ESC Model Top 10'!$O$11 -> 3.57133 | Q50: ='[4]ESC Model Top 10'!$P$11 -> 0 | R50: ='[4]ESC Model Top 10'!$Q$11 -> 0 | S50: ='[4]ESC Model Top 10'!$R$11 -> 0 | Z50: ='[4]ESC Model Top 10'!Y11 -> 6.637193216 | AA50: ='[4]ESC Model Top 10'!Z11 -> 0.2374116396 | AB50: ='[4]ESC Model Top 10'!AA11 -> 0 | AC50: ='[4]ESC Model Top 10'!AB11 -> 0 | AD50: ='[4]ESC Model Top 10'!AC11 -> 0 | AK50: ='[4]ESC Model Top 10'!AJ11 -> 2.514758763 | AL50: ='[4]ESC Model Top 10'!AK11 -> 2.514758763 | AM50: ='[4]ESC Model Top 10'!AL11 -> 2.514758763 | AN50: ='[4]ESC Model Top 10'!AM11 -> 2.514758763 | AO50: ='[4]ESC Model Top 10'!AN11 -> 2.514758763 | AP50: ='[4]ESC Model Top 10'!AO11 -> 2.514758763 | AQ50: ='[4]ESC Model Top 10'!AP11 -> 2.514758763 | AR50: ='[4]ESC Model Top 10'!AQ11 -> 2.514758763 | AS50: ='[4]ESC Model Top 10'!AR11 -> 2.514758763 | AT50: ='[4]ESC Model Top 10'!AS11 -> 2.514758763 | AV50: 11.12964684 | AW50: 0.8191595975 | AX50: -2.514758763 | AY50: -2.514758763 | AZ50: -2.514758763 | BA50: -2.514758763 | BB50: -2.514758763 | BC50: -2.514758763 | BD50: -2.514758763 | BE50: -2.514758763 | BG50: 0.1629190823 | BH50: 0.3340297606 | BI50: 0.3170737689 | BJ50: 0.2667785937 | BK50: 0.2164834184 | BL50: 0.1661882432 | BM50: 0.1158930679 | BN50: 0.06559789266 | BO50: 0.0153027174 | BP50: -0.03499245786 | BR50: =+IF($K50="Ongoing",AV50,IF(RIGHT($K50,2)=RIGHT(BR$39,2),SUM($AV50:AV50),0)+IF(RIGHT(BR$39,2)>RIGHT($K50,2),AV50,0)) -> 0 | BS50: =+IF($K50="Ongoing",AW50,IF(RIGHT($K50,2)=RIGHT(BS$39,2),SUM($AV50:AW50),0)+IF(RIGHT(BS$39,2)>RIGHT($K50,2),AW50,0)) -> 11.94880644 | BT50: =+IF($K50="Ongoing",AX50,IF(RIGHT($K50,2)=RIGHT(BT$39,2),SUM($AV50:AX50),0)+IF(RIGHT(BT$39,2)>RIGHT($K50,2),AX50,0)) -> -2.514758763 | BU50: =+IF($K50="Ongoing",AY50,IF(RIGHT($K50,2)=RIGHT(BU$39,2),SUM($AV50:AY50),0)+IF(RIGHT(BU$39,2)>RIGHT($K50,2),AY50,0)) -> -2.514758763 | BV50: =+IF($K50="Ongoing",AZ50,IF(RIGHT($K50,2)=RIGHT(BV$39,2),SUM($AV50:AZ50),0)+IF(RIGHT(BV$39,2)>RIGHT($K50,2),AZ50,0)) -> -2.514758763 | BW50: =+IF($K50="Ongoing",BA50,IF(RIGHT($K50,2)=RIGHT(BW$39,2),SUM($AV50:BA50),0)+IF(RIGHT(BW$39,2)>RIGHT($K50,2),BA50,0)) -> -2.514758763 | BX50: =+IF($K50="Ongoing",BB50,IF(RIGHT($K50,2)=RIGHT(BX$39,2),SUM($AV50:BB50),0)+IF(RIGHT(BX$39,2)>RIGHT($K50,2),BB50,0)) -> -2.514758763 | BY50: =+IF($K50="Ongoing",BC50,IF(RIGHT($K50,2)=RIGHT(BY$39,2),SUM($AV50:BC50),0)+IF(RIGHT(BY$39,2)>RIGHT($K50,2),BC50,0)) -> -2.514758763 | BZ50: =+IF($K50="Ongoing",BD50,IF(RIGHT($K50,2)=RIGHT(BZ$39,2),SUM($AV50:BD50),0)+IF(RIGHT(BZ$39,2)>RIGHT($K50,2),BD50,0)) -> -2.514758763 | CA50: =+IF($K50="Ongoing",BE50,IF(RIGHT($K50,2)=RIGHT(CA$39,2),SUM($AV50:BE50),0)+IF(RIGHT(CA$39,2)>RIGHT($K50,2),BE50,0)) -> -2.514758763 | CC50: =+O50*KeyAssumptionsPriceControl_FO!AC$15 -> 20.89004678 | CD50: =+P50*KeyAssumptionsPriceControl_FO!AD$15 -> 3.788823997 | CE50: =+Q50*KeyAssumptionsPriceControl_FO!AE$15 -> 0 | CF50: =+R50*KeyAssumptionsPriceControl_FO!AF$15 -> 0 | CG50: =+S50*KeyAssumptionsPriceControl_FO!AG$15 -> 0 | CH50: =+T50*KeyAssumptionsPriceControl_FO!AH$15 -> 0 | CI50: =+U50*KeyAssumptionsPriceControl_FO!AI$15 -> 0 | CJ50: =+V50*KeyAssumptionsPriceControl_FO!AJ$15 -> 0 | CK50: =+W50*KeyAssumptionsPriceControl_FO!AK$15 -> 0 | CL50: =+X50*KeyAssumptionsPriceControl_FO!AL$15 -> 0 | CN50: 0.2089004678 | CO50: 0.4556891757 | CP50: 0.4935774156 | CQ50: 0.4935774156 | CR50: 0.4935774156 | CS50: 0.4935774156 | CT50: 0.4935774156 | CU50: 0.4935774156 | CV50: 0.4935774156 | CW50: 0.4935774156
B51: c | C51: ='[4]ESC Model Top 10'!$B$12 -> WID modernisation | E51: ='[4]ESC Model Top 10'!$D$12 -> Irrigation | F51: ='[4]ESC Model Top 10'!$E$12 -> Improvements / Compliance | G51: ='[4]ESC Model Top 10'!$F$12 -> Pipelines/network | H51: ='[4]ESC Model Top 10'!$G$12 -> Top 10 Major Projects | J51: Straight line | K51: ='[4]ESC Model Top 10'!$J$12 -> 2024-25 | L51: ='[4]ESC Model Top 10'!$K$12 -> 50 | M51: ='[4]ESC Model Top 10'!$L$12 -> 50 | O51: ='[4]ESC Model Top 10'!$N$12 -> 9.75304579 | P51: ='[4]ESC Model Top 10'!$O$12 -> 3.372168 | Q51: ='[4]ESC Model Top 10'!$P$12 -> 0 | R51: ='[4]ESC Model Top 10'!$Q$12 -> 0 | S51: ='[4]ESC Model Top 10'!$R$12 -> 0 | Z51: ='[4]ESC Model Top 10'!Y12 -> 4.719781842 | AA51: ='[4]ESC Model Top 10'!Z12 -> 4.133077127 | AB51: ='[4]ESC Model Top 10'!AA12 -> 0.4462960365 | AC51: ='[4]ESC Model Top 10'!AB12 -> 0 | AD51: ='[4]ESC Model Top 10'!AC12 -> 0 | AV51: 5.033263948 | AW51: -0.7609091266 | AX51: -0.4462960365 | AY51: 0 | AZ51: 0 | BA51: 0 | BB51: 0 | BC51: 0 | BD51: 0 | BE51: 0 | BG51: 0.04344962429 | BH51: 0.1206209286 | BI51: 0.1543426086 | BJ51: 0.1543426086 | BK51: 0.1543426086 | BL51: 0.1543426086 | BM51: 0.1543426086 | BN51: 0.1543426086 | BO51: 0.1543426086 | BP51: 0.1543426086 | BR51: =+IF($K51="Ongoing",AV51,IF(RIGHT($K51,2)=RIGHT(BR$39,2),SUM($AV51:AV51),0)+IF(RIGHT(BR$39,2)>RIGHT($K51,2),AV51,0)) -> 0 | BS51: =+IF($K51="Ongoing",AW51,IF(RIGHT($K51,2)=RIGHT(BS$39,2),SUM($AV51:AW51),0)+IF(RIGHT(BS$39,2)>RIGHT($K51,2),AW51,0)) -> 4.272354821 | BT51: =+IF($K51="Ongoing",AX51,IF(RIGHT($K51,2)=RIGHT(BT$39,2),SUM($AV51:AX51),0)+IF(RIGHT(BT$39,2)>RIGHT($K51,2),AX51,0)) -> -0.4462960365 | BU51: =+IF($K51="Ongoing",AY51,IF(RIGHT($K51,2)=RIGHT(BU$39,2),SUM($AV51:AY51),0)+IF(RIGHT(BU$39,2)>RIGHT($K51,2),AY51,0)) -> 0 | BV51: =+IF($K51="Ongoing",AZ51,IF(RIGHT($K51,2)=RIGHT(BV$39,2),SUM($AV51:AZ51),0)+IF(RIGHT(BV$39,2)>RIGHT($K51,2),AZ51,0)) -> 0 | BW51: =+IF($K51="Ongoing",BA51,IF(RIGHT($K51,2)=RIGHT(BW$39,2),SUM($AV51:BA51),0)+IF(RIGHT(BW$39,2)>RIGHT($K51,2),BA51,0)) -> 0 | BX51: =+IF($K51="Ongoing",BB51,IF(RIGHT($K51,2)=RIGHT(BX$39,2),SUM($AV51:BB51),0)+IF(RIGHT(BX$39,2)>RIGHT($K51,2),BB51,0)) -> 0 | BY51: =+IF($K51="Ongoing",BC51,IF(RIGHT($K51,2)=RIGHT(BY$39,2),SUM($AV51:BC51),0)+IF(RIGHT(BY$39,2)>RIGHT($K51,2),BC51,0)) -> 0 | BZ51: =+IF($K51="Ongoing",BD51,IF(RIGHT($K51,2)=RIGHT(BZ$39,2),SUM($AV51:BD51),0)+IF(RIGHT(BZ$39,2)>RIGHT($K51,2),BD51,0)) -> 0 | CA51: =+IF($K51="Ongoing",BE51,IF(RIGHT($K51,2)=RIGHT(CA$39,2),SUM($AV51:BE51),0)+IF(RIGHT(CA$39,2)>RIGHT($K51,2),BE51,0)) -> 0 | CC51: =+O51*KeyAssumptionsPriceControl_FO!AC$15 -> 10.04563716 | CD51: =+P51*KeyAssumptionsPriceControl_FO!AD$15 -> 3.577533031 | CE51: =+Q51*KeyAssumptionsPriceControl_FO!AE$15 -> 0 | CF51: =+R51*KeyAssumptionsPriceControl_FO!AF$15 -> 0 | CG51: =+S51*KeyAssumptionsPriceControl_FO!AG$15 -> 0 | CH51: =+T51*KeyAssumptionsPriceControl_FO!AH$15 -> 0 | CI51: =+U51*KeyAssumptionsPriceControl_FO!AI$15 -> 0 | CJ51: =+V51*KeyAssumptionsPriceControl_FO!AJ$15 -> 0 | CK51: =+W51*KeyAssumptionsPriceControl_FO!AK$15 -> 0 | CL51: =+X51*KeyAssumptionsPriceControl_FO!AL$15 -> 0 | CN51: 0.1004563716 | CO51: 0.2366880736 | CP51: 0.2724634039 | CQ51: 0.2724634039 | CR51: 0.2724634039 | CS51: 0.2724634039 | CT51: 0.2724634039 | CU51: 0.2724634039 | CV51: 0.2724634039 | CW51: 0.2724634039
AV53: 0 | AW53: 0 | AX53: 0 | AY53: 0 | AZ53: 0 | BA53: 0 | BB53: 0 | BC53: 0 | BD53: 0 | BE53: 0 | BG53: =IF($L53=0,0, IF($L53<=0.5,BR53, IF($J53="straight line", IF((LEFT(BG$39,4)*1)-INT($L53)<LEFT($BG$39,4)*1,0,((OFFSET(BR53,0,-INT($L53+0.5),1,1))/$L53)*(IF($L53-INT($L53)>0.5,$L53-0.5-INT($L53),IF($L53-INT($L53)<=0.5,$L53-0.5-INT($L53)+1,0)))) +BR53/$L53*0.5, IF($J53="Declining Balance",-$BG$38,0)))) -> 0 | BH53: =IF($L53=0,0, IF($L53<=0.5,BS53, IF(AND($J53="straight line",$L53<1.51),(BR53-((BR53/$L53)*0.5))+BS53/$L53*0.5, IF($J53="straight line", IF((LEFT(BH$39,4)*1)-INT($L53)<LEFT($BG$39,4)*1,0,((OFFSET(BS53,0,-INT($L53+0.5),1,1))/$L53)*(IF($L53-INT($L53)>0.5,$L53-0.5-INT($L53),IF($L53-INT($L53)<=0.5,$L53-0.5-INT($L53)+1,0)))) +BS53/$L53*0.5 +SUM(OFFSET(BS53,0,MAX(-INT($L53+(0.5-(10^-12))),-BH$40)+1,1,MIN(INT($L53+(0.5-(10^-12))),BH$40)-1))*1/$L53, IF($J53="Declining Balance",-$BG$38,0))))) -> 0 | BI53: =IF($L53=0,0, IF($L53<=0.5,BT53, IF(AND($J53="straight line",$L53<1.51),(BS53-((BS53/$L53)*0.5))+BT53/$L53*0.5, IF($J53="straight line", IF((LEFT(BI$39,4)*1)-INT($L53)<LEFT($BG$39,4)*1,0,((OFFSET(BT53,0,-INT($L53+0.5),1,1))/$L53)*(IF($L53-INT($L53)>0.5,$L53-0.5-INT($L53),IF($L53-INT($L53)<=0.5,$L53-0.5-INT($L53)+1,0)))) +BT53/$L53*0.5 +SUM(OFFSET(BT53,0,MAX(-INT($L53+(0.5-(10^-12))),-BI$40)+1,1,MIN(INT($L53+(0.5-(10^-12))),BI$40)-1))*1/$L53, IF($J53="Declining Balance",-$BG$38,0))))) -> 0 | BJ53: 0 | BK53: 0 | BL53: 0 | BM53: 0 | BN53: 0 | BO53: 0 | BP53: 0 | BR53: =+IF($K53="Ongoing",AV53,IF(RIGHT($K53,2)=RIGHT(BR$39,2),SUM($AV53:AV53),0)+IF(RIGHT(BR$39,2)>RIGHT($K53,2),AV53,0)) -> 0 | BS53: =+IF($K53="Ongoing",AW53,IF(RIGHT($K53,2)=RIGHT(BS$39,2),SUM($AV53:AW53),0)+IF(RIGHT(BS$39,2)>RIGHT($K53,2),AW53,0)) -> 0 | BT53: =+IF($K53="Ongoing",AX53,IF(RIGHT($K53,2)=RIGHT(BT$39,2),SUM($AV53:AX53),0)+IF(RIGHT(BT$39,2)>RIGHT($K53,2),AX53,0)) -> 0 | BU53: =+IF($K53="Ongoing",AY53,IF(RIGHT($K53,2)=RIGHT(BU$39,2),SUM($AV53:AY53),0)+IF(RIGHT(BU$39,2)>RIGHT($K53,2),AY53,0)) -> 0 | BV53: =+IF($K53="Ongoing",AZ53,IF(RIGHT($K53,2)=RIGHT(BV$39,2),SUM($AV53:AZ53),0)+IF(RIGHT(BV$39,2)>RIGHT($K53,2),AZ53,0)) -> 0 | BW53: =+IF($K53="Ongoing",BA53,IF(RIGHT($K53,2)=RIGHT(BW$39,2),SUM($AV53:BA53),0)+IF(RIGHT(BW$39,2)>RIGHT($K53,2),BA53,0)) -> 0 | BX53: =+IF($K53="Ongoing",BB53,IF(RIGHT($K53,2)=RIGHT(BX$39,2),SUM($AV53:BB53),0)+IF(RIGHT(BX$39,2)>RIGHT($K53,2),BB53,0)) -> 0 | BY53: =+IF($K53="Ongoing",BC53,IF(RIGHT($K53,2)=RIGHT(BY$39,2),SUM($AV53:BC53),0)+IF(RIGHT(BY$39,2)>RIGHT($K53,2),BC53,0)) -> 0 | BZ53: =+IF($K53="Ongoing",BD53,IF(RIGHT($K53,2)=RIGHT(BZ$39,2),SUM($AV53:BD53),0)+IF(RIGHT(BZ$39,2)>RIGHT($K53,2),BD53,0)) -> 0 | CA53: =+IF($K53="Ongoing",BE53,IF(RIGHT($K53,2)=RIGHT(CA$39,2),SUM($AV53:BE53),0)+IF(RIGHT(CA$39,2)>RIGHT($K53,2),BE53,0)) -> 0 | CC53: =+O53*KeyAssumptionsPriceControl_FO!AC$15 -> 0 | CD53: =+P53*KeyAssumptionsPriceControl_FO!AD$15 -> 0 | CE53: =+Q53*KeyAssumptionsPriceControl_FO!AE$15 -> 0 | CF53: =+R53*KeyAssumptionsPriceControl_FO!AF$15 -> 0 | CG53: =+S53*KeyAssumptionsPriceControl_FO!AG$15 -> 0 | CH53: =+T53*KeyAssumptionsPriceControl_FO!AH$15 -> 0 | CI53: =+U53*KeyAssumptionsPriceControl_FO!AI$15 -> 0 | CJ53: =+V53*KeyAssumptionsPriceControl_FO!AJ$15 -> 0 | CK53: =+W53*KeyAssumptionsPriceControl_FO!AK$15 -> 0 | CL53: =+X53*KeyAssumptionsPriceControl_FO!AL$15 -> 0 | CN53: 0 | CO53: 0 | CP53: 0 | CQ53: 0 | CR53: 0 | CS53: 0 | CT53: 0 | CU53: 0 | CV53: 0 | CW53: 0
AV54: 0 | AW54: 0 | AX54: 0 | AY54: 0 | AZ54: 0 | BA54: 0 | BB54: 0 | BC54: 0 | BD54: 0 | BE54: 0 | BG54: =IF($L54=0,0, IF($L54<=0.5,BR54, IF($J54="straight line", IF((LEFT(BG$39,4)*1)-INT($L54)<LEFT($BG$39,4)*1,0,((OFFSET(BR54,0,-INT($L54+0.5),1,1))/$L54)*(IF($L54-INT($L54)>0.5,$L54-0.5-INT($L54),IF($L54-INT($L54)<=0.5,$L54-0.5-INT($L54)+1,0)))) +BR54/$L54*0.5, IF($J54="Declining Balance",-$BG$38,0)))) -> 0 | BH54: =IF($L54=0,0, IF($L54<=0.5,BS54, IF(AND($J54="straight line",$L54<1.51),(BR54-((BR54/$L54)*0.5))+BS54/$L54*0.5, IF($J54="straight line", IF((LEFT(BH$39,4)*1)-INT($L54)<LEFT($BG$39,4)*1,0,((OFFSET(BS54,0,-INT($L54+0.5),1,1))/$L54)*(IF($L54-INT($L54)>0.5,$L54-0.5-INT($L54),IF($L54-INT($L54)<=0.5,$L54-0.5-INT($L54)+1,0)))) +BS54/$L54*0.5 +SUM(OFFSET(BS54,0,MAX(-INT($L54+(0.5-(10^-12))),-BH$40)+1,1,MIN(INT($L54+(0.5-(10^-12))),BH$40)-1))*1/$L54, IF($J54="Declining Balance",-$BG$38,0))))) -> 0 | BI54: =IF($L54=0,0, IF($L54<=0.5,BT54, IF(AND($J54="straight line",$L54<1.51),(BS54-((BS54/$L54)*0.5))+BT54/$L54*0.5, IF($J54="straight line", IF((LEFT(BI$39,4)*1)-INT($L54)<LEFT($BG$39,4)*1,0,((OFFSET(BT54,0,-INT($L54+0.5),1,1))/$L54)*(IF($L54-INT($L54)>0.5,$L54-0.5-INT($L54),IF($L54-INT($L54)<=0.5,$L54-0.5-INT($L54)+1,0)))) +BT54/$L54*0.5 +SUM(OFFSET(BT54,0,MAX(-INT($L54+(0.5-(10^-12))),-BI$40)+1,1,MIN(INT($L54+(0.5-(10^-12))),BI$40)-1))*1/$L54, IF($J54="Declining Balance",-$BG$38,0))))) -> 0 | BJ54: =IF($L54=0,0, IF($L54<=0.5,BU54, IF(AND($J54="straight line",$L54<1.51),(BT54-((BT54/$L54)*0.5))+BU54/$L54*0.5, IF($J54="straight line", IF((LEFT(BJ$39,4)*1)-INT($L54)<LEFT($BG$39,4)*1,0,((OFFSET(BU54,0,-INT($L54+0.5),1,1))/$L54)*(IF($L54-INT($L54)>0.5,$L54-0.5-INT($L54),IF($L54-INT($L54)<=0.5,$L54-0.5-INT($L54)+1,0)))) +BU54/$L54*0.5 +SUM(OFFSET(BU54,0,MAX(-INT($L54+(0.5-(10^-12))),-BJ$40)+1,1,MIN(INT($L54+(0.5-(10^-12))),BJ$40)-1))*1/$L54, IF($J54="Declining Balance",-$BG$38,0))))) -> 0 | BK54: =IF($L54=0,0, IF($L54<=0.5,BV54, IF(AND($J54="straight line",$L54<1.51),(BU54-((BU54/$L54)*0.5))+BV54/$L54*0.5, IF($J54="straight line", IF((LEFT(BK$39,4)*1)-INT($L54)<LEFT($BG$39,4)*1,0,((OFFSET(BV54,0,-INT($L54+0.5),1,1))/$L54)*(IF($L54-INT($L54)>0.5,$L54-0.5-INT($L54),IF($L54-INT($L54)<=0.5,$L54-0.5-INT($L54)+1,0)))) +BV54/$L54*0.5 +SUM(OFFSET(BV54,0,MAX(-INT($L54+(0.5-(10^-12))),-BK$40)+1,1,MIN(INT($L54+(0.5-(10^-12))),BK$40)-1))*1/$L54, IF($J54="Declining Balance",-$BG$38,0))))) -> 0 | BL54: =IF($L54=0,0, IF($L54<=0.5,BW54, IF(AND($J54="straight line",$L54<1.51),(BV54-((BV54/$L54)*0.5))+BW54/$L54*0.5, IF($J54="straight line", IF((LEFT(BL$39,4)*1)-INT($L54)<LEFT($BG$39,4)*1,0,((OFFSET(BW54,0,-INT($L54+0.5),1,1))/$L54)*(IF($L54-INT($L54)>0.5,$L54-0.5-INT($L54),IF($L54-INT($L54)<=0.5,$L54-0.5-INT($L54)+1,0)))) +BW54/$L54*0.5 +SUM(OFFSET(BW54,0,MAX(-INT($L54+(0.5-(10^-12))),-BL$40)+1,1,MIN(INT($L54+(0.5-(10^-12))),BL$40)-1))*1/$L54, IF($J54="Declining Balance",-$BG$38,0))))) -> 0 | BM54: =IF($L54=0,0, IF($L54<=0.5,BX54, IF(AND($J54="straight line",$L54<1.51),(BW54-((BW54/$L54)*0.5))+BX54/$L54*0.5, IF($J54="straight line", IF((LEFT(BM$39,4)*1)-INT($L54)<LEFT($BG$39,4)*1,0,((OFFSET(BX54,0,-INT($L54+0.5),1,1))/$L54)*(IF($L54-INT($L54)>0.5,$L54-0.5-INT($L54),IF($L54-INT($L54)<=0.5,$L54-0.5-INT($L54)+1,0)))) +BX54/$L54*0.5 +SUM(OFFSET(BX54,0,MAX(-INT($L54+(0.5-(10^-12))),-BM$40)+1,1,MIN(INT($L54+(0.5-(10^-12))),BM$40)-1))*1/$L54, IF($J54="Declining Balance",-$BG$38,0))))) -> 0 | BN54: =IF($L54=0,0, IF($L54<=0.5,BY54, IF(AND($J54="straight line",$L54<1.51),(BX54-((BX54/$L54)*0.5))+BY54/$L54*0.5, IF($J54="straight line", IF((LEFT(BN$39,4)*1)-INT($L54)<LEFT($BG$39,4)*1,0,((OFFSET(BY54,0,-INT($L54+0.5),1,1))/$L54)*(IF($L54-INT($L54)>0.5,$L54-0.5-INT($L54),IF($L54-INT($L54)<=0.5,$L54-0.5-INT($L54)+1,0)))) +BY54/$L54*0.5 +SUM(OFFSET(BY54,0,MAX(-INT($L54+(0.5-(10^-12))),-BN$40)+1,1,MIN(INT($L54+(0.5-(10^-12))),BN$40)-1))*1/$L54, IF($J54="Declining Balance",-$BG$38,0))))) -> 0 | BO54: =IF($L54=0,0, IF($L54<=0.5,BZ54, IF(AND($J54="straight line",$L54<1.51),(BY54-((BY54/$L54)*0.5))+BZ54/$L54*0.5, IF($J54="straight line", IF((LEFT(BO$39,4)*1)-INT($L54)<LEFT($BG$39,4)*1,0,((OFFSET(BZ54,0,-INT($L54+0.5),1,1))/$L54)*(IF($L54-INT($L54)>0.5,$L54-0.5-INT($L54),IF($L54-INT($L54)<=0.5,$L54-0.5-INT($L54)+1,0)))) +BZ54/$L54*0.5 +SUM(OFFSET(BZ54,0,MAX(-INT($L54+(0.5-(10^-12))),-BO$40)+1,1,MIN(INT($L54+(0.5-(10^-12))),BO$40)-1))*1/$L54, IF($J54="Declining Balance",-$BG$38,0))))) -> 0 | BP54: =IF($L54=0,0, IF($L54<=0.5,CA54, IF(AND($J54="straight line",$L54<1.51),(BZ54-((BZ54/$L54)*0.5))+CA54/$L54*0.5, IF($J54="straight line", IF((LEFT(BP$39,4)*1)-INT($L54)<LEFT($BG$39,4)*1,0,((OFFSET(CA54,0,-INT($L54+0.5),1,1))/$L54)*(IF($L54-INT($L54)>0.5,$L54-0.5-INT($L54),IF($L54-INT($L54)<=0.5,$L54-0.5-INT($L54)+1,0)))) +CA54/$L54*0.5 +SUM(OFFSET(CA54,0,MAX(-INT($L54+(0.5-(10^-12))),-BP$40)+1,1,MIN(INT($L54+(0.5-(10^-12))),BP$40)-1))*1/$L54, IF($J54="Declining Balance",-$BG$38,0))))) -> 0 | BR54: =+IF($K54="Ongoing",AV54,IF(RIGHT($K54,2)=RIGHT(BR$39,2),SUM($AV54:AV54),0)+IF(RIGHT(BR$39,2)>RIGHT($K54,2),AV54,0)) -> 0 | BS54: =+IF($K54="Ongoing",AW54,IF(RIGHT($K54,2)=RIGHT(BS$39,2),SUM($AV54:AW54),0)+IF(RIGHT(BS$39,2)>RIGHT($K54,2),AW54,0)) -> 0 | BT54: =+IF($K54="Ongoing",AX54,IF(RIGHT($K54,2)=RIGHT(BT$39,2),SUM($AV54:AX54),0)+IF(RIGHT(BT$39,2)>RIGHT($K54,2),AX54,0)) -> 0 | BU54: =+IF($K54="Ongoing",AY54,IF(RIGHT($K54,2)=RIGHT(BU$39,2),SUM($AV54:AY54),0)+IF(RIGHT(BU$39,2)>RIGHT($K54,2),AY54,0)) -> 0 | BV54: =+IF($K54="Ongoing",AZ54,IF(RIGHT($K54,2)=RIGHT(BV$39,2),SUM($AV54:AZ54),0)+IF(RIGHT(BV$39,2)>RIGHT($K54,2),AZ54,0)) -> 0 | BW54: =+IF($K54="Ongoing",BA54,IF(RIGHT($K54,2)=RIGHT(BW$39,2),SUM($AV54:BA54),0)+IF(RIGHT(BW$39,2)>RIGHT($K54,2),BA54,0)) -> 0 | BX54: =+IF($K54="Ongoing",BB54,IF(RIGHT($K54,2)=RIGHT(BX$39,2),SUM($AV54:BB54),0)+IF(RIGHT(BX$39,2)>RIGHT($K54,2),BB54,0)) -> 0 | BY54: =+IF($K54="Ongoing",BC54,IF(RIGHT($K54,2)=RIGHT(BY$39,2),SUM($AV54:BC54),0)+IF(RIGHT(BY$39,2)>RIGHT($K54,2),BC54,0)) -> 0 | BZ54: =+IF($K54="Ongoing",BD54,IF(RIGHT($K54,2)=RIGHT(BZ$39,2),SUM($AV54:BD54),0)+IF(RIGHT(BZ$39,2)>RIGHT($K54,2),BD54,0)) -> 0 | CA54: =+IF($K54="Ongoing",BE54,IF(RIGHT($K54,2)=RIGHT(CA$39,2),SUM($AV54:BE54),0)+IF(RIGHT(CA$39,2)>RIGHT($K54,2),BE54,0)) -> 0 | CC54: =+O54*KeyAssumptionsPriceControl_FO!AC$15 -> 0 | CD54: =+P54*KeyAssumptionsPriceControl_FO!AD$15 -> 0 | CE54: =+Q54*KeyAssumptionsPriceControl_FO!AE$15 -> 0 | CF54: =+R54*KeyAssumptionsPriceControl_FO!AF$15 -> 0 | CG54: =+S54*KeyAssumptionsPriceControl_FO!AG$15 -> 0 | CH54: =+T54*KeyAssumptionsPriceControl_FO!AH$15 -> 0 | CI54: =+U54*KeyAssumptionsPriceControl_FO!AI$15 -> 0 | CJ54: =+V54*KeyAssumptionsPriceControl_FO!AJ$15 -> 0 | CK54: =+W54*KeyAssumptionsPriceControl_FO!AK$15 -> 0 | CL54: =+X54*KeyAssumptionsPriceControl_FO!AL$15 -> 0 | CN54: 0 | CO54: 0 | CP54: 0 | CQ54: 0 | CR54: 0 | CS54: 0 | CT54: 0 | CU54: 0 | CV54: 0 | CW54: 0
C55: ='[4]ESC Model Input'!B5 -> Bacchus Marsh Irrigation Renewals program | E55: ='[4]ESC Model Input'!D5 -> Irrigation | F55: ='[4]ESC Model Input'!E5 -> Renewals | G55: ='[4]ESC Model Input'!F5 -> Channels | H55: ='[4]ESC Model Input'!$G$3 -> Capital Programs / Allocation | J55: Straight line | K55: ='[4]ESC Model Input'!$J$3 -> Ongoing | L55: ='[4]ESC Model Input'!K5 -> 50 | M55: ='[4]ESC Model Input'!L5 -> 50 | O55: ='[4]ESC Model Input'!N5 -> 0.7127746 | P55: ='[4]ESC Model Input'!O5 -> 0.4851246 | Q55: ='[4]ESC Model Input'!P5 -> 0.6127746 | R55: ='[4]ESC Model Input'!Q5 -> 0.4327746 | S55: ='[4]ESC Model Input'!R5 -> 0.5327746 | T55: ='[4]ESC Model Input'!S5 -> 0.010125 | U55: ='[4]ESC Model Input'!T5 -> 0.09790875 | V55: ='[4]ESC Model Input'!U5 -> 0.131625 | W55: ='[4]ESC Model Input'!V5 -> 0.131625 | X55: ='[4]ESC Model Input'!W5 -> 0.212625 | AV55: 0.7127746 | AW55: 0.4851246 | AX55: 0.6127746 | AY55: 0.4327746 | AZ55: 0.5327746 | BA55: 0.010125 | BB55: 0.09790875 | BC55: 0.131625 | BD55: 0.131625 | BE55: 0.212625 | BG55: 0.003227746 | BH55: 0.009406738 | BI55: 0.01658573 | BJ55: 0.023241222 | BK55: 0.029096714 | BL55: 0.032642585 | BM55: 0.03390297875 | BN55: 0.0365808725 | BO55: 0.0396521225 | BP55: 0.0436683725 | BR55: =+IF($K55="Ongoing",AV55,IF(RIGHT($K55,2)=RIGHT(BR$39,2),SUM($AV55:AV55),0)+IF(RIGHT(BR$39,2)>RIGHT($K55,2),AV55,0)) -> 0.7127746 | BS55: =+IF($K55="Ongoing",AW55,IF(RIGHT($K55,2)=RIGHT(BS$39,2),SUM($AV55:AW55),0)+IF(RIGHT(BS$39,2)>RIGHT($K55,2),AW55,0)) -> 0.4851246 | BT55: =+IF($K55="Ongoing",AX55,IF(RIGHT($K55,2)=RIGHT(BT$39,2),SUM($AV55:AX55),0)+IF(RIGHT(BT$39,2)>RIGHT($K55,2),AX55,0)) -> 0.6127746 | BU55: =+IF($K55="Ongoing",AY55,IF(RIGHT($K55,2)=RIGHT(BU$39,2),SUM($AV55:AY55),0)+IF(RIGHT(BU$39,2)>RIGHT($K55,2),AY55,0)) -> 0.4327746 | BV55: =+IF($K55="Ongoing",AZ55,IF(RIGHT($K55,2)=RIGHT(BV$39,2),SUM($AV55:AZ55),0)+IF(RIGHT(BV$39,2)>RIGHT($K55,2),AZ55,0)) -> 0.5327746 | BW55: =+IF($K55="Ongoing",BA55,IF(RIGHT($K55,2)=RIGHT(BW$39,2),SUM($AV55:BA55),0)+IF(RIGHT(BW$39,2)>RIGHT($K55,2),BA55,0)) -> 0.010125 | BX55: =+IF($K55="Ongoing",BB55,IF(RIGHT($K55,2)=RIGHT(BX$39,2),SUM($AV55:BB55),0)+IF(RIGHT(BX$39,2)>RIGHT($K55,2),BB55,0)) -> 0.09790875 | BY55: =+IF($K55="Ongoing",BC55,IF(RIGHT($K55,2)=RIGHT(BY$39,2),SUM($AV55:BC55),0)+IF(RIGHT(BY$39,2)>RIGHT($K55,2),BC55,0)) -> 0.131625 | BZ55: =+IF($K55="Ongoing",BD55,IF(RIGHT($K55,2)=RIGHT(BZ$39,2),SUM($AV55:BD55),0)+IF(RIGHT(BZ$39,2)>RIGHT($K55,2),BD55,0)) -> 0.131625 | CA55: =+IF($K55="Ongoing",BE55,IF(RIGHT($K55,2)=RIGHT(CA$39,2),SUM($AV55:BE55),0)+IF(RIGHT(CA$39,2)>RIGHT($K55,2),BE55,0)) -> 0.212625 | CC55: =+O55*KeyAssumptionsPriceControl_FO!AC$15 -> 0.734157838 | CD55: =+P55*KeyAssumptionsPriceControl_FO!AD$15 -> 0.5146686881 | CE55: =+Q55*KeyAssumptionsPriceControl_FO!AE$15 -> 0.6695953503 | CF55: =+R55*KeyAssumptionsPriceControl_FO!AF$15 -> 0.487091625 | CG55: =+S55*KeyAssumptionsPriceControl_FO!AG$15 -> 0.6176317812 | CH55: =+T55*KeyAssumptionsPriceControl_FO!AH$15 -> 0.0120897795 | CI55: =+U55*KeyAssumptionsPriceControl_FO!AI$15 -> 0.1204154128 | CJ55: =+V55*KeyAssumptionsPriceControl_FO!AJ$15 -> 0.166738612 | CK55: =+W55*KeyAssumptionsPriceControl_FO!AK$15 -> 0.1717407703 | CL55: =+X55*KeyAssumptionsPriceControl_FO!AL$15 -> 0.2857502202 | CN55: 0.00332457838 | CO55: 0.009780133641 | CP55: 0.01753088273 | CQ55: 0.02488310444 | CR55: 0.03158925102 | CS55: 0.03570399552 | CT55: 0.03724988943 | CU55: 0.04060001972 | CV55: 0.04454894585 | CW55: 0.04988634074
C56: ='[4]ESC Model Input'!B6 -> Bacchus Marsh Irrigation Renewals program | E56: ='[4]ESC Model Input'!D6 -> Irrigation | F56: ='[4]ESC Model Input'!E6 -> Improvements / Compliance | G56: ='[4]ESC Model Input'!F6 -> Channels | H56: ='[4]ESC Model Input'!$G$3 -> Capital Programs / Allocation | J56: Straight line | K56: ='[4]ESC Model Input'!$J$3 -> Ongoing | L56: ='[4]ESC Model Input'!K6 -> 50 | M56: ='[4]ESC Model Input'!L6 -> 50 | O56: ='[4]ESC Model Input'!N6 -> 0.7122029 | P56: ='[4]ESC Model Input'!O6 -> 0.0999999 | Q56: ='[4]ESC Model Input'!P6 -> 0.0999999 | R56: ='[4]ESC Model Input'!Q6 -> 0.0999999 | S56: ='[4]ESC Model Input'!R6 -> 0.1000004 | T56: ='[4]ESC Model Input'!S6 -> 0 | U56: ='[4]ESC Model Input'!T6 -> 0 | V56: ='[4]ESC Model Input'!U6 -> 0 | W56: ='[4]ESC Model Input'!V6 -> 0 | X56: ='[4]ESC Model Input'!W6 -> 0 | AV56: 0.7122029 | AW56: 0.0999999 | AX56: 0.0999999 | AY56: 0.0999999 | AZ56: 0.1000004 | BA56: 0 | BB56: 0 | BC56: 0 | BD56: 0 | BE56: 0 | BG56: 0.00612203 | BH56: 0.01224406 | BI56: 0.01224406 | BJ56: 0.01224406 | BK56: 0.01224406 | BL56: 0.01224406 | BM56: 0.01224406 | BN56: 0.01224406 | BO56: 0.01224406 | BP56: 0.01224406 | BR56: =+IF($K56="Ongoing",AV56,IF(RIGHT($K56,2)=RIGHT(BR$39,2),SUM($AV56:AV56),0)+IF(RIGHT(BR$39,2)>RIGHT($K56,2),AV56,0)) -> 0.7122029 | BS56: =+IF($K56="Ongoing",AW56,IF(RIGHT($K56,2)=RIGHT(BS$39,2),SUM($AV56:AW56),0)+IF(RIGHT(BS$39,2)>RIGHT($K56,2),AW56,0)) -> 0.0999999 | BT56: =+IF($K56="Ongoing",AX56,IF(RIGHT($K56,2)=RIGHT(BT$39,2),SUM($AV56:AX56),0)+IF(RIGHT(BT$39,2)>RIGHT($K56,2),AX56,0)) -> 0.0999999 | BU56: =+IF($K56="Ongoing",AY56,IF(RIGHT($K56,2)=RIGHT(BU$39,2),SUM($AV56:AY56),0)+IF(RIGHT(BU$39,2)>RIGHT($K56,2),AY56,0)) -> 0.0999999 | BV56: =+IF($K56="Ongoing",AZ56,IF(RIGHT($K56,2)=RIGHT(BV$39,2),SUM($AV56:AZ56),0)+IF(RIGHT(BV$39,2)>RIGHT($K56,2),AZ56,0)) -> 0.1000004 | BW56: =+IF($K56="Ongoing",BA56,IF(RIGHT($K56,2)=RIGHT(BW$39,2),SUM($AV56:BA56),0)+IF(RIGHT(BW$39,2)>RIGHT($K56,2),BA56,0)) -> 0 | BX56: =+IF($K56="Ongoing",BB56,IF(RIGHT($K56,2)=RIGHT(BX$39,2),SUM($AV56:BB56),0)+IF(RIGHT(BX$39,2)>RIGHT($K56,2),BB56,0)) -> 0 | BY56: =+IF($K56="Ongoing",BC56,IF(RIGHT($K56,2)=RIGHT(BY$39,2),SUM($AV56:BC56),0)+IF(RIGHT(BY$39,2)>RIGHT($K56,2),BC56,0)) -> 0 | BZ56: =+IF($K56="Ongoing",BD56,IF(RIGHT($K56,2)=RIGHT(BZ$39,2),SUM($AV56:BD56),0)+IF(RIGHT(BZ$39,2)>RIGHT($K56,2),BD56,0)) -> 0 | CA56: =+IF($K56="Ongoing",BE56,IF(RIGHT($K56,2)=RIGHT(CA$39,2),SUM($AV56:BE56),0)+IF(RIGHT(CA$39,2)>RIGHT($K56,2),BE56,0)) -> 0 | CC56: =+O56*KeyAssumptionsPriceControl_FO!AC$15 -> 0.733568987 | CD56: =+P56*KeyAssumptionsPriceControl_FO!AD$15 -> 0.1060898939 | CE56: =+Q56*KeyAssumptionsPriceControl_FO!AE$15 -> 0.1092725907 | CF56: =+R56*KeyAssumptionsPriceControl_FO!AF$15 -> 0.1125507684 | CG56: =+S56*KeyAssumptionsPriceControl_FO!AG$15 -> 0.1159278711 | CH56: =+T56*KeyAssumptionsPriceControl_FO!AH$15 -> 0 | CI56: =+U56*KeyAssumptionsPriceControl_FO!AI$15 -> 0 | CJ56: =+V56*KeyAssumptionsPriceControl_FO!AJ$15 -> 0 | CK56: =+W56*KeyAssumptionsPriceControl_FO!AK$15 -> 0 | CL56: =+X56*KeyAssumptionsPriceControl_FO!AL$15 -> 0 | CN56: 0.0063056909 | CO56: 0.0126113818 | CP56: 0.0126113818 | CQ56: 0.0126113818 | CR56: 0.0126113818 | CS56: 0.0126113818 | CT56: 0.0126113818 | CU56: 0.0126113818 | CV56: 0.0126113818 | CW56: 0.0126113818
C57: ='[4]ESC Model Input'!B7 -> Groundwater & Rivers Renewals program | E57: ='[4]ESC Model Input'!D7 -> Groundwater diversions | F57: ='[4]ESC Model Input'!E7 -> Renewals | G57: ='[4]ESC Model Input'!F7 -> Channels | H57: ='[4]ESC Model Input'!$G$3 -> Capital Programs / Allocation | J57: Straight line | K57: ='[4]ESC Model Input'!$J$3 -> Ongoing | L57: ='[4]ESC Model Input'!K7 -> 15 | M57: ='[4]ESC Model Input'!L7 -> 15 | O57: ='[4]ESC Model Input'!N7 -> 0 | P57: ='[4]ESC Model Input'!O7 -> 0 | Q57: ='[4]ESC Model Input'!P7 -> 0 | R57: ='[4]ESC Model Input'!Q7 -> 0.1841376 | S57: ='[4]ESC Model Input'!R7 -> 0.1841376 | T57: ='[4]ESC Model Input'!S7 -> 2.43 | U57: ='[4]ESC Model Input'!T7 -> 4.96125 | V57: ='[4]ESC Model Input'!U7 -> 4.96125 | W57: ='[4]ESC Model Input'!V7 -> 4.35375 | X57: ='[4]ESC Model Input'!W7 -> 2.025 | AV57: 0 | AW57: 0 | AX57: 0 | AY57: 0.1841376 | AZ57: 0.1841376 | BA57: 2.43 | BB57: 4.96125 | BC57: 4.96125 | BD57: 4.35375 | BE57: 2.025 | BG57: 0 | BH57: 0 | BI57: 0 | BJ57: 0.00613792 | BK57: 0.01841376 | BL57: 0.11905168 | BM57: 0.40648918 | BN57: 0.79236418 | BO57: 1.15461418 | BP57: 1.40267668 | BR57: =+IF($K57="Ongoing",AV57,IF(RIGHT($K57,2)=RIGHT(BR$39,2),SUM($AV57:AV57),0)+IF(RIGHT(BR$39,2)>RIGHT($K57,2),AV57,0)) -> 0 | BS57: =+IF($K57="Ongoing",AW57,IF(RIGHT($K57,2)=RIGHT(BS$39,2),SUM($AV57:AW57),0)+IF(RIGHT(BS$39,2)>RIGHT($K57,2),AW57,0)) -> 0 | BT57: =+IF($K57="Ongoing",AX57,IF(RIGHT($K57,2)=RIGHT(BT$39,2),SUM($AV57:AX57),0)+IF(RIGHT(BT$39,2)>RIGHT($K57,2),AX57,0)) -> 0 | BU57: =+IF($K57="Ongoing",AY57,IF(RIGHT($K57,2)=RIGHT(BU$39,2),SUM($AV57:AY57),0)+IF(RIGHT(BU$39,2)>RIGHT($K57,2),AY57,0)) -> 0.1841376 | BV57: =+IF($K57="Ongoing",AZ57,IF(RIGHT($K57,2)=RIGHT(BV$39,2),SUM($AV57:AZ57),0)+IF(RIGHT(BV$39,2)>RIGHT($K57,2),AZ57,0)) -> 0.1841376 | BW57: =+IF($K57="Ongoing",BA57,IF(RIGHT($K57,2)=RIGHT(BW$39,2),SUM($AV57:BA57),0)+IF(RIGHT(BW$39,2)>RIGHT($K57,2),BA57,0)) -> 2.43 | BX57: =+IF($K57="Ongoing",BB57,IF(RIGHT($K57,2)=RIGHT(BX$39,2),SUM($AV57:BB57),0)+IF(RIGHT(BX$39,2)>RIGHT($K57,2),BB57,0)) -> 4.96125 | BY57: =+IF($K57="Ongoing",BC57,IF(RIGHT($K57,2)=RIGHT(BY$39,2),SUM($AV57:BC57),0)+IF(RIGHT(BY$39,2)>RIGHT($K57,2),BC57,0)) -> 4.96125 | BZ57: =+IF($K57="Ongoing",BD57,IF(RIGHT($K57,2)=RIGHT(BZ$39,2),SUM($AV57:BD57),0)+IF(RIGHT(BZ$39,2)>RIGHT($K57,2),BD57,0)) -> 4.35375 | CA57: =+IF($K57="Ongoing",BE57,IF(RIGHT($K57,2)=RIGHT(CA$39,2),SUM($AV57:BE57),0)+IF(RIGHT(CA$39,2)>RIGHT($K57,2),BE57,0)) -> 2.025 | CC57: =+O57*KeyAssumptionsPriceControl_FO!AC$15 -> 0 | CD57: =+P57*KeyAssumptionsPriceControl_FO!AD$15 -> 0 | CE57: =+Q57*KeyAssumptionsPriceControl_FO!AE$15 -> 0 | CF57: =+R57*KeyAssumptionsPriceControl_FO!AF$15 -> 0.2072484911 | CG57: =+S57*KeyAssumptionsPriceControl_FO!AG$15 -> 0.2134659458 | CH57: =+T57*KeyAssumptionsPriceControl_FO!AH$15 -> 2.901547081 | CI57: =+U57*KeyAssumptionsPriceControl_FO!AI$15 -> 6.101711715 | CJ57: =+V57*KeyAssumptionsPriceControl_FO!AJ$15 -> 6.284763066 | CK57: =+W57*KeyAssumptionsPriceControl_FO!AK$15 -> 5.680656249 | CL57: =+X57*KeyAssumptionsPriceControl_FO!AL$15 -> 2.721430668 | CN57: 0 | CO57: 0 | CP57: 0 | CQ57: 0.006908283035 | CR57: 0.0209320976 | CS57: 0.1408855711 | CT57: 0.4910123021 | CU57: 0.9727085436 | CV57: 1.438030406 | CW57: 1.76477823
C58: ='[4]ESC Model Input'!B8 -> Groundwater & Rivers Renewals program | E58: ='[4]ESC Model Input'!D8 -> Groundwater diversions | F58: ='[4]ESC Model Input'!E8 -> Improvements / Compliance | G58: ='[4]ESC Model Input'!F8 -> Channels | H58: ='[4]ESC Model Input'!$G$3 -> Capital Programs / Allocation | J58: Straight line | K58: ='[4]ESC Model Input'!$J$3 -> Ongoing | L58: ='[4]ESC Model Input'!K8 -> 15 | M58: ='[4]ESC Model Input'!L8 -> 15 | O58: ='[4]ESC Model Input'!N8 -> 0.235 | P58: ='[4]ESC Model Input'!O8 -> 0.195 | Q58: ='[4]ESC Model Input'!P8 -> 0 | R58: ='[4]ESC Model Input'!Q8 -> 0 | S58: ='[4]ESC Model Input'!R8 -> 0 | T58: ='[4]ESC Model Input'!S8 -> 0 | U58: ='[4]ESC Model Input'!T8 -> 0 | V58: ='[4]ESC Model Input'!U8 -> 0 | W58: ='[4]ESC Model Input'!V8 -> 0 | X58: ='[4]ESC Model Input'!W8 -> 0 | AV58: 0.235 | AW58: 0.195 | AX58: 0 | AY58: 0 | AZ58: 0 | BA58: 0 | BB58: 0 | BC58: 0 | BD58: 0 | BE58: 0 | BG58: 0.007833333333 | BH58: 0.02216666667 | BI58: 0.02866666667 | BJ58: 0.02866666667 | BK58: 0.02866666667 | BL58: 0.02866666667 | BM58: 0.02866666667 | BN58: 0.02866666667 | BO58: 0.02866666667 | BP58: 0.02866666667 | BR58: =+IF($K58="Ongoing",AV58,IF(RIGHT($K58,2)=RIGHT(BR$39,2),SUM($AV58:AV58),0)+IF(RIGHT(BR$39,2)>RIGHT($K58,2),AV58,0)) -> 0.235 | BS58: =+IF($K58="Ongoing",AW58,IF(RIGHT($K58,2)=RIGHT(BS$39,2),SUM($AV58:AW58),0)+IF(RIGHT(BS$39,2)>RIGHT($K58,2),AW58,0)) -> 0.195 | BT58: =+IF($K58="Ongoing",AX58,IF(RIGHT($K58,2)=RIGHT(BT$39,2),SUM($AV58:AX58),0)+IF(RIGHT(BT$39,2)>RIGHT($K58,2),AX58,0)) -> 0 | BU58: =+IF($K58="Ongoing",AY58,IF(RIGHT($K58,2)=RIGHT(BU$39,2),SUM($AV58:AY58),0)+IF(RIGHT(BU$39,2)>RIGHT($K58,2),AY58,0)) -> 0 | BV58: =+IF($K58="Ongoing",AZ58,IF(RIGHT($K58,2)=RIGHT(BV$39,2),SUM($AV58:AZ58),0)+IF(RIGHT(BV$39,2)>RIGHT($K58,2),AZ58,0)) -> 0 | BW58: =+IF($K58="Ongoing",BA58,IF(RIGHT($K58,2)=RIGHT(BW$39,2),SUM($AV58:BA58),0)+IF(RIGHT(BW$39,2)>RIGHT($K58,2),BA58,0)) -> 0 | BX58: =+IF($K58="Ongoing",BB58,IF(RIGHT($K58,2)=RIGHT(BX$39,2),SUM($AV58:BB58),0)+IF(RIGHT(BX$39,2)>RIGHT($K58,2),BB58,0)) -> 0 | BY58: =+IF($K58="Ongoing",BC58,IF(RIGHT($K58,2)=RIGHT(BY$39,2),SUM($AV58:BC58),0)+IF(RIGHT(BY$39,2)>RIGHT($K58,2),BC58,0)) -> 0 | BZ58: =+IF($K58="Ongoing",BD58,IF(RIGHT($K58,2)=RIGHT(BZ$39,2),SUM($AV58:BD58),0)+IF(RIGHT(BZ$39,2)>RIGHT($K58,2),BD58,0)) -> 0 | CA58: =+IF($K58="Ongoing",BE58,IF(RIGHT($K58,2)=RIGHT(CA$39,2),SUM($AV58:BE58),0)+IF(RIGHT(CA$39,2)>RIGHT($K58,2),BE58,0)) -> 0 | CC58: =+O58*KeyAssumptionsPriceControl_FO!AC$15 -> 0.24205 | CD58: =+P58*KeyAssumptionsPriceControl_FO!AD$15 -> 0.2068755 | CE58: =+Q58*KeyAssumptionsPriceControl_FO!AE$15 -> 0 | CF58: =+R58*KeyAssumptionsPriceControl_FO!AF$15 -> 0 | CG58: =+S58*KeyAssumptionsPriceControl_FO!AG$15 -> 0 | CH58: =+T58*KeyAssumptionsPriceControl_FO!AH$15 -> 0 | CI58: =+U58*KeyAssumptionsPriceControl_FO!AI$15 -> 0 | CJ58: =+V58*KeyAssumptionsPriceControl_FO!AJ$15 -> 0 | CK58: =+W58*KeyAssumptionsPriceControl_FO!AK$15 -> 0 | CL58: =+X58*KeyAssumptionsPriceControl_FO!AL$15 -> 0 | CN58: 0.008068333333 | CO58: 0.02303251667 | CP58: 0.02992836667 | CQ58: 0.02992836667 | CR58: 0.02992836667 | CS58: 0.02992836667 | CT58: 0.02992836667 | CU58: 0.02992836667 | CV58: 0.02992836667 | CW58: 0.02992836667
C59: ='[4]ESC Model Input'!B9 -> Groundwater & Rivers Renewals program Surface water | E59: ='[4]ESC Model Input'!D9 -> Surface water diversions | F59: ='[4]ESC Model Input'!E9 -> Renewals | G59: ='[4]ESC Model Input'!F9 -> Channels | H59: ='[4]ESC Model Input'!$G$3 -> Capital Programs / Allocation | J59: Straight line | K59: ='[4]ESC Model Input'!$J$3 -> Ongoing | L59: ='[4]ESC Model Input'!K9 -> 15 | M59: ='[4]ESC Model Input'!L9 -> 15 | O59: ='[4]ESC Model Input'!N9 -> 0 | P59: ='[4]ESC Model Input'!O9 -> 0 | Q59: ='[4]ESC Model Input'!P9 -> 0 | R59: ='[4]ESC Model Input'!Q9 -> 0 | S59: ='[4]ESC Model Input'!R9 -> 0 | T59: ='[4]ESC Model Input'!S9 -> 0 | U59: ='[4]ESC Model Input'!T9 -> 0 | V59: ='[4]ESC Model Input'!U9 -> 0 | W59: ='[4]ESC Model Input'!V9 -> 0 | X59: ='[4]ESC Model Input'!W9 -> 0 | AV59: 0 | AW59: 0 | AX59: 0 | AY59: 0 | AZ59: 0 | BA59: 0 | BB59: 0 | BC59: 0 | BD59: 0 | BE59: 0 | BG59: 0 | BH59: 0 | BI59: 0 | BJ59: 0 | BK59: 0 | BL59: 0 | BM59: 0 | BN59: 0 | BO59: 0 | BP59: 0 | BR59: =+IF($K59="Ongoing",AV59,IF(RIGHT($K59,2)=RIGHT(BR$39,2),SUM($AV59:AV59),0)+IF(RIGHT(BR$39,2)>RIGHT($K59,2),AV59,0)) -> 0 | BS59: =+IF($K59="Ongoing",AW59,IF(RIGHT($K59,2)=RIGHT(BS$39,2),SUM($AV59:AW59),0)+IF(RIGHT(BS$39,2)>RIGHT($K59,2),AW59,0)) -> 0 | BT59: =+IF($K59="Ongoing",AX59,IF(RIGHT($K59,2)=RIGHT(BT$39,2),SUM($AV59:AX59),0)+IF(RIGHT(BT$39,2)>RIGHT($K59,2),AX59,0)) -> 0 | BU59: =+IF($K59="Ongoing",AY59,IF(RIGHT($K59,2)=RIGHT(BU$39,2),SUM($AV59:AY59),0)+IF(RIGHT(BU$39,2)>RIGHT($K59,2),AY59,0)) -> 0 | BV59: =+IF($K59="Ongoing",AZ59,IF(RIGHT($K59,2)=RIGHT(BV$39,2),SUM($AV59:AZ59),0)+IF(RIGHT(BV$39,2)>RIGHT($K59,2),AZ59,0)) -> 0 | BW59: =+IF($K59="Ongoing",BA59,IF(RIGHT($K59,2)=RIGHT(BW$39,2),SUM($AV59:BA59),0)+IF(RIGHT(BW$39,2)>RIGHT($K59,2),BA59,0)) -> 0 | BX59: =+IF($K59="Ongoing",BB59,IF(RIGHT($K59,2)=RIGHT(BX$39,2),SUM($AV59:BB59),0)+IF(RIGHT(BX$39,2)>RIGHT($K59,2),BB59,0)) -> 0 | BY59: =+IF($K59="Ongoing",BC59,IF(RIGHT($K59,2)=RIGHT(BY$39,2),SUM($AV59:BC59),0)+IF(RIGHT(BY$39,2)>RIGHT($K59,2),BC59,0)) -> 0 | BZ59: =+IF($K59="Ongoing",BD59,IF(RIGHT($K59,2)=RIGHT(BZ$39,2),SUM($AV59:BD59),0)+IF(RIGHT(BZ$39,2)>RIGHT($K59,2),BD59,0)) -> 0 | CA59: =+IF($K59="Ongoing",BE59,IF(RIGHT($K59,2)=RIGHT(CA$39,2),SUM($AV59:BE59),0)+IF(RIGHT(CA$39,2)>RIGHT($K59,2),BE59,0)) -> 0 | CC59: =+O59*KeyAssumptionsPriceControl_FO!AC$15 -> 0 | CD59: =+P59*KeyAssumptionsPriceControl_FO!AD$15 -> 0 | CE59: =+Q59*KeyAssumptionsPriceControl_FO!AE$15 -> 0 | CF59: =+R59*KeyAssumptionsPriceControl_FO!AF$15 -> 0 | CG59: =+S59*KeyAssumptionsPriceControl_FO!AG$15 -> 0 | CH59: =+T59*KeyAssumptionsPriceControl_FO!AH$15 -> 0 | CI59: =+U59*KeyAssumptionsPriceControl_FO!AI$15 -> 0 | CJ59: =+V59*KeyAssumptionsPriceControl_FO!AJ$15 -> 0 | CK59: =+W59*KeyAssumptionsPriceControl_FO!AK$15 -> 0 | CL59: =+X59*KeyAssumptionsPriceControl_FO!AL$15 -> 0 | CN59: 0 | CO59: 0 | CP59: 0 | CQ59: 0 | CR59: 0 | CS59: 0 | CT59: 0 | CU59: 0 | CV59: 0 | CW59: 0
C60: ='[4]ESC Model Input'!B10 -> Groundwater & Rivers Renewals program Surface water | E60: ='[4]ESC Model Input'!D10 -> Surface water diversions | F60: ='[4]ESC Model Input'!E10 -> Improvements / Compliance | G60: ='[4]ESC Model Input'!F10 -> Channels | H60: ='[4]ESC Model Input'!$G$3 -> Capital Programs / Allocation | J60: Straight line | K60: ='[4]ESC Model Input'!$J$3 -> Ongoing | L60: ='[4]ESC Model Input'!K10 -> 15 | M60: ='[4]ESC Model Input'!L10 -> 15 | O60: ='[4]ESC Model Input'!N10 -> 0 | P60: ='[4]ESC Model Input'!O10 -> 0 | Q60: ='[4]ESC Model Input'!P10 -> 0 | R60: ='[4]ESC Model Input'!Q10 -> 0 | S60: ='[4]ESC Model Input'!R10 -> 0 | T60: ='[4]ESC Model Input'!S10 -> 0 | U60: ='[4]ESC Model Input'!T10 -> 0 | V60: ='[4]ESC Model Input'!U10 -> 0 | W60: ='[4]ESC Model Input'!V10 -> 0 | X60: ='[4]ESC Model Input'!W10 -> 0 | AV60: 0 | AW60: 0 | AX60: 0 | AY60: 0 | AZ60: 0 | BA60: 0 | BB60: 0 | BC60: 0 | BD60: 0 | BE60: 0 | BG60: 0 | BH60: 0 | BI60: 0 | BJ60: 0 | BK60: 0 | BL60: 0 | BM60: 0 | BN60: 0 | BO60: 0 | BP60: 0 | BR60: =+IF($K60="Ongoing",AV60,IF(RIGHT($K60,2)=RIGHT(BR$39,2),SUM($AV60:AV60),0)+IF(RIGHT(BR$39,2)>RIGHT($K60,2),AV60,0)) -> 0 | BS60: =+IF($K60="Ongoing",AW60,IF(RIGHT($K60,2)=RIGHT(BS$39,2),SUM($AV60:AW60),0)+IF(RIGHT(BS$39,2)>RIGHT($K60,2),AW60,0)) -> 0 | BT60: =+IF($K60="Ongoing",AX60,IF(RIGHT($K60,2)=RIGHT(BT$39,2),SUM($AV60:AX60),0)+IF(RIGHT(BT$39,2)>RIGHT($K60,2),AX60,0)) -> 0 | BU60: =+IF($K60="Ongoing",AY60,IF(RIGHT($K60,2)=RIGHT(BU$39,2),SUM($AV60:AY60),0)+IF(RIGHT(BU$39,2)>RIGHT($K60,2),AY60,0)) -> 0 | BV60: =+IF($K60="Ongoing",AZ60,IF(RIGHT($K60,2)=RIGHT(BV$39,2),SUM($AV60:AZ60),0)+IF(RIGHT(BV$39,2)>RIGHT($K60,2),AZ60,0)) -> 0 | BW60: =+IF($K60="Ongoing",BA60,IF(RIGHT($K60,2)=RIGHT(BW$39,2),SUM($AV60:BA60),0)+IF(RIGHT(BW$39,2)>RIGHT($K60,2),BA60,0)) -> 0 | BX60: =+IF($K60="Ongoing",BB60,IF(RIGHT($K60,2)=RIGHT(BX$39,2),SUM($AV60:BB60),0)+IF(RIGHT(BX$39,2)>RIGHT($K60,2),BB60,0)) -> 0 | BY60: =+IF($K60="Ongoing",BC60,IF(RIGHT($K60,2)=RIGHT(BY$39,2),SUM($AV60:BC60),0)+IF(RIGHT(BY$39,2)>RIGHT($K60,2),BC60,0)) -> 0 | BZ60: =+IF($K60="Ongoing",BD60,IF(RIGHT($K60,2)=RIGHT(BZ$39,2),SUM($AV60:BD60),0)+IF(RIGHT(BZ$39,2)>RIGHT($K60,2),BD60,0)) -> 0 | CA60: =+IF($K60="Ongoing",BE60,IF(RIGHT($K60,2)=RIGHT(CA$39,2),SUM($AV60:BE60),0)+IF(RIGHT(CA$39,2)>RIGHT($K60,2),BE60,0)) -> 0 | CC60: =+O60*KeyAssumptionsPriceControl_FO!AC$15 -> 0 | CD60: =+P60*KeyAssumptionsPriceControl_FO!AD$15 -> 0 | CE60: =+Q60*KeyAssumptionsPriceControl_FO!AE$15 -> 0 | CF60: =+R60*KeyAssumptionsPriceControl_FO!AF$15 -> 0 | CG60: =+S60*KeyAssumptionsPriceControl_FO!AG$15 -> 0 | CH60: =+T60*KeyAssumptionsPriceControl_FO!AH$15 -> 0 | CI60: =+U60*KeyAssumptionsPriceControl_FO!AI$15 -> 0 | CJ60: =+V60*KeyAssumptionsPriceControl_FO!AJ$15 -> 0 | CK60: =+W60*KeyAssumptionsPriceControl_FO!AK$15 -> 0 | CL60: =+X60*KeyAssumptionsPriceControl_FO!AL$15 -> 0 | CN60: 0 | CO60: 0 | CP60: 0 | CQ60: 0 | CR60: 0 | CS60: 0 | CT60: 0 | CU60: 0 | CV60: 0 | CW60: 0
C61: ='[4]ESC Model Input'!B11 -> ITC Program IRRIGATION | E61: ='[4]ESC Model Input'!D11 -> Irrigation | F61: ='[4]ESC Model Input'!E11 -> Renewals | G61: ='[4]ESC Model Input'!F11 -> Corporate | H61: ='[4]ESC Model Input'!$G$3 -> Capital Programs / Allocation | J61: Straight line | K61: ='[4]ESC Model Input'!$J$3 -> Ongoing | L61: ='[4]ESC Model Input'!K11 -> 10 | M61: ='[4]ESC Model Input'!L11 -> 10 | O61: ='[4]ESC Model Input'!N11 -> 0.14063 | P61: ='[4]ESC Model Input'!O11 -> 0.144361 | Q61: ='[4]ESC Model Input'!P11 -> 0.14816662 | R61: ='[4]ESC Model Input'!Q11 -> 0.1624133 | S61: ='[4]ESC Model Input'!R11 -> 0.166440484 | T61: ='[4]ESC Model Input'!S11 -> 0.3118788461 | U61: ='[4]ESC Model Input'!T11 -> 0.3118788461 | V61: ='[4]ESC Model Input'!U11 -> 0.3118788461 | W61: ='[4]ESC Model Input'!V11 -> 0 | X61: ='[4]ESC Model Input'!W11 -> 0 | AV61: 0.14063 | AW61: 0.144361 | AX61: 0.14816662 | AY61: 0.1624133 | AZ61: 0.166440484 | BA61: 0.3118788461 | BB61: 0.3118788461 | BC61: 0.3118788461 | BD61: 0 | BE61: 0 | BG61: 0.00640675 | BH61: 0.019390225 | BI61: 0.0327170495 | BJ61: 0.0468662915 | BK61: 0.0618480449 | BL61: 0.08600714325 | BM61: 0.1191601182 | BN61: 0.1523130931 | BO61: 0.1688895805 | BP61: 0.1688895805 | BR61: =+IF($K61="Ongoing",AV61,IF(RIGHT($K61,2)=RIGHT(BR$39,2),SUM($AV61:AV61),0)+IF(RIGHT(BR$39,2)>RIGHT($K61,2),AV61,0)) -> 0.14063 | BS61: =+IF($K61="Ongoing",AW61,IF(RIGHT($K61,2)=RIGHT(BS$39,2),SUM($AV61:AW61),0)+IF(RIGHT(BS$39,2)>RIGHT($K61,2),AW61,0)) -> 0.144361 | BT61: =+IF($K61="Ongoing",AX61,IF(RIGHT($K61,2)=RIGHT(BT$39,2),SUM($AV61:AX61),0)+IF(RIGHT(BT$39,2)>RIGHT($K61,2),AX61,0)) -> 0.14816662 | BU61: =+IF($K61="Ongoing",AY61,IF(RIGHT($K61,2)=RIGHT(BU$39,2),SUM($AV61:AY61),0)+IF(RIGHT(BU$39,2)>RIGHT($K61,2),AY61,0)) -> 0.1624133 | BV61: =+IF($K61="Ongoing",AZ61,IF(RIGHT($K61,2)=RIGHT(BV$39,2),SUM($AV61:AZ61),0)+IF(RIGHT(BV$39,2)>RIGHT($K61,2),AZ61,0)) -> 0.166440484 | BW61: =+IF($K61="Ongoing",BA61,IF(RIGHT($K61,2)=RIGHT(BW$39,2),SUM($AV61:BA61),0)+IF(RIGHT(BW$39,2)>RIGHT($K61,2),BA61,0)) -> 0.3118788461 | BX61: =+IF($K61="Ongoing",BB61,IF(RIGHT($K61,2)=RIGHT(BX$39,2),SUM($AV61:BB61),0)+IF(RIGHT(BX$39,2)>RIGHT($K61,2),BB61,0)) -> 0.3118788461 | BY61: =+IF($K61="Ongoing",BC61,IF(RIGHT($K61,2)=RIGHT(BY$39,2),SUM($AV61:BC61),0)+IF(RIGHT(BY$39,2)>RIGHT($K61,2),BC61,0)) -> 0.3118788461 | BZ61: =+IF($K61="Ongoing",BD61,IF(RIGHT($K61,2)=RIGHT(BZ$39,2),SUM($AV61:BD61),0)+IF(RIGHT(BZ$39,2)>RIGHT($K61,2),BD61,0)) -> 0 | CA61: =+IF($K61="Ongoing",BE61,IF(RIGHT($K61,2)=RIGHT(CA$39,2),SUM($AV61:BE61),0)+IF(RIGHT(CA$39,2)>RIGHT($K61,2),BE61,0)) -> 0 | CC61: =+O61*KeyAssumptionsPriceControl_FO!AC$15 -> 0.1448489 | CD61: =+P61*KeyAssumptionsPriceControl_FO!AD$15 -> 0.1531525849 | CE61: =+Q61*KeyAssumptionsPriceControl_FO!AE$15 -> 0.1619056662 | CF61: =+R61*KeyAssumptionsPriceControl_FO!AF$15 -> 0.1827976 | CG61: =+S61*KeyAssumptionsPriceControl_FO!AG$15 -> 0.192950138 | CH61: =+T61*KeyAssumptionsPriceControl_FO!AH$15 -> 0.3723996525 | CI61: =+U61*KeyAssumptionsPriceControl_FO!AI$15 -> 0.383571642 | CJ61: =+V61*KeyAssumptionsPriceControl_FO!AJ$15 -> 0.3950787913 | CK61: =+W61*KeyAssumptionsPriceControl_FO!AK$15 -> 0 | CL61: =+X61*KeyAssumptionsPriceControl_FO!AL$15 -> 0 | CN61: 0.0065989525 | CO61: 0.02017515255 | CP61: 0.03452841608 | CQ61: 0.05023223213 | CR61: 0.06735035643 | CS61: 0.09593387357 | CT61: 0.1361140552 | CU61: 0.1774996422 | CV61: 0.1984982406 | CW61: 0.1984982406
C62: ='[4]ESC Model Input'!B12 -> ITC Program SW | E62: ='[4]ESC Model Input'!D12 -> Surface water diversions | F62: ='[4]ESC Model Input'!E12 -> Renewals | G62: ='[4]ESC Model Input'!F12 -> Corporate | H62: ='[4]ESC Model Input'!$G$3 -> Capital Programs / Allocation | J62: Straight line | K62: ='[4]ESC Model Input'!$J$3 -> Ongoing | L62: ='[4]ESC Model Input'!K12 -> 10 | M62: ='[4]ESC Model Input'!L12 -> 10 | O62: ='[4]ESC Model Input'!N12 -> 0.03103384531 | P62: ='[4]ESC Model Input'!O12 -> 0.03185719223 | Q62: ='[4]ESC Model Input'!P12 -> 0.03269700608 | R62: ='[4]ESC Model Input'!Q12 -> 0.03584092461 | S62: ='[4]ESC Model Input'!R12 -> 0.03672963261 | T62: ='[4]ESC Model Input'!S12 -> 0.06882457417 | U62: ='[4]ESC Model Input'!T12 -> 0.06882457417 | V62: ='[4]ESC Model Input'!U12 -> 0.06882457417 | W62: ='[4]ESC Model Input'!V12 -> 0 | X62: ='[4]ESC Model Input'!W12 -> 0 | AV62: 0.03103384531 | AW62: 0.03185719223 | AX62: 0.03269700608 | AY62: 0.03584092461 | AZ62: 0.03672963261 | BA62: 0.06882457417 | BB62: 0.06882457417 | BC62: 0.06882457417 | BD62: 0 | BE62: 0 | BG62: 0.001976721016 | BH62: 0.005982606668 | BI62: 0.01009442843 | BJ62: 0.01445999662 | BK62: 0.0190824256 | BL62: 0.02653640733 | BM62: 0.03676533498 | BN62: 0.04699426263 | BO62: 0.05210872646 | BP62: 0.05210872646 | BR62: =+IF($K62="Ongoing",AV62,IF(RIGHT($K62,2)=RIGHT(BR$39,2),SUM($AV62:AV62),0)+IF(RIGHT(BR$39,2)>RIGHT($K62,2),AV62,0)) -> 0.03103384531 | BS62: =+IF($K62="Ongoing",AW62,IF(RIGHT($K62,2)=RIGHT(BS$39,2),SUM($AV62:AW62),0)+IF(RIGHT(BS$39,2)>RIGHT($K62,2),AW62,0)) -> 0.03185719223 | BT62: =+IF($K62="Ongoing",AX62,IF(RIGHT($K62,2)=RIGHT(BT$39,2),SUM($AV62:AX62),0)+IF(RIGHT(BT$39,2)>RIGHT($K62,2),AX62,0)) -> 0.03269700608 | BU62: =+IF($K62="Ongoing",AY62,IF(RIGHT($K62,2)=RIGHT(BU$39,2),SUM($AV62:AY62),0)+IF(RIGHT(BU$39,2)>RIGHT($K62,2),AY62,0)) -> 0.03584092461 | BV62: =+IF($K62="Ongoing",AZ62,IF(RIGHT($K62,2)=RIGHT(BV$39,2),SUM($AV62:AZ62),0)+IF(RIGHT(BV$39,2)>RIGHT($K62,2),AZ62,0)) -> 0.03672963261 | BW62: =+IF($K62="Ongoing",BA62,IF(RIGHT($K62,2)=RIGHT(BW$39,2),SUM($AV62:BA62),0)+IF(RIGHT(BW$39,2)>RIGHT($K62,2),BA62,0)) -> 0.06882457417 | BX62: =+IF($K62="Ongoing",BB62,IF(RIGHT($K62,2)=RIGHT(BX$39,2),SUM($AV62:BB62),0)+IF(RIGHT(BX$39,2)>RIGHT($K62,2),BB62,0)) -> 0.06882457417 | BY62: =+IF($K62="Ongoing",BC62,IF(RIGHT($K62,2)=RIGHT(BY$39,2),SUM($AV62:BC62),0)+IF(RIGHT(BY$39,2)>RIGHT($K62,2),BC62,0)) -> 0.06882457417 | BZ62: =+IF($K62="Ongoing",BD62,IF(RIGHT($K62,2)=RIGHT(BZ$39,2),SUM($AV62:BD62),0)+IF(RIGHT(BZ$39,2)>RIGHT($K62,2),BD62,0)) -> 0 | CA62: =+IF($K62="Ongoing",BE62,IF(RIGHT($K62,2)=RIGHT(CA$39,2),SUM($AV62:BE62),0)+IF(RIGHT(CA$39,2)>RIGHT($K62,2),BE62,0)) -> 0 | CC62: =+O62*KeyAssumptionsPriceControl_FO!AC$15 -> 0.03196486067 | CD62: =+P62*KeyAssumptionsPriceControl_FO!AD$15 -> 0.03379729523 | CE62: =+Q62*KeyAssumptionsPriceControl_FO!AE$15 -> 0.03572890136 | CF62: =+R62*KeyAssumptionsPriceControl_FO!AF$15 -> 0.04033927641 | CG62: =+S62*KeyAssumptionsPriceControl_FO!AG$15 -> 0.04257971084 | CH62: =+T62*KeyAssumptionsPriceControl_FO!AH$15 -> 0.08218014085 | CI62: =+U62*KeyAssumptionsPriceControl_FO!AI$15 -> 0.08464554508 | CJ62: =+V62*KeyAssumptionsPriceControl_FO!AJ$15 -> 0.08718491143 | CK62: =+W62*KeyAssumptionsPriceControl_FO!AK$15 -> 0 | CL62: =+X62*KeyAssumptionsPriceControl_FO!AL$15 -> 0 | CN62: 0.002036022647 | CO62: 0.006224786056 | CP62: 0.01065330249 | CQ62: 0.01549851468 | CR62: 0.02078009365 | CS62: 0.02959917338 | CT62: 0.04199625606 | CU62: 0.05476525121 | CV62: 0.06124410097 | CW62: 0.06124410097
C63: ='[4]ESC Model Input'!B13 -> ITC Program GW | E63: ='[4]ESC Model Input'!D13 -> Groundwater diversions | F63: ='[4]ESC Model Input'!E13 -> Renewals | G63: ='[4]ESC Model Input'!F13 -> Corporate | H63: ='[4]ESC Model Input'!$G$3 -> Capital Programs / Allocation | J63: Straight line | K63: ='[4]ESC Model Input'!$J$3 -> Ongoing | L63: ='[4]ESC Model Input'!K13 -> 10 | M63: ='[4]ESC Model Input'!L13 -> 10 | O63: ='[4]ESC Model Input'!N13 -> 0.02531615469 | P63: ='[4]ESC Model Input'!O13 -> 0.02598780777 | Q63: ='[4]ESC Model Input'!P13 -> 0.02667289392 | R63: ='[4]ESC Model Input'!Q13 -> 0.02923757539 | S63: ='[4]ESC Model Input'!R13 -> 0.02996254739 | T63: ='[4]ESC Model Input'!S13 -> 0.05614430145 | U63: ='[4]ESC Model Input'!T13 -> 0.05614430145 | V63: ='[4]ESC Model Input'!U13 -> 0.05614430145 | W63: ='[4]ESC Model Input'!V13 -> 0 | X63: ='[4]ESC Model Input'!W13 -> 0 | AV63: 0.02531615469 | AW63: 0.02598780777 | AX63: 0.02667289392 | AY63: 0.02923757539 | AZ63: 0.02996254739 | BA63: 0.05614430145 | BB63: 0.05614430145 | BC63: 0.05614430145 | BD63: 0 | BE63: 0 | BG63: 0.001612528984 | BH63: 0.004880368332 | BI63: 0.00823462607 | BJ63: 0.01179587988 | BK63: 0.0155666703 | BL63: 0.02164732685 | BM63: 0.02999167194 | BN63: 0.03833601703 | BO63: 0.04250818958 | BP63: 0.04250818958 | BR63: =+IF($K63="Ongoing",AV63,IF(RIGHT($K63,2)=RIGHT(BR$39,2),SUM($AV63:AV63),0)+IF(RIGHT(BR$39,2)>RIGHT($K63,2),AV63,0)) -> 0.02531615469 | BS63: =+IF($K63="Ongoing",AW63,IF(RIGHT($K63,2)=RIGHT(BS$39,2),SUM($AV63:AW63),0)+IF(RIGHT(BS$39,2)>RIGHT($K63,2),AW63,0)) -> 0.02598780777 | BT63: =+IF($K63="Ongoing",AX63,IF(RIGHT($K63,2)=RIGHT(BT$39,2),SUM($AV63:AX63),0)+IF(RIGHT(BT$39,2)>RIGHT($K63,2),AX63,0)) -> 0.02667289392 | BU63: =+IF($K63="Ongoing",AY63,IF(RIGHT($K63,2)=RIGHT(BU$39,2),SUM($AV63:AY63),0)+IF(RIGHT(BU$39,2)>RIGHT($K63,2),AY63,0)) -> 0.02923757539 | BV63: =+IF($K63="Ongoing",AZ63,IF(RIGHT($K63,2)=RIGHT(BV$39,2),SUM($AV63:AZ63),0)+IF(RIGHT(BV$39,2)>RIGHT($K63,2),AZ63,0)) -> 0.02996254739 | BW63: =+IF($K63="Ongoing",BA63,IF(RIGHT($K63,2)=RIGHT(BW$39,2),SUM($AV63:BA63),0)+IF(RIGHT(BW$39,2)>RIGHT($K63,2),BA63,0)) -> 0.05614430145 | BX63: =+IF($K63="Ongoing",BB63,IF(RIGHT($K63,2)=RIGHT(BX$39,2),SUM($AV63:BB63),0)+IF(RIGHT(BX$39,2)>RIGHT($K63,2),BB63,0)) -> 0.05614430145 | BY63: =+IF($K63="Ongoing",BC63,IF(RIGHT($K63,2)=RIGHT(BY$39,2),SUM($AV63:BC63),0)+IF(RIGHT(BY$39,2)>RIGHT($K63,2),BC63,0)) -> 0.05614430145 | BZ63: =+IF($K63="Ongoing",BD63,IF(RIGHT($K63,2)=RIGHT(BZ$39,2),SUM($AV63:BD63),0)+IF(RIGHT(BZ$39,2)>RIGHT($K63,2),BD63,0)) -> 0 | CA63: =+IF($K63="Ongoing",BE63,IF(RIGHT($K63,2)=RIGHT(CA$39,2),SUM($AV63:BE63),0)+IF(RIGHT(CA$39,2)>RIGHT($K63,2),BE63,0)) -> 0 | CC63: =+O63*KeyAssumptionsPriceControl_FO!AC$15 -> 0.02607563933 | CD63: =+P63*KeyAssumptionsPriceControl_FO!AD$15 -> 0.02757046527 | CE63: =+Q63*KeyAssumptionsPriceControl_FO!AE$15 -> 0.02914619135 | CF63: =+R63*KeyAssumptionsPriceControl_FO!AF$15 -> 0.03290714868 | CG63: =+S63*KeyAssumptionsPriceControl_FO!AG$15 -> 0.03473480439 | CH63: =+T63*KeyAssumptionsPriceControl_FO!AH$15 -> 0.06703923208 | CI63: =+U63*KeyAssumptionsPriceControl_FO!AI$15 -> 0.06905040905 | CJ63: =+V63*KeyAssumptionsPriceControl_FO!AJ$15 -> 0.07112192132 | CK63: =+W63*KeyAssumptionsPriceControl_FO!AK$15 -> 0 | CL63: =+X63*KeyAssumptionsPriceControl_FO!AL$15 -> 0 | CN63: 0.001660904853 | CO63: 0.005077928472 | CP63: 0.008690532905 | CQ63: 0.01264306087 | CR63: 0.01695155918 | CS63: 0.02414580741 | CT63: 0.0342588456 | CU63: 0.04467527493 | CV63: 0.04996045829 | CW63: 0.04996045829
C64: ='[4]ESC Model Input'!B14 -> ITC Program BULK | E64: ='[4]ESC Model Input'!D14 -> Bulk water services | F64: ='[4]ESC Model Input'!E14 -> Renewals | G64: ='[4]ESC Model Input'!F14 -> Corporate | H64: ='[4]ESC Model Input'!$G$3 -> Capital Programs / Allocation | J64: Straight line | K64: ='[4]ESC Model Input'!$J$3 -> Ongoing | L64: ='[4]ESC Model Input'!K14 -> 10 | M64: ='[4]ESC Model Input'!L14 -> 10 | O64: ='[4]ESC Model Input'!N14 -> 0.037485 | P64: ='[4]ESC Model Input'!O14 -> 0.0384795 | Q64: ='[4]ESC Model Input'!P14 -> 0.03949389 | R64: ='[4]ESC Model Input'!Q14 -> 0.04329135 | S64: ='[4]ESC Model Input'!R14 -> 0.044364798 | T64: ='[4]ESC Model Input'!S14 -> 0.08313146944 | U64: ='[4]ESC Model Input'!T14 -> 0.08313146944 | V64: ='[4]ESC Model Input'!U14 -> 0.08313146944 | W64: ='[4]ESC Model Input'!V14 -> 0 | X64: ='[4]ESC Model Input'!W14 -> 0 | AV64: 0.037485 | AW64: 0.0384795 | AX64: 0.03949389 | AY64: 0.04329135 | AZ64: 0.044364798 | BA64: 0.08313146944 | BB64: 0.08313146944 | BC64: 0.08313146944 | BD64: 0 | BE64: 0 | BG64: 0.00172725 | BH64: 0.005227575 | BI64: 0.0088204665 | BJ64: 0.0126350805 | BK64: 0.0166741383 | BL64: 0.02318739426 | BM64: 0.03212538558 | BN64: 0.0410633769 | BO64: 0.04553237257 | BP64: 0.04553237257 | BR64: =+IF($K64="Ongoing",AV64,IF(RIGHT($K64,2)=RIGHT(BR$39,2),SUM($AV64:AV64),0)+IF(RIGHT(BR$39,2)>RIGHT($K64,2),AV64,0)) -> 0.037485 | BS64: =+IF($K64="Ongoing",AW64,IF(RIGHT($K64,2)=RIGHT(BS$39,2),SUM($AV64:AW64),0)+IF(RIGHT(BS$39,2)>RIGHT($K64,2),AW64,0)) -> 0.0384795 | BT64: =+IF($K64="Ongoing",AX64,IF(RIGHT($K64,2)=RIGHT(BT$39,2),SUM($AV64:AX64),0)+IF(RIGHT(BT$39,2)>RIGHT($K64,2),AX64,0)) -> 0.03949389 | BU64: =+IF($K64="Ongoing",AY64,IF(RIGHT($K64,2)=RIGHT(BU$39,2),SUM($AV64:AY64),0)+IF(RIGHT(BU$39,2)>RIGHT($K64,2),AY64,0)) -> 0.04329135 | BV64: =+IF($K64="Ongoing",AZ64,IF(RIGHT($K64,2)=RIGHT(BV$39,2),SUM($AV64:AZ64),0)+IF(RIGHT(BV$39,2)>RIGHT($K64,2),AZ64,0)) -> 0.044364798 | BW64: =+IF($K64="Ongoing",BA64,IF(RIGHT($K64,2)=RIGHT(BW$39,2),SUM($AV64:BA64),0)+IF(RIGHT(BW$39,2)>RIGHT($K64,2),BA64,0)) -> 0.08313146944 | BX64: =+IF($K64="Ongoing",BB64,IF(RIGHT($K64,2)=RIGHT(BX$39,2),SUM($AV64:BB64),0)+IF(RIGHT(BX$39,2)>RIGHT($K64,2),BB64,0)) -> 0.08313146944 | BY64: =+IF($K64="Ongoing",BC64,IF(RIGHT($K64,2)=RIGHT(BY$39,2),SUM($AV64:BC64),0)+IF(RIGHT(BY$39,2)>RIGHT($K64,2),BC64,0)) -> 0.08313146944 | BZ64: =+IF($K64="Ongoing",BD64,IF(RIGHT($K64,2)=RIGHT(BZ$39,2),SUM($AV64:BD64),0)+IF(RIGHT(BZ$39,2)>RIGHT($K64,2),BD64,0)) -> 0 | CA64: =+IF($K64="Ongoing",BE64,IF(RIGHT($K64,2)=RIGHT(CA$39,2),SUM($AV64:BE64),0)+IF(RIGHT(CA$39,2)>RIGHT($K64,2),BE64,0)) -> 0 | CC64: =+O64*KeyAssumptionsPriceControl_FO!AC$15 -> 0.03860955 | CD64: =+P64*KeyAssumptionsPriceControl_FO!AD$15 -> 0.04082290155 | CE64: =+Q64*KeyAssumptionsPriceControl_FO!AE$15 -> 0.04315603994 | CF64: =+R64*KeyAssumptionsPriceControl_FO!AF$15 -> 0.04872479582 | CG64: =+S64*KeyAssumptionsPriceControl_FO!AG$15 -> 0.05143096013 | CH64: =+T64*KeyAssumptionsPriceControl_FO!AH$15 -> 0.099263322 | CI64: =+U64*KeyAssumptionsPriceControl_FO!AI$15 -> 0.1022412217 | CJ64: =+V64*KeyAssumptionsPriceControl_FO!AJ$15 -> 0.1053084583 | CK64: =+W64*KeyAssumptionsPriceControl_FO!AK$15 -> 0 | CL64: =+X64*KeyAssumptionsPriceControl_FO!AL$15 -> 0 | CN64: 0.0017790675 | CO64: 0.005439190267 | CP64: 0.00930880816 | CQ64: 0.01354253294 | CR64: 0.01815755307 | CS64: 0.02586362557 | CT64: 0.03669614107 | CU64: 0.04785363204 | CV64: 0.05351482203 | CW64: 0.05351482203
C65: ='[4]ESC Model Input'!B16 -> ITC Program IRRIGATION | E65: ='[4]ESC Model Input'!D16 -> Irrigation | F65: ='[4]ESC Model Input'!E16 -> Improvements / Compliance | G65: ='[4]ESC Model Input'!F16 -> Corporate | H65: ='[4]ESC Model Input'!$G$3 -> Capital Programs / Allocation | J65: Straight line | K65: ='[4]ESC Model Input'!$J$3 -> Ongoing | L65: ='[4]ESC Model Input'!K16 -> 10 | M65: ='[4]ESC Model Input'!L16 -> 10 | O65: ='[4]ESC Model Input'!N16 -> 1.009983732 | P65: ='[4]ESC Model Input'!O16 -> 1.550029715 | Q65: ='[4]ESC Model Input'!P16 -> 0.706484653 | R65: ='[4]ESC Model Input'!Q16 -> 0.761014653 | S65: ='[4]ESC Model Input'!R16 -> 0.541579045 | T65: ='[4]ESC Model Input'!S16 -> 1.160243241 | U65: ='[4]ESC Model Input'!T16 -> 1.126970972 | V65: ='[4]ESC Model Input'!U16 -> 1.126970972 | W65: ='[4]ESC Model Input'!V16 -> 0 | X65: ='[4]ESC Model Input'!W16 -> 0 | AV65: 1.009983732 | AW65: 1.550029715 | AX65: 0.706484653 | AY65: 0.761014653 | AZ65: 0.541579045 | BA65: 1.160243241 | BB65: 1.126970972 | BC65: 1.126970972 | BD65: 0 | BE65: 0 | BG65: 0.04601232507 | BH65: 0.1626401154 | BI65: 0.265441249 | BJ65: 0.3322968359 | BK65: 0.3916397369 | BL65: 0.4779801194 | BM65: 0.5995464846 | BN65: 0.7193444151 | BO65: 0.7792433804 | BP65: 0.7792433804 | BR65: =+IF($K65="Ongoing",AV65,IF(RIGHT($K65,2)=RIGHT(BR$39,2),SUM($AV65:AV65),0)+IF(RIGHT(BR$39,2)>RIGHT($K65,2),AV65,0)) -> 1.009983732 | BS65: =+IF($K65="Ongoing",AW65,IF(RIGHT($K65,2)=RIGHT(BS$39,2),SUM($AV65:AW65),0)+IF(RIGHT(BS$39,2)>RIGHT($K65,2),AW65,0)) -> 1.550029715 | BT65: =+IF($K65="Ongoing",AX65,IF(RIGHT($K65,2)=RIGHT(BT$39,2),SUM($AV65:AX65),0)+IF(RIGHT(BT$39,2)>RIGHT($K65,2),AX65,0)) -> 0.706484653 | BU65: =+IF($K65="Ongoing",AY65,IF(RIGHT($K65,2)=RIGHT(BU$39,2),SUM($AV65:AY65),0)+IF(RIGHT(BU$39,2)>RIGHT($K65,2),AY65,0)) -> 0.761014653 | BV65: =+IF($K65="Ongoing",AZ65,IF(RIGHT($K65,2)=RIGHT(BV$39,2),SUM($AV65:AZ65),0)+IF(RIGHT(BV$39,2)>RIGHT($K65,2),AZ65,0)) -> 0.541579045 | BW65: =+IF($K65="Ongoing",BA65,IF(RIGHT($K65,2)=RIGHT(BW$39,2),SUM($AV65:BA65),0)+IF(RIGHT(BW$39,2)>RIGHT($K65,2),BA65,0)) -> 1.160243241 | BX65: =+IF($K65="Ongoing",BB65,IF(RIGHT($K65,2)=RIGHT(BX$39,2),SUM($AV65:BB65),0)+IF(RIGHT(BX$39,2)>RIGHT($K65,2),BB65,0)) -> 1.126970972 | BY65: =+IF($K65="Ongoing",BC65,IF(RIGHT($K65,2)=RIGHT(BY$39,2),SUM($AV65:BC65),0)+IF(RIGHT(BY$39,2)>RIGHT($K65,2),BC65,0)) -> 1.126970972 | BZ65: =+IF($K65="Ongoing",BD65,IF(RIGHT($K65,2)=RIGHT(BZ$39,2),SUM($AV65:BD65),0)+IF(RIGHT(BZ$39,2)>RIGHT($K65,2),BD65,0)) -> 0 | CA65: =+IF($K65="Ongoing",BE65,IF(RIGHT($K65,2)=RIGHT(CA$39,2),SUM($AV65:BE65),0)+IF(RIGHT(CA$39,2)>RIGHT($K65,2),BE65,0)) -> 0 | CC65: =+O65*KeyAssumptionsPriceControl_FO!AC$15 -> 1.040283244 | CD65: =+P65*KeyAssumptionsPriceControl_FO!AD$15 -> 1.644426524 | CE65: =+Q65*KeyAssumptionsPriceControl_FO!AE$15 -> 0.7719948554 | CF65: =+R65*KeyAssumptionsPriceControl_FO!AF$15 -> 0.8565286965 | CG65: =+S65*KeyAssumptionsPriceControl_FO!AG$15 -> 0.6278385461 | CH65: =+T65*KeyAssumptionsPriceControl_FO!AH$15 -> 1.385391106 | CI65: =+U65*KeyAssumptionsPriceControl_FO!AI$15 -> 1.386032145 | CJ65: =+V65*KeyAssumptionsPriceControl_FO!AJ$15 -> 1.42761311 | CK65: =+W65*KeyAssumptionsPriceControl_FO!AK$15 -> 0 | CL65: =+X65*KeyAssumptionsPriceControl_FO!AL$15 -> 0 | CN65: 0.04739269482 | CO65: 0.1697013367 | CP65: 0.2797874327 | CQ65: 0.3539788802 | CR65: 0.4216029279 | CS65: 0.5238397775 | CT65: 0.6711420499 | CU65: 0.8206884389 | CV65: 0.8965666561 | CW65: 0.8965666561
C66: ='[4]ESC Model Input'!B17 -> ITC Program SW | E66: ='[4]ESC Model Input'!D17 -> Surface water diversions | F66: ='[4]ESC Model Input'!E17 -> Improvements / Compliance | G66: ='[4]ESC Model Input'!F17 -> Corporate | H66: ='[4]ESC Model Input'!$G$3 -> Capital Programs / Allocation | J66: Straight line | K66: ='[4]ESC Model Input'!$J$3 -> Ongoing | L66: ='[4]ESC Model Input'!K17 -> 10 | M66: ='[4]ESC Model Input'!L17 -> 10 | O66: ='[4]ESC Model Input'!N17 -> 0.2228804587 | P66: ='[4]ESC Model Input'!O17 -> 0.342056335 | Q66: ='[4]ESC Model Input'!P17 -> 0.1559051087 | R66: ='[4]ESC Model Input'!Q17 -> 0.1679386405 | S66: ='[4]ESC Model Input'!R17 -> 0.1195141883 | T66: ='[4]ESC Model Input'!S17 -> 0.2560393177 | U66: ='[4]ESC Model Input'!T17 -> 0.2486968841 | V66: ='[4]ESC Model Input'!U17 -> 0.2486968841 | W66: ='[4]ESC Model Input'!V17 -> 0 | X66: ='[4]ESC Model Input'!W17 -> 0 | AV66: 0.2228804587 | AW66: 0.342056335 | AX66: 0.1559051087 | AY66: 0.1679386405 | AZ66: 0.1195141883 | BA66: 0.2560393177 | BB66: 0.2486968841 | BC66: 0.2486968841 | BD66: 0 | BE66: 0 | BG66: 0.01419651617 | BH66: 0.05018053368 | BI66: 0.0818985126 | BJ66: 0.1025259514 | BK66: 0.1208354468 | BL66: 0.1474746709 | BM66: 0.1849824227 | BN66: 0.2219445465 | BO66: 0.2404256085 | BP66: 0.2404256085 | BR66: =+IF($K66="Ongoing",AV66,IF(RIGHT($K66,2)=RIGHT(BR$39,2),SUM($AV66:AV66),0)+IF(RIGHT(BR$39,2)>RIGHT($K66,2),AV66,0)) -> 0.2228804587 | BS66: =+IF($K66="Ongoing",AW66,IF(RIGHT($K66,2)=RIGHT(BS$39,2),SUM($AV66:AW66),0)+IF(RIGHT(BS$39,2)>RIGHT($K66,2),AW66,0)) -> 0.342056335 | BT66: =+IF($K66="Ongoing",AX66,IF(RIGHT($K66,2)=RIGHT(BT$39,2),SUM($AV66:AX66),0)+IF(RIGHT(BT$39,2)>RIGHT($K66,2),AX66,0)) -> 0.1559051087 | BU66: =+IF($K66="Ongoing",AY66,IF(RIGHT($K66,2)=RIGHT(BU$39,2),SUM($AV66:AY66),0)+IF(RIGHT(BU$39,2)>RIGHT($K66,2),AY66,0)) -> 0.1679386405 | BV66: =+IF($K66="Ongoing",AZ66,IF(RIGHT($K66,2)=RIGHT(BV$39,2),SUM($AV66:AZ66),0)+IF(RIGHT(BV$39,2)>RIGHT($K66,2),AZ66,0)) -> 0.1195141883 | BW66: =+IF($K66="Ongoing",BA66,IF(RIGHT($K66,2)=RIGHT(BW$39,2),SUM($AV66:BA66),0)+IF(RIGHT(BW$39,2)>RIGHT($K66,2),BA66,0)) -> 0.2560393177 | BX66: =+IF($K66="Ongoing",BB66,IF(RIGHT($K66,2)=RIGHT(BX$39,2),SUM($AV66:BB66),0)+IF(RIGHT(BX$39,2)>RIGHT($K66,2),BB66,0)) -> 0.2486968841 | BY66: =+IF($K66="Ongoing",BC66,IF(RIGHT($K66,2)=RIGHT(BY$39,2),SUM($AV66:BC66),0)+IF(RIGHT(BY$39,2)>RIGHT($K66,2),BC66,0)) -> 0.2486968841 | BZ66: =+IF($K66="Ongoing",BD66,IF(RIGHT($K66,2)=RIGHT(BZ$39,2),SUM($AV66:BD66),0)+IF(RIGHT(BZ$39,2)>RIGHT($K66,2),BD66,0)) -> 0 | CA66: =+IF($K66="Ongoing",BE66,IF(RIGHT($K66,2)=RIGHT(CA$39,2),SUM($AV66:BE66),0)+IF(RIGHT(CA$39,2)>RIGHT($K66,2),BE66,0)) -> 0 | CC66: =+O66*KeyAssumptionsPriceControl_FO!AC$15 -> 0.2295668724 | CD66: =+P66*KeyAssumptionsPriceControl_FO!AD$15 -> 0.3628875658 | CE66: =+Q66*KeyAssumptionsPriceControl_FO!AE$15 -> 0.1703617217 | CF66: =+R66*KeyAssumptionsPriceControl_FO!AF$15 -> 0.1890164195 | CG66: =+S66*KeyAssumptionsPriceControl_FO!AG$15 -> 0.1385497 | CH66: =+T66*KeyAssumptionsPriceControl_FO!AH$15 -> 0.3057243353 | CI66: =+U66*KeyAssumptionsPriceControl_FO!AI$15 -> 0.3058657982 | CJ66: =+V66*KeyAssumptionsPriceControl_FO!AJ$15 -> 0.3150417721 | CK66: =+W66*KeyAssumptionsPriceControl_FO!AK$15 -> 0 | CL66: =+X66*KeyAssumptionsPriceControl_FO!AL$15 -> 0 | CN66: 0.01462241166 | CO66: 0.05235918349 | CP66: 0.08632484463 | CQ66: 0.1092156697 | CR66: 0.1300802073 | CS66: 0.1616240836 | CT66: 0.2070723214 | CU66: 0.2532129528 | CV66: 0.2766242091 | CW66: 0.2766242091
C67: ='[4]ESC Model Input'!B18 -> ITC Program GW | E67: ='[4]ESC Model Input'!D18 -> Groundwater diversions | F67: ='[4]ESC Model Input'!E18 -> Improvements / Compliance | G67: ='[4]ESC Model Input'!F18 -> Corporate | H67: ='[4]ESC Model Input'!$G$3 -> Capital Programs / Allocation | J67: Straight line | K67: ='[4]ESC Model Input'!$J$3 -> Ongoing | L67: ='[4]ESC Model Input'!K18 -> 10 | M67: ='[4]ESC Model Input'!L18 -> 10 | O67: ='[4]ESC Model Input'!N18 -> 0.1818168555 | P67: ='[4]ESC Model Input'!O18 -> 0.279035711 | Q67: ='[4]ESC Model Input'!P18 -> 0.1271810763 | R67: ='[4]ESC Model Input'!Q18 -> 0.1369975445 | S67: ='[4]ESC Model Input'!R18 -> 0.09749483666 | T67: ='[4]ESC Model Input'!S18 -> 0.2088665104 | U67: ='[4]ESC Model Input'!T18 -> 0.2028768503 | V67: ='[4]ESC Model Input'!U18 -> 0.2028768503 | W67: ='[4]ESC Model Input'!V18 -> 0 | X67: ='[4]ESC Model Input'!W18 -> 0 | AV67: 0.1818168555 | AW67: 0.279035711 | AX67: 0.1271810763 | AY67: 0.1369975445 | AZ67: 0.09749483666 | BA67: 0.2088665104 | BB67: 0.2028768503 | BC67: 0.2028768503 | BD67: 0 | BE67: 0 | BG67: 0.01158094319 | BH67: 0.04093524797 | BI67: 0.06680949116 | BJ67: 0.0836365207 | BK67: 0.09857266584 | BL67: 0.1203038664 | BM67: 0.1509011719 | BN67: 0.1810533763 | BO67: 0.1961294785 | BP67: 0.1961294785 | BR67: =+IF($K67="Ongoing",AV67,IF(RIGHT($K67,2)=RIGHT(BR$39,2),SUM($AV67:AV67),0)+IF(RIGHT(BR$39,2)>RIGHT($K67,2),AV67,0)) -> 0.1818168555 | BS67: =+IF($K67="Ongoing",AW67,IF(RIGHT($K67,2)=RIGHT(BS$39,2),SUM($AV67:AW67),0)+IF(RIGHT(BS$39,2)>RIGHT($K67,2),AW67,0)) -> 0.279035711 | BT67: =+IF($K67="Ongoing",AX67,IF(RIGHT($K67,2)=RIGHT(BT$39,2),SUM($AV67:AX67),0)+IF(RIGHT(BT$39,2)>RIGHT($K67,2),AX67,0)) -> 0.1271810763 | BU67: =+IF($K67="Ongoing",AY67,IF(RIGHT($K67,2)=RIGHT(BU$39,2),SUM($AV67:AY67),0)+IF(RIGHT(BU$39,2)>RIGHT($K67,2),AY67,0)) -> 0.1369975445 | BV67: =+IF($K67="Ongoing",AZ67,IF(RIGHT($K67,2)=RIGHT(BV$39,2),SUM($AV67:AZ67),0)+IF(RIGHT(BV$39,2)>RIGHT($K67,2),AZ67,0)) -> 0.09749483666 | BW67: =+IF($K67="Ongoing",BA67,IF(RIGHT($K67,2)=RIGHT(BW$39,2),SUM($AV67:BA67),0)+IF(RIGHT(BW$39,2)>RIGHT($K67,2),BA67,0)) -> 0.2088665104 | BX67: =+IF($K67="Ongoing",BB67,IF(RIGHT($K67,2)=RIGHT(BX$39,2),SUM($AV67:BB67),0)+IF(RIGHT(BX$39,2)>RIGHT($K67,2),BB67,0)) -> 0.2028768503 | BY67: =+IF($K67="Ongoing",BC67,IF(RIGHT($K67,2)=RIGHT(BY$39,2),SUM($AV67:BC67),0)+IF(RIGHT(BY$39,2)>RIGHT($K67,2),BC67,0)) -> 0.2028768503 | BZ67: =+IF($K67="Ongoing",BD67,IF(RIGHT($K67,2)=RIGHT(BZ$39,2),SUM($AV67:BD67),0)+IF(RIGHT(BZ$39,2)>RIGHT($K67,2),BD67,0)) -> 0 | CA67: =+IF($K67="Ongoing",BE67,IF(RIGHT($K67,2)=RIGHT(CA$39,2),SUM($AV67:BE67),0)+IF(RIGHT(CA$39,2)>RIGHT($K67,2),BE67,0)) -> 0 | CC67: =+O67*KeyAssumptionsPriceControl_FO!AC$15 -> 0.1872713612 | CD67: =+P67*KeyAssumptionsPriceControl_FO!AD$15 -> 0.2960289858 | CE67: =+Q67*KeyAssumptionsPriceControl_FO!AE$15 -> 0.138974196 | CF67: =+R67*KeyAssumptionsPriceControl_FO!AF$15 -> 0.1541919432 | CG67: =+S67*KeyAssumptionsPriceControl_FO!AG$15 -> 0.1130232365 | CH67: =+T67*KeyAssumptionsPriceControl_FO!AH$15 -> 0.2493975364 | CI67: =+U67*KeyAssumptionsPriceControl_FO!AI$15 -> 0.2495129361 | CJ67: =+V67*KeyAssumptionsPriceControl_FO!AJ$15 -> 0.2569983241 | CK67: =+W67*KeyAssumptionsPriceControl_FO!AK$15 -> 0 | CL67: =+X67*KeyAssumptionsPriceControl_FO!AL$15 -> 0 | CN67: 0.01192837148 | CO67: 0.04271250228 | CP67: 0.07042031364 | CQ67: 0.08909372207 | CR67: 0.1061141672 | CS67: 0.1318463845 | CT67: 0.1689212171 | CU67: 0.2065608763 | CV67: 0.2256588315 | CW67: 0.2256588315
C68: ='[4]ESC Model Input'!B19 -> ITC Program BULK | E68: ='[4]ESC Model Input'!D19 -> Bulk water services | F68: ='[4]ESC Model Input'!E19 -> Improvements / Compliance | G68: ='[4]ESC Model Input'!F19 -> Corporate | H68: ='[4]ESC Model Input'!$G$3 -> Capital Programs / Allocation | J68: Straight line | K68: ='[4]ESC Model Input'!$J$3 -> Ongoing | L68: ='[4]ESC Model Input'!K19 -> 10 | M68: ='[4]ESC Model Input'!L19 -> 10 | O68: ='[4]ESC Model Input'!N19 -> 0.2692116916 | P68: ='[4]ESC Model Input'!O19 -> 0.4131612306 | Q68: ='[4]ESC Model Input'!P19 -> 0.1883138535 | R68: ='[4]ESC Model Input'!Q19 -> 0.2028488535 | S68: ='[4]ESC Model Input'!R19 -> 0.1443581775 | T68: ='[4]ESC Model Input'!S19 -> 0.3092634422 | U68: ='[4]ESC Model Input'!T19 -> 0.3003947016 | V68: ='[4]ESC Model Input'!U19 -> 0.3003947016 | W68: ='[4]ESC Model Input'!V19 -> 0 | X68: ='[4]ESC Model Input'!W19 -> 0 | AV68: 0.2692116916 | AW68: 0.4131612306 | AX68: 0.1883138535 | AY68: 0.2028488535 | AZ68: 0.1443581775 | BA68: 0.3092634422 | BB68: 0.3003947016 | BC68: 0.3003947016 | BD68: 0 | BE68: 0 | BG68: 0.01240485246 | BH68: 0.04384752632 | BI68: 0.07156255471 | BJ68: 0.08958671866 | BK68: 0.105585474 | BL68: 0.1288627091 | BM68: 0.1616368152 | BN68: 0.193934154 | BO68: 0.2100828234 | BP68: 0.2100828234 | BR68: =+IF($K68="Ongoing",AV68,IF(RIGHT($K68,2)=RIGHT(BR$39,2),SUM($AV68:AV68),0)+IF(RIGHT(BR$39,2)>RIGHT($K68,2),AV68,0)) -> 0.2692116916 | BS68: =+IF($K68="Ongoing",AW68,IF(RIGHT($K68,2)=RIGHT(BS$39,2),SUM($AV68:AW68),0)+IF(RIGHT(BS$39,2)>RIGHT($K68,2),AW68,0)) -> 0.4131612306 | BT68: =+IF($K68="Ongoing",AX68,IF(RIGHT($K68,2)=RIGHT(BT$39,2),SUM($AV68:AX68),0)+IF(RIGHT(BT$39,2)>RIGHT($K68,2),AX68,0)) -> 0.1883138535 | BU68: =+IF($K68="Ongoing",AY68,IF(RIGHT($K68,2)=RIGHT(BU$39,2),SUM($AV68:AY68),0)+IF(RIGHT(BU$39,2)>RIGHT($K68,2),AY68,0)) -> 0.2028488535 | BV68: =+IF($K68="Ongoing",AZ68,IF(RIGHT($K68,2)=RIGHT(BV$39,2),SUM($AV68:AZ68),0)+IF(RIGHT(BV$39,2)>RIGHT($K68,2),AZ68,0)) -> 0.1443581775 | BW68: =+IF($K68="Ongoing",BA68,IF(RIGHT($K68,2)=RIGHT(BW$39,2),SUM($AV68:BA68),0)+IF(RIGHT(BW$39,2)>RIGHT($K68,2),BA68,0)) -> 0.3092634422 | BX68: =+IF($K68="Ongoing",BB68,IF(RIGHT($K68,2)=RIGHT(BX$39,2),SUM($AV68:BB68),0)+IF(RIGHT(BX$39,2)>RIGHT($K68,2),BB68,0)) -> 0.3003947016 | BY68: =+IF($K68="Ongoing",BC68,IF(RIGHT($K68,2)=RIGHT(BY$39,2),SUM($AV68:BC68),0)+IF(RIGHT(BY$39,2)>RIGHT($K68,2),BC68,0)) -> 0.3003947016 | BZ68: =+IF($K68="Ongoing",BD68,IF(RIGHT($K68,2)=RIGHT(BZ$39,2),SUM($AV68:BD68),0)+IF(RIGHT(BZ$39,2)>RIGHT($K68,2),BD68,0)) -> 0 | CA68: =+IF($K68="Ongoing",BE68,IF(RIGHT($K68,2)=RIGHT(CA$39,2),SUM($AV68:BE68),0)+IF(RIGHT(CA$39,2)>RIGHT($K68,2),BE68,0)) -> 0 | CC68: =+O68*KeyAssumptionsPriceControl_FO!AC$15 -> 0.2772880424 | CD68: =+P68*KeyAssumptionsPriceControl_FO!AD$15 -> 0.4383227495 | CE68: =+Q68*KeyAssumptionsPriceControl_FO!AE$15 -> 0.2057756322 | CF68: =+R68*KeyAssumptionsPriceControl_FO!AF$15 -> 0.2283081717 | CG68: =+S68*KeyAssumptionsPriceControl_FO!AG$15 -> 0.1673506926 | CH68: =+T68*KeyAssumptionsPriceControl_FO!AH$15 -> 0.3692767234 | CI68: =+U68*KeyAssumptionsPriceControl_FO!AI$15 -> 0.3694475928 | CJ68: =+V68*KeyAssumptionsPriceControl_FO!AJ$15 -> 0.3805310205 | CK68: =+W68*KeyAssumptionsPriceControl_FO!AK$15 -> 0 | CL68: =+X68*KeyAssumptionsPriceControl_FO!AL$15 -> 0 | CN68: 0.01277699803 | CO68: 0.0457512208 | CP68: 0.07543026388 | CQ68: 0.09543216464 | CR68: 0.1136635045 | CS68: 0.1412264027 | CT68: 0.18093887 | CU68: 0.2212563478 | CV68: 0.2417129991 | CW68: 0.2417129991
C69: ='[4]ESC Model Input'!B20 -> ITC Program APPS | E69: ='[4]ESC Model Input'!D20 -> Licence applications | F69: ='[4]ESC Model Input'!E20 -> Improvements / Compliance | G69: ='[4]ESC Model Input'!F20 -> Corporate | H69: ='[4]ESC Model Input'!$G$3 -> Capital Programs / Allocation | J69: Straight line | K69: ='[4]ESC Model Input'!$J$3 -> Ongoing | L69: ='[4]ESC Model Input'!K20 -> 10 | M69: ='[4]ESC Model Input'!L20 -> 10 | O69: ='[4]ESC Model Input'!N20 -> 0.06510348098 | P69: ='[4]ESC Model Input'!O20 -> 0.0999148074 | Q69: ='[4]ESC Model Input'!P20 -> 0.0455399515 | R69: ='[4]ESC Model Input'!Q20 -> 0.0490549515 | S69: ='[4]ESC Model Input'!R20 -> 0.0349101475 | T69: ='[4]ESC Model Input'!S20 -> 0.07478919844 | U69: ='[4]ESC Model Input'!T20 -> 0.07264447031 | V69: ='[4]ESC Model Input'!U20 -> 0.07264447031 | W69: ='[4]ESC Model Input'!V20 -> 0 | X69: ='[4]ESC Model Input'!W20 -> 0 | AV69: =+O69-Z69-AK69 -> 0.06510348098 | AW69: 0.0999148074 | AX69: 0.0455399515 | AY69: 0.0490549515 | AZ69: 0.0349101475 | BA69: 0.07478919844 | BB69: 0.07264447031 | BC69: 0.07264447031 | BD69: 0 | BE69: 0 | BG69: =IF($L69=0,0, IF($L69<=0.5,BR69, IF($J69="straight line", IF((LEFT(BG$39,4)*1)-INT($L69)<LEFT($BG$39,4)*1,0,((OFFSET(BR69,0,-INT($L69+0.5),1,1))/$L69)*(IF($L69-INT($L69)>0.5,$L69-0.5-INT($L69),IF($L69-INT($L69)<=0.5,$L69-0.5-INT($L69)+1,0)))) +BR69/$L69*0.5, IF($J69="Declining Balance",-$BG$38,0)))) -> 0.003255174049 | BH69: =IF($L69=0,0, IF($L69<=0.5,BS69, IF(AND($J69="straight line",$L69<1.51),(BR69-((BR69/$L69)*0.5))+BS69/$L69*0.5, IF($J69="straight line", IF((LEFT(BH$39,4)*1)-INT($L69)<LEFT($BG$39,4)*1,0,((OFFSET(BS69,0,-INT($L69+0.5),1,1))/$L69)*(IF($L69-INT($L69)>0.5,$L69-0.5-INT($L69),IF($L69-INT($L69)<=0.5,$L69-0.5-INT($L69)+1,0)))) +BS69/$L69*0.5 +SUM(OFFSET(BS69,0,MAX(-INT($L69+(0.5-(10^-12))),-BH$40)+1,1,MIN(INT($L69+(0.5-(10^-12))),BH$40)-1))*1/$L69, IF($J69="Declining Balance",-$BG$38,0))))) -> 0.01150608847 | BI69: =IF($L69=0,0, IF($L69<=0.5,BT69, IF(AND($J69="straight line",$L69<1.51),(BS69-((BS69/$L69)*0.5))+BT69/$L69*0.5, IF($J69="straight line", IF((LEFT(BI$39,4)*1)-INT($L69)<LEFT($BG$39,4)*1,0,((OFFSET(BT69,0,-INT($L69+0.5),1,1))/$L69)*(IF($L69-INT($L69)>0.5,$L69-0.5-INT($L69),IF($L69-INT($L69)<=0.5,$L69-0.5-INT($L69)+1,0)))) +BT69/$L69*0.5 +SUM(OFFSET(BT69,0,MAX(-INT($L69+(0.5-(10^-12))),-BI$40)+1,1,MIN(INT($L69+(0.5-(10^-12))),BI$40)-1))*1/$L69, IF($J69="Declining Balance",-$BG$38,0))))) -> 0.01877882641 | BJ69: =IF($L69=0,0, IF($L69<=0.5,BU69, IF(AND($J69="straight line",$L69<1.51),(BT69-((BT69/$L69)*0.5))+BU69/$L69*0.5, IF($J69="straight line", IF((LEFT(BJ$39,4)*1)-INT($L69)<LEFT($BG$39,4)*1,0,((OFFSET(BU69,0,-INT($L69+0.5),1,1))/$L69)*(IF($L69-INT($L69)>0.5,$L69-0.5-INT($L69),IF($L69-INT($L69)<=0.5,$L69-0.5-INT($L69)+1,0)))) +BU69/$L69*0.5 +SUM(OFFSET(BU69,0,MAX(-INT($L69+(0.5-(10^-12))),-BJ$40)+1,1,MIN(INT($L69+(0.5-(10^-12))),BJ$40)-1))*1/$L69, IF($J69="Declining Balance",-$BG$38,0))))) -> 0.02350857156 | BK69: =IF($L69=0,0, IF($L69<=0.5,BV69, IF(AND($J69="straight line",$L69<1.51),(BU69-((BU69/$L69)*0.5))+BV69/$L69*0.5, IF($J69="straight line", IF((LEFT(BK$39,4)*1)-INT($L69)<LEFT($BG$39,4)*1,0,((OFFSET(BV69,0,-INT($L69+0.5),1,1))/$L69)*(IF($L69-INT($L69)>0.5,$L69-0.5-INT($L69),IF($L69-INT($L69)<=0.5,$L69-0.5-INT($L69)+1,0)))) +BV69/$L69*0.5 +SUM(OFFSET(BV69,0,MAX(-INT($L69+(0.5-(10^-12))),-BK$40)+1,1,MIN(INT($L69+(0.5-(10^-12))),BK$40)-1))*1/$L69, IF($J69="Declining Balance",-$BG$38,0))))) -> 0.02770682651 | BL69: =IF($L69=0,0, IF($L69<=0.5,BW69, IF(AND($J69="straight line",$L69<1.51),(BV69-((BV69/$L69)*0.5))+BW69/$L69*0.5, IF($J69="straight line", IF((LEFT(BL$39,4)*1)-INT($L69)<LEFT($BG$39,4)*1,0,((OFFSET(BW69,0,-INT($L69+0.5),1,1))/$L69)*(IF($L69-INT($L69)>0.5,$L69-0.5-INT($L69),IF($L69-INT($L69)<=0.5,$L69-0.5-INT($L69)+1,0)))) +BW69/$L69*0.5 +SUM(OFFSET(BW69,0,MAX(-INT($L69+(0.5-(10^-12))),-BL$40)+1,1,MIN(INT($L69+(0.5-(10^-12))),BL$40)-1))*1/$L69, IF($J69="Declining Balance",-$BG$38,0))))) -> 0.03319179381 | BM69: =IF($L69=0,0, IF($L69<=0.5,BX69, IF(AND($J69="straight line",$L69<1.51),(BW69-((BW69/$L69)*0.5))+BX69/$L69*0.5, IF($J69="straight line", IF((LEFT(BM$39,4)*1)-INT($L69)<LEFT($BG$39,4)*1,0,((OFFSET(BX69,0,-INT($L69+0.5),1,1))/$L69)*(IF($L69-INT($L69)>0.5,$L69-0.5-INT($L69),IF($L69-INT($L69)<=0.5,$L69-0.5-INT($L69)+1,0)))) +BX69/$L69*0.5 +SUM(OFFSET(BX69,0,MAX(-INT($L69+(0.5-(10^-12))),-BM$40)+1,1,MIN(INT($L69+(0.5-(10^-12))),BM$40)-1))*1/$L69, IF($J69="Declining Balance",-$BG$38,0))))) -> 0.04056347725 | BN69: =IF($L69=0,0, IF($L69<=0.5,BY69, IF(AND($J69="straight line",$L69<1.51),(BX69-((BX69/$L69)*0.5))+BY69/$L69*0.5, IF($J69="straight line", IF((LEFT(BN$39,4)*1)-INT($L69)<LEFT($BG$39,4)*1,0,((OFFSET(BY69,0,-INT($L69+0.5),1,1))/$L69)*(IF($L69-INT($L69)>0.5,$L69-0.5-INT($L69),IF($L69-INT($L69)<=0.5,$L69-0.5-INT($L69)+1,0)))) +BY69/$L69*0.5 +SUM(OFFSET(BY69,0,MAX(-INT($L69+(0.5-(10^-12))),-BN$40)+1,1,MIN(INT($L69+(0.5-(10^-12))),BN$40)-1))*1/$L69, IF($J69="Declining Balance",-$BG$38,0))))) -> 0.04782792428 | BO69: =IF($L69=0,0, IF($L69<=0.5,BZ69, IF(AND($J69="straight line",$L69<1.51),(BY69-((BY69/$L69)*0.5))+BZ69/$L69*0.5, IF($J69="straight line", IF((LEFT(BO$39,4)*1)-INT($L69)<LEFT($BG$39,4)*1,0,((OFFSET(BZ69,0,-INT($L69+0.5),1,1))/$L69)*(IF($L69-INT($L69)>0.5,$L69-0.5-INT($L69),IF($L69-INT($L69)<=0.5,$L69-0.5-INT($L69)+1,0)))) +BZ69/$L69*0.5 +SUM(OFFSET(BZ69,0,MAX(-INT($L69+(0.5-(10^-12))),-BO$40)+1,1,MIN(INT($L69+(0.5-(10^-12))),BO$40)-1))*1/$L69, IF($J69="Declining Balance",-$BG$38,0))))) -> 0.05512811678 | BP69: =IF($L69=0,0, IF($L69<=0.5,CA69, IF(AND($J69="straight line",$L69<1.51),(BZ69-((BZ69/$L69)*0.5))+CA69/$L69*0.5, IF($J69="straight line", IF((LEFT(BP$39,4)*1)-INT($L69)<LEFT($BG$39,4)*1,0,((OFFSET(CA69,0,-INT($L69+0.5),1,1))/$L69)*(IF($L69-INT($L69)>0.5,$L69-0.5-INT($L69),IF($L69-INT($L69)<=0.5,$L69-0.5-INT($L69)+1,0)))) +CA69/$L69*0.5 +SUM(OFFSET(CA69,0,MAX(-INT($L69+(0.5-(10^-12))),-BP$40)+1,1,MIN(INT($L69+(0.5-(10^-12))),BP$40)-1))*1/$L69, IF($J69="Declining Balance",-$BG$38,0))))) -> 0.05512811678 | BR69: =+IF($K69="Ongoing",AV69,IF(RIGHT($K69,2)=RIGHT(BR$39,2),SUM($AV69:AV69),0)+IF(RIGHT(BR$39,2)>RIGHT($K69,2),AV69,0)) -> 0.06510348098 | BS69: =+IF($K69="Ongoing",AW69,IF(RIGHT($K69,2)=RIGHT(BS$39,2),SUM($AV69:AW69),0)+IF(RIGHT(BS$39,2)>RIGHT($K69,2),AW69,0)) -> 0.0999148074 | BT69: =+IF($K69="Ongoing",AX69,IF(RIGHT($K69,2)=RIGHT(BT$39,2),SUM($AV69:AX69),0)+IF(RIGHT(BT$39,2)>RIGHT($K69,2),AX69,0)) -> 0.0455399515 | BU69: =+IF($K69="Ongoing",AY69,IF(RIGHT($K69,2)=RIGHT(BU$39,2),SUM($AV69:AY69),0)+IF(RIGHT(BU$39,2)>RIGHT($K69,2),AY69,0)) -> 0.0490549515 | BV69: =+IF($K69="Ongoing",AZ69,IF(RIGHT($K69,2)=RIGHT(BV$39,2),SUM($AV69:AZ69),0)+IF(RIGHT(BV$39,2)>RIGHT($K69,2),AZ69,0)) -> 0.0349101475 | BW69: =+IF($K69="Ongoing",BA69,IF(RIGHT($K69,2)=RIGHT(BW$39,2),SUM($AV69:BA69),0)+IF(RIGHT(BW$39,2)>RIGHT($K69,2),BA69,0)) -> 0.07478919844 | BX69: =+IF($K69="Ongoing",BB69,IF(RIGHT($K69,2)=RIGHT(BX$39,2),SUM($AV69:BB69),0)+IF(RIGHT(BX$39,2)>RIGHT($K69,2),BB69,0)) -> 0.07264447031 | BY69: =+IF($K69="Ongoing",BC69,IF(RIGHT($K69,2)=RIGHT(BY$39,2),SUM($AV69:BC69),0)+IF(RIGHT(BY$39,2)>RIGHT($K69,2),BC69,0)) -> 0.07264447031 | BZ69: =+IF($K69="Ongoing",BD69,IF(RIGHT($K69,2)=RIGHT(BZ$39,2),SUM($AV69:BD69),0)+IF(RIGHT(BZ$39,2)>RIGHT($K69,2),BD69,0)) -> 0 | CA69: =+IF($K69="Ongoing",BE69,IF(RIGHT($K69,2)=RIGHT(CA$39,2),SUM($AV69:BE69),0)+IF(RIGHT(CA$39,2)>RIGHT($K69,2),BE69,0)) -> 0 | CC69: =+O69*KeyAssumptionsPriceControl_FO!AC$15 -> 0.06705658541 | CD69: =+P69*KeyAssumptionsPriceControl_FO!AD$15 -> 0.1059996192 | CE69: =+Q69*KeyAssumptionsPriceControl_FO!AE$15 -> 0.04976273458 | CF69: =+R69*KeyAssumptionsPriceControl_FO!AF$15 -> 0.05521178009 | CG69: =+S69*KeyAssumptionsPriceControl_FO!AG$15 -> 0.04047042893 | CH69: =+T69*KeyAssumptionsPriceControl_FO!AH$15 -> 0.08930221415 | CI69: =+U69*KeyAssumptionsPriceControl_FO!AI$15 -> 0.0893435355 | CJ69: =+V69*KeyAssumptionsPriceControl_FO!AJ$15 -> 0.09202384157 | CK69: =+W69*KeyAssumptionsPriceControl_FO!AK$15 -> 0 | CL69: =+X69*KeyAssumptionsPriceControl_FO!AL$15 -> 0 | CN69: =IF($M69=0,0, IF($M69<=0.5,CC69, IF($J69="straight line", IF((LEFT(CN$39,4)*1)-INT($M69)<LEFT($CN$39,4)*1,0,((OFFSET(CC69,0,-INT($M69+0.5),1,1))/$M69)*(IF($M69-INT($M69)>0.5,$M69-0.5-INT($M69),IF($M69-INT($M69)<=0.5,$M69-0.5-INT($M69)+1,0)))) +CC69/$M69*0.5, IF($J69="Declining Balance",-$CN$38,0)))) -> 0.00335282927 | CO69: =IF($M69=0,0, IF($M69<=0.5,CD69, IF(AND($J69="straight line",$M69<1.51),(CC69-((CC69/$M69)*0.5))+CD69/$M69*0.5, IF($J69="straight line", IF((LEFT(CO$39,4)*1)-INT($M69)<LEFT($CN$39,4)*1,0,((OFFSET(CD69,0,-INT($M69+0.5),1,1))/$M69)*(IF($M69-INT($M69)>0.5,$M69-0.5-INT($M69),IF($M69-INT($M69)<=0.5,$M69-0.5-INT($M69)+1,0)))) +CD69/$M69*0.5 +SUM(OFFSET(CD69,0,MAX(-INT($M69+(0.5-(10^-12))),-CO$40)+1,1,MIN(INT($M69+(0.5-(10^-12))),CO$40)-1))*1/$M69, IF($J69="Declining Balance",-$CN$38,0))))) -> 0.0120056395 | CP69: 0.01979375719 | CQ69: 0.02504248292 | CR69: 0.02982659337 | CS69: 0.03705941064 | CT69: 0.04748041271 | CU69: 0.05806017637 | CV69: 0.06342823379 | CW69: 0.06342823379
C70: ='[4]ESC Model Input'!B21 -> Latrobe System Renewals program | E70: ='[4]ESC Model Input'!D21 -> Bulk water services | F70: ='[4]ESC Model Input'!E21 -> Renewals | G70: ='[4]ESC Model Input'!F21 -> Headworks | H70: ='[4]ESC Model Input'!$G$3 -> Capital Programs / Allocation | J70: Straight line | K70: ='[4]ESC Model Input'!$J$3 -> Ongoing | L70: ='[4]ESC Model Input'!K21 -> 50 | M70: ='[4]ESC Model Input'!L21 -> 50 | O70: ='[4]ESC Model Input'!N21 -> 0.21 | P70: ='[4]ESC Model Input'!O21 -> 0.195 | Q70: ='[4]ESC Model Input'!P21 -> 0.26 | R70: ='[4]ESC Model Input'!Q21 -> 0.525 | S70: ='[4]ESC Model Input'!R21 -> 0.7795 | T70: ='[4]ESC Model Input'!S21 -> 0.29025 | U70: ='[4]ESC Model Input'!T21 -> 0.66825 | V70: ='[4]ESC Model Input'!U21 -> 0.42525 | W70: ='[4]ESC Model Input'!V21 -> 1.9035 | X70: ='[4]ESC Model Input'!W21 -> 0.17145 | AV70: 0.21 | AW70: 0.195 | AX70: 0.26 | AY70: 0.525 | AZ70: 0.7795 | BA70: 0.29025 | BB70: 0.66825 | BC70: 0.42525 | BD70: 1.9035 | BE70: 0.17145 | BG70: 0.0021 | BH70: 0.00615 | BI70: 0.0102 | BJ70: 0.01755 | BK70: 0.030595 | BL70: 0.04177625 | BM70: 0.05295875 | BN70: 0.06571625 | BO70: 0.092885 | BP70: 0.11709275 | BR70: =+IF($K70="Ongoing",AV70,IF(RIGHT($K70,2)=RIGHT(BR$39,2),SUM($AV70:AV70),0)+IF(RIGHT(BR$39,2)>RIGHT($K70,2),AV70,0)) -> 0.21 | BS70: =+IF($K70="Ongoing",AW70,IF(RIGHT($K70,2)=RIGHT(BS$39,2),SUM($AV70:AW70),0)+IF(RIGHT(BS$39,2)>RIGHT($K70,2),AW70,0)) -> 0.195 | BT70: =+IF($K70="Ongoing",AX70,IF(RIGHT($K70,2)=RIGHT(BT$39,2),SUM($AV70:AX70),0)+IF(RIGHT(BT$39,2)>RIGHT($K70,2),AX70,0)) -> 0.26 | BU70: =+IF($K70="Ongoing",AY70,IF(RIGHT($K70,2)=RIGHT(BU$39,2),SUM($AV70:AY70),0)+IF(RIGHT(BU$39,2)>RIGHT($K70,2),AY70,0)) -> 0.525 | BV70: =+IF($K70="Ongoing",AZ70,IF(RIGHT($K70,2)=RIGHT(BV$39,2),SUM($AV70:AZ70),0)+IF(RIGHT(BV$39,2)>RIGHT($K70,2),AZ70,0)) -> 0.7795 | BW70: =+IF($K70="Ongoing",BA70,IF(RIGHT($K70,2)=RIGHT(BW$39,2),SUM($AV70:BA70),0)+IF(RIGHT(BW$39,2)>RIGHT($K70,2),BA70,0)) -> 0.29025 | BX70: =+IF($K70="Ongoing",BB70,IF(RIGHT($K70,2)=RIGHT(BX$39,2),SUM($AV70:BB70),0)+IF(RIGHT(BX$39,2)>RIGHT($K70,2),BB70,0)) -> 0.66825 | BY70: =+IF($K70="Ongoing",BC70,IF(RIGHT($K70,2)=RIGHT(BY$39,2),SUM($AV70:BC70),0)+IF(RIGHT(BY$39,2)>RIGHT($K70,2),BC70,0)) -> 0.42525 | BZ70: =+IF($K70="Ongoing",BD70,IF(RIGHT($K70,2)=RIGHT(BZ$39,2),SUM($AV70:BD70),0)+IF(RIGHT(BZ$39,2)>RIGHT($K70,2),BD70,0)) -> 1.9035 | CA70: =+IF($K70="Ongoing",BE70,IF(RIGHT($K70,2)=RIGHT(CA$39,2),SUM($AV70:BE70),0)+IF(RIGHT(CA$39,2)>RIGHT($K70,2),BE70,0)) -> 0.17145 | CC70: =+O70*KeyAssumptionsPriceControl_FO!AC$15 -> 0.2163 | CD70: =+P70*KeyAssumptionsPriceControl_FO!AD$15 -> 0.2068755 | CE70: =+Q70*KeyAssumptionsPriceControl_FO!AE$15 -> 0.28410902 | CF70: =+R70*KeyAssumptionsPriceControl_FO!AF$15 -> 0.5908921253 | CG70: =+S70*KeyAssumptionsPriceControl_FO!AG$15 -> 0.9036541409 | CH70: =+T70*KeyAssumptionsPriceControl_FO!AH$15 -> 0.3465736791 | CI70: =+U70*KeyAssumptionsPriceControl_FO!AI$15 -> 0.8218632106 | CJ70: =+V70*KeyAssumptionsPriceControl_FO!AJ$15 -> 0.5386939771 | CK70: =+W70*KeyAssumptionsPriceControl_FO!AK$15 -> 2.483635755 | CL70: =+X70*KeyAssumptionsPriceControl_FO!AL$15 -> 0.2304144632 | CN70: 0.010815 | CO70: 0.031973775 | CP70: 0.0537911835 | CQ70: 0.09480942326 | CR70: 0.1695367366 | CS70: 0.2349362416 | CT70: 0.3030950601 | CU70: 0.3824608961 | CV70: 0.5587634638 | CW70: 0.7170830599
